Workbook

Sheet Cover

Sheet Model Index
B9: A. | E9: B. | H9: C. | K9: D.
B11: A. | E11: B. | H11: C. | K11: D.
B13: A. | E13: B. | H13: C.
B15: A. | E15: B. | H15: C. | K15: E.
B17: A. | E17: B. | H17: C.
B19: A. | E19: B.
B21: A. | E21: B.
B23: A. | E23: B.
B25: A.
B28: Version | D28: Date | F28: Description | L28: Approved By:
B29: 1 | D29: 2019-01-02 | F29: Final | L29: Ausgrid

Sheet A. Summary
A1: Asset Summary Information
A3: Data Inputs
B5: Data Inputs
B6: Population | C6: ='A. Age Profile'!L4 -> 931
B7: Object Types | C7: TX_DIST – Distribution transformer
B8: Conditional & Function Failures (count) | C8: 571
B9: Analysis Period (Years) | C9: 6
B10: Asset RAB Life (Years) | C10: ='D. Risk Index Parameters'!E23 -> 45.89
B11: Planned Replacement Cost | C11: ='D. Risk Index Parameters'!$E$22 -> 114021
B12: WACC | C12: ='D. Risk Index Parameters'!$E$21 -> 0.039
B15: Loss of Supply Consequence Information
B16: ='C. PoC Summary Stats & Para'!C16 -> Proportion Failures Resulting in Unserved Energy | C16: ='C. PoC Summary Stats & Para'!E16 -> 0.618
B17: Value of Customer Reliability (VCR) per kWh | C17: ='C. PoC Summary Stats & Para'!E14 -> 47.494
B18: Outage Type (HV / LV / CBD) | C18: ='C. PoC Summary Stats & Para'!E18 -> CBD
B19: Automatic Protection Time (minutes) | C19: ='C. PoC Summary Stats & Para'!E19 -> 0
B20: Switching Time (hours) | C20: ='C. PoC Summary Stats & Para'!E20 -> 0
B21: Restoration/Repair Time (hours) | C21: ='C. PoC Summary Stats & Para'!E21 -> 5.03
B22: Automatic Protection (% load) | C22: ='C. PoC Summary Stats & Para'!E22 -> 0
B23: Switching (% load) | C23: ='C. PoC Summary Stats & Para'!E23 -> 0
B24: Restoration/Repair (% load) | C24: ='C. PoC Summary Stats & Para'!E24 -> 0.33
B25: Time without Supply (hours) | C25: ='C. PoC Summary Stats & Para'!E25 -> 1.0258182
B26: Avg. Value of Energy Unserved (per asset per event) | C26: =AVERAGE('C. Reliability Consequence'!H6:$H$1048576) -> 23759.71863
B29: Finance Consequence Information
B30: Reactive Replacement Cost | C30: ='C. PoC Summary Stats & Para'!E31 -> 136825.2
B31: Repair Cost | C31: ='C. PoC Summary Stats & Para'!E33 -> 3627
B32: Proportion Replacement | C32: ='C. PoC Summary Stats & Para'!E32 -> 0.1
B33: ='C. PoC Summary Stats & Para'!C35 -> Weighted Replacement / Repair Cost | C33: ='C. PoC Summary Stats & Para'!E35 -> 3777.888335
B34: Maintenance original asset per annum | C34: ='C. PoC Summary Stats & Para'!E38 -> 0
B35: Maintenance replacement asset per annum | C35: ='C. PoC Summary Stats & Para'!E39 -> 0
B36: Maintenance benefit per asset per annum | C36: ='C. PoC Summary Stats & Para'!E40 -> 0
A39: Failure Model Parameters
B41: Weibull Parameters | E41: Crow-AMSAA Parameters
B42: βgood | C42: See appropriate TAB | E42: βgood | F42: =IF('B. PoF Summary Stats & Params'!$C$12="W", "Not Applicable", 'B. PoF Summary Stats & Params'!I12) -> Not Applicable
B43: ηgood | C43: See appropriate TAB | E43: βaverage | F43: =IF('B. PoF Summary Stats & Params'!$C$12="W", "Not Applicable", 'B. PoF Summary Stats & Params'!I6) -> Not Applicable
B44: βaverage | C44: See appropriate TAB | E44: βpoor | F44: =IF('B. PoF Summary Stats & Params'!$C$12="W", "Not Applicable", 'B. PoF Summary Stats & Params'!I10) -> Not Applicable
B45: ηaverage | C45: See appropriate TAB | E45: λaverage | F45: =IF('B. PoF Summary Stats & Params'!$C$12="W", "Not Applicable", 'B. PoF Summary Stats & Params'!I8) -> Not Applicable
B46: βpoor | C46: See appropriate TAB
B47: ηpoor | C47: See appropriate TAB
B48: b (intercept) | C48: See appropriate TAB
A51: Adjustments to Probability of Failure (PoF)
B53: PoF Adjustment Fators
B54: =IF(ISBLANK('A. Population Info'!G5), "", 'A. Population Info'!G5) -> Construction Type
B55: =IF(ISBLANK('A. Population Info'!H5), "", 'A. Population Info'!H5) -> 
B56: =IF(ISBLANK('A. Population Info'!I5), "", 'A. Population Info'!I5) -> 
B57: =IF(ISBLANK('A. Population Info'!J5), "", 'A. Population Info'!J5) -> 
B58: =IF(ISBLANK('A. Population Info'!K5), "", 'A. Population Info'!K5) -> 
A61: Adjustments to Probability of Consequence (PoC)
B63: PoC Adjustment Factors
B64: =IF(ISBLANK('A. Population Info'!L5), "", 'A. Population Info'!L5) -> Location Type
B65: =IF(ISBLANK('A. Population Info'!M5), "", 'A. Population Info'!M5) -> 
B66: =IF(ISBLANK('A. Population Info'!N5), "", 'A. Population Info'!N5) -> 
B67: =IF(ISBLANK('A. Population Info'!O5), "", 'A. Population Info'!O5) -> 
B68: =IF(ISBLANK('A. Population Info'!P5), "", 'A. Population Info'!P5) -> 
A71: Model Calculated Failures
E73: Financial Year | F73: FY19 | G73: FY20 | H73: FY21 | I73: FY22 | J73: FY23 | K73: FY24
E74: Model Calculated Failures | F74: ='B. Asset PoF & Health Index'!J4 -> 34.92123425 | G74: ='B. Asset PoF & Health Index'!K4 -> 36.91522781 | H74: ='B. Asset PoF & Health Index'!L4 -> 38.98883412 | I74: ='B. Asset PoF & Health Index'!M4 -> 41.14373218 | J74: ='B. Asset PoF & Health Index'!N4 -> 43.38161815 | K74: ='B. Asset PoF & Health Index'!O4 -> 45.70420649
A79: Asset Health Index
A118: Asset Risk Index

Sheet A. Population Info-CH
C1: Asset Population Information
A4: Asset Identifier | B4: Asset Age | C4: Asset Length or Number within Asset ID | D4: Reliability Asset ID | E4: Average Energy Usage (kW) | F4: Reliability Asset Voltage | G4: PoF Factor 1 | H4: PoF Factor 2 | I4: PoF Factor 3 | J4: PoF Factor 4 | K4: PoF Factor 5 | L4: Consequence Factor 1 | M4: Consequence Factor 2 | N4: Consequence Factor 3 | O4: Consequence Factor 4 | P4: Consequence Factor 5
G5: Construction Type | L5: Location Type
A6: 1000003037 | B6: 24 | C6: 1 | D6: D.S.S000288 | F6: LV | G6: N/A | L6: SUB_BASEMT
A7: 1000003042 | B7: 24 | C7: 1 | D7: D.S.S000288 | F7: LV | G7: N/A | L7: SUB_BASEMT
A8: 1000003049 | B8: 24 | C8: 1 | D8: D.S.S000288 | F8: LV | G8: N/A | L8: SUB_BASEMT
A9: 1000003057 | B9: 24 | C9: 1 | D9: D.S.S003507 | E9: 91 | F9: LV | G9: N/A | L9: SUB_BUILD
A10: 1000003067 | B10: 24 | C10: 1 | D10: D.S.S003507 | E10: 91 | F10: LV | G10: N/A | L10: SUB_BUILD
A11: 1000003085 | B11: 24 | C11: 1 | D11: D.S.S000429 | E11: 353 | F11: LV | G11: N/A | L11: SUB_BASEMT
A12: 1000003095 | B12: 24 | C12: 1 | D12: D.S.S003691 | F12: LV | G12: N/A | L12: SUB_BASEMT
A13: 1000003100 | B13: 53 | C13: 1 | D13: D.S.S006255 | E13: 239 | F13: LV | G13: N/A | L13: SUB_BASEMT
A14: 1000003105 | B14: 24 | C14: 1 | D14: D.S.S004126 | F14: LV | G14: N/A | L14: SUB_BASEMT
A15: 1000003110 | B15: 53 | C15: 1 | D15: D.S.S005014 | E15: 127 | F15: LV | G15: N/A | L15: SUB_BUILD
A16: 1000003114 | B16: 24 | C16: 1 | D16: D.S.S004126 | F16: LV | G16: N/A | L16: SUB_BASEMT
A17: 1000003123 | B17: 24 | C17: 1 | D17: D.S.S006524 | E17: 395 | F17: LV | G17: N/A | L17: SUB_BASEMT
A18: 1000003132 | B18: 24 | C18: 1 | D18: D.S.S006524 | E18: 395 | F18: LV | G18: N/A | L18: SUB_BASEMT
A19: 1000003141 | B19: 24 | C19: 1 | D19: D.S.S006524 | E19: 395 | F19: LV | G19: N/A | L19: SUB_BASEMT
A20: 1000003239 | B20: 24 | C20: 1 | D20: D.S.S005377 | E20: 265 | F20: LV | G20: N/A | L20: SUB_BUILD
A21: 1000003248 | B21: 24 | C21: 1 | D21: D.S.S003560 | E21: 16 | F21: LV | G21: N/A | L21: SUB_BUILD
A22: 1000003257 | B22: 24 | C22: 1 | D22: D.S.S004128 | F22: LV | G22: N/A | L22: SUB_BUILD
A23: 1000003266 | B23: 24 | C23: 1 | D23: D.S.S000429 | E23: 353 | F23: LV | G23: N/A | L23: SUB_BASEMT
A24: 1000003275 | B24: 24 | C24: 1 | D24: D.S.S007628 | E24: 363 | F24: LV | G24: N/A | L24: SUB_BUILD
A25: 1000003284 | B25: 24 | C25: 1 | D25: D.S.S000429 | E25: 353 | F25: LV | G25: N/A | L25: SUB_BASEMT
A26: 1000003293 | B26: 24 | C26: 1 | D26: D.S.S004127 | E26: 105 | F26: LV | G26: N/A | L26: SUB_BUILD
A27: 1000003304 | B27: 24 | C27: 1 | D27: D.S.S004127 | E27: 105 | F27: LV | G27: N/A | L27: SUB_BUILD
A28: 1000003338 | B28: 53 | C28: 1 | D28: D.S.S000034 | F28: LV | G28: N/A | L28: SUB_BUILD
A29: 1000003357 | B29: 53 | C29: 1 | D29: D.S.S007392 | E29: 187 | F29: LV | G29: N/A | L29: SUB_BUILD
A30: 1000003375 | B30: 54 | C30: 1 | D30: D.S.S005325 | F30: LV | G30: N/A | L30: SUB_BUILD
A31: 1000003541 | B31: 52 | C31: 1 | D31: D.S.S002420 | F31: LV | G31: N/A | L31: SUB_BUILD
A32: 1000003614 | B32: 52 | C32: 1 | D32: D.S.S002420 | F32: LV | G32: N/A | L32: SUB_BUILD
A33: 1000003615 | B33: 39 | C33: 1 | D33: D.S.S005488 | E33: 337 | F33: LV | G33: N/A | L33: SUB_BUILD
A34: 1000003665 | B34: 39 | C34: 1 | D34: D.S.S005488 | E34: 337 | F34: LV | G34: N/A | L34: SUB_BUILD
A35: 1000003688 | B35: 53 | C35: 1 | D35: D.S.S003291 | E35: 75 | F35: LV | G35: N/A | L35: SUB_BUILD
A36: 1000003776 | B36: 54 | C36: 1 | D36: D.S.S002299 | E36: 83 | F36: LV | G36: N/A | L36: SUB_BASEMT
A37: 1000003790 | B37: 54 | C37: 1 | D37: D.S.S002299 | E37: 83 | F37: LV | G37: N/A | L37: SUB_BASEMT
A38: 1000003800 | B38: 54 | C38: 1 | D38: D.S.S002299 | E38: 83 | F38: LV | G38: N/A | L38: SUB_BASEMT
A39: 1000003829 | B39: 37 | C39: 1 | D39: D.S.S005258 | E39: 128 | F39: LV | G39: N/A | L39: SUB_BUILD
A40: 1000003842 | B40: 38 | C40: 1 | D40: D.S.S009296 | E40: 19 | F40: LV | G40: N/A | L40: SUB_BUILD
A41: 1000003879 | B41: 38 | C41: 1 | D41: D.S.S005228 | E41: 357 | F41: LV | G41: N/A | L41: SUB_BASEMT
A42: 1000007066 | B42: 10 | C42: 1 | D42: D.S.HS15665 | E42: 53 | F42: LV | G42: N/A | L42: SUB_BUILD
A43: 1000007099 | B43: 54 | C43: 1 | D43: D.S.S001118 | E43: 258 | F43: LV | G43: N/A | L43: SUB_BASEMT
A44: 1000007114 | B44: 54 | C44: 1 | D44: D.S.S001118 | E44: 258 | F44: LV | G44: N/A | L44: SUB_BASEMT
A45: 1000007120 | B45: 39 | C45: 1 | D45: D.S.S005488 | E45: 337 | F45: LV | G45: N/A | L45: SUB_BUILD
A46: 1000007126 | B46: 54 | C46: 1 | D46: D.S.S001118 | E46: 258 | F46: LV | G46: N/A | L46: SUB_BASEMT
A47: 1000007129 | B47: 43 | C47: 1 | D47: D.S.HS13991 | E47: 149 | F47: LV | G47: N/A | L47: SUB_BUILD
A48: 1000007138 | B48: 54 | C48: 1 | D48: D.S.S005325 | F48: LV | G48: N/A | L48: SUB_BUILD
A49: 1000007148 | B49: 37 | C49: 1 | D49: D.S.S005411 | E49: 104 | F49: LV | G49: N/A | L49: SUB_BUILD
A50: 1000007230 | B50: 38 | C50: 1 | D50: D.S.S005523 | E50: 38 | F50: LV | G50: N/A | L50: SUB_BUILD
A51: 1000007285 | B51: 53 | C51: 1 | D51: D.S.S006850 | E51: 138 | F51: LV | G51: N/A | L51: SUB_BUILD
A52: 1000007298 | B52: 24 | C52: 1 | D52: D.S.S003092 | E52: 431 | F52: LV | G52: N/A | L52: SUB_BUILD
A53: 1000007311 | B53: 24 | C53: 1 | D53: D.S.S004808 | F53: LV | G53: N/A | L53: SUB_BUILD
A54: 1000007322 | B54: 24 | C54: 1 | D54: D.S.S003183 | F54: LV | G54: N/A | L54: SUB_BUILD
A55: 1000007328 | B55: 37 | C55: 1 | D55: D.S.S005380 | E55: 189 | F55: LV | G55: N/A | L55: SUB_BASEMT
A56: 1000007335 | B56: 24 | C56: 1 | D56: D.S.S000906 | F56: LV | G56: N/A | L56: SUB_BUILD
A57: 1000007348 | B57: 24 | C57: 1 | D57: D.S.S006144 | F57: LV | G57: N/A | L57: SUB_BUILD
A58: 1000007361 | B58: 24 | C58: 1 | D58: D.S.S000906 | F58: LV | G58: N/A | L58: SUB_BUILD
A59: 1000007373 | B59: 24 | C59: 1 | D59: D.S.S006876 | F59: LV | G59: N/A | L59: SUB_BUILD
A60: 1000007385 | B60: 24 | C60: 1 | D60: D.S.S016652 | E60: 265 | F60: LV | G60: N/A | L60: SUB_BUILD
A61: 1000007398 | B61: 24 | C61: 1 | D61: D.S.S016628 | F61: LV | G61: N/A | L61: SUB_BUILD
A62: 1000007404 | B62: 37 | C62: 1 | D62: D.S.S005411 | E62: 104 | F62: LV | G62: N/A | L62: SUB_BUILD
A63: 1000007411 | B63: 24 | C63: 1 | D63: D.S.S003644 | E63: 315 | F63: LV | G63: N/A | L63: SUB_BUILD
A64: 1000007416 | B64: 37 | C64: 1 | D64: D.S.S005411 | E64: 104 | F64: LV | G64: N/A | L64: SUB_BUILD
A65: 1000007424 | B65: 24 | C65: 1 | D65: D.S.S003644 | E65: 315 | F65: LV | G65: N/A | L65: SUB_BUILD
A66: 1000007425 | B66: 54 | C66: 1 | D66: D.S.S005325 | F66: LV | G66: N/A | L66: SUB_BUILD
A67: 1000007437 | B67: 24 | C67: 1 | D67: D.S.S016629 | F67: LV | G67: N/A | L67: SUB_BUILD
A68: 1000007449 | B68: 20 | C68: 1 | D68: D.S.S011035 | E68: 178 | F68: LV | G68: N/A | L68: SUB_BUILD
A69: 1000007463 | B69: 23 | C69: 1 | D69: D.S.S008290 | F69: LV | G69: N/A | L69: SUB_BUILD
A70: 1000007477 | B70: 23 | C70: 1 | D70: D.S.S004798 | F70: LV | G70: N/A | L70: SUB_BUILD
A71: 1000007490 | B71: 23 | C71: 1 | D71: D.S.S008290 | F71: LV | G71: N/A | L71: SUB_BUILD
A72: 1000007504 | B72: 23 | C72: 1 | D72: D.S.S003450 | F72: LV | G72: N/A | L72: SUB_UPPERL
A73: 1000007516 | B73: 23 | C73: 1 | D73: D.S.S004801 | F73: LV | G73: N/A | L73: SUB_BUILD
A74: 1000007530 | B74: 23 | C74: 1 | D74: D.S.S003450 | F74: LV | G74: N/A | L74: SUB_UPPERL
A75: 1000007545 | B75: 23 | C75: 1 | D75: D.S.S005349 | F75: LV | G75: N/A | L75: SUB_BUILD
A76: 1000007557 | B76: 23 | C76: 1 | D76: D.S.S005349 | F76: LV | G76: N/A | L76: SUB_BUILD
A77: 1000007571 | B77: 23 | C77: 1 | D77: D.S.S005349 | F77: LV | G77: N/A | L77: SUB_BUILD
A78: 1000007585 | B78: 23 | C78: 1 | D78: D.S.S004799 | E78: 118 | F78: LV | G78: N/A | L78: SUB_BUILD
A79: 1000007598 | B79: 23 | C79: 1 | D79: D.S.S004800 | E79: 107 | F79: LV | G79: N/A | L79: SUB_BUILD
A80: 1000007658 | B80: 54 | C80: 1 | D80: D.S.S011948 | E80: 170 | F80: LV | G80: N/A | L80: SUB_BUILD
A81: 1000007825 | B81: 52 | C81: 1 | D81: D.S.S002420 | F81: LV | G81: N/A | L81: SUB_BUILD
A82: 1000007839 | B82: 52 | C82: 1 | D82: D.S.S002420 | F82: LV | G82: N/A | L82: SUB_BUILD
A83: 1000007853 | B83: 52 | C83: 1 | D83: D.S.S002420 | F83: LV | G83: N/A | L83: SUB_BUILD
A84: 1000007866 | B84: 52 | C84: 1 | D84: D.S.S002420 | F84: LV | G84: N/A | L84: SUB_BUILD
A85: 1000007898 | B85: 38 | C85: 1 | D85: D.S.S005359 | E85: 411 | F85: LV | G85: N/A | L85: SUB_BUILD
A86: 1000007912 | B86: 38 | C86: 1 | D86: D.S.S005359 | E86: 411 | F86: LV | G86: N/A | L86: SUB_BUILD
A87: 1000015042 | B87: 37 | C87: 1 | D87: D.S.S003533 | E87: 137 | F87: LV | G87: N/A | L87: SUB_BASEMT
A88: 1000015055 | B88: 37 | C88: 1 | D88: D.S.S003533 | E88: 137 | F88: LV | G88: N/A | L88: SUB_BASEMT
A89: 1000015070 | B89: 37 | C89: 1 | D89: D.S.S003533 | E89: 137 | F89: LV | G89: N/A | L89: SUB_BASEMT
A90: 1000015107 | B90: 38 | C90: 1 | D90: D.S.S006149 | E90: 138 | F90: LV | G90: N/A | L90: SUB_BUILD
A91: 1000015119 | B91: 53 | C91: 1 | D91: D.S.S006328 | E91: 98 | F91: LV | G91: N/A | L91: SUB_BASEMT
A92: 1000015143 | B92: 38 | C92: 1 | D92: D.S.S016389 | E92: 152 | F92: LV | G92: N/A | L92: SUB_BUILD
A93: 1000015242 | B93: 53 | C93: 1 | D93: D.S.S007392 | E93: 187 | F93: LV | G93: N/A | L93: SUB_BUILD
A94: 1000015489 | B94: 54 | C94: 1 | D94: D.S.S002953 | E94: 84 | F94: LV | G94: N/A | L94: SUB_UPPERL
A95: 1000015529 | B95: 53 | C95: 1 | D95: D.S.S002436 | E95: 127 | F95: LV | G95: N/A | L95: SUB_BUILD
A96: 1000015532 | B96: 49 | C96: 1 | D96: D.S.S005972 | E96: 34 | F96: LV | G96: N/A | L96: SUB_BUILD
A97: 1000015542 | B97: 53 | C97: 1 | D97: D.S.S002436 | E97: 127 | F97: LV | G97: N/A | L97: SUB_BUILD
A98: 1000015545 | B98: 38 | C98: 1 | D98: D.S.S004108 | F98: LV | G98: N/A | L98: SUB_BUILD
A99: 1000015548 | B99: 48 | C99: 1 | D99: D.S.HS11636 | E99: 121 | F99: LV | G99: N/A | L99: SUB_BUILD
A100: 1000015558 | B100: 38 | C100: 1 | D100: D.S.S004108 | F100: LV | G100: N/A | L100: SUB_BUILD
A101: 1000015575 | B101: 44 | C101: 1 | D101: D.S.HS14310 | E101: 162 | F101: LV | G101: N/A | L101: SUB_BUILD
A102: 1000015582 | B102: 38 | C102: 1 | D102: D.S.S004091 | E102: 121 | F102: LV | G102: N/A | L102: SUB_BASEMT
A103: 1000015636 | B103: 19 | C103: 1 | D103: D.S.HS21402 | E103: 163 | F103: LV | G103: N/A | L103: SUB_BUILD
A104: 1000015665 | B104: 12 | C104: 1 | D104: D.S.HS15348 | E104: 99 | F104: LV | G104: N/A | L104: SUB_BUILD
A105: 1000015735 | B105: 53 | C105: 1 | D105: D.S.S003239 | F105: LV | G105: N/A | L105: SUB_BUILD
A106: 1000015790 | B106: 53 | C106: 1 | D106: D.S.S003721 | E106: 79 | F106: LV | G106: N/A | L106: SUB_BUILD
A107: 1000015800 | B107: 20 | C107: 1 | D107: D.S.S002409 | E107: 236 | F107: LV | G107: N/A | L107: SUB_BUILD
A108: 1000015804 | B108: 53 | C108: 1 | D108: D.S.S002472 | E108: 187 | F108: LV | G108: N/A | L108: SUB_BUILD
A109: 1000015814 | B109: 20 | C109: 1 | D109: D.S.S004310 | E109: 75 | F109: LV | G109: N/A | L109: SUB_BUILD
A110: 1000015816 | B110: 53 | C110: 1 | D110: D.S.S006576 | E110: 212 | F110: LV | G110: N/A | L110: SUB_BUILD
A111: 1000015826 | B111: 20 | C111: 1 | D111: D.S.S001690 | E111: 137 | F111: LV | G111: N/A | L111: SUB_BUILD
A112: 1000015829 | B112: 52 | C112: 1 | D112: D.S.S002357 | E112: 143 | F112: LV | G112: N/A | L112: SUB_BASEMT
A113: 1000015870 | B113: 53 | C113: 1 | D113: D.S.S003419 | E113: 84 | F113: LV | G113: N/A | L113: SUB_BUILD
A114: 1000015945 | B114: 20 | C114: 1 | D114: D.S.S006097 | E114: 21 | F114: LV | G114: N/A | L114: SUB_BUILD
A115: 1000015957 | B115: 20 | C115: 1 | D115: D.S.S002884 | F115: LV | G115: N/A | L115: SUB_BASEMT
A116: 1000015970 | B116: 20 | C116: 1 | D116: D.S.S002884 | F116: LV | G116: N/A | L116: SUB_BASEMT
A117: 1000015982 | B117: 19 | C117: 1 | D117: D.S.S000446 | E117: 117 | F117: LV | G117: N/A | L117: SUB_BASEMT
A118: 1000015994 | B118: 20 | C118: 1 | D118: D.S.S002884 | F118: LV | G118: N/A | L118: SUB_BASEMT
A119: 1000021324 | B119: 31 | C119: 1 | D119: D.S.HS22281 | F119: LV | G119: N/A | L119: SUB_BUILD
A120: 1000021328 | B120: 40 | C120: 1 | D120: D.S.HS13951 | E120: 21 | F120: LV | G120: N/A | L120: SUB_BUILD
A121: 1000021339 | B121: 30 | C121: 1 | D121: D.S.HS22492 | F121: LV | G121: N/A | L121: SUB_BUILD
A122: 1000021343 | B122: 30 | C122: 1 | D122: D.S.HS22492 | F122: LV | G122: N/A | L122: SUB_BUILD
A123: 1000023050 | B123: 23 | C123: 1 | D123: D.S.S001448 | E123: 90 | F123: LV | G123: N/A | L123: SUB_BUILD
A124: 1000023061 | B124: 53 | C124: 1 | D124: D.S.S009444 | F124: LV | G124: N/A | L124: SUB_BUILD
A125: 1000023082 | B125: 37 | C125: 1 | D125: D.S.S003534 | E125: 115 | F125: LV | G125: N/A | L125: SUB_UPPERL
A126: 1000023090 | B126: 21 | C126: 1 | D126: D.S.S003512 | F126: LV | G126: N/A | L126: SUB_BUILD
A127: 1000023094 | B127: 37 | C127: 1 | D127: D.S.S003534 | E127: 115 | F127: LV | G127: N/A | L127: SUB_UPPERL
A128: 1000023101 | B128: 24 | C128: 1 | D128: D.S.S005235 | E128: 416 | F128: LV | G128: N/A | L128: SUB_BUILD
A129: 1000023107 | B129: 37 | C129: 1 | D129: D.S.S003534 | E129: 115 | F129: LV | G129: N/A | L129: SUB_UPPERL
A130: 1000023117 | B130: 24 | C130: 1 | D130: D.S.S002399 | E130: 262 | F130: LV | G130: N/A | L130: SUB_BASEMT
A131: 1000023128 | B131: 24 | C131: 1 | D131: D.S.S002399 | E131: 262 | F131: LV | G131: N/A | L131: SUB_BASEMT
A132: 1000023141 | B132: 21 | C132: 1 | D132: D.S.S003512 | F132: LV | G132: N/A | L132: SUB_BUILD
A133: 1000023156 | B133: 24 | C133: 1 | D133: D.S.S002882 | E133: 191 | F133: LV | G133: N/A | L133: SUB_BUILD
A134: 1000023170 | B134: 24 | C134: 1 | D134: D.S.S002882 | E134: 191 | F134: LV | G134: N/A | L134: SUB_BUILD
A135: 1000023181 | B135: 52 | C135: 1 | D135: D.S.S001108 | E135: 187 | F135: LV | G135: N/A | L135: SUB_BUILD
A136: 1000023183 | B136: 24 | C136: 1 | D136: D.S.S016226 | E136: 395 | F136: LV | G136: N/A | L136: SUB_BUILD
A137: 1000023192 | B137: 24 | C137: 1 | D137: D.S.S003650 | E137: 104 | F137: LV | G137: N/A | L137: SUB_BUILD
A138: 1000023207 | B138: 24 | C138: 1 | D138: D.S.S003650 | E138: 104 | F138: LV | G138: N/A | L138: SUB_BUILD
A139: 1000023210 | B139: 52 | C139: 1 | D139: D.S.S001246 | E139: 40 | F139: LV | G139: N/A | L139: SUB_BUILD
A140: 1000023220 | B140: 24 | C140: 1 | D140: D.S.S001713 | F140: LV | G140: N/A | L140: SUB_BUILD
A141: 1000023221 | B141: 52 | C141: 1 | D141: D.S.S001200 | E141: 123 | F141: LV | G141: N/A | L141: SUB_BUILD
A142: 1000023233 | B142: 24 | C142: 1 | D142: D.S.S001798 | E142: 214 | F142: LV | G142: N/A | L142: SUB_BUILD
A143: 1000023244 | B143: 24 | C143: 1 | D143: D.S.S001713 | F143: LV | G143: N/A | L143: SUB_BUILD
A144: 1000023271 | B144: 24 | C144: 1 | D144: D.S.S001713 | F144: LV | G144: N/A | L144: SUB_BUILD
A145: 1000023283 | B145: 24 | C145: 1 | D145: D.S.S016628 | F145: LV | G145: N/A | L145: SUB_BUILD
A146: 1000023287 | B146: 52 | C146: 1 | D146: D.S.S000720 | F146: LV | G146: N/A | L146: SUB_BUILD
A147: 1000023297 | B147: 24 | C147: 1 | D147: D.S.S002535 | E147: 311 | F147: LV | G147: N/A | L147: SUB_BASEMT
A148: 1000023309 | B148: 24 | C148: 1 | D148: D.S.S002535 | E148: 311 | F148: LV | G148: N/A | L148: SUB_BASEMT
A149: 1000023316 | B149: 38 | C149: 1 | D149: D.S.S004091 | E149: 121 | F149: LV | G149: N/A | L149: SUB_BASEMT
A150: 1000023324 | B150: 24 | C150: 1 | D150: D.S.S002535 | E150: 311 | F150: LV | G150: N/A | L150: SUB_BASEMT
A151: 1000023335 | B151: 24 | C151: 1 | D151: D.S.S006434 | E151: 545 | F151: LV | G151: N/A | L151: SUB_BUILD
A152: 1000023346 | B152: 24 | C152: 1 | D152: D.S.S002737 | F152: LV | G152: N/A | L152: SUB_BASEMT
A153: 1000023358 | B153: 24 | C153: 1 | D153: D.S.S002737 | F153: LV | G153: N/A | L153: SUB_BASEMT
A154: 1000023370 | B154: 24 | C154: 1 | D154: D.S.S006144 | F154: LV | G154: N/A | L154: SUB_BUILD
A155: 1000023384 | B155: 24 | C155: 1 | D155: D.S.S002737 | F155: LV | G155: N/A | L155: SUB_BASEMT
A156: 1000023449 | B156: 52 | C156: 1 | D156: D.S.S002357 | E156: 143 | F156: LV | G156: N/A | L156: SUB_BASEMT
A157: 1000023506 | B157: 12 | C157: 1 | D157: D.S.S018428 | F157: LV | G157: N/A | L157: SUB_BUILD
A158: 1000023601 | B158: 53 | C158: 1 | D158: D.S.S000346 | F158: LV | G158: N/A | L158: SUB_BUILD
A159: 1000023652 | B159: 52 | C159: 1 | D159: D.S.S000894 | E159: 159 | F159: LV | G159: N/A | L159: SUB_BUILD
A160: 1000023683 | B160: 24 | C160: 1 | D160: D.S.S005224 | E160: 99 | F160: LV | G160: N/A | L160: SUB_BUILD
A161: 1000023692 | B161: 52 | C161: 1 | D161: D.S.S002533 | E161: 174 | F161: LV | G161: N/A | L161: SUB_BUILD
A162: 1000023696 | B162: 24 | C162: 1 | D162: D.S.S007371 | E162: 227 | F162: LV | G162: N/A | L162: SUB_BASEMT
A163: 1000023704 | B163: 52 | C163: 1 | D163: D.S.S002357 | E163: 143 | F163: LV | G163: N/A | L163: SUB_BASEMT
A164: 1000023708 | B164: 24 | C164: 1 | D164: D.S.S003570 | E164: 131 | F164: LV | G164: N/A | L164: SUB_BASEMT
A165: 1000023720 | B165: 24 | C165: 1 | D165: D.S.S000617 | E165: 100 | F165: LV | G165: N/A | L165: SUB_BUILD
A166: 1000023731 | B166: 24 | C166: 1 | D166: D.S.S005314 | E166: 69 | F166: LV | G166: N/A | L166: SUB_BUILD
A167: 1000023749 | B167: 24 | C167: 1 | D167: D.S.S002633 | F167: LV | G167: N/A | L167: SUB_BASEMT
A168: 1000023761 | B168: 24 | C168: 1 | D168: D.S.S002633 | F168: LV | G168: N/A | L168: SUB_BASEMT
A169: 1000023774 | B169: 24 | C169: 1 | D169: D.S.S005314 | E169: 69 | F169: LV | G169: N/A | L169: SUB_BUILD
A170: 1000023787 | B170: 24 | C170: 1 | D170: D.S.S002633 | F170: LV | G170: N/A | L170: SUB_BASEMT
A171: 1000023805 | B171: 24 | C171: 1 | D171: D.S.S000906 | F171: LV | G171: N/A | L171: SUB_BUILD
A172: 1000023916 | B172: 24 | C172: 1 | D172: D.S.S003044 | E172: 115 | F172: LV | G172: N/A | L172: SUB_BUILD
A173: 1000023930 | B173: 24 | C173: 1 | D173: D.S.S007371 | E173: 227 | F173: LV | G173: N/A | L173: SUB_BASEMT
A174: 1000023942 | B174: 24 | C174: 1 | D174: D.S.S004199 | E174: 150 | F174: LV | G174: N/A | L174: SUB_BASEMT
A175: 1000023955 | B175: 24 | C175: 1 | D175: D.S.S003491 | E175: 256 | F175: LV | G175: N/A | L175: SUB_BASEMT
A176: 1000023967 | B176: 24 | C176: 1 | D176: D.S.S003869 | E176: 114 | F176: LV | G176: N/A | L176: SUB_BASEMT
A177: 1000023979 | B177: 24 | C177: 1 | D177: D.S.S002004 | E177: 256 | F177: LV | G177: N/A | L177: SUB_BUILD
A178: 1000023991 | B178: 24 | C178: 1 | D178: D.S.S007136 | E178: 94 | F178: LV | G178: N/A | L178: SUB_BASEMT
A179: 1000031005 | B179: 24 | C179: 1 | D179: D.S.S007136 | E179: 94 | F179: LV | G179: N/A | L179: SUB_BASEMT
A180: 1000031019 | B180: 24 | C180: 1 | D180: D.S.S007136 | E180: 94 | F180: LV | G180: N/A | L180: SUB_BASEMT
A181: 1000031133 | B181: 37 | C181: 1 | D181: D.S.S006021 | E181: 174 | F181: LV | G181: N/A | L181: SUB_BUILD
A182: 1000031178 | B182: 53 | C182: 1 | D182: D.S.S006328 | E182: 98 | F182: LV | G182: N/A | L182: SUB_BASEMT
A183: 1000031191 | B183: 53 | C183: 1 | D183: D.S.S006328 | E183: 98 | F183: LV | G183: N/A | L183: SUB_BASEMT
A184: 1000031203 | B184: 52 | C184: 1 | D184: D.S.S002387 | E184: 112 | F184: LV | G184: N/A | L184: SUB_BUILD
A185: 1000031218 | B185: 52 | C185: 1 | D185: D.S.S002387 | E185: 112 | F185: LV | G185: N/A | L185: SUB_BUILD
A186: 1000031227 | B186: 21 | C186: 1 | D186: D.S.S000446 | E186: 117 | F186: LV | G186: N/A | L186: SUB_BASEMT
A187: 1000031236 | B187: 21 | C187: 1 | D187: D.S.S000446 | E187: 117 | F187: LV | G187: N/A | L187: SUB_BASEMT
A188: 1000031249 | B188: 20 | C188: 1 | D188: D.S.S002118 | E188: 68 | F188: LV | G188: N/A | L188: SUB_BUILD
A189: 1000031257 | B189: 52 | C189: 1 | D189: D.S.S002502 | E189: 225 | F189: LV | G189: N/A | L189: SUB_BASEMT
A190: 1000031269 | B190: 52 | C190: 1 | D190: D.S.S002502 | E190: 225 | F190: LV | G190: N/A | L190: SUB_BASEMT
A191: 1000031281 | B191: 54 | C191: 1 | D191: D.S.S002953 | E191: 84 | F191: LV | G191: N/A | L191: SUB_UPPERL
A192: 1000031294 | B192: 54 | C192: 1 | D192: D.S.S002953 | E192: 84 | F192: LV | G192: N/A | L192: SUB_UPPERL
A193: 1000031302 | B193: 36 | C193: 1 | D193: D.S.S005884 | F193: LV | G193: N/A | L193: SUB_BASEMT
A194: 1000031501 | B194: 24 | C194: 1 | D194: D.S.S005154 | E194: 29 | F194: LV | G194: N/A | L194: SUB_BUILD
A195: 1000031514 | B195: 20 | C195: 1 | D195: D.S.S004385 | E195: 343 | F195: LV | G195: N/A | L195: SUB_BUILD
A196: 1000031528 | B196: 24 | C196: 1 | D196: D.S.S005154 | E196: 29 | F196: LV | G196: N/A | L196: SUB_BUILD
A197: 1000031540 | B197: 24 | C197: 1 | D197: D.S.S005154 | E197: 29 | F197: LV | G197: N/A | L197: SUB_BUILD
A198: 1000031546 | B198: 52 | C198: 1 | D198: D.S.S002502 | E198: 225 | F198: LV | G198: N/A | L198: SUB_BASEMT
A199: 1000031552 | B199: 24 | C199: 1 | D199: D.S.S003897 | E199: 258 | F199: LV | G199: N/A | L199: SUB_BUILD
A200: 1000031557 | B200: 52 | C200: 1 | D200: D.S.S000390 | E200: 115 | F200: LV | G200: N/A | L200: SUB_BASEMT
A201: 1000031564 | B201: 24 | C201: 1 | D201: D.S.S004174 | E201: 209 | F201: LV | G201: N/A | L201: SUB_BASEMT
A202: 1000031570 | B202: 52 | C202: 1 | D202: D.S.S000390 | E202: 115 | F202: LV | G202: N/A | L202: SUB_BASEMT
... 3909 more rows

Sheet A. Age Profile-CH
C1: Asset Population Age Profile
A3: Asset Age | B3: Median Age (x) | C3: Freq. of x (f) | D3: Cumulative Freq. of x (F) | E3: f.x | G3: E(f) | H3: Asset Units | K3: Summary Statisitics | N3: Additional Information for Graph
A4: 0 | B4: 0.5 | C4: =COUNTIF('A. Population Info-CH'!$B:$B, 'A. Age Profile-CH'!A4) -> 75 | D4: =SUM($C$4:C4) -> 75 | E4: =B4*C4 -> 37.5 | F4: =(B4-$L$6)^2*C4 -> 56311.60458 | G4: =_xlfn.NORM.DIST(B4,$L$6,$L$7,FALSE)*$L$4 -> 28.68241131 | H4: =SUMIF('A. Population Info-CH'!$B:$B, A4,'A. Population Info-CH'!$C:$C) -> 75 | K4: Population Bins (n) | L4: =SUM(C:C) -> 4106
A5: 1 | B5: 1.5 | C5: =COUNTIF('A. Population Info-CH'!$B:$B, 'A. Age Profile-CH'!A5) -> 121 | D5: =SUM($C$4:C5) -> 196 | E5: =B5*C5 -> 181.5 | F5: 84339.3176 | G5: =_xlfn.NORM.DIST(B5,$L$6,$L$7,FALSE)*$L$4 -> 31.14951418 | H5: =SUMIF('A. Population Info-CH'!$B:$B, A5,'A. Population Info-CH'!$C:$C) -> 121 | K5: No. of Asset Units | L5: =SUM(H:H) -> 4106
A6: 2 | B6: 2.5 | C6: =COUNTIF('A. Population Info-CH'!$B:$B, 'A. Age Profile-CH'!A6) -> 99 | D6: =SUM($C$4:C6) -> 295 | E6: =B6*C6 -> 247.5 | F6: 63876.4744 | G6: 33.7252185 | H6: =SUMIF('A. Population Info-CH'!$B:$B, A6,'A. Population Info-CH'!$C:$C) -> 99 | K6: Mean Age | L6: =SUM(E:E)/SUM(C:C) -> 27.90112031 | N6: Mean Marker | O6: =MATCH(L6,$A$4:$A$104,1) -> 28 | P6: =P8 -> 536
A7: 3 | B7: 3.5 | C7: =COUNTIF('A. Population Info-CH'!$B:$B, 'A. Age Profile-CH'!A7) -> 84 | D7: =SUM($C$4:C7) -> 379 | E7: 294 | F7: 50014.83249 | G7: 36.40207525 | H7: =SUMIF('A. Population Info-CH'!$B:$B, A7,'A. Population Info-CH'!$C:$C) -> 84 | K7: Standard Deviation | L7: =(SUM(F:F)/SUM(C:C))^0.5 -> 18.05593109
A8: 4 | B8: 4.5 | C8: =COUNTIF('A. Population Info-CH'!$B:$B, 'A. Age Profile-CH'!A8) -> 107 | D8: =SUM($C$4:C8) -> 486 | E8: 481.5 | F8: 58594.53021 | G8: 39.17106598 | H8: =SUMIF('A. Population Info-CH'!$B:$B, A8,'A. Population Info-CH'!$C:$C) -> 107 | K8: Median Age | L8: =L13+(((L4/2)-L10)/L11)*L12 -> 24.92829457 | N8: Median Marker | O8: =MATCH(L8,$A$4:$A$104,1) -> 25 | P8: =INDEX($C$4:$C$104,O8)+20 -> 536
A9: 5 | B9: 5.5 | C9: =COUNTIF('A. Population Info-CH'!$B:$B, 'A. Age Profile-CH'!A9) -> 74 | D9: =SUM($C$4:C9) -> 560 | E9: 407 | F9: 37133.95415 | G9: 42.02159319 | H9: =SUMIF('A. Population Info-CH'!$B:$B, A9,'A. Population Info-CH'!$C:$C) -> 74 | K9: Mode Age | L9: =MATCH(MAX(C4:C104),C4:C104,0) -> 25
A10: 6 | B10: 6.5 | C10: =COUNTIF('A. Population Info-CH'!$B:$B, 'A. Age Profile-CH'!A10) -> 108 | D10: =SUM($C$4:C10) -> 668 | E10: 702 | F10: 49464.85866 | G10: 44.94149486 | H10: =SUMIF('A. Population Info-CH'!$B:$B, A10,'A. Population Info-CH'!$C:$C) -> 108 | K10: F | L10: =INDEX(D4:D104,MATCH(L4/2,$D$4:$D$104,1)) -> 1574
A11: 7 | B11: 7.5 | C11: =COUNTIF('A. Population Info-CH'!$B:$B, 'A. Age Profile-CH'!A11) -> 70 | D11: =SUM($C$4:C11) -> 738 | E11: 525 | F11: 29134.3997 | G11: 47.91708502 | H11: =SUMIF('A. Population Info-CH'!$B:$B, A11,'A. Population Info-CH'!$C:$C) -> 70 | K11: fm | L11: =INDEX(C4:C104,MATCH(L4/2,$D$4:$D$104,1)+1) -> 516
A12: 8 | B12: 8.5 | C12: =COUNTIF('A. Population Info-CH'!$B:$B, 'A. Age Profile-CH'!A12) -> 85 | D12: =SUM($C$4:C12) -> 823 | E12: 722.5 | F12: 31994.29489 | G12: 50.93322117 | H12: =SUMIF('A. Population Info-CH'!$B:$B, A12,'A. Population Info-CH'!$C:$C) -> 85 | K12: i | L12: =B6-B5 -> 1
A13: 9 | B13: 9.5 | C13: =COUNTIF('A. Population Info-CH'!$B:$B, 'A. Age Profile-CH'!A13) -> 60 | D13: =SUM($C$4:C13) -> 883 | E13: 570 | F13: 20316.07372 | G13: 53.97339943 | H13: =SUMIF('A. Population Info-CH'!$B:$B, A13,'A. Population Info-CH'!$C:$C) -> 60 | K13: Lm | L13: =INDEX(B4:B104,MATCH(L4/2,$D$4:$D$104,1))+L12/2 -> 24
A14: 10 | B14: 10.5 | C14: =COUNTIF('A. Population Info-CH'!$B:$B, 'A. Age Profile-CH'!A14) -> 81 | D14: =SUM($C$4:C14) -> 964 | E14: 850.5 | F14: 24526.71804 | G14: 57.01987721 | H14: =SUMIF('A. Population Info-CH'!$B:$B, A14,'A. Population Info-CH'!$C:$C) -> 81
A15: 11 | B15: 11.5 | C15: =COUNTIF('A. Population Info-CH'!$B:$B, 'A. Age Profile-CH'!A15) -> 63 | D15: =SUM($C$4:C15) -> 1027 | E15: 724.5 | F15: 16946.79509 | G15: 60.053823 | H15: =SUMIF('A. Population Info-CH'!$B:$B, A15,'A. Population Info-CH'!$C:$C) -> 63
A16: 12 | B16: 12.5 | C16: =COUNTIF('A. Population Info-CH'!$B:$B, 'A. Age Profile-CH'!A16) -> 71 | D16: =SUM($C$4:C16) -> 1098 | E16: 887.5 | F16: 16840.80999 | G16: 63.05549187 | H16: =SUMIF('A. Population Info-CH'!$B:$B, A16,'A. Population Info-CH'!$C:$C) -> 71
A17: 13 | B17: 13.5 | C17: =COUNTIF('A. Population Info-CH'!$B:$B, 'A. Age Profile-CH'!A17) -> 63 | D17: =SUM($C$4:C17) -> 1161 | E17: 850.5 | F17: 13065.71277 | G17: 66.00442505 | H17: =SUMIF('A. Population Info-CH'!$B:$B, A17,'A. Population Info-CH'!$C:$C) -> 63
A18: 14 | B18: 14.5 | C18: =COUNTIF('A. Population Info-CH'!$B:$B, 'A. Age Profile-CH'!A18) -> 45 | D18: =SUM($C$4:C18) -> 1206 | E18: 652.5 | F18: 8081.551152 | G18: 68.87967088 | H18: =SUMIF('A. Population Info-CH'!$B:$B, A18,'A. Population Info-CH'!$C:$C) -> 45
A19: 15 | B19: 15.5 | C19: =COUNTIF('A. Population Info-CH'!$B:$B, 'A. Age Profile-CH'!A19) -> 54 | D19: =SUM($C$4:C19) -> 1260 | E19: 837 | F19: 8304.540389 | G19: 71.66002422 | H19: =SUMIF('A. Population Info-CH'!$B:$B, A19,'A. Population Info-CH'!$C:$C) -> 54
A20: 16 | B20: 16.5 | C20: =COUNTIF('A. Population Info-CH'!$B:$B, 'A. Age Profile-CH'!A20) -> 30 | D20: =SUM($C$4:C20) -> 1290 | E20: 495 | F20: 3899.566331 | G20: 74.3242806 | H20: =SUMIF('A. Population Info-CH'!$B:$B, A20,'A. Population Info-CH'!$C:$C) -> 30
A21: 17 | B21: 17.5 | C21: =COUNTIF('A. Population Info-CH'!$B:$B, 'A. Age Profile-CH'!A21) -> 40 | D21: =SUM($C$4:C21) -> 1330 | E21: 700 | F21: 4327.33215 | G21: 76.85150101 | H21: =SUMIF('A. Population Info-CH'!$B:$B, A21,'A. Population Info-CH'!$C:$C) -> 40
A22: 18 | B22: 18.5 | C22: =COUNTIF('A. Population Info-CH'!$B:$B, 'A. Age Profile-CH'!A22) -> 15 | D22: =SUM($C$4:C22) -> 1345 | E22: 277.5 | F22: 1325.715947 | G22: 79.22128283 | H22: =SUMIF('A. Population Info-CH'!$B:$B, A22,'A. Population Info-CH'!$C:$C) -> 15
A23: 19 | B23: 19.5 | C23: =COUNTIF('A. Population Info-CH'!$B:$B, 'A. Age Profile-CH'!A23) -> 21 | D23: =SUM($C$4:C23) -> 1366 | E23: 409.5 | F23: 1482.155272 | G23: 81.41403198 | H23: =SUMIF('A. Population Info-CH'!$B:$B, A23,'A. Population Info-CH'!$C:$C) -> 21
A24: 20 | B24: 20.5 | C24: =COUNTIF('A. Population Info-CH'!$B:$B, 'A. Age Profile-CH'!A24) -> 30 | D24: =SUM($C$4:C24) -> 1396 | E24: 615 | F24: 1643.297456 | G24: 83.41123136 | H24: =SUMIF('A. Population Info-CH'!$B:$B, A24,'A. Population Info-CH'!$C:$C) -> 30
A25: 21 | B25: 21.5 | C25: =COUNTIF('A. Population Info-CH'!$B:$B, 'A. Age Profile-CH'!A25) -> 12 | D25: =SUM($C$4:C25) -> 1408 | E25: 258 | F25: 491.6920949 | G25: 85.19570048 | H25: =SUMIF('A. Population Info-CH'!$B:$B, A25,'A. Population Info-CH'!$C:$C) -> 12
A26: 22 | B26: 22.5 | C26: =COUNTIF('A. Population Info-CH'!$B:$B, 'A. Age Profile-CH'!A26) -> 28 | D26: =SUM($C$4:C26) -> 1436 | E26: 630 | F26: 816.8188174 | G26: 86.75184099 | H26: =SUMIF('A. Population Info-CH'!$B:$B, A26,'A. Population Info-CH'!$C:$C) -> 28
A27: 23 | B27: 23.5 | C27: =COUNTIF('A. Population Info-CH'!$B:$B, 'A. Age Profile-CH'!A27) -> 138 | D27: =SUM($C$4:C27) -> 1574 | E27: 3243 | F27: 2673.04068 | G27: 88.06586356 | H27: =SUMIF('A. Population Info-CH'!$B:$B, A27,'A. Population Info-CH'!$C:$C) -> 138
A28: 24 | B28: 24.5 | C28: =COUNTIF('A. Population Info-CH'!$B:$B, 'A. Age Profile-CH'!A28) -> 516 | D28: =SUM($C$4:C28) -> 2090 | E28: 12642 | F28: 5968.891597 | G28: 89.12599116 | H28: =SUMIF('A. Population Info-CH'!$B:$B, A28,'A. Population Info-CH'!$C:$C) -> 516
A29: 25 | B29: 25.5 | C29: =COUNTIF('A. Population Info-CH'!$B:$B, 'A. Age Profile-CH'!A29) -> 21 | D29: =SUM($C$4:C29) -> 2111 | E29: 535.5 | F29: 121.0729538 | G29: 89.92263481 | H29: =SUMIF('A. Population Info-CH'!$B:$B, A29,'A. Population Info-CH'!$C:$C) -> 21
A30: 26 | B30: 26.5 | C30: =COUNTIF('A. Population Info-CH'!$B:$B, 'A. Age Profile-CH'!A30) -> 62 | D30: =SUM($C$4:C30) -> 2173 | E30: 1643 | F30: 121.7145639 | G30: 90.4485379 | H30: =SUMIF('A. Population Info-CH'!$B:$B, A30,'A. Population Info-CH'!$C:$C) -> 62
A31: 27 | B31: 27.5 | C31: =COUNTIF('A. Population Info-CH'!$B:$B, 'A. Age Profile-CH'!A31) -> 76 | D31: =SUM($C$4:C31) -> 2249 | E31: 2090 | F31: 12.22821034 | G31: 90.69888634 | H31: =SUMIF('A. Population Info-CH'!$B:$B, A31,'A. Population Info-CH'!$C:$C) -> 76
A32: 28 | B32: 28.5 | C32: =COUNTIF('A. Population Info-CH'!$B:$B, 'A. Age Profile-CH'!A32) -> 137 | D32: =SUM($C$4:C32) -> 2386 | E32: 3904.5 | F32: 49.1359927 | G32: 90.67138186 | H32: =SUMIF('A. Population Info-CH'!$B:$B, A32,'A. Population Info-CH'!$C:$C) -> 137
A33: 29 | B33: 29.5 | C33: =COUNTIF('A. Population Info-CH'!$B:$B, 'A. Age Profile-CH'!A33) -> 113 | D33: =SUM($C$4:C33) -> 2499 | E33: 3333.5 | F33: 288.8750371 | G33: 90.36627717 | H33: =SUMIF('A. Population Info-CH'!$B:$B, A33,'A. Population Info-CH'!$C:$C) -> 113
A34: 30 | B34: 30.5 | C34: =COUNTIF('A. Population Info-CH'!$B:$B, 'A. Age Profile-CH'!A34) -> 84 | D34: =SUM($C$4:C34) -> 2583 | E34: 2562 | F34: 567.3507533 | G34: 89.78637208 | H34: =SUMIF('A. Population Info-CH'!$B:$B, A34,'A. Population Info-CH'!$C:$C) -> 84
A35: 31 | B35: 31.5 | C35: =COUNTIF('A. Population Info-CH'!$B:$B, 'A. Age Profile-CH'!A35) -> 81 | D35: =SUM($C$4:C35) -> 2664 | E35: 2551.5 | F35: 1049.106736 | G35: 88.93697072 | H35: =SUMIF('A. Population Info-CH'!$B:$B, A35,'A. Population Info-CH'!$C:$C) -> 81
A36: 32 | B36: 32.5 | C36: =COUNTIF('A. Population Info-CH'!$B:$B, 'A. Age Profile-CH'!A36) -> 53 | D36: =SUM($C$4:C36) -> 2717 | E36: 1722.5 | F36: 1120.933803 | G36: 87.82580079 | H36: =SUMIF('A. Population Info-CH'!$B:$B, A36,'A. Population Info-CH'!$C:$C) -> 53
A37: 33 | B37: 33.5 | C37: =COUNTIF('A. Population Info-CH'!$B:$B, 'A. Age Profile-CH'!A37) -> 28 | D37: =SUM($C$4:C37) -> 2745 | E37: 938 | F37: 877.7287054 | G37: 86.46289649 | H37: =SUMIF('A. Population Info-CH'!$B:$B, A37,'A. Population Info-CH'!$C:$C) -> 28
A38: 34 | B38: 34.5 | C38: =COUNTIF('A. Population Info-CH'!$B:$B, 'A. Age Profile-CH'!A38) -> 28 | D38: =SUM($C$4:C38) -> 2773 | E38: 966 | F38: 1219.265968 | G38: 84.86044765 | H38: =SUMIF('A. Population Info-CH'!$B:$B, A38,'A. Population Info-CH'!$C:$C) -> 28
A39: 35 | B39: 35.5 | C39: =COUNTIF('A. Population Info-CH'!$B:$B, 'A. Age Profile-CH'!A39) -> 42 | D39: =SUM($C$4:C39) -> 2815 | E39: 1491 | F39: 2425.204846 | G39: 83.03261831 | H39: =SUMIF('A. Population Info-CH'!$B:$B, A39,'A. Population Info-CH'!$C:$C) -> 42
A40: 36 | B40: 36.5 | C40: =COUNTIF('A. Population Info-CH'!$B:$B, 'A. Age Profile-CH'!A40) -> 58 | D40: =SUM($C$4:C40) -> 2873 | E40: 2117 | F40: 4288.56245 | G40: 80.99533834 | H40: =SUMIF('A. Population Info-CH'!$B:$B, A40,'A. Population Info-CH'!$C:$C) -> 58
A41: 37 | B41: 37.5 | C41: =COUNTIF('A. Population Info-CH'!$B:$B, 'A. Age Profile-CH'!A41) -> 56 | D41: =SUM($C$4:C41) -> 2929 | E41: 2100 | F41: 5159.755511 | G41: 78.76607257 | H41: =SUMIF('A. Population Info-CH'!$B:$B, A41,'A. Population Info-CH'!$C:$C) -> 56
A42: 38 | B42: 38.5 | C42: =COUNTIF('A. Population Info-CH'!$B:$B, 'A. Age Profile-CH'!A42) -> 33 | D42: =SUM($C$4:C42) -> 2962 | E42: 1270.5 | F42: 3707.096271 | G42: 76.36357201 | H42: =SUMIF('A. Population Info-CH'!$B:$B, A42,'A. Population Info-CH'!$C:$C) -> 33
A43: 39 | B43: 39.5 | C43: =COUNTIF('A. Population Info-CH'!$B:$B, 'A. Age Profile-CH'!A43) -> 21 | D43: =SUM($C$4:C43) -> 2983 | E43: 829.5 | F43: 2825.21421 | G43: 73.80761212 | H43: =SUMIF('A. Population Info-CH'!$B:$B, A43,'A. Population Info-CH'!$C:$C) -> 21
A44: 40 | B44: 40.5 | C44: =COUNTIF('A. Population Info-CH'!$B:$B, 'A. Age Profile-CH'!A44) -> 15 | D44: =SUM($C$4:C44) -> 2998 | E44: 607.5 | F44: 2380.976541 | G44: 71.11872324 | H44: =SUMIF('A. Population Info-CH'!$B:$B, A44,'A. Population Info-CH'!$C:$C) -> 15
A45: 41 | B45: 41.5 | C45: =COUNTIF('A. Population Info-CH'!$B:$B, 'A. Age Profile-CH'!A45) -> 18 | D45: =SUM($C$4:C45) -> 3016 | E45: 747 | F45: 3328.731518 | G45: 68.31791822 | H45: =SUMIF('A. Population Info-CH'!$B:$B, A45,'A. Population Info-CH'!$C:$C) -> 18
A46: 42 | B46: 42.5 | C46: =COUNTIF('A. Population Info-CH'!$B:$B, 'A. Age Profile-CH'!A46) -> 31 | D46: =SUM($C$4:C46) -> 3047 | E46: 1317.5 | F46: 6606.945933 | G46: 65.42642241 | H46: =SUMIF('A. Population Info-CH'!$B:$B, A46,'A. Population Info-CH'!$C:$C) -> 31
A47: 43 | B47: 43.5 | C47: =COUNTIF('A. Population Info-CH'!$B:$B, 'A. Age Profile-CH'!A47) -> 31 | D47: =SUM($C$4:C47) -> 3078 | E47: 1348.5 | F47: 7543.076473 | G47: 62.46541056 | H47: =SUMIF('A. Population Info-CH'!$B:$B, A47,'A. Population Info-CH'!$C:$C) -> 31
A48: 44 | B48: 44.5 | C48: =COUNTIF('A. Population Info-CH'!$B:$B, 'A. Age Profile-CH'!A48) -> 34 | D48: =SUM($C$4:C48) -> 3112 | E48: 1513 | F48: 9367.775435 | G48: 59.4557553 | H48: =SUMIF('A. Population Info-CH'!$B:$B, A48,'A. Population Info-CH'!$C:$C) -> 34
A49: 45 | B49: 45.5 | C49: =COUNTIF('A. Population Info-CH'!$B:$B, 'A. Age Profile-CH'!A49) -> 86 | D49: =SUM($C$4:C49) -> 3198 | E49: 3913 | F49: 26635.9687 | G49: 56.41779115 | H49: =SUMIF('A. Population Info-CH'!$B:$B, A49,'A. Population Info-CH'!$C:$C) -> 86
A50: 46 | B50: 46.5 | C50: =COUNTIF('A. Population Info-CH'!$B:$B, 'A. Age Profile-CH'!A50) -> 155 | D50: =SUM($C$4:C50) -> 3353 | E50: 7207.5 | F50: 53617.34048 | G50: 53.37109748 | H50: =SUMIF('A. Population Info-CH'!$B:$B, A50,'A. Population Info-CH'!$C:$C) -> 155
A51: 47 | B51: 47.5 | C51: =COUNTIF('A. Population Info-CH'!$B:$B, 'A. Age Profile-CH'!A51) -> 98 | D51: =SUM($C$4:C51) -> 3451 | E51: 4655 | F51: 37643.37633 | G51: 50.3343036 | H51: =SUMIF('A. Population Info-CH'!$B:$B, A51,'A. Population Info-CH'!$C:$C) -> 98
A52: 48 | B52: 48.5 | C52: =COUNTIF('A. Population Info-CH'!$B:$B, 'A. Age Profile-CH'!A52) -> 94 | D52: =SUM($C$4:C52) -> 3545 | E52: 4559 | F52: 39885.50137 | G52: 47.32491817 | H52: =SUMIF('A. Population Info-CH'!$B:$B, A52,'A. Population Info-CH'!$C:$C) -> 94
A53: 49 | B53: 49.5 | C53: =COUNTIF('A. Population Info-CH'!$B:$B, 'A. Age Profile-CH'!A53) -> 39 | D53: =SUM($C$4:C53) -> 3584 | E53: 1930.5 | F53: 18193.95255 | G53: 44.35918469 | H53: =SUMIF('A. Population Info-CH'!$B:$B, A53,'A. Population Info-CH'!$C:$C) -> 39
A54: 50 | B54: 50.5 | C54: =COUNTIF('A. Population Info-CH'!$B:$B, 'A. Age Profile-CH'!A54) -> 42 | D54: =SUM($C$4:C54) -> 3626 | E54: 2121 | F54: 21449.79325 | G54: 41.45196429 | H54: =SUMIF('A. Population Info-CH'!$B:$B, A54,'A. Population Info-CH'!$C:$C) -> 42
A55: 51 | B55: 51.5 | C55: =COUNTIF('A. Population Info-CH'!$B:$B, 'A. Age Profile-CH'!A55) -> 39 | D55: =SUM($C$4:C55) -> 3665 | E55: 2008.5 | F55: 21719.37778 | G55: 38.61664607 | H55: =SUMIF('A. Population Info-CH'!$B:$B, A55,'A. Population Info-CH'!$C:$C) -> 39
A56: 52 | B56: 52.5 | C56: =COUNTIF('A. Population Info-CH'!$B:$B, 'A. Age Profile-CH'!A56) -> 62 | D56: =SUM($C$4:C56) -> 3727 | E56: 3255 | F56: 37516.50268 | G56: 35.86508501 | H56: =SUMIF('A. Population Info-CH'!$B:$B, A56,'A. Population Info-CH'!$C:$C) -> 62
A57: 53 | B57: 53.5 | C57: =COUNTIF('A. Population Info-CH'!$B:$B, 'A. Age Profile-CH'!A57) -> 58 | D57: =SUM($C$4:C57) -> 3785 | E57: 3103 | F57: 38007.5532 | G57: 33.2075667 | H57: =SUMIF('A. Population Info-CH'!$B:$B, A57,'A. Population Info-CH'!$C:$C) -> 58
A58: 54 | B58: 54.5 | C58: =COUNTIF('A. Population Info-CH'!$B:$B, 'A. Age Profile-CH'!A58) -> 62 | D58: =SUM($C$4:C58) -> 3847 | E58: 3379 | F58: 43865.02484 | G58: 30.65279771 | H58: =SUMIF('A. Population Info-CH'!$B:$B, A58,'A. Population Info-CH'!$C:$C) -> 62
A59: 55 | B59: 55.5 | C59: =COUNTIF('A. Population Info-CH'!$B:$B, 'A. Age Profile-CH'!A59) -> 34 | D59: =SUM($C$4:C59) -> 3881 | E59: 1887 | F59: 25897.73744 | G59: 28.20791985 | H59: =SUMIF('A. Population Info-CH'!$B:$B, A59,'A. Population Info-CH'!$C:$C) -> 34
A60: 56 | B60: 56.5 | C60: =COUNTIF('A. Population Info-CH'!$B:$B, 'A. Age Profile-CH'!A60) -> 25 | D60: =SUM($C$4:C60) -> 3906 | E60: 1412.5 | F60: 20447.39799 | G60: 25.87854646 | H60: =SUMIF('A. Population Info-CH'!$B:$B, A60,'A. Population Info-CH'!$C:$C) -> 25
A61: 57 | B61: 57.5 | C61: =COUNTIF('A. Population Info-CH'!$B:$B, 'A. Age Profile-CH'!A61) -> 36 | D61: =SUM($C$4:C61) -> 3942 | E61: 2070 | F61: 31539.37244 | G61: 23.6688182 | H61: =SUMIF('A. Population Info-CH'!$B:$B, A61,'A. Population Info-CH'!$C:$C) -> 36
A62: 58 | B62: 58.5 | C62: =COUNTIF('A. Population Info-CH'!$B:$B, 'A. Age Profile-CH'!A62) -> 9 | D62: =SUM($C$4:C62) -> 3951 | E62: 526.5 | F62: 8426.622944 | G62: 21.58147606 | H62: =SUMIF('A. Population Info-CH'!$B:$B, A62,'A. Population Info-CH'!$C:$C) -> 9
A63: 59 | B63: 59.5 | C63: =COUNTIF('A. Population Info-CH'!$B:$B, 'A. Age Profile-CH'!A63) -> 9 | D63: =SUM($C$4:C63) -> 3960 | E63: 535.5 | F63: 8986.402778 | G63: 19.61794859 | H63: =SUMIF('A. Population Info-CH'!$B:$B, A63,'A. Population Info-CH'!$C:$C) -> 9
A64: 60 | B64: 60.5 | C64: =COUNTIF('A. Population Info-CH'!$B:$B, 'A. Age Profile-CH'!A64) -> 2 | D64: =SUM($C$4:C64) -> 3962 | E64: 121 | F64: 2125.373914 | G64: 17.77845086 | H64: =SUMIF('A. Population Info-CH'!$B:$B, A64,'A. Population Info-CH'!$C:$C) -> 2
A65: 61 | B65: 61.5 | C65: =COUNTIF('A. Population Info-CH'!$B:$B, 'A. Age Profile-CH'!A65) -> 8 | D65: =SUM($C$4:C65) -> 3970 | E65: 492 | F65: 9031.07773 | G65: 16.06209225 | H65: =SUMIF('A. Population Info-CH'!$B:$B, A65,'A. Population Info-CH'!$C:$C) -> 8
A66: 62 | B66: 62.5 | C66: =COUNTIF('A. Population Info-CH'!$B:$B, 'A. Age Profile-CH'!A66) -> 1 | D66: =SUM($C$4:C66) -> 3971 | E66: 62.5 | F66: 1197.082476 | G66: 14.46699037 | H66: =SUMIF('A. Population Info-CH'!$B:$B, A66,'A. Population Info-CH'!$C:$C) -> 1
A67: 63 | B67: 63.5 | C67: =COUNTIF('A. Population Info-CH'!$B:$B, 'A. Age Profile-CH'!A67) -> 1 | D67: =SUM($C$4:C67) -> 3972 | E67: 63.5 | F67: 1267.280235 | G67: 12.99038866 | H67: =SUMIF('A. Population Info-CH'!$B:$B, A67,'A. Population Info-CH'!$C:$C) -> 1
A68: 64 | B68: 64.5 | C68: =COUNTIF('A. Population Info-CH'!$B:$B, 'A. Age Profile-CH'!A68) -> 4 | D68: =SUM($C$4:C68) -> 3976 | E68: 258 | F68: =(B68-$L$6)^2*C68 -> 5357.911978 | G68: 11.62877517 | H68: =SUMIF('A. Population Info-CH'!$B:$B, A68,'A. Population Info-CH'!$C:$C) -> 4
A69: 65 | B69: 65.5 | C69: =COUNTIF('A. Population Info-CH'!$B:$B, 'A. Age Profile-CH'!A69) -> 40 | D69: =SUM($C$4:C69) -> 4016 | E69: 2620 | F69: 56547.03015 | G69: =_xlfn.NORM.DIST(B69,$L$6,$L$7,FALSE)*$L$4 -> 10.37800032 | H69: =SUMIF('A. Population Info-CH'!$B:$B, A69,'A. Population Info-CH'!$C:$C) -> 40
A70: 66 | B70: 66.5 | C70: =COUNTIF('A. Population Info-CH'!$B:$B, 'A. Age Profile-CH'!A70) -> 0 | D70: =SUM($C$4:C70) -> 4016 | E70: =B70*C70 -> 0 | F70: 0 | G70: 9.23339174 | H70: =SUMIF('A. Population Info-CH'!$B:$B, A70,'A. Population Info-CH'!$C:$C) -> 0
A71: 67 | B71: 67.5 | C71: =COUNTIF('A. Population Info-CH'!$B:$B, 'A. Age Profile-CH'!A71) -> 0 | D71: =SUM($C$4:C71) -> 4016 | E71: 0 | F71: 0 | G71: 8.189864562 | H71: =SUMIF('A. Population Info-CH'!$B:$B, A71,'A. Population Info-CH'!$C:$C) -> 0
A72: 68 | B72: 68.5 | C72: =COUNTIF('A. Population Info-CH'!$B:$B, 'A. Age Profile-CH'!A72) -> 38 | D72: =SUM($C$4:C72) -> 4054 | E72: 2603 | F72: 62634.22321 | G72: 7.242025578 | H72: =SUMIF('A. Population Info-CH'!$B:$B, A72,'A. Population Info-CH'!$C:$C) -> 38
A73: 69 | B73: 69.5 | C73: =COUNTIF('A. Population Info-CH'!$B:$B, 'A. Age Profile-CH'!A73) -> 4 | D73: =SUM($C$4:C73) -> 4058 | E73: 278 | F73: 6921.867165 | G73: 6.384270289 | H73: =SUMIF('A. Population Info-CH'!$B:$B, A73,'A. Population Info-CH'!$C:$C) -> 4
A74: 70 | B74: 70.5 | C74: =COUNTIF('A. Population Info-CH'!$B:$B, 'A. Age Profile-CH'!A74) -> 11 | D74: =SUM($C$4:C74) -> 4069 | E74: 775.5 | F74: 19961.31006 | G74: 5.610871888 | H74: =SUMIF('A. Population Info-CH'!$B:$B, A74,'A. Population Info-CH'!$C:$C) -> 11
A75: 71 | B75: 71.5 | C75: =COUNTIF('A. Population Info-CH'!$B:$B, 'A. Age Profile-CH'!A75) -> 1 | D75: =SUM($C$4:C75) -> 4070 | E75: 71.5 | F75: 1900.86231 | G75: 4.916061602 | H75: =SUMIF('A. Population Info-CH'!$B:$B, A75,'A. Population Info-CH'!$C:$C) -> 1
A76: 72 | B76: 72.5 | C76: =COUNTIF('A. Population Info-CH'!$B:$B, 'A. Age Profile-CH'!A76) -> 0 | D76: =SUM($C$4:C76) -> 4070 | E76: 0 | F76: 0 | G76: 4.294100024 | H76: =SUMIF('A. Population Info-CH'!$B:$B, A76,'A. Population Info-CH'!$C:$C) -> 0
A77: 73 | B77: 73.5 | C77: =COUNTIF('A. Population Info-CH'!$B:$B, 'A. Age Profile-CH'!A77) -> 0 | D77: =SUM($C$4:C77) -> 4070 | E77: 0 | F77: 0 | G77: 3.73933929 | H77: =SUMIF('A. Population Info-CH'!$B:$B, A77,'A. Population Info-CH'!$C:$C) -> 0
A78: 74 | B78: 74.5 | C78: =COUNTIF('A. Population Info-CH'!$B:$B, 'A. Age Profile-CH'!A78) -> 17 | D78: =SUM($C$4:C78) -> 4087 | E78: 1266.5 | F78: 36914.745 | G78: 3.246276184 | H78: =SUMIF('A. Population Info-CH'!$B:$B, A78,'A. Population Info-CH'!$C:$C) -> 17
A79: 75 | B79: 75.5 | C79: =COUNTIF('A. Population Info-CH'!$B:$B, 'A. Age Profile-CH'!A79) -> 6 | D79: =SUM($C$4:C79) -> 4093 | E79: 453 | F79: 13593.92009 | G79: 2.80959638 | H79: =SUMIF('A. Population Info-CH'!$B:$B, A79,'A. Population Info-CH'!$C:$C) -> 6
A80: 76 | B80: 76.5 | C80: =COUNTIF('A. Population Info-CH'!$B:$B, 'A. Age Profile-CH'!A80) -> 0 | D80: =SUM($C$4:C80) -> 4093 | E80: 0 | F80: 0 | G80: 2.424210233 | H80: =SUMIF('A. Population Info-CH'!$B:$B, A80,'A. Population Info-CH'!$C:$C) -> 0
A81: 77 | B81: 77.5 | C81: =COUNTIF('A. Population Info-CH'!$B:$B, 'A. Age Profile-CH'!A81) -> 2 | D81: =SUM($C$4:C81) -> 4095 | E81: 155 | F81: 4920.097733 | G81: 2.085280596 | H81: =SUMIF('A. Population Info-CH'!$B:$B, A81,'A. Population Info-CH'!$C:$C) -> 2
A82: 78 | B82: 78.5 | C82: =COUNTIF('A. Population Info-CH'!$B:$B, 'A. Age Profile-CH'!A82) -> 0 | D82: =SUM($C$4:C82) -> 4095 | E82: 0 | F82: 0 | G82: 1.788243274 | H82: =SUMIF('A. Population Info-CH'!$B:$B, A82,'A. Population Info-CH'!$C:$C) -> 0
A83: 79 | B83: 79.5 | C83: =COUNTIF('A. Population Info-CH'!$B:$B, 'A. Age Profile-CH'!A83) -> 0 | D83: =SUM($C$4:C83) -> 4095 | E83: 0 | F83: 0 | G83: 1.528820772 | H83: =SUMIF('A. Population Info-CH'!$B:$B, A83,'A. Population Info-CH'!$C:$C) -> 0
A84: 80 | B84: 80.5 | C84: =COUNTIF('A. Population Info-CH'!$B:$B, 'A. Age Profile-CH'!A84) -> 2 | D84: =SUM($C$4:C84) -> 4097 | E84: 161 | F84: 5533.284289 | G84: 1.303030034 | H84: =SUMIF('A. Population Info-CH'!$B:$B, A84,'A. Population Info-CH'!$C:$C) -> 2
A85: 81 | B85: 81.5 | C85: =COUNTIF('A. Population Info-CH'!$B:$B, 'A. Age Profile-CH'!A85) -> 1 | D85: =SUM($C$4:C85) -> 4098 | E85: 81.5 | F85: 2872.839904 | G85: 1.107184898 | H85: =SUMIF('A. Population Info-CH'!$B:$B, A85,'A. Population Info-CH'!$C:$C) -> 1
A86: 82 | B86: 82.5 | C86: =COUNTIF('A. Population Info-CH'!$B:$B, 'A. Age Profile-CH'!A86) -> 0 | D86: =SUM($C$4:C86) -> 4098 | E86: 0 | F86: 0 | G86: 0.9378939986 | H86: =SUMIF('A. Population Info-CH'!$B:$B, A86,'A. Population Info-CH'!$C:$C) -> 0
A87: 83 | B87: 83.5 | C87: =COUNTIF('A. Population Info-CH'!$B:$B, 'A. Age Profile-CH'!A87) -> 0 | D87: =SUM($C$4:C87) -> 4098 | E87: 0 | F87: 0 | G87: 0.7920548123 | H87: =SUMIF('A. Population Info-CH'!$B:$B, A87,'A. Population Info-CH'!$C:$C) -> 0
A88: 84 | B88: 84.5 | C88: =COUNTIF('A. Population Info-CH'!$B:$B, 'A. Age Profile-CH'!A88) -> 0 | D88: =SUM($C$4:C88) -> 4098 | E88: 0 | F88: 0 | G88: 0.6668445304 | H88: =SUMIF('A. Population Info-CH'!$B:$B, A88,'A. Population Info-CH'!$C:$C) -> 0
A89: 85 | B89: 85.5 | C89: =COUNTIF('A. Population Info-CH'!$B:$B, 'A. Age Profile-CH'!A89) -> 0 | D89: =SUM($C$4:C89) -> 4098 | E89: 0 | F89: 0 | G89: 0.5597084018 | H89: =SUMIF('A. Population Info-CH'!$B:$B, A89,'A. Population Info-CH'!$C:$C) -> 0
A90: 86 | B90: 86.5 | C90: =COUNTIF('A. Population Info-CH'!$B:$B, 'A. Age Profile-CH'!A90) -> 0 | D90: =SUM($C$4:C90) -> 4098 | E90: 0 | F90: 0 | G90: 0.4683461293 | H90: =SUMIF('A. Population Info-CH'!$B:$B, A90,'A. Population Info-CH'!$C:$C) -> 0
A91: 87 | B91: 87.5 | C91: =COUNTIF('A. Population Info-CH'!$B:$B, 'A. Age Profile-CH'!A91) -> 0 | D91: =SUM($C$4:C91) -> 4098 | E91: 0 | F91: 0 | G91: 0.39069686 | H91: =SUMIF('A. Population Info-CH'!$B:$B, A91,'A. Population Info-CH'!$C:$C) -> 0
A92: 88 | B92: 88.5 | C92: =COUNTIF('A. Population Info-CH'!$B:$B, 'A. Age Profile-CH'!A92) -> 8 | D92: =SUM($C$4:C92) -> 4106 | E92: 708 | F92: 29377.79376 | G92: 0.3249232456 | H92: =SUMIF('A. Population Info-CH'!$B:$B, A92,'A. Population Info-CH'!$C:$C) -> 8
A93: 89 | B93: 89.5 | C93: =COUNTIF('A. Population Info-CH'!$B:$B, 'A. Age Profile-CH'!A93) -> 0 | D93: =SUM($C$4:C93) -> 4106 | E93: 0 | F93: 0 | G93: 0.2693949938 | H93: =SUMIF('A. Population Info-CH'!$B:$B, A93,'A. Population Info-CH'!$C:$C) -> 0
A94: 90 | B94: 90.5 | C94: =COUNTIF('A. Population Info-CH'!$B:$B, 'A. Age Profile-CH'!A94) -> 0 | D94: =SUM($C$4:C94) -> 4106 | E94: =B94*C94 -> 0 | F94: 0 | G94: 0.2226722695 | H94: =SUMIF('A. Population Info-CH'!$B:$B, A94,'A. Population Info-CH'!$C:$C) -> 0
A95: 91 | B95: 91.5 | C95: =COUNTIF('A. Population Info-CH'!$B:$B, 'A. Age Profile-CH'!A95) -> 0 | D95: =SUM($C$4:C95) -> 4106 | E95: =B95*C95 -> 0 | F95: 0 | G95: 0.1834892504 | H95: =SUMIF('A. Population Info-CH'!$B:$B, A95,'A. Population Info-CH'!$C:$C) -> 0
A96: 92 | B96: 92.5 | C96: =COUNTIF('A. Population Info-CH'!$B:$B, 'A. Age Profile-CH'!A96) -> 0 | D96: =SUM($C$4:C96) -> 4106 | E96: 0 | F96: 0 | G96: 0.1507380851 | H96: =SUMIF('A. Population Info-CH'!$B:$B, A96,'A. Population Info-CH'!$C:$C) -> 0
A97: 93 | B97: 93.5 | C97: =COUNTIF('A. Population Info-CH'!$B:$B, 'A. Age Profile-CH'!A97) -> 0 | D97: =SUM($C$4:C97) -> 4106 | E97: 0 | F97: 0 | G97: 0.1234534518 | H97: =SUMIF('A. Population Info-CH'!$B:$B, A97,'A. Population Info-CH'!$C:$C) -> 0
A98: 94 | B98: 94.5 | C98: =COUNTIF('A. Population Info-CH'!$B:$B, 'A. Age Profile-CH'!A98) -> 0 | D98: =SUM($C$4:C98) -> 4106 | E98: 0 | F98: 0 | G98: 0.1007978706 | H98: =SUMIF('A. Population Info-CH'!$B:$B, A98,'A. Population Info-CH'!$C:$C) -> 0
A99: 95 | B99: 95.5 | C99: =COUNTIF('A. Population Info-CH'!$B:$B, 'A. Age Profile-CH'!A99) -> 0 | D99: =SUM($C$4:C99) -> 4106 | E99: 0 | F99: 0 | G99: 0.08204787811 | H99: =SUMIF('A. Population Info-CH'!$B:$B, A99,'A. Population Info-CH'!$C:$C) -> 0
A100: 96 | B100: 96.5 | C100: =COUNTIF('A. Population Info-CH'!$B:$B, 'A. Age Profile-CH'!A100) -> 0 | D100: =SUM($C$4:C100) -> 4106 | E100: 0 | F100: 0 | G100: 0.06658113999 | H100: =SUMIF('A. Population Info-CH'!$B:$B, A100,'A. Population Info-CH'!$C:$C) -> 0
A101: 97 | B101: 97.5 | C101: =COUNTIF('A. Population Info-CH'!$B:$B, 'A. Age Profile-CH'!A101) -> 0 | D101: =SUM($C$4:C101) -> 4106 | E101: 0 | F101: 0 | G101: 0.05386454255 | H101: =SUMIF('A. Population Info-CH'!$B:$B, A101,'A. Population Info-CH'!$C:$C) -> 0
A102: 98 | B102: 98.5 | C102: =COUNTIF('A. Population Info-CH'!$B:$B, 'A. Age Profile-CH'!A102) -> 0 | D102: =SUM($C$4:C102) -> 4106 | E102: 0 | F102: 0 | G102: 0.04344327941 | H102: =SUMIF('A. Population Info-CH'!$B:$B, A102,'A. Population Info-CH'!$C:$C) -> 0
A103: 99 | B103: 99.5 | C103: =COUNTIF('A. Population Info-CH'!$B:$B, 'A. Age Profile-CH'!A103) -> 0 | D103: =SUM($C$4:C103) -> 4106 | E103: 0 | F103: 0 | G103: 0.03493092637 | H103: =SUMIF('A. Population Info-CH'!$B:$B, A103,'A. Population Info-CH'!$C:$C) -> 0
A104: 100 | B104: 100.5 | C104: =COUNTIF('A. Population Info-CH'!$B:$B, 'A. Age Profile-CH'!A104) -> 0 | D104: =SUM($C$4:C104) -> 4106 | E104: 0 | F104: 0 | G104: 0.02800048034 | H104: =SUMIF('A. Population Info-CH'!$B:$B, A104,'A. Population Info-CH'!$C:$C) -> 0

Sheet A. Initial PoF-CH
B1: Initial Probability of Failure
A3: Age Label | B3: No. of Asset Units | C3: PoFpoor (Upper 95%) | D3: PoFavg | E3: PoFgood (Lower 95%)
A4: 0 | B4: 1 | C4: =IF('B. PoF Summary Stats & Params-C'!$C$12="C", B4*'B. PoF Summary Stats & Params-C'!$I$8*'B. PoF Summary Stats & Params-C'!$I$10*A4^('B. PoF Summary Stats & Params-C'!$I$10-1), IF('B. PoF Summary Stats & Params-C'!$C$12="W", B4*(('B. PoF Summary Stats & Params-C'!$M$14/'B. PoF Summary Stats & Params-C'!$O$14)*((A4)/'B. PoF Summary Stats & Params-C'!$O$14)^('B. PoF Summary Stats & Params-C'!$M$14-1)), "Choose Model")) -> 0 | D4: =IF('B. PoF Summary Stats & Params-C'!$C$12="C", B4*'B. PoF Summary Stats & Params-C'!$I$8*'B. PoF Summary Stats & Params-C'!$I$6*A4^('B. PoF Summary Stats & Params-C'!$I$6-1), IF('B. PoF Summary Stats & Params-C'!$C$12="W", B4*(('B. PoF Summary Stats & Params-C'!$M$6/'B. PoF Summary Stats & Params-C'!$M$8)*((A4)/'B. PoF Summary Stats & Params-C'!$M$8)^('B. PoF Summary Stats & Params-C'!$M$6-1)), "Choose Model")) -> 0 | E4: =IF('B. PoF Summary Stats & Params-C'!$C$12="C", B4*'B. PoF Summary Stats & Params-C'!$I$8*'B. PoF Summary Stats & Params-C'!$I$12*A4^('B. PoF Summary Stats & Params-C'!$I$12-1), IF('B. PoF Summary Stats & Params-C'!$C$12="W", B4*(('B. PoF Summary Stats & Params-C'!$M$12/'B. PoF Summary Stats & Params-C'!$O$12)*((A4)/'B. PoF Summary Stats & Params-C'!$O$12)^('B. PoF Summary Stats & Params-C'!$M$12-1)), "Choose Model")) -> 0
A5: 1 | B5: 1 | C5: =IF('B. PoF Summary Stats & Params-C'!$C$12="C", B5*'B. PoF Summary Stats & Params-C'!$I$8*'B. PoF Summary Stats & Params-C'!$I$10*A5^('B. PoF Summary Stats & Params-C'!$I$10-1), IF('B. PoF Summary Stats & Params-C'!$C$12="W", B5*(('B. PoF Summary Stats & Params-C'!$M$14/'B. PoF Summary Stats & Params-C'!$O$14)*((A5)/'B. PoF Summary Stats & Params-C'!$O$14)^('B. PoF Summary Stats & Params-C'!$M$14-1)), "Choose Model")) -> 1.364847546e-05 | D5: =IF('B. PoF Summary Stats & Params-C'!$C$12="C", B5*'B. PoF Summary Stats & Params-C'!$I$8*'B. PoF Summary Stats & Params-C'!$I$6*A5^('B. PoF Summary Stats & Params-C'!$I$6-1), IF('B. PoF Summary Stats & Params-C'!$C$12="W", B5*(('B. PoF Summary Stats & Params-C'!$M$6/'B. PoF Summary Stats & Params-C'!$M$8)*((A5)/'B. PoF Summary Stats & Params-C'!$M$8)^('B. PoF Summary Stats & Params-C'!$M$6-1)), "Choose Model")) -> 1.343567391e-05 | E5: =IF('B. PoF Summary Stats & Params-C'!$C$12="C", B5*'B. PoF Summary Stats & Params-C'!$I$8*'B. PoF Summary Stats & Params-C'!$I$12*A5^('B. PoF Summary Stats & Params-C'!$I$12-1), IF('B. PoF Summary Stats & Params-C'!$C$12="W", B5*(('B. PoF Summary Stats & Params-C'!$M$12/'B. PoF Summary Stats & Params-C'!$O$12)*((A5)/'B. PoF Summary Stats & Params-C'!$O$12)^('B. PoF Summary Stats & Params-C'!$M$12-1)), "Choose Model")) -> 1.322287236e-05
A6: 2 | B6: 1 | C6: =IF('B. PoF Summary Stats & Params-C'!$C$12="C", B6*'B. PoF Summary Stats & Params-C'!$I$8*'B. PoF Summary Stats & Params-C'!$I$10*A6^('B. PoF Summary Stats & Params-C'!$I$10-1), IF('B. PoF Summary Stats & Params-C'!$C$12="W", B6*(('B. PoF Summary Stats & Params-C'!$M$14/'B. PoF Summary Stats & Params-C'!$O$14)*((A6)/'B. PoF Summary Stats & Params-C'!$O$14)^('B. PoF Summary Stats & Params-C'!$M$14-1)), "Choose Model")) -> 5.875758283e-05 | D6: =IF('B. PoF Summary Stats & Params-C'!$C$12="C", B6*'B. PoF Summary Stats & Params-C'!$I$8*'B. PoF Summary Stats & Params-C'!$I$6*A6^('B. PoF Summary Stats & Params-C'!$I$6-1), IF('B. PoF Summary Stats & Params-C'!$C$12="W", B6*(('B. PoF Summary Stats & Params-C'!$M$6/'B. PoF Summary Stats & Params-C'!$M$8)*((A6)/'B. PoF Summary Stats & Params-C'!$M$8)^('B. PoF Summary Stats & Params-C'!$M$6-1)), "Choose Model")) -> 5.593207564e-05 | E6: =IF('B. PoF Summary Stats & Params-C'!$C$12="C", B6*'B. PoF Summary Stats & Params-C'!$I$8*'B. PoF Summary Stats & Params-C'!$I$12*A6^('B. PoF Summary Stats & Params-C'!$I$12-1), IF('B. PoF Summary Stats & Params-C'!$C$12="W", B6*(('B. PoF Summary Stats & Params-C'!$M$12/'B. PoF Summary Stats & Params-C'!$O$12)*((A6)/'B. PoF Summary Stats & Params-C'!$O$12)^('B. PoF Summary Stats & Params-C'!$M$12-1)), "Choose Model")) -> 5.322908375e-05
A7: 3 | B7: 1 | C7: =IF('B. PoF Summary Stats & Params-C'!$C$12="C", B7*'B. PoF Summary Stats & Params-C'!$I$8*'B. PoF Summary Stats & Params-C'!$I$10*A7^('B. PoF Summary Stats & Params-C'!$I$10-1), IF('B. PoF Summary Stats & Params-C'!$C$12="W", B7*(('B. PoF Summary Stats & Params-C'!$M$14/'B. PoF Summary Stats & Params-C'!$O$14)*((A7)/'B. PoF Summary Stats & Params-C'!$O$14)^('B. PoF Summary Stats & Params-C'!$M$14-1)), "Choose Model")) -> 0.0001380124667 | D7: =IF('B. PoF Summary Stats & Params-C'!$C$12="C", B7*'B. PoF Summary Stats & Params-C'!$I$8*'B. PoF Summary Stats & Params-C'!$I$6*A7^('B. PoF Summary Stats & Params-C'!$I$6-1), IF('B. PoF Summary Stats & Params-C'!$C$12="W", B7*(('B. PoF Summary Stats & Params-C'!$M$6/'B. PoF Summary Stats & Params-C'!$M$8)*((A7)/'B. PoF Summary Stats & Params-C'!$M$8)^('B. PoF Summary Stats & Params-C'!$M$6-1)), "Choose Model")) -> 0.0001288212699 | E7: =IF('B. PoF Summary Stats & Params-C'!$C$12="C", B7*'B. PoF Summary Stats & Params-C'!$I$8*'B. PoF Summary Stats & Params-C'!$I$12*A7^('B. PoF Summary Stats & Params-C'!$I$12-1), IF('B. PoF Summary Stats & Params-C'!$C$12="W", B7*(('B. PoF Summary Stats & Params-C'!$M$12/'B. PoF Summary Stats & Params-C'!$O$12)*((A7)/'B. PoF Summary Stats & Params-C'!$O$12)^('B. PoF Summary Stats & Params-C'!$M$12-1)), "Choose Model")) -> 0.000120212014
A8: 4 | B8: 1 | C8: =IF('B. PoF Summary Stats & Params-C'!$C$12="C", B8*'B. PoF Summary Stats & Params-C'!$I$8*'B. PoF Summary Stats & Params-C'!$I$10*A8^('B. PoF Summary Stats & Params-C'!$I$10-1), IF('B. PoF Summary Stats & Params-C'!$C$12="W", B8*(('B. PoF Summary Stats & Params-C'!$M$14/'B. PoF Summary Stats & Params-C'!$O$14)*((A8)/'B. PoF Summary Stats & Params-C'!$O$14)^('B. PoF Summary Stats & Params-C'!$M$14-1)), "Choose Model")) -> 0.0002529552513 | D8: =IF('B. PoF Summary Stats & Params-C'!$C$12="C", B8*'B. PoF Summary Stats & Params-C'!$I$8*'B. PoF Summary Stats & Params-C'!$I$6*A8^('B. PoF Summary Stats & Params-C'!$I$6-1), IF('B. PoF Summary Stats & Params-C'!$C$12="W", B8*(('B. PoF Summary Stats & Params-C'!$M$6/'B. PoF Summary Stats & Params-C'!$M$8)*((A8)/'B. PoF Summary Stats & Params-C'!$M$8)^('B. PoF Summary Stats & Params-C'!$M$6-1)), "Choose Model")) -> 0.0002328425881 | E8: =IF('B. PoF Summary Stats & Params-C'!$C$12="C", B8*'B. PoF Summary Stats & Params-C'!$I$8*'B. PoF Summary Stats & Params-C'!$I$12*A8^('B. PoF Summary Stats & Params-C'!$I$12-1), IF('B. PoF Summary Stats & Params-C'!$C$12="W", B8*(('B. PoF Summary Stats & Params-C'!$M$12/'B. PoF Summary Stats & Params-C'!$O$12)*((A8)/'B. PoF Summary Stats & Params-C'!$O$12)^('B. PoF Summary Stats & Params-C'!$M$12-1)), "Choose Model")) -> 0.0002142753313
A9: 5 | B9: 1 | C9: =IF('B. PoF Summary Stats & Params-C'!$C$12="C", B9*'B. PoF Summary Stats & Params-C'!$I$8*'B. PoF Summary Stats & Params-C'!$I$10*A9^('B. PoF Summary Stats & Params-C'!$I$10-1), IF('B. PoF Summary Stats & Params-C'!$C$12="W", B9*(('B. PoF Summary Stats & Params-C'!$M$14/'B. PoF Summary Stats & Params-C'!$O$14)*((A9)/'B. PoF Summary Stats & Params-C'!$O$14)^('B. PoF Summary Stats & Params-C'!$M$14-1)), "Choose Model")) -> 0.0004047059617 | D9: =IF('B. PoF Summary Stats & Params-C'!$C$12="C", B9*'B. PoF Summary Stats & Params-C'!$I$8*'B. PoF Summary Stats & Params-C'!$I$6*A9^('B. PoF Summary Stats & Params-C'!$I$6-1), IF('B. PoF Summary Stats & Params-C'!$C$12="W", B9*(('B. PoF Summary Stats & Params-C'!$M$6/'B. PoF Summary Stats & Params-C'!$M$8)*((A9)/'B. PoF Summary Stats & Params-C'!$M$8)^('B. PoF Summary Stats & Params-C'!$M$6-1)), "Choose Model")) -> 0.0003685234742 | E9: =IF('B. PoF Summary Stats & Params-C'!$C$12="C", B9*'B. PoF Summary Stats & Params-C'!$I$8*'B. PoF Summary Stats & Params-C'!$I$12*A9^('B. PoF Summary Stats & Params-C'!$I$12-1), IF('B. PoF Summary Stats & Params-C'!$C$12="W", B9*(('B. PoF Summary Stats & Params-C'!$M$12/'B. PoF Summary Stats & Params-C'!$O$12)*((A9)/'B. PoF Summary Stats & Params-C'!$O$12)^('B. PoF Summary Stats & Params-C'!$M$12-1)), "Choose Model")) -> 0.0003354916773
A10: 6 | B10: 1 | C10: =IF('B. PoF Summary Stats & Params-C'!$C$12="C", B10*'B. PoF Summary Stats & Params-C'!$I$8*'B. PoF Summary Stats & Params-C'!$I$10*A10^('B. PoF Summary Stats & Params-C'!$I$10-1), IF('B. PoF Summary Stats & Params-C'!$C$12="W", B10*(('B. PoF Summary Stats & Params-C'!$M$14/'B. PoF Summary Stats & Params-C'!$O$14)*((A10)/'B. PoF Summary Stats & Params-C'!$O$14)^('B. PoF Summary Stats & Params-C'!$M$14-1)), "Choose Model")) -> 0.0005941527292 | D10: =IF('B. PoF Summary Stats & Params-C'!$C$12="C", B10*'B. PoF Summary Stats & Params-C'!$I$8*'B. PoF Summary Stats & Params-C'!$I$6*A10^('B. PoF Summary Stats & Params-C'!$I$6-1), IF('B. PoF Summary Stats & Params-C'!$C$12="W", B10*(('B. PoF Summary Stats & Params-C'!$M$6/'B. PoF Summary Stats & Params-C'!$M$8)*((A10)/'B. PoF Summary Stats & Params-C'!$M$8)^('B. PoF Summary Stats & Params-C'!$M$6-1)), "Choose Model")) -> 0.0005362768595 | E10: =IF('B. PoF Summary Stats & Params-C'!$C$12="C", B10*'B. PoF Summary Stats & Params-C'!$I$8*'B. PoF Summary Stats & Params-C'!$I$12*A10^('B. PoF Summary Stats & Params-C'!$I$12-1), IF('B. PoF Summary Stats & Params-C'!$C$12="W", B10*(('B. PoF Summary Stats & Params-C'!$M$12/'B. PoF Summary Stats & Params-C'!$O$12)*((A10)/'B. PoF Summary Stats & Params-C'!$O$12)^('B. PoF Summary Stats & Params-C'!$M$12-1)), "Choose Model")) -> 0.0004839171992
A11: 7 | B11: 1 | C11: =IF('B. PoF Summary Stats & Params-C'!$C$12="C", B11*'B. PoF Summary Stats & Params-C'!$I$8*'B. PoF Summary Stats & Params-C'!$I$10*A11^('B. PoF Summary Stats & Params-C'!$I$10-1), IF('B. PoF Summary Stats & Params-C'!$C$12="W", B11*(('B. PoF Summary Stats & Params-C'!$M$14/'B. PoF Summary Stats & Params-C'!$O$14)*((A11)/'B. PoF Summary Stats & Params-C'!$O$14)^('B. PoF Summary Stats & Params-C'!$M$14-1)), "Choose Model")) -> 0.0008220351615 | D11: =IF('B. PoF Summary Stats & Params-C'!$C$12="C", B11*'B. PoF Summary Stats & Params-C'!$I$8*'B. PoF Summary Stats & Params-C'!$I$6*A11^('B. PoF Summary Stats & Params-C'!$I$6-1), IF('B. PoF Summary Stats & Params-C'!$C$12="W", B11*(('B. PoF Summary Stats & Params-C'!$M$6/'B. PoF Summary Stats & Params-C'!$M$8)*((A11)/'B. PoF Summary Stats & Params-C'!$M$8)^('B. PoF Summary Stats & Params-C'!$M$6-1)), "Choose Model")) -> 0.0007364431936 | E11: =IF('B. PoF Summary Stats & Params-C'!$C$12="C", B11*'B. PoF Summary Stats & Params-C'!$I$8*'B. PoF Summary Stats & Params-C'!$I$12*A11^('B. PoF Summary Stats & Params-C'!$I$12-1), IF('B. PoF Summary Stats & Params-C'!$C$12="W", B11*(('B. PoF Summary Stats & Params-C'!$M$12/'B. PoF Summary Stats & Params-C'!$O$12)*((A11)/'B. PoF Summary Stats & Params-C'!$O$12)^('B. PoF Summary Stats & Params-C'!$M$12-1)), "Choose Model")) -> 0.0006595977271
A12: 8 | B12: 1 | C12: =IF('B. PoF Summary Stats & Params-C'!$C$12="C", B12*'B. PoF Summary Stats & Params-C'!$I$8*'B. PoF Summary Stats & Params-C'!$I$10*A12^('B. PoF Summary Stats & Params-C'!$I$10-1), IF('B. PoF Summary Stats & Params-C'!$C$12="W", B12*(('B. PoF Summary Stats & Params-C'!$M$14/'B. PoF Summary Stats & Params-C'!$O$14)*((A12)/'B. PoF Summary Stats & Params-C'!$O$14)^('B. PoF Summary Stats & Params-C'!$M$14-1)), "Choose Model")) -> 0.001088988963 | D12: =IF('B. PoF Summary Stats & Params-C'!$C$12="C", B12*'B. PoF Summary Stats & Params-C'!$I$8*'B. PoF Summary Stats & Params-C'!$I$6*A12^('B. PoF Summary Stats & Params-C'!$I$6-1), IF('B. PoF Summary Stats & Params-C'!$C$12="W", B12*(('B. PoF Summary Stats & Params-C'!$M$6/'B. PoF Summary Stats & Params-C'!$M$8)*((A12)/'B. PoF Summary Stats & Params-C'!$M$8)^('B. PoF Summary Stats & Params-C'!$M$6-1)), "Choose Model")) -> 0.0009693126921 | E12: =IF('B. PoF Summary Stats & Params-C'!$C$12="C", B12*'B. PoF Summary Stats & Params-C'!$I$8*'B. PoF Summary Stats & Params-C'!$I$12*A12^('B. PoF Summary Stats & Params-C'!$I$12-1), IF('B. PoF Summary Stats & Params-C'!$C$12="W", B12*(('B. PoF Summary Stats & Params-C'!$M$12/'B. PoF Summary Stats & Params-C'!$O$12)*((A12)/'B. PoF Summary Stats & Params-C'!$O$12)^('B. PoF Summary Stats & Params-C'!$M$12-1)), "Choose Model")) -> 0.0008625720073
A13: 9 | B13: 1 | C13: =IF('B. PoF Summary Stats & Params-C'!$C$12="C", B13*'B. PoF Summary Stats & Params-C'!$I$8*'B. PoF Summary Stats & Params-C'!$I$10*A13^('B. PoF Summary Stats & Params-C'!$I$10-1), IF('B. PoF Summary Stats & Params-C'!$C$12="W", B13*(('B. PoF Summary Stats & Params-C'!$M$14/'B. PoF Summary Stats & Params-C'!$O$14)*((A13)/'B. PoF Summary Stats & Params-C'!$O$14)^('B. PoF Summary Stats & Params-C'!$M$14-1)), "Choose Model")) -> 0.001395572789 | D13: =IF('B. PoF Summary Stats & Params-C'!$C$12="C", B13*'B. PoF Summary Stats & Params-C'!$I$8*'B. PoF Summary Stats & Params-C'!$I$6*A13^('B. PoF Summary Stats & Params-C'!$I$6-1), IF('B. PoF Summary Stats & Params-C'!$C$12="W", B13*(('B. PoF Summary Stats & Params-C'!$M$6/'B. PoF Summary Stats & Params-C'!$M$8)*((A13)/'B. PoF Summary Stats & Params-C'!$M$8)^('B. PoF Summary Stats & Params-C'!$M$6-1)), "Choose Model")) -> 0.001235138608 | E13: =IF('B. PoF Summary Stats & Params-C'!$C$12="C", B13*'B. PoF Summary Stats & Params-C'!$I$8*'B. PoF Summary Stats & Params-C'!$I$12*A13^('B. PoF Summary Stats & Params-C'!$I$12-1), IF('B. PoF Summary Stats & Params-C'!$C$12="W", B13*(('B. PoF Summary Stats & Params-C'!$M$12/'B. PoF Summary Stats & Params-C'!$O$12)*((A13)/'B. PoF Summary Stats & Params-C'!$O$12)^('B. PoF Summary Stats & Params-C'!$M$12-1)), "Choose Model")) -> 0.001092873614
A14: 10 | B14: 1 | C14: =IF('B. PoF Summary Stats & Params-C'!$C$12="C", B14*'B. PoF Summary Stats & Params-C'!$I$8*'B. PoF Summary Stats & Params-C'!$I$10*A14^('B. PoF Summary Stats & Params-C'!$I$10-1), IF('B. PoF Summary Stats & Params-C'!$C$12="W", B14*(('B. PoF Summary Stats & Params-C'!$M$14/'B. PoF Summary Stats & Params-C'!$O$14)*((A14)/'B. PoF Summary Stats & Params-C'!$O$14)^('B. PoF Summary Stats & Params-C'!$M$14-1)), "Choose Model")) -> 0.001742285733 | D14: =IF('B. PoF Summary Stats & Params-C'!$C$12="C", B14*'B. PoF Summary Stats & Params-C'!$I$8*'B. PoF Summary Stats & Params-C'!$I$6*A14^('B. PoF Summary Stats & Params-C'!$I$6-1), IF('B. PoF Summary Stats & Params-C'!$C$12="W", B14*(('B. PoF Summary Stats & Params-C'!$M$6/'B. PoF Summary Stats & Params-C'!$M$8)*((A14)/'B. PoF Summary Stats & Params-C'!$M$8)^('B. PoF Summary Stats & Params-C'!$M$6-1)), "Choose Model")) -> 0.00153414581 | E14: =IF('B. PoF Summary Stats & Params-C'!$C$12="C", B14*'B. PoF Summary Stats & Params-C'!$I$8*'B. PoF Summary Stats & Params-C'!$I$12*A14^('B. PoF Summary Stats & Params-C'!$I$12-1), IF('B. PoF Summary Stats & Params-C'!$C$12="W", B14*(('B. PoF Summary Stats & Params-C'!$M$12/'B. PoF Summary Stats & Params-C'!$O$12)*((A14)/'B. PoF Summary Stats & Params-C'!$O$12)^('B. PoF Summary Stats & Params-C'!$M$12-1)), "Choose Model")) -> 0.001350532176
A15: 11 | B15: 1 | C15: =IF('B. PoF Summary Stats & Params-C'!$C$12="C", B15*'B. PoF Summary Stats & Params-C'!$I$8*'B. PoF Summary Stats & Params-C'!$I$10*A15^('B. PoF Summary Stats & Params-C'!$I$10-1), IF('B. PoF Summary Stats & Params-C'!$C$12="W", B15*(('B. PoF Summary Stats & Params-C'!$M$14/'B. PoF Summary Stats & Params-C'!$O$14)*((A15)/'B. PoF Summary Stats & Params-C'!$O$14)^('B. PoF Summary Stats & Params-C'!$M$14-1)), "Choose Model")) -> 0.002129579384 | D15: =IF('B. PoF Summary Stats & Params-C'!$C$12="C", B15*'B. PoF Summary Stats & Params-C'!$I$8*'B. PoF Summary Stats & Params-C'!$I$6*A15^('B. PoF Summary Stats & Params-C'!$I$6-1), IF('B. PoF Summary Stats & Params-C'!$C$12="W", B15*(('B. PoF Summary Stats & Params-C'!$M$6/'B. PoF Summary Stats & Params-C'!$M$8)*((A15)/'B. PoF Summary Stats & Params-C'!$M$8)^('B. PoF Summary Stats & Params-C'!$M$6-1)), "Choose Model")) -> 0.001866536662 | E15: =IF('B. PoF Summary Stats & Params-C'!$C$12="C", B15*'B. PoF Summary Stats & Params-C'!$I$8*'B. PoF Summary Stats & Params-C'!$I$12*A15^('B. PoF Summary Stats & Params-C'!$I$12-1), IF('B. PoF Summary Stats & Params-C'!$C$12="W", B15*(('B. PoF Summary Stats & Params-C'!$M$12/'B. PoF Summary Stats & Params-C'!$O$12)*((A15)/'B. PoF Summary Stats & Params-C'!$O$12)^('B. PoF Summary Stats & Params-C'!$M$12-1)), "Choose Model")) -> 0.001635574213
A16: 12 | B16: 1 | C16: =IF('B. PoF Summary Stats & Params-C'!$C$12="C", B16*'B. PoF Summary Stats & Params-C'!$I$8*'B. PoF Summary Stats & Params-C'!$I$10*A16^('B. PoF Summary Stats & Params-C'!$I$10-1), IF('B. PoF Summary Stats & Params-C'!$C$12="W", B16*(('B. PoF Summary Stats & Params-C'!$M$14/'B. PoF Summary Stats & Params-C'!$O$14)*((A16)/'B. PoF Summary Stats & Params-C'!$O$14)^('B. PoF Summary Stats & Params-C'!$M$14-1)), "Choose Model")) -> 0.002557866504 | D16: =IF('B. PoF Summary Stats & Params-C'!$C$12="C", B16*'B. PoF Summary Stats & Params-C'!$I$8*'B. PoF Summary Stats & Params-C'!$I$6*A16^('B. PoF Summary Stats & Params-C'!$I$6-1), IF('B. PoF Summary Stats & Params-C'!$C$12="W", B16*(('B. PoF Summary Stats & Params-C'!$M$6/'B. PoF Summary Stats & Params-C'!$M$8)*((A16)/'B. PoF Summary Stats & Params-C'!$M$8)^('B. PoF Summary Stats & Params-C'!$M$6-1)), "Choose Model")) -> 0.002232495227 | E16: =IF('B. PoF Summary Stats & Params-C'!$C$12="C", B16*'B. PoF Summary Stats & Params-C'!$I$8*'B. PoF Summary Stats & Params-C'!$I$12*A16^('B. PoF Summary Stats & Params-C'!$I$12-1), IF('B. PoF Summary Stats & Params-C'!$C$12="W", B16*(('B. PoF Summary Stats & Params-C'!$M$12/'B. PoF Summary Stats & Params-C'!$O$12)*((A16)/'B. PoF Summary Stats & Params-C'!$O$12)^('B. PoF Summary Stats & Params-C'!$M$12-1)), "Choose Model")) -> 0.001948023729
A17: 13 | B17: 1 | C17: =IF('B. PoF Summary Stats & Params-C'!$C$12="C", B17*'B. PoF Summary Stats & Params-C'!$I$8*'B. PoF Summary Stats & Params-C'!$I$10*A17^('B. PoF Summary Stats & Params-C'!$I$10-1), IF('B. PoF Summary Stats & Params-C'!$C$12="W", B17*(('B. PoF Summary Stats & Params-C'!$M$14/'B. PoF Summary Stats & Params-C'!$O$14)*((A17)/'B. PoF Summary Stats & Params-C'!$O$14)^('B. PoF Summary Stats & Params-C'!$M$14-1)), "Choose Model")) -> 0.003027527491 | D17: =IF('B. PoF Summary Stats & Params-C'!$C$12="C", B17*'B. PoF Summary Stats & Params-C'!$I$8*'B. PoF Summary Stats & Params-C'!$I$6*A17^('B. PoF Summary Stats & Params-C'!$I$6-1), IF('B. PoF Summary Stats & Params-C'!$C$12="W", B17*(('B. PoF Summary Stats & Params-C'!$M$6/'B. PoF Summary Stats & Params-C'!$M$8)*((A17)/'B. PoF Summary Stats & Params-C'!$M$8)^('B. PoF Summary Stats & Params-C'!$M$6-1)), "Choose Model")) -> 0.002632190386 | E17: =IF('B. PoF Summary Stats & Params-C'!$C$12="C", B17*'B. PoF Summary Stats & Params-C'!$I$8*'B. PoF Summary Stats & Params-C'!$I$12*A17^('B. PoF Summary Stats & Params-C'!$I$12-1), IF('B. PoF Summary Stats & Params-C'!$C$12="W", B17*(('B. PoF Summary Stats & Params-C'!$M$12/'B. PoF Summary Stats & Params-C'!$O$12)*((A17)/'B. PoF Summary Stats & Params-C'!$O$12)^('B. PoF Summary Stats & Params-C'!$M$12-1)), "Choose Model")) -> 0.002287902649
A18: 14 | B18: 1 | C18: =IF('B. PoF Summary Stats & Params-C'!$C$12="C", B18*'B. PoF Summary Stats & Params-C'!$I$8*'B. PoF Summary Stats & Params-C'!$I$10*A18^('B. PoF Summary Stats & Params-C'!$I$10-1), IF('B. PoF Summary Stats & Params-C'!$C$12="W", B18*(('B. PoF Summary Stats & Params-C'!$M$14/'B. PoF Summary Stats & Params-C'!$O$14)*((A18)/'B. PoF Summary Stats & Params-C'!$O$14)^('B. PoF Summary Stats & Params-C'!$M$14-1)), "Choose Model")) -> 0.003538915335 | D18: =IF('B. PoF Summary Stats & Params-C'!$C$12="C", B18*'B. PoF Summary Stats & Params-C'!$I$8*'B. PoF Summary Stats & Params-C'!$I$6*A18^('B. PoF Summary Stats & Params-C'!$I$6-1), IF('B. PoF Summary Stats & Params-C'!$C$12="W", B18*(('B. PoF Summary Stats & Params-C'!$M$6/'B. PoF Summary Stats & Params-C'!$M$8)*((A18)/'B. PoF Summary Stats & Params-C'!$M$8)^('B. PoF Summary Stats & Params-C'!$M$6-1)), "Choose Model")) -> 0.003065778218 | E18: =IF('B. PoF Summary Stats & Params-C'!$C$12="C", B18*'B. PoF Summary Stats & Params-C'!$I$8*'B. PoF Summary Stats & Params-C'!$I$12*A18^('B. PoF Summary Stats & Params-C'!$I$12-1), IF('B. PoF Summary Stats & Params-C'!$C$12="W", B18*(('B. PoF Summary Stats & Params-C'!$M$12/'B. PoF Summary Stats & Params-C'!$O$12)*((A18)/'B. PoF Summary Stats & Params-C'!$O$12)^('B. PoF Summary Stats & Params-C'!$M$12-1)), "Choose Model")) -> 0.002655231155
A19: 15 | B19: 1 | C19: =IF('B. PoF Summary Stats & Params-C'!$C$12="C", B19*'B. PoF Summary Stats & Params-C'!$I$8*'B. PoF Summary Stats & Params-C'!$I$10*A19^('B. PoF Summary Stats & Params-C'!$I$10-1), IF('B. PoF Summary Stats & Params-C'!$C$12="W", B19*(('B. PoF Summary Stats & Params-C'!$M$14/'B. PoF Summary Stats & Params-C'!$O$14)*((A19)/'B. PoF Summary Stats & Params-C'!$O$14)^('B. PoF Summary Stats & Params-C'!$M$14-1)), "Choose Model")) -> 0.004092359489 | D19: =IF('B. PoF Summary Stats & Params-C'!$C$12="C", B19*'B. PoF Summary Stats & Params-C'!$I$8*'B. PoF Summary Stats & Params-C'!$I$6*A19^('B. PoF Summary Stats & Params-C'!$I$6-1), IF('B. PoF Summary Stats & Params-C'!$C$12="W", B19*(('B. PoF Summary Stats & Params-C'!$M$6/'B. PoF Summary Stats & Params-C'!$M$8)*((A19)/'B. PoF Summary Stats & Params-C'!$M$8)^('B. PoF Summary Stats & Params-C'!$M$6-1)), "Choose Model")) -> 0.00353340385 | E19: =IF('B. PoF Summary Stats & Params-C'!$C$12="C", B19*'B. PoF Summary Stats & Params-C'!$I$8*'B. PoF Summary Stats & Params-C'!$I$12*A19^('B. PoF Summary Stats & Params-C'!$I$12-1), IF('B. PoF Summary Stats & Params-C'!$C$12="W", B19*(('B. PoF Summary Stats & Params-C'!$M$12/'B. PoF Summary Stats & Params-C'!$O$12)*((A19)/'B. PoF Summary Stats & Params-C'!$O$12)^('B. PoF Summary Stats & Params-C'!$M$12-1)), "Choose Model")) -> 0.003050027944
A20: 16 | B20: 1 | C20: =IF('B. PoF Summary Stats & Params-C'!$C$12="C", B20*'B. PoF Summary Stats & Params-C'!$I$8*'B. PoF Summary Stats & Params-C'!$I$10*A20^('B. PoF Summary Stats & Params-C'!$I$10-1), IF('B. PoF Summary Stats & Params-C'!$C$12="W", B20*(('B. PoF Summary Stats & Params-C'!$M$14/'B. PoF Summary Stats & Params-C'!$O$14)*((A20)/'B. PoF Summary Stats & Params-C'!$O$14)^('B. PoF Summary Stats & Params-C'!$M$14-1)), "Choose Model")) -> 0.004688168975 | D20: =IF('B. PoF Summary Stats & Params-C'!$C$12="C", B20*'B. PoF Summary Stats & Params-C'!$I$8*'B. PoF Summary Stats & Params-C'!$I$6*A20^('B. PoF Summary Stats & Params-C'!$I$6-1), IF('B. PoF Summary Stats & Params-C'!$C$12="W", B20*(('B. PoF Summary Stats & Params-C'!$M$6/'B. PoF Summary Stats & Params-C'!$M$8)*((A20)/'B. PoF Summary Stats & Params-C'!$M$8)^('B. PoF Summary Stats & Params-C'!$M$6-1)), "Choose Model")) -> 0.004035202936 | E20: =IF('B. PoF Summary Stats & Params-C'!$C$12="C", B20*'B. PoF Summary Stats & Params-C'!$I$8*'B. PoF Summary Stats & Params-C'!$I$12*A20^('B. PoF Summary Stats & Params-C'!$I$12-1), IF('B. PoF Summary Stats & Params-C'!$C$12="W", B20*(('B. PoF Summary Stats & Params-C'!$M$12/'B. PoF Summary Stats & Params-C'!$O$12)*((A20)/'B. PoF Summary Stats & Params-C'!$O$12)^('B. PoF Summary Stats & Params-C'!$M$12-1)), "Choose Model")) -> 0.003472310429
A21: 17 | B21: 1 | C21: =IF('B. PoF Summary Stats & Params-C'!$C$12="C", B21*'B. PoF Summary Stats & Params-C'!$I$8*'B. PoF Summary Stats & Params-C'!$I$10*A21^('B. PoF Summary Stats & Params-C'!$I$10-1), IF('B. PoF Summary Stats & Params-C'!$C$12="W", B21*(('B. PoF Summary Stats & Params-C'!$M$14/'B. PoF Summary Stats & Params-C'!$O$14)*((A21)/'B. PoF Summary Stats & Params-C'!$O$14)^('B. PoF Summary Stats & Params-C'!$M$14-1)), "Choose Model")) -> 0.005326634887 | D21: =IF('B. PoF Summary Stats & Params-C'!$C$12="C", B21*'B. PoF Summary Stats & Params-C'!$I$8*'B. PoF Summary Stats & Params-C'!$I$6*A21^('B. PoF Summary Stats & Params-C'!$I$6-1), IF('B. PoF Summary Stats & Params-C'!$C$12="W", B21*(('B. PoF Summary Stats & Params-C'!$M$6/'B. PoF Summary Stats & Params-C'!$M$8)*((A21)/'B. PoF Summary Stats & Params-C'!$M$8)^('B. PoF Summary Stats & Params-C'!$M$6-1)), "Choose Model")) -> 0.00457130285 | E21: =IF('B. PoF Summary Stats & Params-C'!$C$12="C", B21*'B. PoF Summary Stats & Params-C'!$I$8*'B. PoF Summary Stats & Params-C'!$I$12*A21^('B. PoF Summary Stats & Params-C'!$I$12-1), IF('B. PoF Summary Stats & Params-C'!$C$12="W", B21*(('B. PoF Summary Stats & Params-C'!$M$12/'B. PoF Summary Stats & Params-C'!$O$12)*((A21)/'B. PoF Summary Stats & Params-C'!$O$12)^('B. PoF Summary Stats & Params-C'!$M$12-1)), "Choose Model")) -> 0.003922094911
A22: 18 | B22: 1 | C22: =IF('B. PoF Summary Stats & Params-C'!$C$12="C", B22*'B. PoF Summary Stats & Params-C'!$I$8*'B. PoF Summary Stats & Params-C'!$I$10*A22^('B. PoF Summary Stats & Params-C'!$I$10-1), IF('B. PoF Summary Stats & Params-C'!$C$12="W", B22*(('B. PoF Summary Stats & Params-C'!$M$14/'B. PoF Summary Stats & Params-C'!$O$14)*((A22)/'B. PoF Summary Stats & Params-C'!$O$14)^('B. PoF Summary Stats & Params-C'!$M$14-1)), "Choose Model")) -> 0.006008032471 | D22: =IF('B. PoF Summary Stats & Params-C'!$C$12="C", B22*'B. PoF Summary Stats & Params-C'!$I$8*'B. PoF Summary Stats & Params-C'!$I$6*A22^('B. PoF Summary Stats & Params-C'!$I$6-1), IF('B. PoF Summary Stats & Params-C'!$C$12="W", B22*(('B. PoF Summary Stats & Params-C'!$M$6/'B. PoF Summary Stats & Params-C'!$M$8)*((A22)/'B. PoF Summary Stats & Params-C'!$M$8)^('B. PoF Summary Stats & Params-C'!$M$6-1)), "Choose Model")) -> 0.005141823663 | E22: =IF('B. PoF Summary Stats & Params-C'!$C$12="C", B22*'B. PoF Summary Stats & Params-C'!$I$8*'B. PoF Summary Stats & Params-C'!$I$12*A22^('B. PoF Summary Stats & Params-C'!$I$12-1), IF('B. PoF Summary Stats & Params-C'!$C$12="W", B22*(('B. PoF Summary Stats & Params-C'!$M$12/'B. PoF Summary Stats & Params-C'!$O$12)*((A22)/'B. PoF Summary Stats & Params-C'!$O$12)^('B. PoF Summary Stats & Params-C'!$M$12-1)), "Choose Model")) -> 0.004399396706
A23: 19 | B23: 1 | C23: =IF('B. PoF Summary Stats & Params-C'!$C$12="C", B23*'B. PoF Summary Stats & Params-C'!$I$8*'B. PoF Summary Stats & Params-C'!$I$10*A23^('B. PoF Summary Stats & Params-C'!$I$10-1), IF('B. PoF Summary Stats & Params-C'!$C$12="W", B23*(('B. PoF Summary Stats & Params-C'!$M$14/'B. PoF Summary Stats & Params-C'!$O$14)*((A23)/'B. PoF Summary Stats & Params-C'!$O$14)^('B. PoF Summary Stats & Params-C'!$M$14-1)), "Choose Model")) -> 0.006732622846 | D23: =IF('B. PoF Summary Stats & Params-C'!$C$12="C", B23*'B. PoF Summary Stats & Params-C'!$I$8*'B. PoF Summary Stats & Params-C'!$I$6*A23^('B. PoF Summary Stats & Params-C'!$I$6-1), IF('B. PoF Summary Stats & Params-C'!$C$12="W", B23*(('B. PoF Summary Stats & Params-C'!$M$6/'B. PoF Summary Stats & Params-C'!$M$8)*((A23)/'B. PoF Summary Stats & Params-C'!$M$8)^('B. PoF Summary Stats & Params-C'!$M$6-1)), "Choose Model")) -> 0.005746878958 | E23: =IF('B. PoF Summary Stats & Params-C'!$C$12="C", B23*'B. PoF Summary Stats & Params-C'!$I$8*'B. PoF Summary Stats & Params-C'!$I$12*A23^('B. PoF Summary Stats & Params-C'!$I$12-1), IF('B. PoF Summary Stats & Params-C'!$C$12="W", B23*(('B. PoF Summary Stats & Params-C'!$M$12/'B. PoF Summary Stats & Params-C'!$O$12)*((A23)/'B. PoF Summary Stats & Params-C'!$O$12)^('B. PoF Summary Stats & Params-C'!$M$12-1)), "Choose Model")) -> 0.004904230264
A24: 20 | B24: 1 | C24: =IF('B. PoF Summary Stats & Params-C'!$C$12="C", B24*'B. PoF Summary Stats & Params-C'!$I$8*'B. PoF Summary Stats & Params-C'!$I$10*A24^('B. PoF Summary Stats & Params-C'!$I$10-1), IF('B. PoF Summary Stats & Params-C'!$C$12="W", B24*(('B. PoF Summary Stats & Params-C'!$M$14/'B. PoF Summary Stats & Params-C'!$O$14)*((A24)/'B. PoF Summary Stats & Params-C'!$O$14)^('B. PoF Summary Stats & Params-C'!$M$14-1)), "Choose Model")) -> 0.007500654457 | D24: =IF('B. PoF Summary Stats & Params-C'!$C$12="C", B24*'B. PoF Summary Stats & Params-C'!$I$8*'B. PoF Summary Stats & Params-C'!$I$6*A24^('B. PoF Summary Stats & Params-C'!$I$6-1), IF('B. PoF Summary Stats & Params-C'!$C$12="W", B24*(('B. PoF Summary Stats & Params-C'!$M$6/'B. PoF Summary Stats & Params-C'!$M$8)*((A24)/'B. PoF Summary Stats & Params-C'!$M$8)^('B. PoF Summary Stats & Params-C'!$M$6-1)), "Choose Model")) -> 0.006386576518 | E24: =IF('B. PoF Summary Stats & Params-C'!$C$12="C", B24*'B. PoF Summary Stats & Params-C'!$I$8*'B. PoF Summary Stats & Params-C'!$I$12*A24^('B. PoF Summary Stats & Params-C'!$I$12-1), IF('B. PoF Summary Stats & Params-C'!$C$12="W", B24*(('B. PoF Summary Stats & Params-C'!$M$12/'B. PoF Summary Stats & Params-C'!$O$12)*((A24)/'B. PoF Summary Stats & Params-C'!$O$12)^('B. PoF Summary Stats & Params-C'!$M$12-1)), "Choose Model")) -> 0.005436609258
A25: 21 | B25: 1 | C25: =IF('B. PoF Summary Stats & Params-C'!$C$12="C", B25*'B. PoF Summary Stats & Params-C'!$I$8*'B. PoF Summary Stats & Params-C'!$I$10*A25^('B. PoF Summary Stats & Params-C'!$I$10-1), IF('B. PoF Summary Stats & Params-C'!$C$12="W", B25*(('B. PoF Summary Stats & Params-C'!$M$14/'B. PoF Summary Stats & Params-C'!$O$14)*((A25)/'B. PoF Summary Stats & Params-C'!$O$14)^('B. PoF Summary Stats & Params-C'!$M$14-1)), "Choose Model")) -> 0.008312364314 | D25: =IF('B. PoF Summary Stats & Params-C'!$C$12="C", B25*'B. PoF Summary Stats & Params-C'!$I$8*'B. PoF Summary Stats & Params-C'!$I$6*A25^('B. PoF Summary Stats & Params-C'!$I$6-1), IF('B. PoF Summary Stats & Params-C'!$C$12="W", B25*(('B. PoF Summary Stats & Params-C'!$M$6/'B. PoF Summary Stats & Params-C'!$M$8)*((A25)/'B. PoF Summary Stats & Params-C'!$M$8)^('B. PoF Summary Stats & Params-C'!$M$6-1)), "Choose Model")) -> 0.007061018898 | E25: =IF('B. PoF Summary Stats & Params-C'!$C$12="C", B25*'B. PoF Summary Stats & Params-C'!$I$8*'B. PoF Summary Stats & Params-C'!$I$12*A25^('B. PoF Summary Stats & Params-C'!$I$12-1), IF('B. PoF Summary Stats & Params-C'!$C$12="W", B25*(('B. PoF Summary Stats & Params-C'!$M$12/'B. PoF Summary Stats & Params-C'!$O$12)*((A25)/'B. PoF Summary Stats & Params-C'!$O$12)^('B. PoF Summary Stats & Params-C'!$M$12-1)), "Choose Model")) -> 0.005996546667
A26: 22 | B26: 1 | C26: =IF('B. PoF Summary Stats & Params-C'!$C$12="C", B26*'B. PoF Summary Stats & Params-C'!$I$8*'B. PoF Summary Stats & Params-C'!$I$10*A26^('B. PoF Summary Stats & Params-C'!$I$10-1), IF('B. PoF Summary Stats & Params-C'!$C$12="W", B26*(('B. PoF Summary Stats & Params-C'!$M$14/'B. PoF Summary Stats & Params-C'!$O$14)*((A26)/'B. PoF Summary Stats & Params-C'!$O$14)^('B. PoF Summary Stats & Params-C'!$M$14-1)), "Choose Model")) -> 0.00916797905 | D26: =IF('B. PoF Summary Stats & Params-C'!$C$12="C", B26*'B. PoF Summary Stats & Params-C'!$I$8*'B. PoF Summary Stats & Params-C'!$I$6*A26^('B. PoF Summary Stats & Params-C'!$I$6-1), IF('B. PoF Summary Stats & Params-C'!$C$12="W", B26*(('B. PoF Summary Stats & Params-C'!$M$6/'B. PoF Summary Stats & Params-C'!$M$8)*((A26)/'B. PoF Summary Stats & Params-C'!$M$8)^('B. PoF Summary Stats & Params-C'!$M$6-1)), "Choose Model")) -> 0.007770303928 | E26: =IF('B. PoF Summary Stats & Params-C'!$C$12="C", B26*'B. PoF Summary Stats & Params-C'!$I$8*'B. PoF Summary Stats & Params-C'!$I$12*A26^('B. PoF Summary Stats & Params-C'!$I$12-1), IF('B. PoF Summary Stats & Params-C'!$C$12="W", B26*(('B. PoF Summary Stats & Params-C'!$M$12/'B. PoF Summary Stats & Params-C'!$O$12)*((A26)/'B. PoF Summary Stats & Params-C'!$O$12)^('B. PoF Summary Stats & Params-C'!$M$12-1)), "Choose Model")) -> 0.00658405484
A27: 23 | B27: 1 | C27: =IF('B. PoF Summary Stats & Params-C'!$C$12="C", B27*'B. PoF Summary Stats & Params-C'!$I$8*'B. PoF Summary Stats & Params-C'!$I$10*A27^('B. PoF Summary Stats & Params-C'!$I$10-1), IF('B. PoF Summary Stats & Params-C'!$C$12="W", B27*(('B. PoF Summary Stats & Params-C'!$M$14/'B. PoF Summary Stats & Params-C'!$O$14)*((A27)/'B. PoF Summary Stats & Params-C'!$O$14)^('B. PoF Summary Stats & Params-C'!$M$14-1)), "Choose Model")) -> 0.01006771584 | D27: =IF('B. PoF Summary Stats & Params-C'!$C$12="C", B27*'B. PoF Summary Stats & Params-C'!$I$8*'B. PoF Summary Stats & Params-C'!$I$6*A27^('B. PoF Summary Stats & Params-C'!$I$6-1), IF('B. PoF Summary Stats & Params-C'!$C$12="W", B27*(('B. PoF Summary Stats & Params-C'!$M$6/'B. PoF Summary Stats & Params-C'!$M$8)*((A27)/'B. PoF Summary Stats & Params-C'!$M$8)^('B. PoF Summary Stats & Params-C'!$M$6-1)), "Choose Model")) -> 0.008514525141 | E27: =IF('B. PoF Summary Stats & Params-C'!$C$12="C", B27*'B. PoF Summary Stats & Params-C'!$I$8*'B. PoF Summary Stats & Params-C'!$I$12*A27^('B. PoF Summary Stats & Params-C'!$I$12-1), IF('B. PoF Summary Stats & Params-C'!$C$12="W", B27*(('B. PoF Summary Stats & Params-C'!$M$12/'B. PoF Summary Stats & Params-C'!$O$12)*((A27)/'B. PoF Summary Stats & Params-C'!$O$12)^('B. PoF Summary Stats & Params-C'!$M$12-1)), "Choose Model")) -> 0.007199145556
A28: 24 | B28: 1 | C28: =IF('B. PoF Summary Stats & Params-C'!$C$12="C", B28*'B. PoF Summary Stats & Params-C'!$I$8*'B. PoF Summary Stats & Params-C'!$I$10*A28^('B. PoF Summary Stats & Params-C'!$I$10-1), IF('B. PoF Summary Stats & Params-C'!$C$12="W", B28*(('B. PoF Summary Stats & Params-C'!$M$14/'B. PoF Summary Stats & Params-C'!$O$14)*((A28)/'B. PoF Summary Stats & Params-C'!$O$14)^('B. PoF Summary Stats & Params-C'!$M$14-1)), "Choose Model")) -> 0.01101178322 | D28: =IF('B. PoF Summary Stats & Params-C'!$C$12="C", B28*'B. PoF Summary Stats & Params-C'!$I$8*'B. PoF Summary Stats & Params-C'!$I$6*A28^('B. PoF Summary Stats & Params-C'!$I$6-1), IF('B. PoF Summary Stats & Params-C'!$C$12="W", B28*(('B. PoF Summary Stats & Params-C'!$M$6/'B. PoF Summary Stats & Params-C'!$M$8)*((A28)/'B. PoF Summary Stats & Params-C'!$M$8)^('B. PoF Summary Stats & Params-C'!$M$6-1)), "Choose Model")) -> 0.009293772141 | E28: =IF('B. PoF Summary Stats & Params-C'!$C$12="C", B28*'B. PoF Summary Stats & Params-C'!$I$8*'B. PoF Summary Stats & Params-C'!$I$12*A28^('B. PoF Summary Stats & Params-C'!$I$12-1), IF('B. PoF Summary Stats & Params-C'!$C$12="W", B28*(('B. PoF Summary Stats & Params-C'!$M$12/'B. PoF Summary Stats & Params-C'!$O$12)*((A28)/'B. PoF Summary Stats & Params-C'!$O$12)^('B. PoF Summary Stats & Params-C'!$M$12-1)), "Choose Model")) -> 0.007841830077
A29: 25 | B29: 1 | C29: =IF('B. PoF Summary Stats & Params-C'!$C$12="C", B29*'B. PoF Summary Stats & Params-C'!$I$8*'B. PoF Summary Stats & Params-C'!$I$10*A29^('B. PoF Summary Stats & Params-C'!$I$10-1), IF('B. PoF Summary Stats & Params-C'!$C$12="W", B29*(('B. PoF Summary Stats & Params-C'!$M$14/'B. PoF Summary Stats & Params-C'!$O$14)*((A29)/'B. PoF Summary Stats & Params-C'!$O$14)^('B. PoF Summary Stats & Params-C'!$M$14-1)), "Choose Model")) -> 0.01200038173 | D29: =IF('B. PoF Summary Stats & Params-C'!$C$12="C", B29*'B. PoF Summary Stats & Params-C'!$I$8*'B. PoF Summary Stats & Params-C'!$I$6*A29^('B. PoF Summary Stats & Params-C'!$I$6-1), IF('B. PoF Summary Stats & Params-C'!$C$12="W", B29*(('B. PoF Summary Stats & Params-C'!$M$6/'B. PoF Summary Stats & Params-C'!$M$8)*((A29)/'B. PoF Summary Stats & Params-C'!$M$8)^('B. PoF Summary Stats & Params-C'!$M$6-1)), "Choose Model")) -> 0.01010813093 | E29: =IF('B. PoF Summary Stats & Params-C'!$C$12="C", B29*'B. PoF Summary Stats & Params-C'!$I$8*'B. PoF Summary Stats & Params-C'!$I$12*A29^('B. PoF Summary Stats & Params-C'!$I$12-1), IF('B. PoF Summary Stats & Params-C'!$C$12="W", B29*(('B. PoF Summary Stats & Params-C'!$M$12/'B. PoF Summary Stats & Params-C'!$O$12)*((A29)/'B. PoF Summary Stats & Params-C'!$O$12)^('B. PoF Summary Stats & Params-C'!$M$12-1)), "Choose Model")) -> 0.008512119187
A30: 26 | B30: 1 | C30: =IF('B. PoF Summary Stats & Params-C'!$C$12="C", B30*'B. PoF Summary Stats & Params-C'!$I$8*'B. PoF Summary Stats & Params-C'!$I$10*A30^('B. PoF Summary Stats & Params-C'!$I$10-1), IF('B. PoF Summary Stats & Params-C'!$C$12="W", B30*(('B. PoF Summary Stats & Params-C'!$M$14/'B. PoF Summary Stats & Params-C'!$O$14)*((A30)/'B. PoF Summary Stats & Params-C'!$O$14)^('B. PoF Summary Stats & Params-C'!$M$14-1)), "Choose Model")) -> 0.0130337046 | D30: =IF('B. PoF Summary Stats & Params-C'!$C$12="C", B30*'B. PoF Summary Stats & Params-C'!$I$8*'B. PoF Summary Stats & Params-C'!$I$6*A30^('B. PoF Summary Stats & Params-C'!$I$6-1), IF('B. PoF Summary Stats & Params-C'!$C$12="W", B30*(('B. PoF Summary Stats & Params-C'!$M$6/'B. PoF Summary Stats & Params-C'!$M$8)*((A30)/'B. PoF Summary Stats & Params-C'!$M$8)^('B. PoF Summary Stats & Params-C'!$M$6-1)), "Choose Model")) -> 0.0109576842 | E30: =IF('B. PoF Summary Stats & Params-C'!$C$12="C", B30*'B. PoF Summary Stats & Params-C'!$I$8*'B. PoF Summary Stats & Params-C'!$I$12*A30^('B. PoF Summary Stats & Params-C'!$I$12-1), IF('B. PoF Summary Stats & Params-C'!$C$12="W", B30*(('B. PoF Summary Stats & Params-C'!$M$12/'B. PoF Summary Stats & Params-C'!$O$12)*((A30)/'B. PoF Summary Stats & Params-C'!$O$12)^('B. PoF Summary Stats & Params-C'!$M$12-1)), "Choose Model")) -> 0.009210023235
A31: 27 | B31: 1 | C31: =IF('B. PoF Summary Stats & Params-C'!$C$12="C", B31*'B. PoF Summary Stats & Params-C'!$I$8*'B. PoF Summary Stats & Params-C'!$I$10*A31^('B. PoF Summary Stats & Params-C'!$I$10-1), IF('B. PoF Summary Stats & Params-C'!$C$12="W", B31*(('B. PoF Summary Stats & Params-C'!$M$14/'B. PoF Summary Stats & Params-C'!$O$14)*((A31)/'B. PoF Summary Stats & Params-C'!$O$14)^('B. PoF Summary Stats & Params-C'!$M$14-1)), "Choose Model")) -> 0.01411193826 | D31: =IF('B. PoF Summary Stats & Params-C'!$C$12="C", B31*'B. PoF Summary Stats & Params-C'!$I$8*'B. PoF Summary Stats & Params-C'!$I$6*A31^('B. PoF Summary Stats & Params-C'!$I$6-1), IF('B. PoF Summary Stats & Params-C'!$C$12="W", B31*(('B. PoF Summary Stats & Params-C'!$M$6/'B. PoF Summary Stats & Params-C'!$M$8)*((A31)/'B. PoF Summary Stats & Params-C'!$M$8)^('B. PoF Summary Stats & Params-C'!$M$6-1)), "Choose Model")) -> 0.01184251158 | E31: =IF('B. PoF Summary Stats & Params-C'!$C$12="C", B31*'B. PoF Summary Stats & Params-C'!$I$8*'B. PoF Summary Stats & Params-C'!$I$12*A31^('B. PoF Summary Stats & Params-C'!$I$12-1), IF('B. PoF Summary Stats & Params-C'!$C$12="W", B31*(('B. PoF Summary Stats & Params-C'!$M$12/'B. PoF Summary Stats & Params-C'!$O$12)*((A31)/'B. PoF Summary Stats & Params-C'!$O$12)^('B. PoF Summary Stats & Params-C'!$M$12-1)), "Choose Model")) -> 0.009935552166
A32: 28 | B32: 1 | C32: =IF('B. PoF Summary Stats & Params-C'!$C$12="C", B32*'B. PoF Summary Stats & Params-C'!$I$8*'B. PoF Summary Stats & Params-C'!$I$10*A32^('B. PoF Summary Stats & Params-C'!$I$10-1), IF('B. PoF Summary Stats & Params-C'!$C$12="W", B32*(('B. PoF Summary Stats & Params-C'!$M$14/'B. PoF Summary Stats & Params-C'!$O$14)*((A32)/'B. PoF Summary Stats & Params-C'!$O$14)^('B. PoF Summary Stats & Params-C'!$M$14-1)), "Choose Model")) -> 0.01523526284 | D32: =IF('B. PoF Summary Stats & Params-C'!$C$12="C", B32*'B. PoF Summary Stats & Params-C'!$I$8*'B. PoF Summary Stats & Params-C'!$I$6*A32^('B. PoF Summary Stats & Params-C'!$I$6-1), IF('B. PoF Summary Stats & Params-C'!$C$12="W", B32*(('B. PoF Summary Stats & Params-C'!$M$6/'B. PoF Summary Stats & Params-C'!$M$8)*((A32)/'B. PoF Summary Stats & Params-C'!$M$8)^('B. PoF Summary Stats & Params-C'!$M$6-1)), "Choose Model")) -> 0.01276268986 | E32: =IF('B. PoF Summary Stats & Params-C'!$C$12="C", B32*'B. PoF Summary Stats & Params-C'!$I$8*'B. PoF Summary Stats & Params-C'!$I$12*A32^('B. PoF Summary Stats & Params-C'!$I$12-1), IF('B. PoF Summary Stats & Params-C'!$C$12="W", B32*(('B. PoF Summary Stats & Params-C'!$M$12/'B. PoF Summary Stats & Params-C'!$O$12)*((A32)/'B. PoF Summary Stats & Params-C'!$O$12)^('B. PoF Summary Stats & Params-C'!$M$12-1)), "Choose Model")) -> 0.01068871556
A33: 29 | B33: 1 | C33: =IF('B. PoF Summary Stats & Params-C'!$C$12="C", B33*'B. PoF Summary Stats & Params-C'!$I$8*'B. PoF Summary Stats & Params-C'!$I$10*A33^('B. PoF Summary Stats & Params-C'!$I$10-1), IF('B. PoF Summary Stats & Params-C'!$C$12="W", B33*(('B. PoF Summary Stats & Params-C'!$M$14/'B. PoF Summary Stats & Params-C'!$O$14)*((A33)/'B. PoF Summary Stats & Params-C'!$O$14)^('B. PoF Summary Stats & Params-C'!$M$14-1)), "Choose Model")) -> 0.01640385258 | D33: =IF('B. PoF Summary Stats & Params-C'!$C$12="C", B33*'B. PoF Summary Stats & Params-C'!$I$8*'B. PoF Summary Stats & Params-C'!$I$6*A33^('B. PoF Summary Stats & Params-C'!$I$6-1), IF('B. PoF Summary Stats & Params-C'!$C$12="W", B33*(('B. PoF Summary Stats & Params-C'!$M$6/'B. PoF Summary Stats & Params-C'!$M$8)*((A33)/'B. PoF Summary Stats & Params-C'!$M$8)^('B. PoF Summary Stats & Params-C'!$M$6-1)), "Choose Model")) -> 0.01371829319 | E33: =IF('B. PoF Summary Stats & Params-C'!$C$12="C", B33*'B. PoF Summary Stats & Params-C'!$I$8*'B. PoF Summary Stats & Params-C'!$I$12*A33^('B. PoF Summary Stats & Params-C'!$I$12-1), IF('B. PoF Summary Stats & Params-C'!$C$12="W", B33*(('B. PoF Summary Stats & Params-C'!$M$12/'B. PoF Summary Stats & Params-C'!$O$12)*((A33)/'B. PoF Summary Stats & Params-C'!$O$12)^('B. PoF Summary Stats & Params-C'!$M$12-1)), "Choose Model")) -> 0.01146952263
A34: 30 | B34: 1 | C34: =IF('B. PoF Summary Stats & Params-C'!$C$12="C", B34*'B. PoF Summary Stats & Params-C'!$I$8*'B. PoF Summary Stats & Params-C'!$I$10*A34^('B. PoF Summary Stats & Params-C'!$I$10-1), IF('B. PoF Summary Stats & Params-C'!$C$12="W", B34*(('B. PoF Summary Stats & Params-C'!$M$14/'B. PoF Summary Stats & Params-C'!$O$14)*((A34)/'B. PoF Summary Stats & Params-C'!$O$14)^('B. PoF Summary Stats & Params-C'!$M$14-1)), "Choose Model")) -> 0.01761787625 | D34: =IF('B. PoF Summary Stats & Params-C'!$C$12="C", B34*'B. PoF Summary Stats & Params-C'!$I$8*'B. PoF Summary Stats & Params-C'!$I$6*A34^('B. PoF Summary Stats & Params-C'!$I$6-1), IF('B. PoF Summary Stats & Params-C'!$C$12="W", B34*(('B. PoF Summary Stats & Params-C'!$M$6/'B. PoF Summary Stats & Params-C'!$M$8)*((A34)/'B. PoF Summary Stats & Params-C'!$M$8)^('B. PoF Summary Stats & Params-C'!$M$6-1)), "Choose Model")) -> 0.01470939327 | E34: =IF('B. PoF Summary Stats & Params-C'!$C$12="C", B34*'B. PoF Summary Stats & Params-C'!$I$8*'B. PoF Summary Stats & Params-C'!$I$12*A34^('B. PoF Summary Stats & Params-C'!$I$12-1), IF('B. PoF Summary Stats & Params-C'!$C$12="W", B34*(('B. PoF Summary Stats & Params-C'!$M$12/'B. PoF Summary Stats & Params-C'!$O$12)*((A34)/'B. PoF Summary Stats & Params-C'!$O$12)^('B. PoF Summary Stats & Params-C'!$M$12-1)), "Choose Model")) -> 0.0122779823
A35: 31 | B35: 1 | C35: =IF('B. PoF Summary Stats & Params-C'!$C$12="C", B35*'B. PoF Summary Stats & Params-C'!$I$8*'B. PoF Summary Stats & Params-C'!$I$10*A35^('B. PoF Summary Stats & Params-C'!$I$10-1), IF('B. PoF Summary Stats & Params-C'!$C$12="W", B35*(('B. PoF Summary Stats & Params-C'!$M$14/'B. PoF Summary Stats & Params-C'!$O$14)*((A35)/'B. PoF Summary Stats & Params-C'!$O$14)^('B. PoF Summary Stats & Params-C'!$M$14-1)), "Choose Model")) -> 0.01887749752 | D35: =IF('B. PoF Summary Stats & Params-C'!$C$12="C", B35*'B. PoF Summary Stats & Params-C'!$I$8*'B. PoF Summary Stats & Params-C'!$I$6*A35^('B. PoF Summary Stats & Params-C'!$I$6-1), IF('B. PoF Summary Stats & Params-C'!$C$12="W", B35*(('B. PoF Summary Stats & Params-C'!$M$6/'B. PoF Summary Stats & Params-C'!$M$8)*((A35)/'B. PoF Summary Stats & Params-C'!$M$8)^('B. PoF Summary Stats & Params-C'!$M$6-1)), "Choose Model")) -> 0.01573605951 | E35: =IF('B. PoF Summary Stats & Params-C'!$C$12="C", B35*'B. PoF Summary Stats & Params-C'!$I$8*'B. PoF Summary Stats & Params-C'!$I$12*A35^('B. PoF Summary Stats & Params-C'!$I$12-1), IF('B. PoF Summary Stats & Params-C'!$C$12="W", B35*(('B. PoF Summary Stats & Params-C'!$M$12/'B. PoF Summary Stats & Params-C'!$O$12)*((A35)/'B. PoF Summary Stats & Params-C'!$O$12)^('B. PoF Summary Stats & Params-C'!$M$12-1)), "Choose Model")) -> 0.01311410317
A36: 32 | B36: 1 | C36: =IF('B. PoF Summary Stats & Params-C'!$C$12="C", B36*'B. PoF Summary Stats & Params-C'!$I$8*'B. PoF Summary Stats & Params-C'!$I$10*A36^('B. PoF Summary Stats & Params-C'!$I$10-1), IF('B. PoF Summary Stats & Params-C'!$C$12="W", B36*(('B. PoF Summary Stats & Params-C'!$M$14/'B. PoF Summary Stats & Params-C'!$O$14)*((A36)/'B. PoF Summary Stats & Params-C'!$O$14)^('B. PoF Summary Stats & Params-C'!$M$14-1)), "Choose Model")) -> 0.0201828752 | D36: =IF('B. PoF Summary Stats & Params-C'!$C$12="C", B36*'B. PoF Summary Stats & Params-C'!$I$8*'B. PoF Summary Stats & Params-C'!$I$6*A36^('B. PoF Summary Stats & Params-C'!$I$6-1), IF('B. PoF Summary Stats & Params-C'!$C$12="W", B36*(('B. PoF Summary Stats & Params-C'!$M$6/'B. PoF Summary Stats & Params-C'!$M$8)*((A36)/'B. PoF Summary Stats & Params-C'!$M$8)^('B. PoF Summary Stats & Params-C'!$M$6-1)), "Choose Model")) -> 0.01679835916 | E36: =IF('B. PoF Summary Stats & Params-C'!$C$12="C", B36*'B. PoF Summary Stats & Params-C'!$I$8*'B. PoF Summary Stats & Params-C'!$I$12*A36^('B. PoF Summary Stats & Params-C'!$I$12-1), IF('B. PoF Summary Stats & Params-C'!$C$12="W", B36*(('B. PoF Summary Stats & Params-C'!$M$12/'B. PoF Summary Stats & Params-C'!$O$12)*((A36)/'B. PoF Summary Stats & Params-C'!$O$12)^('B. PoF Summary Stats & Params-C'!$M$12-1)), "Choose Model")) -> 0.01397789357
A37: 33 | B37: 1 | C37: =IF('B. PoF Summary Stats & Params-C'!$C$12="C", B37*'B. PoF Summary Stats & Params-C'!$I$8*'B. PoF Summary Stats & Params-C'!$I$10*A37^('B. PoF Summary Stats & Params-C'!$I$10-1), IF('B. PoF Summary Stats & Params-C'!$C$12="W", B37*(('B. PoF Summary Stats & Params-C'!$M$14/'B. PoF Summary Stats & Params-C'!$O$14)*((A37)/'B. PoF Summary Stats & Params-C'!$O$14)^('B. PoF Summary Stats & Params-C'!$M$14-1)), "Choose Model")) -> 0.02153416363 | D37: =IF('B. PoF Summary Stats & Params-C'!$C$12="C", B37*'B. PoF Summary Stats & Params-C'!$I$8*'B. PoF Summary Stats & Params-C'!$I$6*A37^('B. PoF Summary Stats & Params-C'!$I$6-1), IF('B. PoF Summary Stats & Params-C'!$C$12="W", B37*(('B. PoF Summary Stats & Params-C'!$M$6/'B. PoF Summary Stats & Params-C'!$M$8)*((A37)/'B. PoF Summary Stats & Params-C'!$M$8)^('B. PoF Summary Stats & Params-C'!$M$6-1)), "Choose Model")) -> 0.01789635746 | E37: =IF('B. PoF Summary Stats & Params-C'!$C$12="C", B37*'B. PoF Summary Stats & Params-C'!$I$8*'B. PoF Summary Stats & Params-C'!$I$12*A37^('B. PoF Summary Stats & Params-C'!$I$12-1), IF('B. PoF Summary Stats & Params-C'!$C$12="W", B37*(('B. PoF Summary Stats & Params-C'!$M$12/'B. PoF Summary Stats & Params-C'!$O$12)*((A37)/'B. PoF Summary Stats & Params-C'!$O$12)^('B. PoF Summary Stats & Params-C'!$M$12-1)), "Choose Model")) -> 0.01486936157
A38: 34 | B38: 1 | C38: =IF('B. PoF Summary Stats & Params-C'!$C$12="C", B38*'B. PoF Summary Stats & Params-C'!$I$8*'B. PoF Summary Stats & Params-C'!$I$10*A38^('B. PoF Summary Stats & Params-C'!$I$10-1), IF('B. PoF Summary Stats & Params-C'!$C$12="W", B38*(('B. PoF Summary Stats & Params-C'!$M$14/'B. PoF Summary Stats & Params-C'!$O$14)*((A38)/'B. PoF Summary Stats & Params-C'!$O$14)^('B. PoF Summary Stats & Params-C'!$M$14-1)), "Choose Model")) -> 0.02293151287 | D38: =IF('B. PoF Summary Stats & Params-C'!$C$12="C", B38*'B. PoF Summary Stats & Params-C'!$I$8*'B. PoF Summary Stats & Params-C'!$I$6*A38^('B. PoF Summary Stats & Params-C'!$I$6-1), IF('B. PoF Summary Stats & Params-C'!$C$12="W", B38*(('B. PoF Summary Stats & Params-C'!$M$6/'B. PoF Summary Stats & Params-C'!$M$8)*((A38)/'B. PoF Summary Stats & Params-C'!$M$8)^('B. PoF Summary Stats & Params-C'!$M$6-1)), "Choose Model")) -> 0.01903011777 | E38: =IF('B. PoF Summary Stats & Params-C'!$C$12="C", B38*'B. PoF Summary Stats & Params-C'!$I$8*'B. PoF Summary Stats & Params-C'!$I$12*A38^('B. PoF Summary Stats & Params-C'!$I$12-1), IF('B. PoF Summary Stats & Params-C'!$C$12="W", B38*(('B. PoF Summary Stats & Params-C'!$M$12/'B. PoF Summary Stats & Params-C'!$O$12)*((A38)/'B. PoF Summary Stats & Params-C'!$O$12)^('B. PoF Summary Stats & Params-C'!$M$12-1)), "Choose Model")) -> 0.01578851499
A39: 35 | B39: 1 | C39: =IF('B. PoF Summary Stats & Params-C'!$C$12="C", B39*'B. PoF Summary Stats & Params-C'!$I$8*'B. PoF Summary Stats & Params-C'!$I$10*A39^('B. PoF Summary Stats & Params-C'!$I$10-1), IF('B. PoF Summary Stats & Params-C'!$C$12="W", B39*(('B. PoF Summary Stats & Params-C'!$M$14/'B. PoF Summary Stats & Params-C'!$O$14)*((A39)/'B. PoF Summary Stats & Params-C'!$O$14)^('B. PoF Summary Stats & Params-C'!$M$14-1)), "Choose Model")) -> 0.02437506897 | D39: =IF('B. PoF Summary Stats & Params-C'!$C$12="C", B39*'B. PoF Summary Stats & Params-C'!$I$8*'B. PoF Summary Stats & Params-C'!$I$6*A39^('B. PoF Summary Stats & Params-C'!$I$6-1), IF('B. PoF Summary Stats & Params-C'!$C$12="W", B39*(('B. PoF Summary Stats & Params-C'!$M$6/'B. PoF Summary Stats & Params-C'!$M$8)*((A39)/'B. PoF Summary Stats & Params-C'!$M$8)^('B. PoF Summary Stats & Params-C'!$M$6-1)), "Choose Model")) -> 0.02019970164 | E39: =IF('B. PoF Summary Stats & Params-C'!$C$12="C", B39*'B. PoF Summary Stats & Params-C'!$I$8*'B. PoF Summary Stats & Params-C'!$I$12*A39^('B. PoF Summary Stats & Params-C'!$I$12-1), IF('B. PoF Summary Stats & Params-C'!$C$12="W", B39*(('B. PoF Summary Stats & Params-C'!$M$12/'B. PoF Summary Stats & Params-C'!$O$12)*((A39)/'B. PoF Summary Stats & Params-C'!$O$12)^('B. PoF Summary Stats & Params-C'!$M$12-1)), "Choose Model")) -> 0.01673536141
A40: 36 | B40: 1 | C40: =IF('B. PoF Summary Stats & Params-C'!$C$12="C", B40*'B. PoF Summary Stats & Params-C'!$I$8*'B. PoF Summary Stats & Params-C'!$I$10*A40^('B. PoF Summary Stats & Params-C'!$I$10-1), IF('B. PoF Summary Stats & Params-C'!$C$12="W", B40*(('B. PoF Summary Stats & Params-C'!$M$14/'B. PoF Summary Stats & Params-C'!$O$14)*((A40)/'B. PoF Summary Stats & Params-C'!$O$14)^('B. PoF Summary Stats & Params-C'!$M$14-1)), "Choose Model")) -> 0.0258649742 | D40: =IF('B. PoF Summary Stats & Params-C'!$C$12="C", B40*'B. PoF Summary Stats & Params-C'!$I$8*'B. PoF Summary Stats & Params-C'!$I$6*A40^('B. PoF Summary Stats & Params-C'!$I$6-1), IF('B. PoF Summary Stats & Params-C'!$C$12="W", B40*(('B. PoF Summary Stats & Params-C'!$M$6/'B. PoF Summary Stats & Params-C'!$M$8)*((A40)/'B. PoF Summary Stats & Params-C'!$M$8)^('B. PoF Summary Stats & Params-C'!$M$6-1)), "Choose Model")) -> 0.02140516895 | E40: =IF('B. PoF Summary Stats & Params-C'!$C$12="C", B40*'B. PoF Summary Stats & Params-C'!$I$8*'B. PoF Summary Stats & Params-C'!$I$12*A40^('B. PoF Summary Stats & Params-C'!$I$12-1), IF('B. PoF Summary Stats & Params-C'!$C$12="W", B40*(('B. PoF Summary Stats & Params-C'!$M$12/'B. PoF Summary Stats & Params-C'!$O$12)*((A40)/'B. PoF Summary Stats & Params-C'!$O$12)^('B. PoF Summary Stats & Params-C'!$M$12-1)), "Choose Model")) -> 0.0177099082
A41: 37 | B41: 1 | C41: =IF('B. PoF Summary Stats & Params-C'!$C$12="C", B41*'B. PoF Summary Stats & Params-C'!$I$8*'B. PoF Summary Stats & Params-C'!$I$10*A41^('B. PoF Summary Stats & Params-C'!$I$10-1), IF('B. PoF Summary Stats & Params-C'!$C$12="W", B41*(('B. PoF Summary Stats & Params-C'!$M$14/'B. PoF Summary Stats & Params-C'!$O$14)*((A41)/'B. PoF Summary Stats & Params-C'!$O$14)^('B. PoF Summary Stats & Params-C'!$M$14-1)), "Choose Model")) -> 0.02740136723 | D41: =IF('B. PoF Summary Stats & Params-C'!$C$12="C", B41*'B. PoF Summary Stats & Params-C'!$I$8*'B. PoF Summary Stats & Params-C'!$I$6*A41^('B. PoF Summary Stats & Params-C'!$I$6-1), IF('B. PoF Summary Stats & Params-C'!$C$12="W", B41*(('B. PoF Summary Stats & Params-C'!$M$6/'B. PoF Summary Stats & Params-C'!$M$8)*((A41)/'B. PoF Summary Stats & Params-C'!$M$8)^('B. PoF Summary Stats & Params-C'!$M$6-1)), "Choose Model")) -> 0.022646578 | E41: =IF('B. PoF Summary Stats & Params-C'!$C$12="C", B41*'B. PoF Summary Stats & Params-C'!$I$8*'B. PoF Summary Stats & Params-C'!$I$12*A41^('B. PoF Summary Stats & Params-C'!$I$12-1), IF('B. PoF Summary Stats & Params-C'!$C$12="W", B41*(('B. PoF Summary Stats & Params-C'!$M$12/'B. PoF Summary Stats & Params-C'!$O$12)*((A41)/'B. PoF Summary Stats & Params-C'!$O$12)^('B. PoF Summary Stats & Params-C'!$M$12-1)), "Choose Model")) -> 0.01871216254
A42: 38 | B42: 1 | C42: =IF('B. PoF Summary Stats & Params-C'!$C$12="C", B42*'B. PoF Summary Stats & Params-C'!$I$8*'B. PoF Summary Stats & Params-C'!$I$10*A42^('B. PoF Summary Stats & Params-C'!$I$10-1), IF('B. PoF Summary Stats & Params-C'!$C$12="W", B42*(('B. PoF Summary Stats & Params-C'!$M$14/'B. PoF Summary Stats & Params-C'!$O$14)*((A42)/'B. PoF Summary Stats & Params-C'!$O$14)^('B. PoF Summary Stats & Params-C'!$M$14-1)), "Choose Model")) -> 0.02898438333 | D42: =IF('B. PoF Summary Stats & Params-C'!$C$12="C", B42*'B. PoF Summary Stats & Params-C'!$I$8*'B. PoF Summary Stats & Params-C'!$I$6*A42^('B. PoF Summary Stats & Params-C'!$I$6-1), IF('B. PoF Summary Stats & Params-C'!$C$12="W", B42*(('B. PoF Summary Stats & Params-C'!$M$6/'B. PoF Summary Stats & Params-C'!$M$8)*((A42)/'B. PoF Summary Stats & Params-C'!$M$8)^('B. PoF Summary Stats & Params-C'!$M$6-1)), "Choose Model")) -> 0.02392398556 | E42: =IF('B. PoF Summary Stats & Params-C'!$C$12="C", B42*'B. PoF Summary Stats & Params-C'!$I$8*'B. PoF Summary Stats & Params-C'!$I$12*A42^('B. PoF Summary Stats & Params-C'!$I$12-1), IF('B. PoF Summary Stats & Params-C'!$C$12="W", B42*(('B. PoF Summary Stats & Params-C'!$M$12/'B. PoF Summary Stats & Params-C'!$O$12)*((A42)/'B. PoF Summary Stats & Params-C'!$O$12)^('B. PoF Summary Stats & Params-C'!$M$12-1)), "Choose Model")) -> 0.01974213138
A43: 39 | B43: 1 | C43: =IF('B. PoF Summary Stats & Params-C'!$C$12="C", B43*'B. PoF Summary Stats & Params-C'!$I$8*'B. PoF Summary Stats & Params-C'!$I$10*A43^('B. PoF Summary Stats & Params-C'!$I$10-1), IF('B. PoF Summary Stats & Params-C'!$C$12="W", B43*(('B. PoF Summary Stats & Params-C'!$M$14/'B. PoF Summary Stats & Params-C'!$O$14)*((A43)/'B. PoF Summary Stats & Params-C'!$O$14)^('B. PoF Summary Stats & Params-C'!$M$14-1)), "Choose Model")) -> 0.03061415454 | D43: =IF('B. PoF Summary Stats & Params-C'!$C$12="C", B43*'B. PoF Summary Stats & Params-C'!$I$8*'B. PoF Summary Stats & Params-C'!$I$6*A43^('B. PoF Summary Stats & Params-C'!$I$6-1), IF('B. PoF Summary Stats & Params-C'!$C$12="W", B43*(('B. PoF Summary Stats & Params-C'!$M$6/'B. PoF Summary Stats & Params-C'!$M$8)*((A43)/'B. PoF Summary Stats & Params-C'!$M$8)^('B. PoF Summary Stats & Params-C'!$M$6-1)), "Choose Model")) -> 0.02523744698 | E43: =IF('B. PoF Summary Stats & Params-C'!$C$12="C", B43*'B. PoF Summary Stats & Params-C'!$I$8*'B. PoF Summary Stats & Params-C'!$I$12*A43^('B. PoF Summary Stats & Params-C'!$I$12-1), IF('B. PoF Summary Stats & Params-C'!$C$12="W", B43*(('B. PoF Summary Stats & Params-C'!$M$12/'B. PoF Summary Stats & Params-C'!$O$12)*((A43)/'B. PoF Summary Stats & Params-C'!$O$12)^('B. PoF Summary Stats & Params-C'!$M$12-1)), "Choose Model")) -> 0.02079982152
A44: 40 | B44: 1 | C44: =IF('B. PoF Summary Stats & Params-C'!$C$12="C", B44*'B. PoF Summary Stats & Params-C'!$I$8*'B. PoF Summary Stats & Params-C'!$I$10*A44^('B. PoF Summary Stats & Params-C'!$I$10-1), IF('B. PoF Summary Stats & Params-C'!$C$12="W", B44*(('B. PoF Summary Stats & Params-C'!$M$14/'B. PoF Summary Stats & Params-C'!$O$14)*((A44)/'B. PoF Summary Stats & Params-C'!$O$14)^('B. PoF Summary Stats & Params-C'!$M$14-1)), "Choose Model")) -> 0.03229080984 | D44: =IF('B. PoF Summary Stats & Params-C'!$C$12="C", B44*'B. PoF Summary Stats & Params-C'!$I$8*'B. PoF Summary Stats & Params-C'!$I$6*A44^('B. PoF Summary Stats & Params-C'!$I$6-1), IF('B. PoF Summary Stats & Params-C'!$C$12="W", B44*(('B. PoF Summary Stats & Params-C'!$M$6/'B. PoF Summary Stats & Params-C'!$M$8)*((A44)/'B. PoF Summary Stats & Params-C'!$M$8)^('B. PoF Summary Stats & Params-C'!$M$6-1)), "Choose Model")) -> 0.02658701627 | E44: =IF('B. PoF Summary Stats & Params-C'!$C$12="C", B44*'B. PoF Summary Stats & Params-C'!$I$8*'B. PoF Summary Stats & Params-C'!$I$12*A44^('B. PoF Summary Stats & Params-C'!$I$12-1), IF('B. PoF Summary Stats & Params-C'!$C$12="W", B44*(('B. PoF Summary Stats & Params-C'!$M$12/'B. PoF Summary Stats & Params-C'!$O$12)*((A44)/'B. PoF Summary Stats & Params-C'!$O$12)^('B. PoF Summary Stats & Params-C'!$M$12-1)), "Choose Model")) -> 0.02188523957
A45: 41 | B45: 1 | C45: =IF('B. PoF Summary Stats & Params-C'!$C$12="C", B45*'B. PoF Summary Stats & Params-C'!$I$8*'B. PoF Summary Stats & Params-C'!$I$10*A45^('B. PoF Summary Stats & Params-C'!$I$10-1), IF('B. PoF Summary Stats & Params-C'!$C$12="W", B45*(('B. PoF Summary Stats & Params-C'!$M$14/'B. PoF Summary Stats & Params-C'!$O$14)*((A45)/'B. PoF Summary Stats & Params-C'!$O$14)^('B. PoF Summary Stats & Params-C'!$M$14-1)), "Choose Model")) -> 0.03401447525 | D45: =IF('B. PoF Summary Stats & Params-C'!$C$12="C", B45*'B. PoF Summary Stats & Params-C'!$I$8*'B. PoF Summary Stats & Params-C'!$I$6*A45^('B. PoF Summary Stats & Params-C'!$I$6-1), IF('B. PoF Summary Stats & Params-C'!$C$12="W", B45*(('B. PoF Summary Stats & Params-C'!$M$6/'B. PoF Summary Stats & Params-C'!$M$8)*((A45)/'B. PoF Summary Stats & Params-C'!$M$8)^('B. PoF Summary Stats & Params-C'!$M$6-1)), "Choose Model")) -> 0.02797274613 | E45: =IF('B. PoF Summary Stats & Params-C'!$C$12="C", B45*'B. PoF Summary Stats & Params-C'!$I$8*'B. PoF Summary Stats & Params-C'!$I$12*A45^('B. PoF Summary Stats & Params-C'!$I$12-1), IF('B. PoF Summary Stats & Params-C'!$C$12="W", B45*(('B. PoF Summary Stats & Params-C'!$M$12/'B. PoF Summary Stats & Params-C'!$O$12)*((A45)/'B. PoF Summary Stats & Params-C'!$O$12)^('B. PoF Summary Stats & Params-C'!$M$12-1)), "Choose Model")) -> 0.02299839198
A46: 42 | B46: 1 | C46: =IF('B. PoF Summary Stats & Params-C'!$C$12="C", B46*'B. PoF Summary Stats & Params-C'!$I$8*'B. PoF Summary Stats & Params-C'!$I$10*A46^('B. PoF Summary Stats & Params-C'!$I$10-1), IF('B. PoF Summary Stats & Params-C'!$C$12="W", B46*(('B. PoF Summary Stats & Params-C'!$M$14/'B. PoF Summary Stats & Params-C'!$O$14)*((A46)/'B. PoF Summary Stats & Params-C'!$O$14)^('B. PoF Summary Stats & Params-C'!$M$14-1)), "Choose Model")) -> 0.03578527406 | D46: =IF('B. PoF Summary Stats & Params-C'!$C$12="C", B46*'B. PoF Summary Stats & Params-C'!$I$8*'B. PoF Summary Stats & Params-C'!$I$6*A46^('B. PoF Summary Stats & Params-C'!$I$6-1), IF('B. PoF Summary Stats & Params-C'!$C$12="W", B46*(('B. PoF Summary Stats & Params-C'!$M$6/'B. PoF Summary Stats & Params-C'!$M$8)*((A46)/'B. PoF Summary Stats & Params-C'!$M$8)^('B. PoF Summary Stats & Params-C'!$M$6-1)), "Choose Model")) -> 0.02939468803 | E46: =IF('B. PoF Summary Stats & Params-C'!$C$12="C", B46*'B. PoF Summary Stats & Params-C'!$I$8*'B. PoF Summary Stats & Params-C'!$I$12*A46^('B. PoF Summary Stats & Params-C'!$I$12-1), IF('B. PoF Summary Stats & Params-C'!$C$12="W", B46*(('B. PoF Summary Stats & Params-C'!$M$12/'B. PoF Summary Stats & Params-C'!$O$12)*((A46)/'B. PoF Summary Stats & Params-C'!$O$12)^('B. PoF Summary Stats & Params-C'!$M$12-1)), "Choose Model")) -> 0.02413928502
A47: 43 | B47: 1 | C47: =IF('B. PoF Summary Stats & Params-C'!$C$12="C", B47*'B. PoF Summary Stats & Params-C'!$I$8*'B. PoF Summary Stats & Params-C'!$I$10*A47^('B. PoF Summary Stats & Params-C'!$I$10-1), IF('B. PoF Summary Stats & Params-C'!$C$12="W", B47*(('B. PoF Summary Stats & Params-C'!$M$14/'B. PoF Summary Stats & Params-C'!$O$14)*((A47)/'B. PoF Summary Stats & Params-C'!$O$14)^('B. PoF Summary Stats & Params-C'!$M$14-1)), "Choose Model")) -> 0.03760332684 | D47: =IF('B. PoF Summary Stats & Params-C'!$C$12="C", B47*'B. PoF Summary Stats & Params-C'!$I$8*'B. PoF Summary Stats & Params-C'!$I$6*A47^('B. PoF Summary Stats & Params-C'!$I$6-1), IF('B. PoF Summary Stats & Params-C'!$C$12="W", B47*(('B. PoF Summary Stats & Params-C'!$M$6/'B. PoF Summary Stats & Params-C'!$M$8)*((A47)/'B. PoF Summary Stats & Params-C'!$M$8)^('B. PoF Summary Stats & Params-C'!$M$6-1)), "Choose Model")) -> 0.03085289229 | E47: =IF('B. PoF Summary Stats & Params-C'!$C$12="C", B47*'B. PoF Summary Stats & Params-C'!$I$8*'B. PoF Summary Stats & Params-C'!$I$12*A47^('B. PoF Summary Stats & Params-C'!$I$12-1), IF('B. PoF Summary Stats & Params-C'!$C$12="W", B47*(('B. PoF Summary Stats & Params-C'!$M$12/'B. PoF Summary Stats & Params-C'!$O$12)*((A47)/'B. PoF Summary Stats & Params-C'!$O$12)^('B. PoF Summary Stats & Params-C'!$M$12-1)), "Choose Model")) -> 0.02530792484
A48: 44 | B48: 1 | C48: =IF('B. PoF Summary Stats & Params-C'!$C$12="C", B48*'B. PoF Summary Stats & Params-C'!$I$8*'B. PoF Summary Stats & Params-C'!$I$10*A48^('B. PoF Summary Stats & Params-C'!$I$10-1), IF('B. PoF Summary Stats & Params-C'!$C$12="W", B48*(('B. PoF Summary Stats & Params-C'!$M$14/'B. PoF Summary Stats & Params-C'!$O$14)*((A48)/'B. PoF Summary Stats & Params-C'!$O$14)^('B. PoF Summary Stats & Params-C'!$M$14-1)), "Choose Model")) -> 0.03946875166 | D48: =IF('B. PoF Summary Stats & Params-C'!$C$12="C", B48*'B. PoF Summary Stats & Params-C'!$I$8*'B. PoF Summary Stats & Params-C'!$I$6*A48^('B. PoF Summary Stats & Params-C'!$I$6-1), IF('B. PoF Summary Stats & Params-C'!$C$12="W", B48*(('B. PoF Summary Stats & Params-C'!$M$6/'B. PoF Summary Stats & Params-C'!$M$8)*((A48)/'B. PoF Summary Stats & Params-C'!$M$8)^('B. PoF Summary Stats & Params-C'!$M$6-1)), "Choose Model")) -> 0.0323474081 | E48: =IF('B. PoF Summary Stats & Params-C'!$C$12="C", B48*'B. PoF Summary Stats & Params-C'!$I$8*'B. PoF Summary Stats & Params-C'!$I$12*A48^('B. PoF Summary Stats & Params-C'!$I$12-1), IF('B. PoF Summary Stats & Params-C'!$C$12="W", B48*(('B. PoF Summary Stats & Params-C'!$M$12/'B. PoF Summary Stats & Params-C'!$O$12)*((A48)/'B. PoF Summary Stats & Params-C'!$O$12)^('B. PoF Summary Stats & Params-C'!$M$12-1)), "Choose Model")) -> 0.02650431743
A49: 45 | B49: 1 | C49: =IF('B. PoF Summary Stats & Params-C'!$C$12="C", B49*'B. PoF Summary Stats & Params-C'!$I$8*'B. PoF Summary Stats & Params-C'!$I$10*A49^('B. PoF Summary Stats & Params-C'!$I$10-1), IF('B. PoF Summary Stats & Params-C'!$C$12="W", B49*(('B. PoF Summary Stats & Params-C'!$M$14/'B. PoF Summary Stats & Params-C'!$O$14)*((A49)/'B. PoF Summary Stats & Params-C'!$O$14)^('B. PoF Summary Stats & Params-C'!$M$14-1)), "Choose Model")) -> 0.04138166416 | D49: =IF('B. PoF Summary Stats & Params-C'!$C$12="C", B49*'B. PoF Summary Stats & Params-C'!$I$8*'B. PoF Summary Stats & Params-C'!$I$6*A49^('B. PoF Summary Stats & Params-C'!$I$6-1), IF('B. PoF Summary Stats & Params-C'!$C$12="W", B49*(('B. PoF Summary Stats & Params-C'!$M$6/'B. PoF Summary Stats & Params-C'!$M$8)*((A49)/'B. PoF Summary Stats & Params-C'!$M$8)^('B. PoF Summary Stats & Params-C'!$M$6-1)), "Choose Model")) -> 0.03387828358 | E49: =IF('B. PoF Summary Stats & Params-C'!$C$12="C", B49*'B. PoF Summary Stats & Params-C'!$I$8*'B. PoF Summary Stats & Params-C'!$I$12*A49^('B. PoF Summary Stats & Params-C'!$I$12-1), IF('B. PoF Summary Stats & Params-C'!$C$12="W", B49*(('B. PoF Summary Stats & Params-C'!$M$12/'B. PoF Summary Stats & Params-C'!$O$12)*((A49)/'B. PoF Summary Stats & Params-C'!$O$12)^('B. PoF Summary Stats & Params-C'!$M$12-1)), "Choose Model")) -> 0.02772846865
A50: 46 | B50: 1 | C50: =IF('B. PoF Summary Stats & Params-C'!$C$12="C", B50*'B. PoF Summary Stats & Params-C'!$I$8*'B. PoF Summary Stats & Params-C'!$I$10*A50^('B. PoF Summary Stats & Params-C'!$I$10-1), IF('B. PoF Summary Stats & Params-C'!$C$12="W", B50*(('B. PoF Summary Stats & Params-C'!$M$14/'B. PoF Summary Stats & Params-C'!$O$14)*((A50)/'B. PoF Summary Stats & Params-C'!$O$14)^('B. PoF Summary Stats & Params-C'!$M$14-1)), "Choose Model")) -> 0.04334217763 | D50: =IF('B. PoF Summary Stats & Params-C'!$C$12="C", B50*'B. PoF Summary Stats & Params-C'!$I$8*'B. PoF Summary Stats & Params-C'!$I$6*A50^('B. PoF Summary Stats & Params-C'!$I$6-1), IF('B. PoF Summary Stats & Params-C'!$C$12="W", B50*(('B. PoF Summary Stats & Params-C'!$M$6/'B. PoF Summary Stats & Params-C'!$M$8)*((A50)/'B. PoF Summary Stats & Params-C'!$M$8)^('B. PoF Summary Stats & Params-C'!$M$6-1)), "Choose Model")) -> 0.03544556584 | E50: =IF('B. PoF Summary Stats & Params-C'!$C$12="C", B50*'B. PoF Summary Stats & Params-C'!$I$8*'B. PoF Summary Stats & Params-C'!$I$12*A50^('B. PoF Summary Stats & Params-C'!$I$12-1), IF('B. PoF Summary Stats & Params-C'!$C$12="W", B50*(('B. PoF Summary Stats & Params-C'!$M$12/'B. PoF Summary Stats & Params-C'!$O$12)*((A50)/'B. PoF Summary Stats & Params-C'!$O$12)^('B. PoF Summary Stats & Params-C'!$M$12-1)), "Choose Model")) -> 0.02898038423
A51: 47 | B51: 1 | C51: =IF('B. PoF Summary Stats & Params-C'!$C$12="C", B51*'B. PoF Summary Stats & Params-C'!$I$8*'B. PoF Summary Stats & Params-C'!$I$10*A51^('B. PoF Summary Stats & Params-C'!$I$10-1), IF('B. PoF Summary Stats & Params-C'!$C$12="W", B51*(('B. PoF Summary Stats & Params-C'!$M$14/'B. PoF Summary Stats & Params-C'!$O$14)*((A51)/'B. PoF Summary Stats & Params-C'!$O$14)^('B. PoF Summary Stats & Params-C'!$M$14-1)), "Choose Model")) -> 0.04535040314 | D51: =IF('B. PoF Summary Stats & Params-C'!$C$12="C", B51*'B. PoF Summary Stats & Params-C'!$I$8*'B. PoF Summary Stats & Params-C'!$I$6*A51^('B. PoF Summary Stats & Params-C'!$I$6-1), IF('B. PoF Summary Stats & Params-C'!$C$12="W", B51*(('B. PoF Summary Stats & Params-C'!$M$6/'B. PoF Summary Stats & Params-C'!$M$8)*((A51)/'B. PoF Summary Stats & Params-C'!$M$8)^('B. PoF Summary Stats & Params-C'!$M$6-1)), "Choose Model")) -> 0.03704930101 | E51: =IF('B. PoF Summary Stats & Params-C'!$C$12="C", B51*'B. PoF Summary Stats & Params-C'!$I$8*'B. PoF Summary Stats & Params-C'!$I$12*A51^('B. PoF Summary Stats & Params-C'!$I$12-1), IF('B. PoF Summary Stats & Params-C'!$C$12="W", B51*(('B. PoF Summary Stats & Params-C'!$M$12/'B. PoF Summary Stats & Params-C'!$O$12)*((A51)/'B. PoF Summary Stats & Params-C'!$O$12)^('B. PoF Summary Stats & Params-C'!$M$12-1)), "Choose Model")) -> 0.03026006977
A52: 48 | B52: 1 | C52: =IF('B. PoF Summary Stats & Params-C'!$C$12="C", B52*'B. PoF Summary Stats & Params-C'!$I$8*'B. PoF Summary Stats & Params-C'!$I$10*A52^('B. PoF Summary Stats & Params-C'!$I$10-1), IF('B. PoF Summary Stats & Params-C'!$C$12="W", B52*(('B. PoF Summary Stats & Params-C'!$M$14/'B. PoF Summary Stats & Params-C'!$O$14)*((A52)/'B. PoF Summary Stats & Params-C'!$O$14)^('B. PoF Summary Stats & Params-C'!$M$14-1)), "Choose Model")) -> 0.04740644964 | D52: =IF('B. PoF Summary Stats & Params-C'!$C$12="C", B52*'B. PoF Summary Stats & Params-C'!$I$8*'B. PoF Summary Stats & Params-C'!$I$6*A52^('B. PoF Summary Stats & Params-C'!$I$6-1), IF('B. PoF Summary Stats & Params-C'!$C$12="W", B52*(('B. PoF Summary Stats & Params-C'!$M$6/'B. PoF Summary Stats & Params-C'!$M$8)*((A52)/'B. PoF Summary Stats & Params-C'!$M$8)^('B. PoF Summary Stats & Params-C'!$M$6-1)), "Choose Model")) -> 0.03868953428 | E52: =IF('B. PoF Summary Stats & Params-C'!$C$12="C", B52*'B. PoF Summary Stats & Params-C'!$I$8*'B. PoF Summary Stats & Params-C'!$I$12*A52^('B. PoF Summary Stats & Params-C'!$I$12-1), IF('B. PoF Summary Stats & Params-C'!$C$12="W", B52*(('B. PoF Summary Stats & Params-C'!$M$12/'B. PoF Summary Stats & Params-C'!$O$12)*((A52)/'B. PoF Summary Stats & Params-C'!$O$12)^('B. PoF Summary Stats & Params-C'!$M$12-1)), "Choose Model")) -> 0.03156753075
A53: 49 | B53: 1 | C53: =IF('B. PoF Summary Stats & Params-C'!$C$12="C", B53*'B. PoF Summary Stats & Params-C'!$I$8*'B. PoF Summary Stats & Params-C'!$I$10*A53^('B. PoF Summary Stats & Params-C'!$I$10-1), IF('B. PoF Summary Stats & Params-C'!$C$12="W", B53*(('B. PoF Summary Stats & Params-C'!$M$14/'B. PoF Summary Stats & Params-C'!$O$14)*((A53)/'B. PoF Summary Stats & Params-C'!$O$14)^('B. PoF Summary Stats & Params-C'!$M$14-1)), "Choose Model")) -> 0.04951042399 | D53: =IF('B. PoF Summary Stats & Params-C'!$C$12="C", B53*'B. PoF Summary Stats & Params-C'!$I$8*'B. PoF Summary Stats & Params-C'!$I$6*A53^('B. PoF Summary Stats & Params-C'!$I$6-1), IF('B. PoF Summary Stats & Params-C'!$C$12="W", B53*(('B. PoF Summary Stats & Params-C'!$M$6/'B. PoF Summary Stats & Params-C'!$M$8)*((A53)/'B. PoF Summary Stats & Params-C'!$M$8)^('B. PoF Summary Stats & Params-C'!$M$6-1)), "Choose Model")) -> 0.04036630995 | E53: =IF('B. PoF Summary Stats & Params-C'!$C$12="C", B53*'B. PoF Summary Stats & Params-C'!$I$8*'B. PoF Summary Stats & Params-C'!$I$12*A53^('B. PoF Summary Stats & Params-C'!$I$12-1), IF('B. PoF Summary Stats & Params-C'!$C$12="W", B53*(('B. PoF Summary Stats & Params-C'!$M$12/'B. PoF Summary Stats & Params-C'!$O$12)*((A53)/'B. PoF Summary Stats & Params-C'!$O$12)^('B. PoF Summary Stats & Params-C'!$M$12-1)), "Choose Model")) -> 0.03290277254
A54: 50 | B54: 1 | C54: =IF('B. PoF Summary Stats & Params-C'!$C$12="C", B54*'B. PoF Summary Stats & Params-C'!$I$8*'B. PoF Summary Stats & Params-C'!$I$10*A54^('B. PoF Summary Stats & Params-C'!$I$10-1), IF('B. PoF Summary Stats & Params-C'!$C$12="W", B54*(('B. PoF Summary Stats & Params-C'!$M$14/'B. PoF Summary Stats & Params-C'!$O$14)*((A54)/'B. PoF Summary Stats & Params-C'!$O$14)^('B. PoF Summary Stats & Params-C'!$M$14-1)), "Choose Model")) -> 0.05166243112 | D54: =IF('B. PoF Summary Stats & Params-C'!$C$12="C", B54*'B. PoF Summary Stats & Params-C'!$I$8*'B. PoF Summary Stats & Params-C'!$I$6*A54^('B. PoF Summary Stats & Params-C'!$I$6-1), IF('B. PoF Summary Stats & Params-C'!$C$12="W", B54*(('B. PoF Summary Stats & Params-C'!$M$6/'B. PoF Summary Stats & Params-C'!$M$8)*((A54)/'B. PoF Summary Stats & Params-C'!$M$8)^('B. PoF Summary Stats & Params-C'!$M$6-1)), "Choose Model")) -> 0.04207967145 | E54: =IF('B. PoF Summary Stats & Params-C'!$C$12="C", B54*'B. PoF Summary Stats & Params-C'!$I$8*'B. PoF Summary Stats & Params-C'!$I$12*A54^('B. PoF Summary Stats & Params-C'!$I$12-1), IF('B. PoF Summary Stats & Params-C'!$C$12="W", B54*(('B. PoF Summary Stats & Params-C'!$M$12/'B. PoF Summary Stats & Params-C'!$O$12)*((A54)/'B. PoF Summary Stats & Params-C'!$O$12)^('B. PoF Summary Stats & Params-C'!$M$12-1)), "Choose Model")) -> 0.0342658004
A55: 51 | B55: 1 | C55: =IF('B. PoF Summary Stats & Params-C'!$C$12="C", B55*'B. PoF Summary Stats & Params-C'!$I$8*'B. PoF Summary Stats & Params-C'!$I$10*A55^('B. PoF Summary Stats & Params-C'!$I$10-1), IF('B. PoF Summary Stats & Params-C'!$C$12="W", B55*(('B. PoF Summary Stats & Params-C'!$M$14/'B. PoF Summary Stats & Params-C'!$O$14)*((A55)/'B. PoF Summary Stats & Params-C'!$O$14)^('B. PoF Summary Stats & Params-C'!$M$14-1)), "Choose Model")) -> 0.05386257404 | D55: =IF('B. PoF Summary Stats & Params-C'!$C$12="C", B55*'B. PoF Summary Stats & Params-C'!$I$8*'B. PoF Summary Stats & Params-C'!$I$6*A55^('B. PoF Summary Stats & Params-C'!$I$6-1), IF('B. PoF Summary Stats & Params-C'!$C$12="W", B55*(('B. PoF Summary Stats & Params-C'!$M$6/'B. PoF Summary Stats & Params-C'!$M$8)*((A55)/'B. PoF Summary Stats & Params-C'!$M$8)^('B. PoF Summary Stats & Params-C'!$M$6-1)), "Choose Model")) -> 0.04382966139 | E55: =IF('B. PoF Summary Stats & Params-C'!$C$12="C", B55*'B. PoF Summary Stats & Params-C'!$I$8*'B. PoF Summary Stats & Params-C'!$I$12*A55^('B. PoF Summary Stats & Params-C'!$I$12-1), IF('B. PoF Summary Stats & Params-C'!$C$12="W", B55*(('B. PoF Summary Stats & Params-C'!$M$12/'B. PoF Summary Stats & Params-C'!$O$12)*((A55)/'B. PoF Summary Stats & Params-C'!$O$12)^('B. PoF Summary Stats & Params-C'!$M$12-1)), "Choose Model")) -> 0.03565661948
A56: 52 | B56: 1 | C56: =IF('B. PoF Summary Stats & Params-C'!$C$12="C", B56*'B. PoF Summary Stats & Params-C'!$I$8*'B. PoF Summary Stats & Params-C'!$I$10*A56^('B. PoF Summary Stats & Params-C'!$I$10-1), IF('B. PoF Summary Stats & Params-C'!$C$12="W", B56*(('B. PoF Summary Stats & Params-C'!$M$14/'B. PoF Summary Stats & Params-C'!$O$14)*((A56)/'B. PoF Summary Stats & Params-C'!$O$14)^('B. PoF Summary Stats & Params-C'!$M$14-1)), "Choose Model")) -> 0.05611095392 | D56: =IF('B. PoF Summary Stats & Params-C'!$C$12="C", B56*'B. PoF Summary Stats & Params-C'!$I$8*'B. PoF Summary Stats & Params-C'!$I$6*A56^('B. PoF Summary Stats & Params-C'!$I$6-1), IF('B. PoF Summary Stats & Params-C'!$C$12="W", B56*(('B. PoF Summary Stats & Params-C'!$M$6/'B. PoF Summary Stats & Params-C'!$M$8)*((A56)/'B. PoF Summary Stats & Params-C'!$M$8)^('B. PoF Summary Stats & Params-C'!$M$6-1)), "Choose Model")) -> 0.04561632158 | E56: =IF('B. PoF Summary Stats & Params-C'!$C$12="C", B56*'B. PoF Summary Stats & Params-C'!$I$8*'B. PoF Summary Stats & Params-C'!$I$12*A56^('B. PoF Summary Stats & Params-C'!$I$12-1), IF('B. PoF Summary Stats & Params-C'!$C$12="W", B56*(('B. PoF Summary Stats & Params-C'!$M$12/'B. PoF Summary Stats & Params-C'!$O$12)*((A56)/'B. PoF Summary Stats & Params-C'!$O$12)^('B. PoF Summary Stats & Params-C'!$M$12-1)), "Choose Model")) -> 0.03707523484
A57: 53 | B57: 1 | C57: =IF('B. PoF Summary Stats & Params-C'!$C$12="C", B57*'B. PoF Summary Stats & Params-C'!$I$8*'B. PoF Summary Stats & Params-C'!$I$10*A57^('B. PoF Summary Stats & Params-C'!$I$10-1), IF('B. PoF Summary Stats & Params-C'!$C$12="W", B57*(('B. PoF Summary Stats & Params-C'!$M$14/'B. PoF Summary Stats & Params-C'!$O$14)*((A57)/'B. PoF Summary Stats & Params-C'!$O$14)^('B. PoF Summary Stats & Params-C'!$M$14-1)), "Choose Model")) -> 0.05840767021 | D57: =IF('B. PoF Summary Stats & Params-C'!$C$12="C", B57*'B. PoF Summary Stats & Params-C'!$I$8*'B. PoF Summary Stats & Params-C'!$I$6*A57^('B. PoF Summary Stats & Params-C'!$I$6-1), IF('B. PoF Summary Stats & Params-C'!$C$12="W", B57*(('B. PoF Summary Stats & Params-C'!$M$6/'B. PoF Summary Stats & Params-C'!$M$8)*((A57)/'B. PoF Summary Stats & Params-C'!$M$8)^('B. PoF Summary Stats & Params-C'!$M$6-1)), "Choose Model")) -> 0.04743969306 | E57: =IF('B. PoF Summary Stats & Params-C'!$C$12="C", B57*'B. PoF Summary Stats & Params-C'!$I$8*'B. PoF Summary Stats & Params-C'!$I$12*A57^('B. PoF Summary Stats & Params-C'!$I$12-1), IF('B. PoF Summary Stats & Params-C'!$C$12="W", B57*(('B. PoF Summary Stats & Params-C'!$M$12/'B. PoF Summary Stats & Params-C'!$O$12)*((A57)/'B. PoF Summary Stats & Params-C'!$O$12)^('B. PoF Summary Stats & Params-C'!$M$12-1)), "Choose Model")) -> 0.03852165142
A58: 54 | B58: 1 | C58: =IF('B. PoF Summary Stats & Params-C'!$C$12="C", B58*'B. PoF Summary Stats & Params-C'!$I$8*'B. PoF Summary Stats & Params-C'!$I$10*A58^('B. PoF Summary Stats & Params-C'!$I$10-1), IF('B. PoF Summary Stats & Params-C'!$C$12="W", B58*(('B. PoF Summary Stats & Params-C'!$M$14/'B. PoF Summary Stats & Params-C'!$O$14)*((A58)/'B. PoF Summary Stats & Params-C'!$O$14)^('B. PoF Summary Stats & Params-C'!$M$14-1)), "Choose Model")) -> 0.06075282062 | D58: =IF('B. PoF Summary Stats & Params-C'!$C$12="C", B58*'B. PoF Summary Stats & Params-C'!$I$8*'B. PoF Summary Stats & Params-C'!$I$6*A58^('B. PoF Summary Stats & Params-C'!$I$6-1), IF('B. PoF Summary Stats & Params-C'!$C$12="W", B58*(('B. PoF Summary Stats & Params-C'!$M$6/'B. PoF Summary Stats & Params-C'!$M$8)*((A58)/'B. PoF Summary Stats & Params-C'!$M$8)^('B. PoF Summary Stats & Params-C'!$M$6-1)), "Choose Model")) -> 0.04929981615 | E58: =IF('B. PoF Summary Stats & Params-C'!$C$12="C", B58*'B. PoF Summary Stats & Params-C'!$I$8*'B. PoF Summary Stats & Params-C'!$I$12*A58^('B. PoF Summary Stats & Params-C'!$I$12-1), IF('B. PoF Summary Stats & Params-C'!$C$12="W", B58*(('B. PoF Summary Stats & Params-C'!$M$12/'B. PoF Summary Stats & Params-C'!$O$12)*((A58)/'B. PoF Summary Stats & Params-C'!$O$12)^('B. PoF Summary Stats & Params-C'!$M$12-1)), "Choose Model")) -> 0.03999587411
A59: 55 | B59: 1 | C59: =IF('B. PoF Summary Stats & Params-C'!$C$12="C", B59*'B. PoF Summary Stats & Params-C'!$I$8*'B. PoF Summary Stats & Params-C'!$I$10*A59^('B. PoF Summary Stats & Params-C'!$I$10-1), IF('B. PoF Summary Stats & Params-C'!$C$12="W", B59*(('B. PoF Summary Stats & Params-C'!$M$14/'B. PoF Summary Stats & Params-C'!$O$14)*((A59)/'B. PoF Summary Stats & Params-C'!$O$14)^('B. PoF Summary Stats & Params-C'!$M$14-1)), "Choose Model")) -> 0.06314650127 | D59: =IF('B. PoF Summary Stats & Params-C'!$C$12="C", B59*'B. PoF Summary Stats & Params-C'!$I$8*'B. PoF Summary Stats & Params-C'!$I$6*A59^('B. PoF Summary Stats & Params-C'!$I$6-1), IF('B. PoF Summary Stats & Params-C'!$C$12="W", B59*(('B. PoF Summary Stats & Params-C'!$M$6/'B. PoF Summary Stats & Params-C'!$M$8)*((A59)/'B. PoF Summary Stats & Params-C'!$M$8)^('B. PoF Summary Stats & Params-C'!$M$6-1)), "Choose Model")) -> 0.05119673044 | E59: =IF('B. PoF Summary Stats & Params-C'!$C$12="C", B59*'B. PoF Summary Stats & Params-C'!$I$8*'B. PoF Summary Stats & Params-C'!$I$12*A59^('B. PoF Summary Stats & Params-C'!$I$12-1), IF('B. PoF Summary Stats & Params-C'!$C$12="W", B59*(('B. PoF Summary Stats & Params-C'!$M$12/'B. PoF Summary Stats & Params-C'!$O$12)*((A59)/'B. PoF Summary Stats & Params-C'!$O$12)^('B. PoF Summary Stats & Params-C'!$M$12-1)), "Choose Model")) -> 0.04149790765
A60: 56 | B60: 1 | C60: =IF('B. PoF Summary Stats & Params-C'!$C$12="C", B60*'B. PoF Summary Stats & Params-C'!$I$8*'B. PoF Summary Stats & Params-C'!$I$10*A60^('B. PoF Summary Stats & Params-C'!$I$10-1), IF('B. PoF Summary Stats & Params-C'!$C$12="W", B60*(('B. PoF Summary Stats & Params-C'!$M$14/'B. PoF Summary Stats & Params-C'!$O$14)*((A60)/'B. PoF Summary Stats & Params-C'!$O$14)^('B. PoF Summary Stats & Params-C'!$M$14-1)), "Choose Model")) -> 0.06558880666 | D60: =IF('B. PoF Summary Stats & Params-C'!$C$12="C", B60*'B. PoF Summary Stats & Params-C'!$I$8*'B. PoF Summary Stats & Params-C'!$I$6*A60^('B. PoF Summary Stats & Params-C'!$I$6-1), IF('B. PoF Summary Stats & Params-C'!$C$12="W", B60*(('B. PoF Summary Stats & Params-C'!$M$6/'B. PoF Summary Stats & Params-C'!$M$8)*((A60)/'B. PoF Summary Stats & Params-C'!$M$8)^('B. PoF Summary Stats & Params-C'!$M$6-1)), "Choose Model")) -> 0.05313047484 | E60: =IF('B. PoF Summary Stats & Params-C'!$C$12="C", B60*'B. PoF Summary Stats & Params-C'!$I$8*'B. PoF Summary Stats & Params-C'!$I$12*A60^('B. PoF Summary Stats & Params-C'!$I$12-1), IF('B. PoF Summary Stats & Params-C'!$C$12="W", B60*(('B. PoF Summary Stats & Params-C'!$M$12/'B. PoF Summary Stats & Params-C'!$O$12)*((A60)/'B. PoF Summary Stats & Params-C'!$O$12)^('B. PoF Summary Stats & Params-C'!$M$12-1)), "Choose Model")) -> 0.04302775674
A61: 57 | B61: 1 | C61: =IF('B. PoF Summary Stats & Params-C'!$C$12="C", B61*'B. PoF Summary Stats & Params-C'!$I$8*'B. PoF Summary Stats & Params-C'!$I$10*A61^('B. PoF Summary Stats & Params-C'!$I$10-1), IF('B. PoF Summary Stats & Params-C'!$C$12="W", B61*(('B. PoF Summary Stats & Params-C'!$M$14/'B. PoF Summary Stats & Params-C'!$O$14)*((A61)/'B. PoF Summary Stats & Params-C'!$O$14)^('B. PoF Summary Stats & Params-C'!$M$14-1)), "Choose Model")) -> 0.0680798298 | D61: =IF('B. PoF Summary Stats & Params-C'!$C$12="C", B61*'B. PoF Summary Stats & Params-C'!$I$8*'B. PoF Summary Stats & Params-C'!$I$6*A61^('B. PoF Summary Stats & Params-C'!$I$6-1), IF('B. PoF Summary Stats & Params-C'!$C$12="W", B61*(('B. PoF Summary Stats & Params-C'!$M$6/'B. PoF Summary Stats & Params-C'!$M$8)*((A61)/'B. PoF Summary Stats & Params-C'!$M$8)^('B. PoF Summary Stats & Params-C'!$M$6-1)), "Choose Model")) -> 0.0551010876 | E61: =IF('B. PoF Summary Stats & Params-C'!$C$12="C", B61*'B. PoF Summary Stats & Params-C'!$I$8*'B. PoF Summary Stats & Params-C'!$I$12*A61^('B. PoF Summary Stats & Params-C'!$I$12-1), IF('B. PoF Summary Stats & Params-C'!$C$12="W", B61*(('B. PoF Summary Stats & Params-C'!$M$12/'B. PoF Summary Stats & Params-C'!$O$12)*((A61)/'B. PoF Summary Stats & Params-C'!$O$12)^('B. PoF Summary Stats & Params-C'!$M$12-1)), "Choose Model")) -> 0.04458542599
A62: 58 | B62: 1 | C62: =IF('B. PoF Summary Stats & Params-C'!$C$12="C", B62*'B. PoF Summary Stats & Params-C'!$I$8*'B. PoF Summary Stats & Params-C'!$I$10*A62^('B. PoF Summary Stats & Params-C'!$I$10-1), IF('B. PoF Summary Stats & Params-C'!$C$12="W", B62*(('B. PoF Summary Stats & Params-C'!$M$14/'B. PoF Summary Stats & Params-C'!$O$14)*((A62)/'B. PoF Summary Stats & Params-C'!$O$14)^('B. PoF Summary Stats & Params-C'!$M$14-1)), "Choose Model")) -> 0.07061966221 | D62: =IF('B. PoF Summary Stats & Params-C'!$C$12="C", B62*'B. PoF Summary Stats & Params-C'!$I$8*'B. PoF Summary Stats & Params-C'!$I$6*A62^('B. PoF Summary Stats & Params-C'!$I$6-1), IF('B. PoF Summary Stats & Params-C'!$C$12="W", B62*(('B. PoF Summary Stats & Params-C'!$M$6/'B. PoF Summary Stats & Params-C'!$M$8)*((A62)/'B. PoF Summary Stats & Params-C'!$M$8)^('B. PoF Summary Stats & Params-C'!$M$6-1)), "Choose Model")) -> 0.05710860635 | E62: =IF('B. PoF Summary Stats & Params-C'!$C$12="C", B62*'B. PoF Summary Stats & Params-C'!$I$8*'B. PoF Summary Stats & Params-C'!$I$12*A62^('B. PoF Summary Stats & Params-C'!$I$12-1), IF('B. PoF Summary Stats & Params-C'!$C$12="W", B62*(('B. PoF Summary Stats & Params-C'!$M$12/'B. PoF Summary Stats & Params-C'!$O$12)*((A62)/'B. PoF Summary Stats & Params-C'!$O$12)^('B. PoF Summary Stats & Params-C'!$M$12-1)), "Choose Model")) -> 0.0461709199
A63: 59 | B63: 1 | C63: =IF('B. PoF Summary Stats & Params-C'!$C$12="C", B63*'B. PoF Summary Stats & Params-C'!$I$8*'B. PoF Summary Stats & Params-C'!$I$10*A63^('B. PoF Summary Stats & Params-C'!$I$10-1), IF('B. PoF Summary Stats & Params-C'!$C$12="W", B63*(('B. PoF Summary Stats & Params-C'!$M$14/'B. PoF Summary Stats & Params-C'!$O$14)*((A63)/'B. PoF Summary Stats & Params-C'!$O$14)^('B. PoF Summary Stats & Params-C'!$M$14-1)), "Choose Model")) -> 0.07320839399 | D63: =IF('B. PoF Summary Stats & Params-C'!$C$12="C", B63*'B. PoF Summary Stats & Params-C'!$I$8*'B. PoF Summary Stats & Params-C'!$I$6*A63^('B. PoF Summary Stats & Params-C'!$I$6-1), IF('B. PoF Summary Stats & Params-C'!$C$12="W", B63*(('B. PoF Summary Stats & Params-C'!$M$6/'B. PoF Summary Stats & Params-C'!$M$8)*((A63)/'B. PoF Summary Stats & Params-C'!$M$8)^('B. PoF Summary Stats & Params-C'!$M$6-1)), "Choose Model")) -> 0.05915306806 | E63: =IF('B. PoF Summary Stats & Params-C'!$C$12="C", B63*'B. PoF Summary Stats & Params-C'!$I$8*'B. PoF Summary Stats & Params-C'!$I$12*A63^('B. PoF Summary Stats & Params-C'!$I$12-1), IF('B. PoF Summary Stats & Params-C'!$C$12="W", B63*(('B. PoF Summary Stats & Params-C'!$M$12/'B. PoF Summary Stats & Params-C'!$O$12)*((A63)/'B. PoF Summary Stats & Params-C'!$O$12)^('B. PoF Summary Stats & Params-C'!$M$12-1)), "Choose Model")) -> 0.04778424293
A64: 60 | B64: 1 | C64: =IF('B. PoF Summary Stats & Params-C'!$C$12="C", B64*'B. PoF Summary Stats & Params-C'!$I$8*'B. PoF Summary Stats & Params-C'!$I$10*A64^('B. PoF Summary Stats & Params-C'!$I$10-1), IF('B. PoF Summary Stats & Params-C'!$C$12="W", B64*(('B. PoF Summary Stats & Params-C'!$M$14/'B. PoF Summary Stats & Params-C'!$O$14)*((A64)/'B. PoF Summary Stats & Params-C'!$O$14)^('B. PoF Summary Stats & Params-C'!$M$14-1)), "Choose Model")) -> 0.07584611384 | D64: =IF('B. PoF Summary Stats & Params-C'!$C$12="C", B64*'B. PoF Summary Stats & Params-C'!$I$8*'B. PoF Summary Stats & Params-C'!$I$6*A64^('B. PoF Summary Stats & Params-C'!$I$6-1), IF('B. PoF Summary Stats & Params-C'!$C$12="W", B64*(('B. PoF Summary Stats & Params-C'!$M$6/'B. PoF Summary Stats & Params-C'!$M$8)*((A64)/'B. PoF Summary Stats & Params-C'!$M$8)^('B. PoF Summary Stats & Params-C'!$M$6-1)), "Choose Model")) -> 0.06123450915 | E64: =IF('B. PoF Summary Stats & Params-C'!$C$12="C", B64*'B. PoF Summary Stats & Params-C'!$I$8*'B. PoF Summary Stats & Params-C'!$I$12*A64^('B. PoF Summary Stats & Params-C'!$I$12-1), IF('B. PoF Summary Stats & Params-C'!$C$12="W", B64*(('B. PoF Summary Stats & Params-C'!$M$12/'B. PoF Summary Stats & Params-C'!$O$12)*((A64)/'B. PoF Summary Stats & Params-C'!$O$12)^('B. PoF Summary Stats & Params-C'!$M$12-1)), "Choose Model")) -> 0.04942539943
A65: 61 | B65: 1 | C65: =IF('B. PoF Summary Stats & Params-C'!$C$12="C", B65*'B. PoF Summary Stats & Params-C'!$I$8*'B. PoF Summary Stats & Params-C'!$I$10*A65^('B. PoF Summary Stats & Params-C'!$I$10-1), IF('B. PoF Summary Stats & Params-C'!$C$12="W", B65*(('B. PoF Summary Stats & Params-C'!$M$14/'B. PoF Summary Stats & Params-C'!$O$14)*((A65)/'B. PoF Summary Stats & Params-C'!$O$14)^('B. PoF Summary Stats & Params-C'!$M$14-1)), "Choose Model")) -> 0.07853290917 | D65: =IF('B. PoF Summary Stats & Params-C'!$C$12="C", B65*'B. PoF Summary Stats & Params-C'!$I$8*'B. PoF Summary Stats & Params-C'!$I$6*A65^('B. PoF Summary Stats & Params-C'!$I$6-1), IF('B. PoF Summary Stats & Params-C'!$C$12="W", B65*(('B. PoF Summary Stats & Params-C'!$M$6/'B. PoF Summary Stats & Params-C'!$M$8)*((A65)/'B. PoF Summary Stats & Params-C'!$M$8)^('B. PoF Summary Stats & Params-C'!$M$6-1)), "Choose Model")) -> 0.06335296544 | E65: =IF('B. PoF Summary Stats & Params-C'!$C$12="C", B65*'B. PoF Summary Stats & Params-C'!$I$8*'B. PoF Summary Stats & Params-C'!$I$12*A65^('B. PoF Summary Stats & Params-C'!$I$12-1), IF('B. PoF Summary Stats & Params-C'!$C$12="W", B65*(('B. PoF Summary Stats & Params-C'!$M$12/'B. PoF Summary Stats & Params-C'!$O$12)*((A65)/'B. PoF Summary Stats & Params-C'!$O$12)^('B. PoF Summary Stats & Params-C'!$M$12-1)), "Choose Model")) -> 0.05109439371
A66: 62 | B66: 1 | C66: =IF('B. PoF Summary Stats & Params-C'!$C$12="C", B66*'B. PoF Summary Stats & Params-C'!$I$8*'B. PoF Summary Stats & Params-C'!$I$10*A66^('B. PoF Summary Stats & Params-C'!$I$10-1), IF('B. PoF Summary Stats & Params-C'!$C$12="W", B66*(('B. PoF Summary Stats & Params-C'!$M$14/'B. PoF Summary Stats & Params-C'!$O$14)*((A66)/'B. PoF Summary Stats & Params-C'!$O$14)^('B. PoF Summary Stats & Params-C'!$M$14-1)), "Choose Model")) -> 0.08126886607 | D66: =IF('B. PoF Summary Stats & Params-C'!$C$12="C", B66*'B. PoF Summary Stats & Params-C'!$I$8*'B. PoF Summary Stats & Params-C'!$I$6*A66^('B. PoF Summary Stats & Params-C'!$I$6-1), IF('B. PoF Summary Stats & Params-C'!$C$12="W", B66*(('B. PoF Summary Stats & Params-C'!$M$6/'B. PoF Summary Stats & Params-C'!$M$8)*((A66)/'B. PoF Summary Stats & Params-C'!$M$8)^('B. PoF Summary Stats & Params-C'!$M$6-1)), "Choose Model")) -> 0.06550847219 | E66: =IF('B. PoF Summary Stats & Params-C'!$C$12="C", B66*'B. PoF Summary Stats & Params-C'!$I$8*'B. PoF Summary Stats & Params-C'!$I$12*A66^('B. PoF Summary Stats & Params-C'!$I$12-1), IF('B. PoF Summary Stats & Params-C'!$C$12="W", B66*(('B. PoF Summary Stats & Params-C'!$M$12/'B. PoF Summary Stats & Params-C'!$O$12)*((A66)/'B. PoF Summary Stats & Params-C'!$O$12)^('B. PoF Summary Stats & Params-C'!$M$12-1)), "Choose Model")) -> 0.05279122999
A67: 63 | B67: 1 | C67: =IF('B. PoF Summary Stats & Params-C'!$C$12="C", B67*'B. PoF Summary Stats & Params-C'!$I$8*'B. PoF Summary Stats & Params-C'!$I$10*A67^('B. PoF Summary Stats & Params-C'!$I$10-1), IF('B. PoF Summary Stats & Params-C'!$C$12="W", B67*(('B. PoF Summary Stats & Params-C'!$M$14/'B. PoF Summary Stats & Params-C'!$O$14)*((A67)/'B. PoF Summary Stats & Params-C'!$O$14)^('B. PoF Summary Stats & Params-C'!$M$14-1)), "Choose Model")) -> 0.08405406937 | D67: =IF('B. PoF Summary Stats & Params-C'!$C$12="C", B67*'B. PoF Summary Stats & Params-C'!$I$8*'B. PoF Summary Stats & Params-C'!$I$6*A67^('B. PoF Summary Stats & Params-C'!$I$6-1), IF('B. PoF Summary Stats & Params-C'!$C$12="W", B67*(('B. PoF Summary Stats & Params-C'!$M$6/'B. PoF Summary Stats & Params-C'!$M$8)*((A67)/'B. PoF Summary Stats & Params-C'!$M$8)^('B. PoF Summary Stats & Params-C'!$M$6-1)), "Choose Model")) -> 0.06770106412 | E67: =IF('B. PoF Summary Stats & Params-C'!$C$12="C", B67*'B. PoF Summary Stats & Params-C'!$I$8*'B. PoF Summary Stats & Params-C'!$I$12*A67^('B. PoF Summary Stats & Params-C'!$I$12-1), IF('B. PoF Summary Stats & Params-C'!$C$12="W", B67*(('B. PoF Summary Stats & Params-C'!$M$12/'B. PoF Summary Stats & Params-C'!$O$12)*((A67)/'B. PoF Summary Stats & Params-C'!$O$12)^('B. PoF Summary Stats & Params-C'!$M$12-1)), "Choose Model")) -> 0.05451591243
A68: 64 | B68: 1 | C68: =IF('B. PoF Summary Stats & Params-C'!$C$12="C", B68*'B. PoF Summary Stats & Params-C'!$I$8*'B. PoF Summary Stats & Params-C'!$I$10*A68^('B. PoF Summary Stats & Params-C'!$I$10-1), IF('B. PoF Summary Stats & Params-C'!$C$12="W", B68*(('B. PoF Summary Stats & Params-C'!$M$14/'B. PoF Summary Stats & Params-C'!$O$14)*((A68)/'B. PoF Summary Stats & Params-C'!$O$14)^('B. PoF Summary Stats & Params-C'!$M$14-1)), "Choose Model")) -> 0.08688860269 | D68: =IF('B. PoF Summary Stats & Params-C'!$C$12="C", B68*'B. PoF Summary Stats & Params-C'!$I$8*'B. PoF Summary Stats & Params-C'!$I$6*A68^('B. PoF Summary Stats & Params-C'!$I$6-1), IF('B. PoF Summary Stats & Params-C'!$C$12="W", B68*(('B. PoF Summary Stats & Params-C'!$M$6/'B. PoF Summary Stats & Params-C'!$M$8)*((A68)/'B. PoF Summary Stats & Params-C'!$M$8)^('B. PoF Summary Stats & Params-C'!$M$6-1)), "Choose Model")) -> 0.06993077544 | E68: =IF('B. PoF Summary Stats & Params-C'!$C$12="C", B68*'B. PoF Summary Stats & Params-C'!$I$8*'B. PoF Summary Stats & Params-C'!$I$12*A68^('B. PoF Summary Stats & Params-C'!$I$12-1), IF('B. PoF Summary Stats & Params-C'!$C$12="W", B68*(('B. PoF Summary Stats & Params-C'!$M$12/'B. PoF Summary Stats & Params-C'!$O$12)*((A68)/'B. PoF Summary Stats & Params-C'!$O$12)^('B. PoF Summary Stats & Params-C'!$M$12-1)), "Choose Model")) -> 0.05626844511
A69: 65 | B69: 1 | C69: =IF('B. PoF Summary Stats & Params-C'!$C$12="C", B69*'B. PoF Summary Stats & Params-C'!$I$8*'B. PoF Summary Stats & Params-C'!$I$10*A69^('B. PoF Summary Stats & Params-C'!$I$10-1), IF('B. PoF Summary Stats & Params-C'!$C$12="W", B69*(('B. PoF Summary Stats & Params-C'!$M$14/'B. PoF Summary Stats & Params-C'!$O$14)*((A69)/'B. PoF Summary Stats & Params-C'!$O$14)^('B. PoF Summary Stats & Params-C'!$M$14-1)), "Choose Model")) -> 0.0897725485 | D69: =IF('B. PoF Summary Stats & Params-C'!$C$12="C", B69*'B. PoF Summary Stats & Params-C'!$I$8*'B. PoF Summary Stats & Params-C'!$I$6*A69^('B. PoF Summary Stats & Params-C'!$I$6-1), IF('B. PoF Summary Stats & Params-C'!$C$12="W", B69*(('B. PoF Summary Stats & Params-C'!$M$6/'B. PoF Summary Stats & Params-C'!$M$8)*((A69)/'B. PoF Summary Stats & Params-C'!$M$8)^('B. PoF Summary Stats & Params-C'!$M$6-1)), "Choose Model")) -> 0.07219763983 | E69: =IF('B. PoF Summary Stats & Params-C'!$C$12="C", B69*'B. PoF Summary Stats & Params-C'!$I$8*'B. PoF Summary Stats & Params-C'!$I$12*A69^('B. PoF Summary Stats & Params-C'!$I$12-1), IF('B. PoF Summary Stats & Params-C'!$C$12="W", B69*(('B. PoF Summary Stats & Params-C'!$M$12/'B. PoF Summary Stats & Params-C'!$O$12)*((A69)/'B. PoF Summary Stats & Params-C'!$O$12)^('B. PoF Summary Stats & Params-C'!$M$12-1)), "Choose Model")) -> 0.05804883206
A70: 66 | B70: 1 | C70: =IF('B. PoF Summary Stats & Params-C'!$C$12="C", B70*'B. PoF Summary Stats & Params-C'!$I$8*'B. PoF Summary Stats & Params-C'!$I$10*A70^('B. PoF Summary Stats & Params-C'!$I$10-1), IF('B. PoF Summary Stats & Params-C'!$C$12="W", B70*(('B. PoF Summary Stats & Params-C'!$M$14/'B. PoF Summary Stats & Params-C'!$O$14)*((A70)/'B. PoF Summary Stats & Params-C'!$O$14)^('B. PoF Summary Stats & Params-C'!$M$14-1)), "Choose Model")) -> 0.09270598808 | D70: =IF('B. PoF Summary Stats & Params-C'!$C$12="C", B70*'B. PoF Summary Stats & Params-C'!$I$8*'B. PoF Summary Stats & Params-C'!$I$6*A70^('B. PoF Summary Stats & Params-C'!$I$6-1), IF('B. PoF Summary Stats & Params-C'!$C$12="W", B70*(('B. PoF Summary Stats & Params-C'!$M$6/'B. PoF Summary Stats & Params-C'!$M$8)*((A70)/'B. PoF Summary Stats & Params-C'!$M$8)^('B. PoF Summary Stats & Params-C'!$M$6-1)), "Choose Model")) -> 0.07450169049 | E70: =IF('B. PoF Summary Stats & Params-C'!$C$12="C", B70*'B. PoF Summary Stats & Params-C'!$I$8*'B. PoF Summary Stats & Params-C'!$I$12*A70^('B. PoF Summary Stats & Params-C'!$I$12-1), IF('B. PoF Summary Stats & Params-C'!$C$12="W", B70*(('B. PoF Summary Stats & Params-C'!$M$12/'B. PoF Summary Stats & Params-C'!$O$12)*((A70)/'B. PoF Summary Stats & Params-C'!$O$12)^('B. PoF Summary Stats & Params-C'!$M$12-1)), "Choose Model")) -> 0.05985707725
A71: 67 | B71: 1 | C71: =IF('B. PoF Summary Stats & Params-C'!$C$12="C", B71*'B. PoF Summary Stats & Params-C'!$I$8*'B. PoF Summary Stats & Params-C'!$I$10*A71^('B. PoF Summary Stats & Params-C'!$I$10-1), IF('B. PoF Summary Stats & Params-C'!$C$12="W", B71*(('B. PoF Summary Stats & Params-C'!$M$14/'B. PoF Summary Stats & Params-C'!$O$14)*((A71)/'B. PoF Summary Stats & Params-C'!$O$14)^('B. PoF Summary Stats & Params-C'!$M$14-1)), "Choose Model")) -> 0.09568900164 | D71: =IF('B. PoF Summary Stats & Params-C'!$C$12="C", B71*'B. PoF Summary Stats & Params-C'!$I$8*'B. PoF Summary Stats & Params-C'!$I$6*A71^('B. PoF Summary Stats & Params-C'!$I$6-1), IF('B. PoF Summary Stats & Params-C'!$C$12="W", B71*(('B. PoF Summary Stats & Params-C'!$M$6/'B. PoF Summary Stats & Params-C'!$M$8)*((A71)/'B. PoF Summary Stats & Params-C'!$M$8)^('B. PoF Summary Stats & Params-C'!$M$6-1)), "Choose Model")) -> 0.07684296016 | E71: =IF('B. PoF Summary Stats & Params-C'!$C$12="C", B71*'B. PoF Summary Stats & Params-C'!$I$8*'B. PoF Summary Stats & Params-C'!$I$12*A71^('B. PoF Summary Stats & Params-C'!$I$12-1), IF('B. PoF Summary Stats & Params-C'!$C$12="W", B71*(('B. PoF Summary Stats & Params-C'!$M$12/'B. PoF Summary Stats & Params-C'!$O$12)*((A71)/'B. PoF Summary Stats & Params-C'!$O$12)^('B. PoF Summary Stats & Params-C'!$M$12-1)), "Choose Model")) -> 0.06169318457
A72: 68 | B72: 1 | C72: =IF('B. PoF Summary Stats & Params-C'!$C$12="C", B72*'B. PoF Summary Stats & Params-C'!$I$8*'B. PoF Summary Stats & Params-C'!$I$10*A72^('B. PoF Summary Stats & Params-C'!$I$10-1), IF('B. PoF Summary Stats & Params-C'!$C$12="W", B72*(('B. PoF Summary Stats & Params-C'!$M$14/'B. PoF Summary Stats & Params-C'!$O$14)*((A72)/'B. PoF Summary Stats & Params-C'!$O$14)^('B. PoF Summary Stats & Params-C'!$M$14-1)), "Choose Model")) -> 0.09872166829 | D72: =IF('B. PoF Summary Stats & Params-C'!$C$12="C", B72*'B. PoF Summary Stats & Params-C'!$I$8*'B. PoF Summary Stats & Params-C'!$I$6*A72^('B. PoF Summary Stats & Params-C'!$I$6-1), IF('B. PoF Summary Stats & Params-C'!$C$12="W", B72*(('B. PoF Summary Stats & Params-C'!$M$6/'B. PoF Summary Stats & Params-C'!$M$8)*((A72)/'B. PoF Summary Stats & Params-C'!$M$8)^('B. PoF Summary Stats & Params-C'!$M$6-1)), "Choose Model")) -> 0.07922148107 | E72: =IF('B. PoF Summary Stats & Params-C'!$C$12="C", B72*'B. PoF Summary Stats & Params-C'!$I$8*'B. PoF Summary Stats & Params-C'!$I$12*A72^('B. PoF Summary Stats & Params-C'!$I$12-1), IF('B. PoF Summary Stats & Params-C'!$C$12="W", B72*(('B. PoF Summary Stats & Params-C'!$M$12/'B. PoF Summary Stats & Params-C'!$O$12)*((A72)/'B. PoF Summary Stats & Params-C'!$O$12)^('B. PoF Summary Stats & Params-C'!$M$12-1)), "Choose Model")) -> 0.06355715789
A73: 69 | B73: 1 | C73: =IF('B. PoF Summary Stats & Params-C'!$C$12="C", B73*'B. PoF Summary Stats & Params-C'!$I$8*'B. PoF Summary Stats & Params-C'!$I$10*A73^('B. PoF Summary Stats & Params-C'!$I$10-1), IF('B. PoF Summary Stats & Params-C'!$C$12="W", B73*(('B. PoF Summary Stats & Params-C'!$M$14/'B. PoF Summary Stats & Params-C'!$O$14)*((A73)/'B. PoF Summary Stats & Params-C'!$O$14)^('B. PoF Summary Stats & Params-C'!$M$14-1)), "Choose Model")) -> 0.1018040661 | D73: =IF('B. PoF Summary Stats & Params-C'!$C$12="C", B73*'B. PoF Summary Stats & Params-C'!$I$8*'B. PoF Summary Stats & Params-C'!$I$6*A73^('B. PoF Summary Stats & Params-C'!$I$6-1), IF('B. PoF Summary Stats & Params-C'!$C$12="W", B73*(('B. PoF Summary Stats & Params-C'!$M$6/'B. PoF Summary Stats & Params-C'!$M$8)*((A73)/'B. PoF Summary Stats & Params-C'!$M$8)^('B. PoF Summary Stats & Params-C'!$M$6-1)), "Choose Model")) -> 0.08163728505 | E73: =IF('B. PoF Summary Stats & Params-C'!$C$12="C", B73*'B. PoF Summary Stats & Params-C'!$I$8*'B. PoF Summary Stats & Params-C'!$I$12*A73^('B. PoF Summary Stats & Params-C'!$I$12-1), IF('B. PoF Summary Stats & Params-C'!$C$12="W", B73*(('B. PoF Summary Stats & Params-C'!$M$12/'B. PoF Summary Stats & Params-C'!$O$12)*((A73)/'B. PoF Summary Stats & Params-C'!$O$12)^('B. PoF Summary Stats & Params-C'!$M$12-1)), "Choose Model")) -> 0.06544900098
A74: 70 | B74: 1 | C74: =IF('B. PoF Summary Stats & Params-C'!$C$12="C", B74*'B. PoF Summary Stats & Params-C'!$I$8*'B. PoF Summary Stats & Params-C'!$I$10*A74^('B. PoF Summary Stats & Params-C'!$I$10-1), IF('B. PoF Summary Stats & Params-C'!$C$12="W", B74*(('B. PoF Summary Stats & Params-C'!$M$14/'B. PoF Summary Stats & Params-C'!$O$14)*((A74)/'B. PoF Summary Stats & Params-C'!$O$14)^('B. PoF Summary Stats & Params-C'!$M$14-1)), "Choose Model")) -> 0.1049362721 | D74: =IF('B. PoF Summary Stats & Params-C'!$C$12="C", B74*'B. PoF Summary Stats & Params-C'!$I$8*'B. PoF Summary Stats & Params-C'!$I$6*A74^('B. PoF Summary Stats & Params-C'!$I$6-1), IF('B. PoF Summary Stats & Params-C'!$C$12="W", B74*(('B. PoF Summary Stats & Params-C'!$M$6/'B. PoF Summary Stats & Params-C'!$M$8)*((A74)/'B. PoF Summary Stats & Params-C'!$M$8)^('B. PoF Summary Stats & Params-C'!$M$6-1)), "Choose Model")) -> 0.08409040346 | E74: =IF('B. PoF Summary Stats & Params-C'!$C$12="C", B74*'B. PoF Summary Stats & Params-C'!$I$8*'B. PoF Summary Stats & Params-C'!$I$12*A74^('B. PoF Summary Stats & Params-C'!$I$12-1), IF('B. PoF Summary Stats & Params-C'!$C$12="W", B74*(('B. PoF Summary Stats & Params-C'!$M$12/'B. PoF Summary Stats & Params-C'!$O$12)*((A74)/'B. PoF Summary Stats & Params-C'!$O$12)^('B. PoF Summary Stats & Params-C'!$M$12-1)), "Choose Model")) -> 0.06736871758
A75: 71 | B75: 1 | C75: =IF('B. PoF Summary Stats & Params-C'!$C$12="C", B75*'B. PoF Summary Stats & Params-C'!$I$8*'B. PoF Summary Stats & Params-C'!$I$10*A75^('B. PoF Summary Stats & Params-C'!$I$10-1), IF('B. PoF Summary Stats & Params-C'!$C$12="W", B75*(('B. PoF Summary Stats & Params-C'!$M$14/'B. PoF Summary Stats & Params-C'!$O$14)*((A75)/'B. PoF Summary Stats & Params-C'!$O$14)^('B. PoF Summary Stats & Params-C'!$M$14-1)), "Choose Model")) -> 0.1081183623 | D75: =IF('B. PoF Summary Stats & Params-C'!$C$12="C", B75*'B. PoF Summary Stats & Params-C'!$I$8*'B. PoF Summary Stats & Params-C'!$I$6*A75^('B. PoF Summary Stats & Params-C'!$I$6-1), IF('B. PoF Summary Stats & Params-C'!$C$12="W", B75*(('B. PoF Summary Stats & Params-C'!$M$6/'B. PoF Summary Stats & Params-C'!$M$8)*((A75)/'B. PoF Summary Stats & Params-C'!$M$8)^('B. PoF Summary Stats & Params-C'!$M$6-1)), "Choose Model")) -> 0.08658086725 | E75: =IF('B. PoF Summary Stats & Params-C'!$C$12="C", B75*'B. PoF Summary Stats & Params-C'!$I$8*'B. PoF Summary Stats & Params-C'!$I$12*A75^('B. PoF Summary Stats & Params-C'!$I$12-1), IF('B. PoF Summary Stats & Params-C'!$C$12="W", B75*(('B. PoF Summary Stats & Params-C'!$M$12/'B. PoF Summary Stats & Params-C'!$O$12)*((A75)/'B. PoF Summary Stats & Params-C'!$O$12)^('B. PoF Summary Stats & Params-C'!$M$12-1)), "Choose Model")) -> 0.06931631138
A76: 72 | B76: 1 | C76: =IF('B. PoF Summary Stats & Params-C'!$C$12="C", B76*'B. PoF Summary Stats & Params-C'!$I$8*'B. PoF Summary Stats & Params-C'!$I$10*A76^('B. PoF Summary Stats & Params-C'!$I$10-1), IF('B. PoF Summary Stats & Params-C'!$C$12="W", B76*(('B. PoF Summary Stats & Params-C'!$M$14/'B. PoF Summary Stats & Params-C'!$O$14)*((A76)/'B. PoF Summary Stats & Params-C'!$O$14)^('B. PoF Summary Stats & Params-C'!$M$14-1)), "Choose Model")) -> 0.1113504119 | D76: =IF('B. PoF Summary Stats & Params-C'!$C$12="C", B76*'B. PoF Summary Stats & Params-C'!$I$8*'B. PoF Summary Stats & Params-C'!$I$6*A76^('B. PoF Summary Stats & Params-C'!$I$6-1), IF('B. PoF Summary Stats & Params-C'!$C$12="W", B76*(('B. PoF Summary Stats & Params-C'!$M$6/'B. PoF Summary Stats & Params-C'!$M$8)*((A76)/'B. PoF Summary Stats & Params-C'!$M$8)^('B. PoF Summary Stats & Params-C'!$M$6-1)), "Choose Model")) -> 0.08910870694 | E76: =IF('B. PoF Summary Stats & Params-C'!$C$12="C", B76*'B. PoF Summary Stats & Params-C'!$I$8*'B. PoF Summary Stats & Params-C'!$I$12*A76^('B. PoF Summary Stats & Params-C'!$I$12-1), IF('B. PoF Summary Stats & Params-C'!$C$12="W", B76*(('B. PoF Summary Stats & Params-C'!$M$12/'B. PoF Summary Stats & Params-C'!$O$12)*((A76)/'B. PoF Summary Stats & Params-C'!$O$12)^('B. PoF Summary Stats & Params-C'!$M$12-1)), "Choose Model")) -> 0.071291786
A77: 73 | B77: 1 | C77: =IF('B. PoF Summary Stats & Params-C'!$C$12="C", B77*'B. PoF Summary Stats & Params-C'!$I$8*'B. PoF Summary Stats & Params-C'!$I$10*A77^('B. PoF Summary Stats & Params-C'!$I$10-1), IF('B. PoF Summary Stats & Params-C'!$C$12="W", B77*(('B. PoF Summary Stats & Params-C'!$M$14/'B. PoF Summary Stats & Params-C'!$O$14)*((A77)/'B. PoF Summary Stats & Params-C'!$O$14)^('B. PoF Summary Stats & Params-C'!$M$14-1)), "Choose Model")) -> 0.114632495 | D77: =IF('B. PoF Summary Stats & Params-C'!$C$12="C", B77*'B. PoF Summary Stats & Params-C'!$I$8*'B. PoF Summary Stats & Params-C'!$I$6*A77^('B. PoF Summary Stats & Params-C'!$I$6-1), IF('B. PoF Summary Stats & Params-C'!$C$12="W", B77*(('B. PoF Summary Stats & Params-C'!$M$6/'B. PoF Summary Stats & Params-C'!$M$8)*((A77)/'B. PoF Summary Stats & Params-C'!$M$8)^('B. PoF Summary Stats & Params-C'!$M$6-1)), "Choose Model")) -> 0.09167395266 | E77: =IF('B. PoF Summary Stats & Params-C'!$C$12="C", B77*'B. PoF Summary Stats & Params-C'!$I$8*'B. PoF Summary Stats & Params-C'!$I$12*A77^('B. PoF Summary Stats & Params-C'!$I$12-1), IF('B. PoF Summary Stats & Params-C'!$C$12="W", B77*(('B. PoF Summary Stats & Params-C'!$M$12/'B. PoF Summary Stats & Params-C'!$O$12)*((A77)/'B. PoF Summary Stats & Params-C'!$O$12)^('B. PoF Summary Stats & Params-C'!$M$12-1)), "Choose Model")) -> 0.07329514502
A78: 74 | B78: 1 | C78: =IF('B. PoF Summary Stats & Params-C'!$C$12="C", B78*'B. PoF Summary Stats & Params-C'!$I$8*'B. PoF Summary Stats & Params-C'!$I$10*A78^('B. PoF Summary Stats & Params-C'!$I$10-1), IF('B. PoF Summary Stats & Params-C'!$C$12="W", B78*(('B. PoF Summary Stats & Params-C'!$M$14/'B. PoF Summary Stats & Params-C'!$O$14)*((A78)/'B. PoF Summary Stats & Params-C'!$O$14)^('B. PoF Summary Stats & Params-C'!$M$14-1)), "Choose Model")) -> 0.1179646848 | D78: =IF('B. PoF Summary Stats & Params-C'!$C$12="C", B78*'B. PoF Summary Stats & Params-C'!$I$8*'B. PoF Summary Stats & Params-C'!$I$6*A78^('B. PoF Summary Stats & Params-C'!$I$6-1), IF('B. PoF Summary Stats & Params-C'!$C$12="W", B78*(('B. PoF Summary Stats & Params-C'!$M$6/'B. PoF Summary Stats & Params-C'!$M$8)*((A78)/'B. PoF Summary Stats & Params-C'!$M$8)^('B. PoF Summary Stats & Params-C'!$M$6-1)), "Choose Model")) -> 0.09427663414 | E78: =IF('B. PoF Summary Stats & Params-C'!$C$12="C", B78*'B. PoF Summary Stats & Params-C'!$I$8*'B. PoF Summary Stats & Params-C'!$I$12*A78^('B. PoF Summary Stats & Params-C'!$I$12-1), IF('B. PoF Summary Stats & Params-C'!$C$12="W", B78*(('B. PoF Summary Stats & Params-C'!$M$12/'B. PoF Summary Stats & Params-C'!$O$12)*((A78)/'B. PoF Summary Stats & Params-C'!$O$12)^('B. PoF Summary Stats & Params-C'!$M$12-1)), "Choose Model")) -> 0.07532639198
A79: 75 | B79: 1 | C79: =IF('B. PoF Summary Stats & Params-C'!$C$12="C", B79*'B. PoF Summary Stats & Params-C'!$I$8*'B. PoF Summary Stats & Params-C'!$I$10*A79^('B. PoF Summary Stats & Params-C'!$I$10-1), IF('B. PoF Summary Stats & Params-C'!$C$12="W", B79*(('B. PoF Summary Stats & Params-C'!$M$14/'B. PoF Summary Stats & Params-C'!$O$14)*((A79)/'B. PoF Summary Stats & Params-C'!$O$14)^('B. PoF Summary Stats & Params-C'!$M$14-1)), "Choose Model")) -> 0.1213470536 | D79: =IF('B. PoF Summary Stats & Params-C'!$C$12="C", B79*'B. PoF Summary Stats & Params-C'!$I$8*'B. PoF Summary Stats & Params-C'!$I$6*A79^('B. PoF Summary Stats & Params-C'!$I$6-1), IF('B. PoF Summary Stats & Params-C'!$C$12="W", B79*(('B. PoF Summary Stats & Params-C'!$M$6/'B. PoF Summary Stats & Params-C'!$M$8)*((A79)/'B. PoF Summary Stats & Params-C'!$M$8)^('B. PoF Summary Stats & Params-C'!$M$6-1)), "Choose Model")) -> 0.09691678075 | E79: =IF('B. PoF Summary Stats & Params-C'!$C$12="C", B79*'B. PoF Summary Stats & Params-C'!$I$8*'B. PoF Summary Stats & Params-C'!$I$12*A79^('B. PoF Summary Stats & Params-C'!$I$12-1), IF('B. PoF Summary Stats & Params-C'!$C$12="W", B79*(('B. PoF Summary Stats & Params-C'!$M$12/'B. PoF Summary Stats & Params-C'!$O$12)*((A79)/'B. PoF Summary Stats & Params-C'!$O$12)^('B. PoF Summary Stats & Params-C'!$M$12-1)), "Choose Model")) -> 0.07738553036
A80: 76 | B80: 1 | C80: =IF('B. PoF Summary Stats & Params-C'!$C$12="C", B80*'B. PoF Summary Stats & Params-C'!$I$8*'B. PoF Summary Stats & Params-C'!$I$10*A80^('B. PoF Summary Stats & Params-C'!$I$10-1), IF('B. PoF Summary Stats & Params-C'!$C$12="W", B80*(('B. PoF Summary Stats & Params-C'!$M$14/'B. PoF Summary Stats & Params-C'!$O$14)*((A80)/'B. PoF Summary Stats & Params-C'!$O$14)^('B. PoF Summary Stats & Params-C'!$M$14-1)), "Choose Model")) -> 0.124779673 | D80: =IF('B. PoF Summary Stats & Params-C'!$C$12="C", B80*'B. PoF Summary Stats & Params-C'!$I$8*'B. PoF Summary Stats & Params-C'!$I$6*A80^('B. PoF Summary Stats & Params-C'!$I$6-1), IF('B. PoF Summary Stats & Params-C'!$C$12="W", B80*(('B. PoF Summary Stats & Params-C'!$M$6/'B. PoF Summary Stats & Params-C'!$M$8)*((A80)/'B. PoF Summary Stats & Params-C'!$M$8)^('B. PoF Summary Stats & Params-C'!$M$6-1)), "Choose Model")) -> 0.09959442145 | E80: =IF('B. PoF Summary Stats & Params-C'!$C$12="C", B80*'B. PoF Summary Stats & Params-C'!$I$8*'B. PoF Summary Stats & Params-C'!$I$12*A80^('B. PoF Summary Stats & Params-C'!$I$12-1), IF('B. PoF Summary Stats & Params-C'!$C$12="W", B80*(('B. PoF Summary Stats & Params-C'!$M$12/'B. PoF Summary Stats & Params-C'!$O$12)*((A80)/'B. PoF Summary Stats & Params-C'!$O$12)^('B. PoF Summary Stats & Params-C'!$M$12-1)), "Choose Model")) -> 0.07947256359
A81: 77 | B81: 1 | C81: =IF('B. PoF Summary Stats & Params-C'!$C$12="C", B81*'B. PoF Summary Stats & Params-C'!$I$8*'B. PoF Summary Stats & Params-C'!$I$10*A81^('B. PoF Summary Stats & Params-C'!$I$10-1), IF('B. PoF Summary Stats & Params-C'!$C$12="W", B81*(('B. PoF Summary Stats & Params-C'!$M$14/'B. PoF Summary Stats & Params-C'!$O$14)*((A81)/'B. PoF Summary Stats & Params-C'!$O$14)^('B. PoF Summary Stats & Params-C'!$M$14-1)), "Choose Model")) -> 0.1282626135 | D81: =IF('B. PoF Summary Stats & Params-C'!$C$12="C", B81*'B. PoF Summary Stats & Params-C'!$I$8*'B. PoF Summary Stats & Params-C'!$I$6*A81^('B. PoF Summary Stats & Params-C'!$I$6-1), IF('B. PoF Summary Stats & Params-C'!$C$12="W", B81*(('B. PoF Summary Stats & Params-C'!$M$6/'B. PoF Summary Stats & Params-C'!$M$8)*((A81)/'B. PoF Summary Stats & Params-C'!$M$8)^('B. PoF Summary Stats & Params-C'!$M$6-1)), "Choose Model")) -> 0.1023095849 | E81: =IF('B. PoF Summary Stats & Params-C'!$C$12="C", B81*'B. PoF Summary Stats & Params-C'!$I$8*'B. PoF Summary Stats & Params-C'!$I$12*A81^('B. PoF Summary Stats & Params-C'!$I$12-1), IF('B. PoF Summary Stats & Params-C'!$C$12="W", B81*(('B. PoF Summary Stats & Params-C'!$M$12/'B. PoF Summary Stats & Params-C'!$O$12)*((A81)/'B. PoF Summary Stats & Params-C'!$O$12)^('B. PoF Summary Stats & Params-C'!$M$12-1)), "Choose Model")) -> 0.08158749507
A82: 78 | B82: 1 | C82: =IF('B. PoF Summary Stats & Params-C'!$C$12="C", B82*'B. PoF Summary Stats & Params-C'!$I$8*'B. PoF Summary Stats & Params-C'!$I$10*A82^('B. PoF Summary Stats & Params-C'!$I$10-1), IF('B. PoF Summary Stats & Params-C'!$C$12="W", B82*(('B. PoF Summary Stats & Params-C'!$M$14/'B. PoF Summary Stats & Params-C'!$O$14)*((A82)/'B. PoF Summary Stats & Params-C'!$O$14)^('B. PoF Summary Stats & Params-C'!$M$14-1)), "Choose Model")) -> 0.1317959451 | D82: =IF('B. PoF Summary Stats & Params-C'!$C$12="C", B82*'B. PoF Summary Stats & Params-C'!$I$8*'B. PoF Summary Stats & Params-C'!$I$6*A82^('B. PoF Summary Stats & Params-C'!$I$6-1), IF('B. PoF Summary Stats & Params-C'!$C$12="W", B82*(('B. PoF Summary Stats & Params-C'!$M$6/'B. PoF Summary Stats & Params-C'!$M$8)*((A82)/'B. PoF Summary Stats & Params-C'!$M$8)^('B. PoF Summary Stats & Params-C'!$M$6-1)), "Choose Model")) -> 0.1050622993 | E82: =IF('B. PoF Summary Stats & Params-C'!$C$12="C", B82*'B. PoF Summary Stats & Params-C'!$I$8*'B. PoF Summary Stats & Params-C'!$I$12*A82^('B. PoF Summary Stats & Params-C'!$I$12-1), IF('B. PoF Summary Stats & Params-C'!$C$12="W", B82*(('B. PoF Summary Stats & Params-C'!$M$12/'B. PoF Summary Stats & Params-C'!$O$12)*((A82)/'B. PoF Summary Stats & Params-C'!$O$12)^('B. PoF Summary Stats & Params-C'!$M$12-1)), "Choose Model")) -> 0.08373032814
A83: 79 | B83: 1 | C83: =IF('B. PoF Summary Stats & Params-C'!$C$12="C", B83*'B. PoF Summary Stats & Params-C'!$I$8*'B. PoF Summary Stats & Params-C'!$I$10*A83^('B. PoF Summary Stats & Params-C'!$I$10-1), IF('B. PoF Summary Stats & Params-C'!$C$12="W", B83*(('B. PoF Summary Stats & Params-C'!$M$14/'B. PoF Summary Stats & Params-C'!$O$14)*((A83)/'B. PoF Summary Stats & Params-C'!$O$14)^('B. PoF Summary Stats & Params-C'!$M$14-1)), "Choose Model")) -> 0.1353797365 | D83: =IF('B. PoF Summary Stats & Params-C'!$C$12="C", B83*'B. PoF Summary Stats & Params-C'!$I$8*'B. PoF Summary Stats & Params-C'!$I$6*A83^('B. PoF Summary Stats & Params-C'!$I$6-1), IF('B. PoF Summary Stats & Params-C'!$C$12="W", B83*(('B. PoF Summary Stats & Params-C'!$M$6/'B. PoF Summary Stats & Params-C'!$M$8)*((A83)/'B. PoF Summary Stats & Params-C'!$M$8)^('B. PoF Summary Stats & Params-C'!$M$6-1)), "Choose Model")) -> 0.1078525926 | E83: =IF('B. PoF Summary Stats & Params-C'!$C$12="C", B83*'B. PoF Summary Stats & Params-C'!$I$8*'B. PoF Summary Stats & Params-C'!$I$12*A83^('B. PoF Summary Stats & Params-C'!$I$12-1), IF('B. PoF Summary Stats & Params-C'!$C$12="W", B83*(('B. PoF Summary Stats & Params-C'!$M$12/'B. PoF Summary Stats & Params-C'!$O$12)*((A83)/'B. PoF Summary Stats & Params-C'!$O$12)^('B. PoF Summary Stats & Params-C'!$M$12-1)), "Choose Model")) -> 0.0859010661
A84: 80 | B84: 1 | C84: =IF('B. PoF Summary Stats & Params-C'!$C$12="C", B84*'B. PoF Summary Stats & Params-C'!$I$8*'B. PoF Summary Stats & Params-C'!$I$10*A84^('B. PoF Summary Stats & Params-C'!$I$10-1), IF('B. PoF Summary Stats & Params-C'!$C$12="W", B84*(('B. PoF Summary Stats & Params-C'!$M$14/'B. PoF Summary Stats & Params-C'!$O$14)*((A84)/'B. PoF Summary Stats & Params-C'!$O$14)^('B. PoF Summary Stats & Params-C'!$M$14-1)), "Choose Model")) -> 0.1390140562 | D84: =IF('B. PoF Summary Stats & Params-C'!$C$12="C", B84*'B. PoF Summary Stats & Params-C'!$I$8*'B. PoF Summary Stats & Params-C'!$I$6*A84^('B. PoF Summary Stats & Params-C'!$I$6-1), IF('B. PoF Summary Stats & Params-C'!$C$12="W", B84*(('B. PoF Summary Stats & Params-C'!$M$6/'B. PoF Summary Stats & Params-C'!$M$8)*((A84)/'B. PoF Summary Stats & Params-C'!$M$8)^('B. PoF Summary Stats & Params-C'!$M$6-1)), "Choose Model")) -> 0.1106804925 | E84: =IF('B. PoF Summary Stats & Params-C'!$C$12="C", B84*'B. PoF Summary Stats & Params-C'!$I$8*'B. PoF Summary Stats & Params-C'!$I$12*A84^('B. PoF Summary Stats & Params-C'!$I$12-1), IF('B. PoF Summary Stats & Params-C'!$C$12="W", B84*(('B. PoF Summary Stats & Params-C'!$M$12/'B. PoF Summary Stats & Params-C'!$O$12)*((A84)/'B. PoF Summary Stats & Params-C'!$O$12)^('B. PoF Summary Stats & Params-C'!$M$12-1)), "Choose Model")) -> 0.08809971224
A85: 81 | B85: 1 | C85: =IF('B. PoF Summary Stats & Params-C'!$C$12="C", B85*'B. PoF Summary Stats & Params-C'!$I$8*'B. PoF Summary Stats & Params-C'!$I$10*A85^('B. PoF Summary Stats & Params-C'!$I$10-1), IF('B. PoF Summary Stats & Params-C'!$C$12="W", B85*(('B. PoF Summary Stats & Params-C'!$M$14/'B. PoF Summary Stats & Params-C'!$O$14)*((A85)/'B. PoF Summary Stats & Params-C'!$O$14)^('B. PoF Summary Stats & Params-C'!$M$14-1)), "Choose Model")) -> 0.1426989714 | D85: =IF('B. PoF Summary Stats & Params-C'!$C$12="C", B85*'B. PoF Summary Stats & Params-C'!$I$8*'B. PoF Summary Stats & Params-C'!$I$6*A85^('B. PoF Summary Stats & Params-C'!$I$6-1), IF('B. PoF Summary Stats & Params-C'!$C$12="W", B85*(('B. PoF Summary Stats & Params-C'!$M$6/'B. PoF Summary Stats & Params-C'!$M$8)*((A85)/'B. PoF Summary Stats & Params-C'!$M$8)^('B. PoF Summary Stats & Params-C'!$M$6-1)), "Choose Model")) -> 0.1135460261 | E85: =IF('B. PoF Summary Stats & Params-C'!$C$12="C", B85*'B. PoF Summary Stats & Params-C'!$I$8*'B. PoF Summary Stats & Params-C'!$I$12*A85^('B. PoF Summary Stats & Params-C'!$I$12-1), IF('B. PoF Summary Stats & Params-C'!$C$12="W", B85*(('B. PoF Summary Stats & Params-C'!$M$12/'B. PoF Summary Stats & Params-C'!$O$12)*((A85)/'B. PoF Summary Stats & Params-C'!$O$12)^('B. PoF Summary Stats & Params-C'!$M$12-1)), "Choose Model")) -> 0.09032626975
A86: 82 | B86: 1 | C86: =IF('B. PoF Summary Stats & Params-C'!$C$12="C", B86*'B. PoF Summary Stats & Params-C'!$I$8*'B. PoF Summary Stats & Params-C'!$I$10*A86^('B. PoF Summary Stats & Params-C'!$I$10-1), IF('B. PoF Summary Stats & Params-C'!$C$12="W", B86*(('B. PoF Summary Stats & Params-C'!$M$14/'B. PoF Summary Stats & Params-C'!$O$14)*((A86)/'B. PoF Summary Stats & Params-C'!$O$14)^('B. PoF Summary Stats & Params-C'!$M$14-1)), "Choose Model")) -> 0.1464345489 | D86: =IF('B. PoF Summary Stats & Params-C'!$C$12="C", B86*'B. PoF Summary Stats & Params-C'!$I$8*'B. PoF Summary Stats & Params-C'!$I$6*A86^('B. PoF Summary Stats & Params-C'!$I$6-1), IF('B. PoF Summary Stats & Params-C'!$C$12="W", B86*(('B. PoF Summary Stats & Params-C'!$M$6/'B. PoF Summary Stats & Params-C'!$M$8)*((A86)/'B. PoF Summary Stats & Params-C'!$M$8)^('B. PoF Summary Stats & Params-C'!$M$6-1)), "Choose Model")) -> 0.1164492204 | E86: =IF('B. PoF Summary Stats & Params-C'!$C$12="C", B86*'B. PoF Summary Stats & Params-C'!$I$8*'B. PoF Summary Stats & Params-C'!$I$12*A86^('B. PoF Summary Stats & Params-C'!$I$12-1), IF('B. PoF Summary Stats & Params-C'!$C$12="W", B86*(('B. PoF Summary Stats & Params-C'!$M$12/'B. PoF Summary Stats & Params-C'!$O$12)*((A86)/'B. PoF Summary Stats & Params-C'!$O$12)^('B. PoF Summary Stats & Params-C'!$M$12-1)), "Choose Model")) -> 0.09258074183
A87: 83 | B87: 1 | C87: =IF('B. PoF Summary Stats & Params-C'!$C$12="C", B87*'B. PoF Summary Stats & Params-C'!$I$8*'B. PoF Summary Stats & Params-C'!$I$10*A87^('B. PoF Summary Stats & Params-C'!$I$10-1), IF('B. PoF Summary Stats & Params-C'!$C$12="W", B87*(('B. PoF Summary Stats & Params-C'!$M$14/'B. PoF Summary Stats & Params-C'!$O$14)*((A87)/'B. PoF Summary Stats & Params-C'!$O$14)^('B. PoF Summary Stats & Params-C'!$M$14-1)), "Choose Model")) -> 0.1502208547 | D87: =IF('B. PoF Summary Stats & Params-C'!$C$12="C", B87*'B. PoF Summary Stats & Params-C'!$I$8*'B. PoF Summary Stats & Params-C'!$I$6*A87^('B. PoF Summary Stats & Params-C'!$I$6-1), IF('B. PoF Summary Stats & Params-C'!$C$12="W", B87*(('B. PoF Summary Stats & Params-C'!$M$6/'B. PoF Summary Stats & Params-C'!$M$8)*((A87)/'B. PoF Summary Stats & Params-C'!$M$8)^('B. PoF Summary Stats & Params-C'!$M$6-1)), "Choose Model")) -> 0.119390102 | E87: =IF('B. PoF Summary Stats & Params-C'!$C$12="C", B87*'B. PoF Summary Stats & Params-C'!$I$8*'B. PoF Summary Stats & Params-C'!$I$12*A87^('B. PoF Summary Stats & Params-C'!$I$12-1), IF('B. PoF Summary Stats & Params-C'!$C$12="W", B87*(('B. PoF Summary Stats & Params-C'!$M$12/'B. PoF Summary Stats & Params-C'!$O$12)*((A87)/'B. PoF Summary Stats & Params-C'!$O$12)^('B. PoF Summary Stats & Params-C'!$M$12-1)), "Choose Model")) -> 0.09486313163
A88: 84 | B88: 1 | C88: =IF('B. PoF Summary Stats & Params-C'!$C$12="C", B88*'B. PoF Summary Stats & Params-C'!$I$8*'B. PoF Summary Stats & Params-C'!$I$10*A88^('B. PoF Summary Stats & Params-C'!$I$10-1), IF('B. PoF Summary Stats & Params-C'!$C$12="W", B88*(('B. PoF Summary Stats & Params-C'!$M$14/'B. PoF Summary Stats & Params-C'!$O$14)*((A88)/'B. PoF Summary Stats & Params-C'!$O$14)^('B. PoF Summary Stats & Params-C'!$M$14-1)), "Choose Model")) -> 0.154057954 | D88: =IF('B. PoF Summary Stats & Params-C'!$C$12="C", B88*'B. PoF Summary Stats & Params-C'!$I$8*'B. PoF Summary Stats & Params-C'!$I$6*A88^('B. PoF Summary Stats & Params-C'!$I$6-1), IF('B. PoF Summary Stats & Params-C'!$C$12="W", B88*(('B. PoF Summary Stats & Params-C'!$M$6/'B. PoF Summary Stats & Params-C'!$M$8)*((A88)/'B. PoF Summary Stats & Params-C'!$M$8)^('B. PoF Summary Stats & Params-C'!$M$6-1)), "Choose Model")) -> 0.1223686974 | E88: =IF('B. PoF Summary Stats & Params-C'!$C$12="C", B88*'B. PoF Summary Stats & Params-C'!$I$8*'B. PoF Summary Stats & Params-C'!$I$12*A88^('B. PoF Summary Stats & Params-C'!$I$12-1), IF('B. PoF Summary Stats & Params-C'!$C$12="W", B88*(('B. PoF Summary Stats & Params-C'!$M$12/'B. PoF Summary Stats & Params-C'!$O$12)*((A88)/'B. PoF Summary Stats & Params-C'!$O$12)^('B. PoF Summary Stats & Params-C'!$M$12-1)), "Choose Model")) -> 0.09717344224
A89: 85 | B89: 1 | C89: =IF('B. PoF Summary Stats & Params-C'!$C$12="C", B89*'B. PoF Summary Stats & Params-C'!$I$8*'B. PoF Summary Stats & Params-C'!$I$10*A89^('B. PoF Summary Stats & Params-C'!$I$10-1), IF('B. PoF Summary Stats & Params-C'!$C$12="W", B89*(('B. PoF Summary Stats & Params-C'!$M$14/'B. PoF Summary Stats & Params-C'!$O$14)*((A89)/'B. PoF Summary Stats & Params-C'!$O$14)^('B. PoF Summary Stats & Params-C'!$M$14-1)), "Choose Model")) -> 0.1579459114 | D89: =IF('B. PoF Summary Stats & Params-C'!$C$12="C", B89*'B. PoF Summary Stats & Params-C'!$I$8*'B. PoF Summary Stats & Params-C'!$I$6*A89^('B. PoF Summary Stats & Params-C'!$I$6-1), IF('B. PoF Summary Stats & Params-C'!$C$12="W", B89*(('B. PoF Summary Stats & Params-C'!$M$6/'B. PoF Summary Stats & Params-C'!$M$8)*((A89)/'B. PoF Summary Stats & Params-C'!$M$8)^('B. PoF Summary Stats & Params-C'!$M$6-1)), "Choose Model")) -> 0.1253850324 | E89: =IF('B. PoF Summary Stats & Params-C'!$C$12="C", B89*'B. PoF Summary Stats & Params-C'!$I$8*'B. PoF Summary Stats & Params-C'!$I$12*A89^('B. PoF Summary Stats & Params-C'!$I$12-1), IF('B. PoF Summary Stats & Params-C'!$C$12="W", B89*(('B. PoF Summary Stats & Params-C'!$M$12/'B. PoF Summary Stats & Params-C'!$O$12)*((A89)/'B. PoF Summary Stats & Params-C'!$O$12)^('B. PoF Summary Stats & Params-C'!$M$12-1)), "Choose Model")) -> 0.09951167674
A90: 86 | B90: 1 | C90: =IF('B. PoF Summary Stats & Params-C'!$C$12="C", B90*'B. PoF Summary Stats & Params-C'!$I$8*'B. PoF Summary Stats & Params-C'!$I$10*A90^('B. PoF Summary Stats & Params-C'!$I$10-1), IF('B. PoF Summary Stats & Params-C'!$C$12="W", B90*(('B. PoF Summary Stats & Params-C'!$M$14/'B. PoF Summary Stats & Params-C'!$O$14)*((A90)/'B. PoF Summary Stats & Params-C'!$O$14)^('B. PoF Summary Stats & Params-C'!$M$14-1)), "Choose Model")) -> 0.1618847906 | D90: =IF('B. PoF Summary Stats & Params-C'!$C$12="C", B90*'B. PoF Summary Stats & Params-C'!$I$8*'B. PoF Summary Stats & Params-C'!$I$6*A90^('B. PoF Summary Stats & Params-C'!$I$6-1), IF('B. PoF Summary Stats & Params-C'!$C$12="W", B90*(('B. PoF Summary Stats & Params-C'!$M$6/'B. PoF Summary Stats & Params-C'!$M$8)*((A90)/'B. PoF Summary Stats & Params-C'!$M$8)^('B. PoF Summary Stats & Params-C'!$M$6-1)), "Choose Model")) -> 0.1284391328 | E90: =IF('B. PoF Summary Stats & Params-C'!$C$12="C", B90*'B. PoF Summary Stats & Params-C'!$I$8*'B. PoF Summary Stats & Params-C'!$I$12*A90^('B. PoF Summary Stats & Params-C'!$I$12-1), IF('B. PoF Summary Stats & Params-C'!$C$12="W", B90*(('B. PoF Summary Stats & Params-C'!$M$12/'B. PoF Summary Stats & Params-C'!$O$12)*((A90)/'B. PoF Summary Stats & Params-C'!$O$12)^('B. PoF Summary Stats & Params-C'!$M$12-1)), "Choose Model")) -> 0.1018778382
A91: 87 | B91: 1 | C91: =IF('B. PoF Summary Stats & Params-C'!$C$12="C", B91*'B. PoF Summary Stats & Params-C'!$I$8*'B. PoF Summary Stats & Params-C'!$I$10*A91^('B. PoF Summary Stats & Params-C'!$I$10-1), IF('B. PoF Summary Stats & Params-C'!$C$12="W", B91*(('B. PoF Summary Stats & Params-C'!$M$14/'B. PoF Summary Stats & Params-C'!$O$14)*((A91)/'B. PoF Summary Stats & Params-C'!$O$14)^('B. PoF Summary Stats & Params-C'!$M$14-1)), "Choose Model")) -> 0.1658746549 | D91: =IF('B. PoF Summary Stats & Params-C'!$C$12="C", B91*'B. PoF Summary Stats & Params-C'!$I$8*'B. PoF Summary Stats & Params-C'!$I$6*A91^('B. PoF Summary Stats & Params-C'!$I$6-1), IF('B. PoF Summary Stats & Params-C'!$C$12="W", B91*(('B. PoF Summary Stats & Params-C'!$M$6/'B. PoF Summary Stats & Params-C'!$M$8)*((A91)/'B. PoF Summary Stats & Params-C'!$M$8)^('B. PoF Summary Stats & Params-C'!$M$6-1)), "Choose Model")) -> 0.1315310241 | E91: =IF('B. PoF Summary Stats & Params-C'!$C$12="C", B91*'B. PoF Summary Stats & Params-C'!$I$8*'B. PoF Summary Stats & Params-C'!$I$12*A91^('B. PoF Summary Stats & Params-C'!$I$12-1), IF('B. PoF Summary Stats & Params-C'!$C$12="W", B91*(('B. PoF Summary Stats & Params-C'!$M$12/'B. PoF Summary Stats & Params-C'!$O$12)*((A91)/'B. PoF Summary Stats & Params-C'!$O$12)^('B. PoF Summary Stats & Params-C'!$M$12-1)), "Choose Model")) -> 0.1042719295
A92: 88 | B92: 1 | C92: =IF('B. PoF Summary Stats & Params-C'!$C$12="C", B92*'B. PoF Summary Stats & Params-C'!$I$8*'B. PoF Summary Stats & Params-C'!$I$10*A92^('B. PoF Summary Stats & Params-C'!$I$10-1), IF('B. PoF Summary Stats & Params-C'!$C$12="W", B92*(('B. PoF Summary Stats & Params-C'!$M$14/'B. PoF Summary Stats & Params-C'!$O$14)*((A92)/'B. PoF Summary Stats & Params-C'!$O$14)^('B. PoF Summary Stats & Params-C'!$M$14-1)), "Choose Model")) -> 0.1699155669 | D92: =IF('B. PoF Summary Stats & Params-C'!$C$12="C", B92*'B. PoF Summary Stats & Params-C'!$I$8*'B. PoF Summary Stats & Params-C'!$I$6*A92^('B. PoF Summary Stats & Params-C'!$I$6-1), IF('B. PoF Summary Stats & Params-C'!$C$12="W", B92*(('B. PoF Summary Stats & Params-C'!$M$6/'B. PoF Summary Stats & Params-C'!$M$8)*((A92)/'B. PoF Summary Stats & Params-C'!$M$8)^('B. PoF Summary Stats & Params-C'!$M$6-1)), "Choose Model")) -> 0.1346607315 | E92: =IF('B. PoF Summary Stats & Params-C'!$C$12="C", B92*'B. PoF Summary Stats & Params-C'!$I$8*'B. PoF Summary Stats & Params-C'!$I$12*A92^('B. PoF Summary Stats & Params-C'!$I$12-1), IF('B. PoF Summary Stats & Params-C'!$C$12="W", B92*(('B. PoF Summary Stats & Params-C'!$M$12/'B. PoF Summary Stats & Params-C'!$O$12)*((A92)/'B. PoF Summary Stats & Params-C'!$O$12)^('B. PoF Summary Stats & Params-C'!$M$12-1)), "Choose Model")) -> 0.1066939537
A93: 89 | B93: 1 | C93: =IF('B. PoF Summary Stats & Params-C'!$C$12="C", B93*'B. PoF Summary Stats & Params-C'!$I$8*'B. PoF Summary Stats & Params-C'!$I$10*A93^('B. PoF Summary Stats & Params-C'!$I$10-1), IF('B. PoF Summary Stats & Params-C'!$C$12="W", B93*(('B. PoF Summary Stats & Params-C'!$M$14/'B. PoF Summary Stats & Params-C'!$O$14)*((A93)/'B. PoF Summary Stats & Params-C'!$O$14)^('B. PoF Summary Stats & Params-C'!$M$14-1)), "Choose Model")) -> 0.1740075885 | D93: =IF('B. PoF Summary Stats & Params-C'!$C$12="C", B93*'B. PoF Summary Stats & Params-C'!$I$8*'B. PoF Summary Stats & Params-C'!$I$6*A93^('B. PoF Summary Stats & Params-C'!$I$6-1), IF('B. PoF Summary Stats & Params-C'!$C$12="W", B93*(('B. PoF Summary Stats & Params-C'!$M$6/'B. PoF Summary Stats & Params-C'!$M$8)*((A93)/'B. PoF Summary Stats & Params-C'!$M$8)^('B. PoF Summary Stats & Params-C'!$M$6-1)), "Choose Model")) -> 0.1378282798 | E93: =IF('B. PoF Summary Stats & Params-C'!$C$12="C", B93*'B. PoF Summary Stats & Params-C'!$I$8*'B. PoF Summary Stats & Params-C'!$I$12*A93^('B. PoF Summary Stats & Params-C'!$I$12-1), IF('B. PoF Summary Stats & Params-C'!$C$12="W", B93*(('B. PoF Summary Stats & Params-C'!$M$12/'B. PoF Summary Stats & Params-C'!$O$12)*((A93)/'B. PoF Summary Stats & Params-C'!$O$12)^('B. PoF Summary Stats & Params-C'!$M$12-1)), "Choose Model")) -> 0.1091439138
A94: 90 | B94: 1 | C94: =IF('B. PoF Summary Stats & Params-C'!$C$12="C", B94*'B. PoF Summary Stats & Params-C'!$I$8*'B. PoF Summary Stats & Params-C'!$I$10*A94^('B. PoF Summary Stats & Params-C'!$I$10-1), IF('B. PoF Summary Stats & Params-C'!$C$12="W", B94*(('B. PoF Summary Stats & Params-C'!$M$14/'B. PoF Summary Stats & Params-C'!$O$14)*((A94)/'B. PoF Summary Stats & Params-C'!$O$14)^('B. PoF Summary Stats & Params-C'!$M$14-1)), "Choose Model")) -> 0.1781507808 | D94: =IF('B. PoF Summary Stats & Params-C'!$C$12="C", B94*'B. PoF Summary Stats & Params-C'!$I$8*'B. PoF Summary Stats & Params-C'!$I$6*A94^('B. PoF Summary Stats & Params-C'!$I$6-1), IF('B. PoF Summary Stats & Params-C'!$C$12="W", B94*(('B. PoF Summary Stats & Params-C'!$M$6/'B. PoF Summary Stats & Params-C'!$M$8)*((A94)/'B. PoF Summary Stats & Params-C'!$M$8)^('B. PoF Summary Stats & Params-C'!$M$6-1)), "Choose Model")) -> 0.1410336938 | E94: =IF('B. PoF Summary Stats & Params-C'!$C$12="C", B94*'B. PoF Summary Stats & Params-C'!$I$8*'B. PoF Summary Stats & Params-C'!$I$12*A94^('B. PoF Summary Stats & Params-C'!$I$12-1), IF('B. PoF Summary Stats & Params-C'!$C$12="W", B94*(('B. PoF Summary Stats & Params-C'!$M$12/'B. PoF Summary Stats & Params-C'!$O$12)*((A94)/'B. PoF Summary Stats & Params-C'!$O$12)^('B. PoF Summary Stats & Params-C'!$M$12-1)), "Choose Model")) -> 0.1116218125
A95: 91 | B95: 1 | C95: =IF('B. PoF Summary Stats & Params-C'!$C$12="C", B95*'B. PoF Summary Stats & Params-C'!$I$8*'B. PoF Summary Stats & Params-C'!$I$10*A95^('B. PoF Summary Stats & Params-C'!$I$10-1), IF('B. PoF Summary Stats & Params-C'!$C$12="W", B95*(('B. PoF Summary Stats & Params-C'!$M$14/'B. PoF Summary Stats & Params-C'!$O$14)*((A95)/'B. PoF Summary Stats & Params-C'!$O$14)^('B. PoF Summary Stats & Params-C'!$M$14-1)), "Choose Model")) -> 0.1823452046 | D95: =IF('B. PoF Summary Stats & Params-C'!$C$12="C", B95*'B. PoF Summary Stats & Params-C'!$I$8*'B. PoF Summary Stats & Params-C'!$I$6*A95^('B. PoF Summary Stats & Params-C'!$I$6-1), IF('B. PoF Summary Stats & Params-C'!$C$12="W", B95*(('B. PoF Summary Stats & Params-C'!$M$6/'B. PoF Summary Stats & Params-C'!$M$8)*((A95)/'B. PoF Summary Stats & Params-C'!$M$8)^('B. PoF Summary Stats & Params-C'!$M$6-1)), "Choose Model")) -> 0.1442769977 | E95: =IF('B. PoF Summary Stats & Params-C'!$C$12="C", B95*'B. PoF Summary Stats & Params-C'!$I$8*'B. PoF Summary Stats & Params-C'!$I$12*A95^('B. PoF Summary Stats & Params-C'!$I$12-1), IF('B. PoF Summary Stats & Params-C'!$C$12="W", B95*(('B. PoF Summary Stats & Params-C'!$M$12/'B. PoF Summary Stats & Params-C'!$O$12)*((A95)/'B. PoF Summary Stats & Params-C'!$O$12)^('B. PoF Summary Stats & Params-C'!$M$12-1)), "Choose Model")) -> 0.1141276529
A96: 92 | B96: 1 | C96: =IF('B. PoF Summary Stats & Params-C'!$C$12="C", B96*'B. PoF Summary Stats & Params-C'!$I$8*'B. PoF Summary Stats & Params-C'!$I$10*A96^('B. PoF Summary Stats & Params-C'!$I$10-1), IF('B. PoF Summary Stats & Params-C'!$C$12="W", B96*(('B. PoF Summary Stats & Params-C'!$M$14/'B. PoF Summary Stats & Params-C'!$O$14)*((A96)/'B. PoF Summary Stats & Params-C'!$O$14)^('B. PoF Summary Stats & Params-C'!$M$14-1)), "Choose Model")) -> 0.18659092 | D96: =IF('B. PoF Summary Stats & Params-C'!$C$12="C", B96*'B. PoF Summary Stats & Params-C'!$I$8*'B. PoF Summary Stats & Params-C'!$I$6*A96^('B. PoF Summary Stats & Params-C'!$I$6-1), IF('B. PoF Summary Stats & Params-C'!$C$12="W", B96*(('B. PoF Summary Stats & Params-C'!$M$6/'B. PoF Summary Stats & Params-C'!$M$8)*((A96)/'B. PoF Summary Stats & Params-C'!$M$8)^('B. PoF Summary Stats & Params-C'!$M$6-1)), "Choose Model")) -> 0.1475582158 | E96: =IF('B. PoF Summary Stats & Params-C'!$C$12="C", B96*'B. PoF Summary Stats & Params-C'!$I$8*'B. PoF Summary Stats & Params-C'!$I$12*A96^('B. PoF Summary Stats & Params-C'!$I$12-1), IF('B. PoF Summary Stats & Params-C'!$C$12="W", B96*(('B. PoF Summary Stats & Params-C'!$M$12/'B. PoF Summary Stats & Params-C'!$O$12)*((A96)/'B. PoF Summary Stats & Params-C'!$O$12)^('B. PoF Summary Stats & Params-C'!$M$12-1)), "Choose Model")) -> 0.1166614376
A97: 93 | B97: 1 | C97: =IF('B. PoF Summary Stats & Params-C'!$C$12="C", B97*'B. PoF Summary Stats & Params-C'!$I$8*'B. PoF Summary Stats & Params-C'!$I$10*A97^('B. PoF Summary Stats & Params-C'!$I$10-1), IF('B. PoF Summary Stats & Params-C'!$C$12="W", B97*(('B. PoF Summary Stats & Params-C'!$M$14/'B. PoF Summary Stats & Params-C'!$O$14)*((A97)/'B. PoF Summary Stats & Params-C'!$O$14)^('B. PoF Summary Stats & Params-C'!$M$14-1)), "Choose Model")) -> 0.1908879864 | D97: =IF('B. PoF Summary Stats & Params-C'!$C$12="C", B97*'B. PoF Summary Stats & Params-C'!$I$8*'B. PoF Summary Stats & Params-C'!$I$6*A97^('B. PoF Summary Stats & Params-C'!$I$6-1), IF('B. PoF Summary Stats & Params-C'!$C$12="W", B97*(('B. PoF Summary Stats & Params-C'!$M$6/'B. PoF Summary Stats & Params-C'!$M$8)*((A97)/'B. PoF Summary Stats & Params-C'!$M$8)^('B. PoF Summary Stats & Params-C'!$M$6-1)), "Choose Model")) -> 0.1508773718 | E97: =IF('B. PoF Summary Stats & Params-C'!$C$12="C", B97*'B. PoF Summary Stats & Params-C'!$I$8*'B. PoF Summary Stats & Params-C'!$I$12*A97^('B. PoF Summary Stats & Params-C'!$I$12-1), IF('B. PoF Summary Stats & Params-C'!$C$12="W", B97*(('B. PoF Summary Stats & Params-C'!$M$12/'B. PoF Summary Stats & Params-C'!$O$12)*((A97)/'B. PoF Summary Stats & Params-C'!$O$12)^('B. PoF Summary Stats & Params-C'!$M$12-1)), "Choose Model")) -> 0.1192231696
A98: 94 | B98: 1 | C98: =IF('B. PoF Summary Stats & Params-C'!$C$12="C", B98*'B. PoF Summary Stats & Params-C'!$I$8*'B. PoF Summary Stats & Params-C'!$I$10*A98^('B. PoF Summary Stats & Params-C'!$I$10-1), IF('B. PoF Summary Stats & Params-C'!$C$12="W", B98*(('B. PoF Summary Stats & Params-C'!$M$14/'B. PoF Summary Stats & Params-C'!$O$14)*((A98)/'B. PoF Summary Stats & Params-C'!$O$14)^('B. PoF Summary Stats & Params-C'!$M$14-1)), "Choose Model")) -> 0.1952364627 | D98: =IF('B. PoF Summary Stats & Params-C'!$C$12="C", B98*'B. PoF Summary Stats & Params-C'!$I$8*'B. PoF Summary Stats & Params-C'!$I$6*A98^('B. PoF Summary Stats & Params-C'!$I$6-1), IF('B. PoF Summary Stats & Params-C'!$C$12="W", B98*(('B. PoF Summary Stats & Params-C'!$M$6/'B. PoF Summary Stats & Params-C'!$M$8)*((A98)/'B. PoF Summary Stats & Params-C'!$M$8)^('B. PoF Summary Stats & Params-C'!$M$6-1)), "Choose Model")) -> 0.1542344895 | E98: =IF('B. PoF Summary Stats & Params-C'!$C$12="C", B98*'B. PoF Summary Stats & Params-C'!$I$8*'B. PoF Summary Stats & Params-C'!$I$12*A98^('B. PoF Summary Stats & Params-C'!$I$12-1), IF('B. PoF Summary Stats & Params-C'!$C$12="W", B98*(('B. PoF Summary Stats & Params-C'!$M$12/'B. PoF Summary Stats & Params-C'!$O$12)*((A98)/'B. PoF Summary Stats & Params-C'!$O$12)^('B. PoF Summary Stats & Params-C'!$M$12-1)), "Choose Model")) -> 0.1218128515
A99: 95 | B99: 1 | C99: =IF('B. PoF Summary Stats & Params-C'!$C$12="C", B99*'B. PoF Summary Stats & Params-C'!$I$8*'B. PoF Summary Stats & Params-C'!$I$10*A99^('B. PoF Summary Stats & Params-C'!$I$10-1), IF('B. PoF Summary Stats & Params-C'!$C$12="W", B99*(('B. PoF Summary Stats & Params-C'!$M$14/'B. PoF Summary Stats & Params-C'!$O$14)*((A99)/'B. PoF Summary Stats & Params-C'!$O$14)^('B. PoF Summary Stats & Params-C'!$M$14-1)), "Choose Model")) -> 0.1996364072 | D99: =IF('B. PoF Summary Stats & Params-C'!$C$12="C", B99*'B. PoF Summary Stats & Params-C'!$I$8*'B. PoF Summary Stats & Params-C'!$I$6*A99^('B. PoF Summary Stats & Params-C'!$I$6-1), IF('B. PoF Summary Stats & Params-C'!$C$12="W", B99*(('B. PoF Summary Stats & Params-C'!$M$6/'B. PoF Summary Stats & Params-C'!$M$8)*((A99)/'B. PoF Summary Stats & Params-C'!$M$8)^('B. PoF Summary Stats & Params-C'!$M$6-1)), "Choose Model")) -> 0.1576295922 | E99: =IF('B. PoF Summary Stats & Params-C'!$C$12="C", B99*'B. PoF Summary Stats & Params-C'!$I$8*'B. PoF Summary Stats & Params-C'!$I$12*A99^('B. PoF Summary Stats & Params-C'!$I$12-1), IF('B. PoF Summary Stats & Params-C'!$C$12="W", B99*(('B. PoF Summary Stats & Params-C'!$M$12/'B. PoF Summary Stats & Params-C'!$O$12)*((A99)/'B. PoF Summary Stats & Params-C'!$O$12)^('B. PoF Summary Stats & Params-C'!$M$12-1)), "Choose Model")) -> 0.1244304862
A100: 96 | B100: 1 | C100: =IF('B. PoF Summary Stats & Params-C'!$C$12="C", B100*'B. PoF Summary Stats & Params-C'!$I$8*'B. PoF Summary Stats & Params-C'!$I$10*A100^('B. PoF Summary Stats & Params-C'!$I$10-1), IF('B. PoF Summary Stats & Params-C'!$C$12="W", B100*(('B. PoF Summary Stats & Params-C'!$M$14/'B. PoF Summary Stats & Params-C'!$O$14)*((A100)/'B. PoF Summary Stats & Params-C'!$O$14)^('B. PoF Summary Stats & Params-C'!$M$14-1)), "Choose Model")) -> 0.2040878778 | D100: =IF('B. PoF Summary Stats & Params-C'!$C$12="C", B100*'B. PoF Summary Stats & Params-C'!$I$8*'B. PoF Summary Stats & Params-C'!$I$6*A100^('B. PoF Summary Stats & Params-C'!$I$6-1), IF('B. PoF Summary Stats & Params-C'!$C$12="W", B100*(('B. PoF Summary Stats & Params-C'!$M$6/'B. PoF Summary Stats & Params-C'!$M$8)*((A100)/'B. PoF Summary Stats & Params-C'!$M$8)^('B. PoF Summary Stats & Params-C'!$M$6-1)), "Choose Model")) -> 0.1610627031 | E100: =IF('B. PoF Summary Stats & Params-C'!$C$12="C", B100*'B. PoF Summary Stats & Params-C'!$I$8*'B. PoF Summary Stats & Params-C'!$I$12*A100^('B. PoF Summary Stats & Params-C'!$I$12-1), IF('B. PoF Summary Stats & Params-C'!$C$12="W", B100*(('B. PoF Summary Stats & Params-C'!$M$12/'B. PoF Summary Stats & Params-C'!$O$12)*((A100)/'B. PoF Summary Stats & Params-C'!$O$12)^('B. PoF Summary Stats & Params-C'!$M$12-1)), "Choose Model")) -> 0.1270760763
A101: 97 | B101: 1 | C101: =IF('B. PoF Summary Stats & Params-C'!$C$12="C", B101*'B. PoF Summary Stats & Params-C'!$I$8*'B. PoF Summary Stats & Params-C'!$I$10*A101^('B. PoF Summary Stats & Params-C'!$I$10-1), IF('B. PoF Summary Stats & Params-C'!$C$12="W", B101*(('B. PoF Summary Stats & Params-C'!$M$14/'B. PoF Summary Stats & Params-C'!$O$14)*((A101)/'B. PoF Summary Stats & Params-C'!$O$14)^('B. PoF Summary Stats & Params-C'!$M$14-1)), "Choose Model")) -> 0.2085909317 | D101: =IF('B. PoF Summary Stats & Params-C'!$C$12="C", B101*'B. PoF Summary Stats & Params-C'!$I$8*'B. PoF Summary Stats & Params-C'!$I$6*A101^('B. PoF Summary Stats & Params-C'!$I$6-1), IF('B. PoF Summary Stats & Params-C'!$C$12="W", B101*(('B. PoF Summary Stats & Params-C'!$M$6/'B. PoF Summary Stats & Params-C'!$M$8)*((A101)/'B. PoF Summary Stats & Params-C'!$M$8)^('B. PoF Summary Stats & Params-C'!$M$6-1)), "Choose Model")) -> 0.1645338451 | E101: =IF('B. PoF Summary Stats & Params-C'!$C$12="C", B101*'B. PoF Summary Stats & Params-C'!$I$8*'B. PoF Summary Stats & Params-C'!$I$12*A101^('B. PoF Summary Stats & Params-C'!$I$12-1), IF('B. PoF Summary Stats & Params-C'!$C$12="W", B101*(('B. PoF Summary Stats & Params-C'!$M$12/'B. PoF Summary Stats & Params-C'!$O$12)*((A101)/'B. PoF Summary Stats & Params-C'!$O$12)^('B. PoF Summary Stats & Params-C'!$M$12-1)), "Choose Model")) -> 0.1297496246
A102: 98 | B102: 1 | C102: =IF('B. PoF Summary Stats & Params-C'!$C$12="C", B102*'B. PoF Summary Stats & Params-C'!$I$8*'B. PoF Summary Stats & Params-C'!$I$10*A102^('B. PoF Summary Stats & Params-C'!$I$10-1), IF('B. PoF Summary Stats & Params-C'!$C$12="W", B102*(('B. PoF Summary Stats & Params-C'!$M$14/'B. PoF Summary Stats & Params-C'!$O$14)*((A102)/'B. PoF Summary Stats & Params-C'!$O$14)^('B. PoF Summary Stats & Params-C'!$M$14-1)), "Choose Model")) -> 0.2131456255 | D102: =IF('B. PoF Summary Stats & Params-C'!$C$12="C", B102*'B. PoF Summary Stats & Params-C'!$I$8*'B. PoF Summary Stats & Params-C'!$I$6*A102^('B. PoF Summary Stats & Params-C'!$I$6-1), IF('B. PoF Summary Stats & Params-C'!$C$12="W", B102*(('B. PoF Summary Stats & Params-C'!$M$6/'B. PoF Summary Stats & Params-C'!$M$8)*((A102)/'B. PoF Summary Stats & Params-C'!$M$8)^('B. PoF Summary Stats & Params-C'!$M$6-1)), "Choose Model")) -> 0.168043041 | E102: =IF('B. PoF Summary Stats & Params-C'!$C$12="C", B102*'B. PoF Summary Stats & Params-C'!$I$8*'B. PoF Summary Stats & Params-C'!$I$12*A102^('B. PoF Summary Stats & Params-C'!$I$12-1), IF('B. PoF Summary Stats & Params-C'!$C$12="W", B102*(('B. PoF Summary Stats & Params-C'!$M$12/'B. PoF Summary Stats & Params-C'!$O$12)*((A102)/'B. PoF Summary Stats & Params-C'!$O$12)^('B. PoF Summary Stats & Params-C'!$M$12-1)), "Choose Model")) -> 0.1324511337
A103: 99 | B103: 1 | C103: =IF('B. PoF Summary Stats & Params-C'!$C$12="C", B103*'B. PoF Summary Stats & Params-C'!$I$8*'B. PoF Summary Stats & Params-C'!$I$10*A103^('B. PoF Summary Stats & Params-C'!$I$10-1), IF('B. PoF Summary Stats & Params-C'!$C$12="W", B103*(('B. PoF Summary Stats & Params-C'!$M$14/'B. PoF Summary Stats & Params-C'!$O$14)*((A103)/'B. PoF Summary Stats & Params-C'!$O$14)^('B. PoF Summary Stats & Params-C'!$M$14-1)), "Choose Model")) -> 0.2177520156 | D103: =IF('B. PoF Summary Stats & Params-C'!$C$12="C", B103*'B. PoF Summary Stats & Params-C'!$I$8*'B. PoF Summary Stats & Params-C'!$I$6*A103^('B. PoF Summary Stats & Params-C'!$I$6-1), IF('B. PoF Summary Stats & Params-C'!$C$12="W", B103*(('B. PoF Summary Stats & Params-C'!$M$6/'B. PoF Summary Stats & Params-C'!$M$8)*((A103)/'B. PoF Summary Stats & Params-C'!$M$8)^('B. PoF Summary Stats & Params-C'!$M$6-1)), "Choose Model")) -> 0.1715903132 | E103: =IF('B. PoF Summary Stats & Params-C'!$C$12="C", B103*'B. PoF Summary Stats & Params-C'!$I$8*'B. PoF Summary Stats & Params-C'!$I$12*A103^('B. PoF Summary Stats & Params-C'!$I$12-1), IF('B. PoF Summary Stats & Params-C'!$C$12="W", B103*(('B. PoF Summary Stats & Params-C'!$M$12/'B. PoF Summary Stats & Params-C'!$O$12)*((A103)/'B. PoF Summary Stats & Params-C'!$O$12)^('B. PoF Summary Stats & Params-C'!$M$12-1)), "Choose Model")) -> 0.1351806062
A104: 100 | B104: 1 | C104: =IF('B. PoF Summary Stats & Params-C'!$C$12="C", B104*'B. PoF Summary Stats & Params-C'!$I$8*'B. PoF Summary Stats & Params-C'!$I$10*A104^('B. PoF Summary Stats & Params-C'!$I$10-1), IF('B. PoF Summary Stats & Params-C'!$C$12="W", B104*(('B. PoF Summary Stats & Params-C'!$M$14/'B. PoF Summary Stats & Params-C'!$O$14)*((A104)/'B. PoF Summary Stats & Params-C'!$O$14)^('B. PoF Summary Stats & Params-C'!$M$14-1)), "Choose Model")) -> 0.2224101575 | D104: =IF('B. PoF Summary Stats & Params-C'!$C$12="C", B104*'B. PoF Summary Stats & Params-C'!$I$8*'B. PoF Summary Stats & Params-C'!$I$6*A104^('B. PoF Summary Stats & Params-C'!$I$6-1), IF('B. PoF Summary Stats & Params-C'!$C$12="W", B104*(('B. PoF Summary Stats & Params-C'!$M$6/'B. PoF Summary Stats & Params-C'!$M$8)*((A104)/'B. PoF Summary Stats & Params-C'!$M$8)^('B. PoF Summary Stats & Params-C'!$M$6-1)), "Choose Model")) -> 0.175175684 | E104: =IF('B. PoF Summary Stats & Params-C'!$C$12="C", B104*'B. PoF Summary Stats & Params-C'!$I$8*'B. PoF Summary Stats & Params-C'!$I$12*A104^('B. PoF Summary Stats & Params-C'!$I$12-1), IF('B. PoF Summary Stats & Params-C'!$C$12="W", B104*(('B. PoF Summary Stats & Params-C'!$M$12/'B. PoF Summary Stats & Params-C'!$O$12)*((A104)/'B. PoF Summary Stats & Params-C'!$O$12)^('B. PoF Summary Stats & Params-C'!$M$12-1)), "Choose Model")) -> 0.1379380447

Sheet B. PoF Summary Stats & Params-C
C1: PoF Summary Statistics and Parameters
B3: Summary Statisitics | E3: Failure Model Parameters | H3: Crow-AMSAA Parameters | L3: Weibull Parameters | R3: Health Index Parameters
B5: Number of PoF Adjustment Factors | C5: =COUNTIF('B. Population PoF Scores-CH'!$O$5:$S$5,">"&0) -> 1
B6: Min Score | C6: =C5*1 -> 1 | E6: βavg | F6: =IF($C$12="C", I6, IF($C$12="W", M6, "Choose Model")) -> 3.057607184 | H6: βavg | L6: βavg | M6: 3.057607184 | S6: Earliest Age Asset Considered (Years) | V6: 0.5 | X6: Min PoF | Y6: =IF($C$12="C", I8*I12*V6^(I12-1), IF($C$12="W", (($M12/$O12)*((V6)/$O12)^(M12-1)), "Choose Model")) -> 3.284752267e-06
B7: Max Score | C7: =C5*5 -> 5 | E7: 95%CI Adj (β) | F7: =(F6-F14)/F6 -> 0.01583854655 | S7: Asset RAB Life (Years) | V7: 45.89 | X7: Max PoF | Y7: =IF($C$12="C", I8*I10*V9^(I10-1), IF($C$12="W", (($M14/$O14)*((V9)/$O14)^(M14-1)), "Choose Model")) -> 0.05166243112
B8: No. of Z-Scores | C8: =5^C5 -> 5 | F8: =F6*F7 -> 0.04842805372 | H8: λavg | L8: havg | M8: 56.50197067 | S8: Asset RAB Life Addition (%) | V8: 0.1 | X8: HI Categories | Y8: 10
E9: Std. Dev | F9: =SQRT(_xlfn.STDEV.P(({1;2;3;4;5}*'B. Population PoF Scores-CH'!O5))^2+_xlfn.STDEV.P(({1;2;3;4;5}*'B. Population PoF Scores-CH'!P5))^2+_xlfn.STDEV.P(({1;2;3;4;5}*'B. Population PoF Scores-CH'!Q5))^2+_xlfn.STDEV.P(({1;2;3;4;5}*'B. Population PoF Scores-CH'!R5))^2+_xlfn.STDEV.P(({1;2;3;4;5}*'B. Population PoF Scores-CH'!S5))^2) -> 1.414213562 | S9: Asset RAB Life + Addition (%) | V9: =ROUND(V7*(1+V8), 0) -> 50 | X9: Delta per Cat. | Y9: =(Y7-Y6)/Y8 -> 0.005165914637
B10: Reference Date | C10: 2018 | E10: Max Std. Dev | F10: =(SUM('B. Population PoF Scores-CH'!O5:S5)-F11)/F9*-1 -> 1.414213562 | H10: βpoor | L10: b | M10: -12.3352298
E11: Average PoF Factor Score | F11: =SUM('B. Population PoF Scores-CH'!O5:S5)*3 -> 3
B12: Crow-AMSAA or Weibull Failure Model | C12: W | E12: β ZCF Scalar | F12: =F8/F10 -> 0.03424380518 | H12: βgood | L12: βgood | M12: 3.00917913 | N12: hgood | O12: 60.292089 | S12: HEALTH INDEX | T12: PoF Range
S13: 1 | T13: 0 | U13: =$Y$6+S13*$Y$9 -> 0.005169199389
B14: Replacement Type | C14: Like-for-like | E14: βgood | F14: =IF($C$12="C", I12, IF($C$12="W", M12, "Choose Model")) -> 3.00917913 | L14: βpoor | M14: 3.106035237 | N14: hpoor | O14: 53.05741948 | S14: 2 | T14: =U13 -> 0.005169199389 | U14: 0.01033511403
E15: βpoor | F15: =IF($C$12="C", I10, IF($C$12="W", M14, "Choose Model")) -> 3.106035237 | S15: 3 | T15: 0.01033511403 | U15: 0.01550102866
E16: λpopulation | F16: =IF($C$12="C", I8, "Not Applicable") -> Not Applicable | S16: 4 | T16: 0.01550102866 | U16: 0.0206669433
S17: 5 | T17: 0.0206669433 | U17: 0.02583285794
E18: havg | F18: =IF($C$12="C", "Not Applicable", M8) -> 56.50197067 | S18: 6 | T18: 0.02583285794 | U18: 0.03099877257
E19: Intercept (b) | F19: =IF($C$12="C", "Not Applicable", M10) -> -12.3352298 | S19: 7 | T19: 0.03099877257 | U19: 0.03616468721
E20: hgood | F20: =IF($C$12="C", "Not Applicable", O12) -> 60.292089 | S20: 8 | T20: 0.03616468721 | U20: 0.04133060185
E21: 95%CI Adj (hgood) | F21: =IF($C$12="C", "Not Applicable", (F20-M8)/M8) -> 0.06707940054 | S21: 9 | T21: 0.04133060185 | U21: 0.04649651649
S22: 10 | T22: 0.04649651649 | U22: 0.05166243112
E23: hpoor | F23: =IF($C$12="C", "Not Applicable", O14) -> 53.05741948
E24: 95%CI Adj (hpoor) | F24: =IF($C$12="C", "Not Applicable", (F23-M8)/M8) -> -0.06096338158
E26: Replacement Asset PoF | F26: =IF($C$14="Like-for-like",IF($C$12="C",I8*I6*V6^(I12-1),IF($C$12="W",(($M6/$M8)*((V6)/$M8)^(M6-1)),"Choose Model")),IF($C$14="New model",IF($C$12="C", I8*I12*V6^(I12-1), IF($C$12="W", (($M12/$O12)*((V6)/$O12)^(M12-1)), "Choose Model")))) -> 3.227438484e-06

Sheet B. PoF Adj Factor Scoring-CH
C1: PoF Adjustment Factors and Scores
B3: PoF Affect | C3: PoF Score | E3: ='B. Population PoF Scores-CH'!B4 -> Construction Type | G3: ='B. Population PoF Scores-CH'!C4 -> 0 | I3: ='B. Population PoF Scores-CH'!D4 -> 0 | K3: ='B. Population PoF Scores-CH'!E4 -> 0 | M3: ='B. Population PoF Scores-CH'!F4 -> 0
E4: Factor Value | F4: PoF Score | G4: Factor Value | H4: PoF Score | I4: Factor Value | J4: PoF Score | K4: Factor Value | L4: PoF Score | M4: Factor Value | N4: PoF Score
E5: Conservator | F5: 4 | G5: 0 | H5: 1
B6: Insignificant | C6: 1 | E6: N/A | F6: 1
B7: Minor | C7: 2
B8: Moderate | C8: 3
B9: Major | C9: 4
B10: Severe | C10: 5

Sheet B. Population PoF Scores-CH
C1: Population PoF Scores
A3: Asset Identifier | B3: POF ADJUSTMENT FACTORS | G3: POF SCORES
B4: ='A. Population Info-CH'!G5 -> Construction Type | C4: ='A. Population Info-CH'!H5 -> 0 | D4: ='A. Population Info-CH'!I5 -> 0 | E4: ='A. Population Info-CH'!J5 -> 0 | F4: ='A. Population Info-CH'!K5 -> 0 | G4: =B4 -> Construction Type | H4: =C4 -> 0 | I4: =D4 -> 0 | J4: =E4 -> 0 | K4: =F4 -> 0 | O4: =B4 -> Construction Type | P4: =C4 -> 0 | Q4: =D4 -> 0 | R4: =E4 -> 0 | S4: =F4 -> 0
G5: =O5 -> 1 | H5: =P5 -> 0 | I5: =Q5 -> 0 | J5: =R5 -> 0 | K5: =S5 -> 0 | N5: Weighting 1 | O5: 1 | P5: 0 | Q5: 0 | R5: 0 | S5: 0
A6: ='A. Population Info-CH'!A6 -> 1000003037 | B6: ='A. Population Info-CH'!G6 -> N/A | C6: ='A. Population Info-CH'!H6 -> 0 | D6: ='A. Population Info-CH'!I6 -> 0 | E6: ='A. Population Info-CH'!J6 -> 0 | F6: ='A. Population Info-CH'!K6 -> 0 | G6: =VLOOKUP(B:B,OFFSET('B. PoF Adj Factor Scoring-CH'!$E$5:$F$282,,MATCH(G$4,'B. PoF Adj Factor Scoring-CH'!$E$3:$N$3,0)-1),2,TRUE) -> 1 | H6: =VLOOKUP(C:C,OFFSET('B. PoF Adj Factor Scoring-CH'!$E$5:$F$282,,MATCH(H$4,'B. PoF Adj Factor Scoring-CH'!$E$3:$N$3,0)-1),2,TRUE) -> 1 | I6: =VLOOKUP(D:D,OFFSET('B. PoF Adj Factor Scoring-CH'!$E$5:$F$282,,MATCH(I$4,'B. PoF Adj Factor Scoring-CH'!$E$3:$N$3,0)-1),2,TRUE) -> 1 | J6: =VLOOKUP(E:E,OFFSET('B. PoF Adj Factor Scoring-CH'!$E$5:$F$282,,MATCH(J$4,'B. PoF Adj Factor Scoring-CH'!$E$3:$N$3,0)-1),2,TRUE) -> 1 | K6: =VLOOKUP(F:F,OFFSET('B. PoF Adj Factor Scoring-CH'!$E$5:$F$282,,MATCH(K$4,'B. PoF Adj Factor Scoring-CH'!$E$3:$N$3,0)-1),2,TRUE) -> 1
A7: ='A. Population Info-CH'!A7 -> 1000003042 | B7: ='A. Population Info-CH'!G7 -> N/A | C7: ='A. Population Info-CH'!H7 -> 0 | D7: ='A. Population Info-CH'!I7 -> 0 | E7: ='A. Population Info-CH'!J7 -> 0 | F7: ='A. Population Info-CH'!K7 -> 0 | G7: =VLOOKUP(B:B,OFFSET('B. PoF Adj Factor Scoring-CH'!$E$5:$F$282,,MATCH(G$4,'B. PoF Adj Factor Scoring-CH'!$E$3:$N$3,0)-1),2,TRUE) -> 1 | H7: =VLOOKUP(C:C,OFFSET('B. PoF Adj Factor Scoring-CH'!$E$5:$F$282,,MATCH(H$4,'B. PoF Adj Factor Scoring-CH'!$E$3:$N$3,0)-1),2,TRUE) -> 1 | I7: =VLOOKUP(D:D,OFFSET('B. PoF Adj Factor Scoring-CH'!$E$5:$F$282,,MATCH(I$4,'B. PoF Adj Factor Scoring-CH'!$E$3:$N$3,0)-1),2,TRUE) -> 1 | J7: =VLOOKUP(E:E,OFFSET('B. PoF Adj Factor Scoring-CH'!$E$5:$F$282,,MATCH(J$4,'B. PoF Adj Factor Scoring-CH'!$E$3:$N$3,0)-1),2,TRUE) -> 1 | K7: =VLOOKUP(F:F,OFFSET('B. PoF Adj Factor Scoring-CH'!$E$5:$F$282,,MATCH(K$4,'B. PoF Adj Factor Scoring-CH'!$E$3:$N$3,0)-1),2,TRUE) -> 1
A8: ='A. Population Info-CH'!A8 -> 1000003049 | B8: ='A. Population Info-CH'!G8 -> N/A | C8: ='A. Population Info-CH'!H8 -> 0 | D8: ='A. Population Info-CH'!I8 -> 0 | E8: ='A. Population Info-CH'!J8 -> 0 | F8: ='A. Population Info-CH'!K8 -> 0 | G8: =VLOOKUP(B:B,OFFSET('B. PoF Adj Factor Scoring-CH'!$E$5:$F$282,,MATCH(G$4,'B. PoF Adj Factor Scoring-CH'!$E$3:$N$3,0)-1),2,TRUE) -> 1 | H8: =VLOOKUP(C:C,OFFSET('B. PoF Adj Factor Scoring-CH'!$E$5:$F$282,,MATCH(H$4,'B. PoF Adj Factor Scoring-CH'!$E$3:$N$3,0)-1),2,TRUE) -> 1 | I8: =VLOOKUP(D:D,OFFSET('B. PoF Adj Factor Scoring-CH'!$E$5:$F$282,,MATCH(I$4,'B. PoF Adj Factor Scoring-CH'!$E$3:$N$3,0)-1),2,TRUE) -> 1 | J8: =VLOOKUP(E:E,OFFSET('B. PoF Adj Factor Scoring-CH'!$E$5:$F$282,,MATCH(J$4,'B. PoF Adj Factor Scoring-CH'!$E$3:$N$3,0)-1),2,TRUE) -> 1 | K8: =VLOOKUP(F:F,OFFSET('B. PoF Adj Factor Scoring-CH'!$E$5:$F$282,,MATCH(K$4,'B. PoF Adj Factor Scoring-CH'!$E$3:$N$3,0)-1),2,TRUE) -> 1
A9: ='A. Population Info-CH'!A9 -> 1000003057 | B9: ='A. Population Info-CH'!G9 -> N/A | C9: ='A. Population Info-CH'!H9 -> 0 | D9: ='A. Population Info-CH'!I9 -> 0 | E9: ='A. Population Info-CH'!J9 -> 0 | F9: ='A. Population Info-CH'!K9 -> 0 | G9: =VLOOKUP(B:B,OFFSET('B. PoF Adj Factor Scoring-CH'!$E$5:$F$282,,MATCH(G$4,'B. PoF Adj Factor Scoring-CH'!$E$3:$N$3,0)-1),2,TRUE) -> 1 | H9: =VLOOKUP(C:C,OFFSET('B. PoF Adj Factor Scoring-CH'!$E$5:$F$282,,MATCH(H$4,'B. PoF Adj Factor Scoring-CH'!$E$3:$N$3,0)-1),2,TRUE) -> 1 | I9: =VLOOKUP(D:D,OFFSET('B. PoF Adj Factor Scoring-CH'!$E$5:$F$282,,MATCH(I$4,'B. PoF Adj Factor Scoring-CH'!$E$3:$N$3,0)-1),2,TRUE) -> 1 | J9: =VLOOKUP(E:E,OFFSET('B. PoF Adj Factor Scoring-CH'!$E$5:$F$282,,MATCH(J$4,'B. PoF Adj Factor Scoring-CH'!$E$3:$N$3,0)-1),2,TRUE) -> 1 | K9: =VLOOKUP(F:F,OFFSET('B. PoF Adj Factor Scoring-CH'!$E$5:$F$282,,MATCH(K$4,'B. PoF Adj Factor Scoring-CH'!$E$3:$N$3,0)-1),2,TRUE) -> 1
A10: ='A. Population Info-CH'!A10 -> 1000003067 | B10: ='A. Population Info-CH'!G10 -> N/A | C10: ='A. Population Info-CH'!H10 -> 0 | D10: ='A. Population Info-CH'!I10 -> 0 | E10: ='A. Population Info-CH'!J10 -> 0 | F10: ='A. Population Info-CH'!K10 -> 0 | G10: =VLOOKUP(B:B,OFFSET('B. PoF Adj Factor Scoring-CH'!$E$5:$F$282,,MATCH(G$4,'B. PoF Adj Factor Scoring-CH'!$E$3:$N$3,0)-1),2,TRUE) -> 1 | H10: =VLOOKUP(C:C,OFFSET('B. PoF Adj Factor Scoring-CH'!$E$5:$F$282,,MATCH(H$4,'B. PoF Adj Factor Scoring-CH'!$E$3:$N$3,0)-1),2,TRUE) -> 1 | I10: =VLOOKUP(D:D,OFFSET('B. PoF Adj Factor Scoring-CH'!$E$5:$F$282,,MATCH(I$4,'B. PoF Adj Factor Scoring-CH'!$E$3:$N$3,0)-1),2,TRUE) -> 1 | J10: =VLOOKUP(E:E,OFFSET('B. PoF Adj Factor Scoring-CH'!$E$5:$F$282,,MATCH(J$4,'B. PoF Adj Factor Scoring-CH'!$E$3:$N$3,0)-1),2,TRUE) -> 1 | K10: =VLOOKUP(F:F,OFFSET('B. PoF Adj Factor Scoring-CH'!$E$5:$F$282,,MATCH(K$4,'B. PoF Adj Factor Scoring-CH'!$E$3:$N$3,0)-1),2,TRUE) -> 1
A11: ='A. Population Info-CH'!A11 -> 1000003085 | B11: ='A. Population Info-CH'!G11 -> N/A | C11: ='A. Population Info-CH'!H11 -> 0 | D11: ='A. Population Info-CH'!I11 -> 0 | E11: ='A. Population Info-CH'!J11 -> 0 | F11: ='A. Population Info-CH'!K11 -> 0 | G11: =VLOOKUP(B:B,OFFSET('B. PoF Adj Factor Scoring-CH'!$E$5:$F$282,,MATCH(G$4,'B. PoF Adj Factor Scoring-CH'!$E$3:$N$3,0)-1),2,TRUE) -> 1 | H11: =VLOOKUP(C:C,OFFSET('B. PoF Adj Factor Scoring-CH'!$E$5:$F$282,,MATCH(H$4,'B. PoF Adj Factor Scoring-CH'!$E$3:$N$3,0)-1),2,TRUE) -> 1 | I11: =VLOOKUP(D:D,OFFSET('B. PoF Adj Factor Scoring-CH'!$E$5:$F$282,,MATCH(I$4,'B. PoF Adj Factor Scoring-CH'!$E$3:$N$3,0)-1),2,TRUE) -> 1 | J11: =VLOOKUP(E:E,OFFSET('B. PoF Adj Factor Scoring-CH'!$E$5:$F$282,,MATCH(J$4,'B. PoF Adj Factor Scoring-CH'!$E$3:$N$3,0)-1),2,TRUE) -> 1 | K11: =VLOOKUP(F:F,OFFSET('B. PoF Adj Factor Scoring-CH'!$E$5:$F$282,,MATCH(K$4,'B. PoF Adj Factor Scoring-CH'!$E$3:$N$3,0)-1),2,TRUE) -> 1
A12: ='A. Population Info-CH'!A12 -> 1000003095 | B12: ='A. Population Info-CH'!G12 -> N/A | C12: ='A. Population Info-CH'!H12 -> 0 | D12: ='A. Population Info-CH'!I12 -> 0 | E12: ='A. Population Info-CH'!J12 -> 0 | F12: ='A. Population Info-CH'!K12 -> 0 | G12: =VLOOKUP(B:B,OFFSET('B. PoF Adj Factor Scoring-CH'!$E$5:$F$282,,MATCH(G$4,'B. PoF Adj Factor Scoring-CH'!$E$3:$N$3,0)-1),2,TRUE) -> 1 | H12: =VLOOKUP(C:C,OFFSET('B. PoF Adj Factor Scoring-CH'!$E$5:$F$282,,MATCH(H$4,'B. PoF Adj Factor Scoring-CH'!$E$3:$N$3,0)-1),2,TRUE) -> 1 | I12: =VLOOKUP(D:D,OFFSET('B. PoF Adj Factor Scoring-CH'!$E$5:$F$282,,MATCH(I$4,'B. PoF Adj Factor Scoring-CH'!$E$3:$N$3,0)-1),2,TRUE) -> 1 | J12: =VLOOKUP(E:E,OFFSET('B. PoF Adj Factor Scoring-CH'!$E$5:$F$282,,MATCH(J$4,'B. PoF Adj Factor Scoring-CH'!$E$3:$N$3,0)-1),2,TRUE) -> 1 | K12: =VLOOKUP(F:F,OFFSET('B. PoF Adj Factor Scoring-CH'!$E$5:$F$282,,MATCH(K$4,'B. PoF Adj Factor Scoring-CH'!$E$3:$N$3,0)-1),2,TRUE) -> 1
A13: ='A. Population Info-CH'!A13 -> 1000003100 | B13: ='A. Population Info-CH'!G13 -> N/A | C13: ='A. Population Info-CH'!H13 -> 0 | D13: ='A. Population Info-CH'!I13 -> 0 | E13: ='A. Population Info-CH'!J13 -> 0 | F13: ='A. Population Info-CH'!K13 -> 0 | G13: =VLOOKUP(B:B,OFFSET('B. PoF Adj Factor Scoring-CH'!$E$5:$F$282,,MATCH(G$4,'B. PoF Adj Factor Scoring-CH'!$E$3:$N$3,0)-1),2,TRUE) -> 1 | H13: =VLOOKUP(C:C,OFFSET('B. PoF Adj Factor Scoring-CH'!$E$5:$F$282,,MATCH(H$4,'B. PoF Adj Factor Scoring-CH'!$E$3:$N$3,0)-1),2,TRUE) -> 1 | I13: =VLOOKUP(D:D,OFFSET('B. PoF Adj Factor Scoring-CH'!$E$5:$F$282,,MATCH(I$4,'B. PoF Adj Factor Scoring-CH'!$E$3:$N$3,0)-1),2,TRUE) -> 1 | J13: =VLOOKUP(E:E,OFFSET('B. PoF Adj Factor Scoring-CH'!$E$5:$F$282,,MATCH(J$4,'B. PoF Adj Factor Scoring-CH'!$E$3:$N$3,0)-1),2,TRUE) -> 1 | K13: =VLOOKUP(F:F,OFFSET('B. PoF Adj Factor Scoring-CH'!$E$5:$F$282,,MATCH(K$4,'B. PoF Adj Factor Scoring-CH'!$E$3:$N$3,0)-1),2,TRUE) -> 1
A14: ='A. Population Info-CH'!A14 -> 1000003105 | B14: ='A. Population Info-CH'!G14 -> N/A | C14: ='A. Population Info-CH'!H14 -> 0 | D14: ='A. Population Info-CH'!I14 -> 0 | E14: ='A. Population Info-CH'!J14 -> 0 | F14: ='A. Population Info-CH'!K14 -> 0 | G14: =VLOOKUP(B:B,OFFSET('B. PoF Adj Factor Scoring-CH'!$E$5:$F$282,,MATCH(G$4,'B. PoF Adj Factor Scoring-CH'!$E$3:$N$3,0)-1),2,TRUE) -> 1 | H14: =VLOOKUP(C:C,OFFSET('B. PoF Adj Factor Scoring-CH'!$E$5:$F$282,,MATCH(H$4,'B. PoF Adj Factor Scoring-CH'!$E$3:$N$3,0)-1),2,TRUE) -> 1 | I14: =VLOOKUP(D:D,OFFSET('B. PoF Adj Factor Scoring-CH'!$E$5:$F$282,,MATCH(I$4,'B. PoF Adj Factor Scoring-CH'!$E$3:$N$3,0)-1),2,TRUE) -> 1 | J14: =VLOOKUP(E:E,OFFSET('B. PoF Adj Factor Scoring-CH'!$E$5:$F$282,,MATCH(J$4,'B. PoF Adj Factor Scoring-CH'!$E$3:$N$3,0)-1),2,TRUE) -> 1 | K14: =VLOOKUP(F:F,OFFSET('B. PoF Adj Factor Scoring-CH'!$E$5:$F$282,,MATCH(K$4,'B. PoF Adj Factor Scoring-CH'!$E$3:$N$3,0)-1),2,TRUE) -> 1
A15: ='A. Population Info-CH'!A15 -> 1000003110 | B15: ='A. Population Info-CH'!G15 -> N/A | C15: ='A. Population Info-CH'!H15 -> 0 | D15: ='A. Population Info-CH'!I15 -> 0 | E15: ='A. Population Info-CH'!J15 -> 0 | F15: ='A. Population Info-CH'!K15 -> 0 | G15: =VLOOKUP(B:B,OFFSET('B. PoF Adj Factor Scoring-CH'!$E$5:$F$282,,MATCH(G$4,'B. PoF Adj Factor Scoring-CH'!$E$3:$N$3,0)-1),2,TRUE) -> 1 | H15: =VLOOKUP(C:C,OFFSET('B. PoF Adj Factor Scoring-CH'!$E$5:$F$282,,MATCH(H$4,'B. PoF Adj Factor Scoring-CH'!$E$3:$N$3,0)-1),2,TRUE) -> 1 | I15: =VLOOKUP(D:D,OFFSET('B. PoF Adj Factor Scoring-CH'!$E$5:$F$282,,MATCH(I$4,'B. PoF Adj Factor Scoring-CH'!$E$3:$N$3,0)-1),2,TRUE) -> 1 | J15: =VLOOKUP(E:E,OFFSET('B. PoF Adj Factor Scoring-CH'!$E$5:$F$282,,MATCH(J$4,'B. PoF Adj Factor Scoring-CH'!$E$3:$N$3,0)-1),2,TRUE) -> 1 | K15: =VLOOKUP(F:F,OFFSET('B. PoF Adj Factor Scoring-CH'!$E$5:$F$282,,MATCH(K$4,'B. PoF Adj Factor Scoring-CH'!$E$3:$N$3,0)-1),2,TRUE) -> 1
A16: ='A. Population Info-CH'!A16 -> 1000003114 | B16: ='A. Population Info-CH'!G16 -> N/A | C16: ='A. Population Info-CH'!H16 -> 0 | D16: ='A. Population Info-CH'!I16 -> 0 | E16: ='A. Population Info-CH'!J16 -> 0 | F16: ='A. Population Info-CH'!K16 -> 0 | G16: =VLOOKUP(B:B,OFFSET('B. PoF Adj Factor Scoring-CH'!$E$5:$F$282,,MATCH(G$4,'B. PoF Adj Factor Scoring-CH'!$E$3:$N$3,0)-1),2,TRUE) -> 1 | H16: =VLOOKUP(C:C,OFFSET('B. PoF Adj Factor Scoring-CH'!$E$5:$F$282,,MATCH(H$4,'B. PoF Adj Factor Scoring-CH'!$E$3:$N$3,0)-1),2,TRUE) -> 1 | I16: =VLOOKUP(D:D,OFFSET('B. PoF Adj Factor Scoring-CH'!$E$5:$F$282,,MATCH(I$4,'B. PoF Adj Factor Scoring-CH'!$E$3:$N$3,0)-1),2,TRUE) -> 1 | J16: =VLOOKUP(E:E,OFFSET('B. PoF Adj Factor Scoring-CH'!$E$5:$F$282,,MATCH(J$4,'B. PoF Adj Factor Scoring-CH'!$E$3:$N$3,0)-1),2,TRUE) -> 1 | K16: =VLOOKUP(F:F,OFFSET('B. PoF Adj Factor Scoring-CH'!$E$5:$F$282,,MATCH(K$4,'B. PoF Adj Factor Scoring-CH'!$E$3:$N$3,0)-1),2,TRUE) -> 1
A17: ='A. Population Info-CH'!A17 -> 1000003123 | B17: ='A. Population Info-CH'!G17 -> N/A | C17: ='A. Population Info-CH'!H17 -> 0 | D17: ='A. Population Info-CH'!I17 -> 0 | E17: ='A. Population Info-CH'!J17 -> 0 | F17: ='A. Population Info-CH'!K17 -> 0 | G17: =VLOOKUP(B:B,OFFSET('B. PoF Adj Factor Scoring-CH'!$E$5:$F$282,,MATCH(G$4,'B. PoF Adj Factor Scoring-CH'!$E$3:$N$3,0)-1),2,TRUE) -> 1 | H17: =VLOOKUP(C:C,OFFSET('B. PoF Adj Factor Scoring-CH'!$E$5:$F$282,,MATCH(H$4,'B. PoF Adj Factor Scoring-CH'!$E$3:$N$3,0)-1),2,TRUE) -> 1 | I17: =VLOOKUP(D:D,OFFSET('B. PoF Adj Factor Scoring-CH'!$E$5:$F$282,,MATCH(I$4,'B. PoF Adj Factor Scoring-CH'!$E$3:$N$3,0)-1),2,TRUE) -> 1 | J17: =VLOOKUP(E:E,OFFSET('B. PoF Adj Factor Scoring-CH'!$E$5:$F$282,,MATCH(J$4,'B. PoF Adj Factor Scoring-CH'!$E$3:$N$3,0)-1),2,TRUE) -> 1 | K17: =VLOOKUP(F:F,OFFSET('B. PoF Adj Factor Scoring-CH'!$E$5:$F$282,,MATCH(K$4,'B. PoF Adj Factor Scoring-CH'!$E$3:$N$3,0)-1),2,TRUE) -> 1
A18: ='A. Population Info-CH'!A18 -> 1000003132 | B18: ='A. Population Info-CH'!G18 -> N/A | C18: ='A. Population Info-CH'!H18 -> 0 | D18: ='A. Population Info-CH'!I18 -> 0 | E18: ='A. Population Info-CH'!J18 -> 0 | F18: ='A. Population Info-CH'!K18 -> 0 | G18: =VLOOKUP(B:B,OFFSET('B. PoF Adj Factor Scoring-CH'!$E$5:$F$282,,MATCH(G$4,'B. PoF Adj Factor Scoring-CH'!$E$3:$N$3,0)-1),2,TRUE) -> 1 | H18: =VLOOKUP(C:C,OFFSET('B. PoF Adj Factor Scoring-CH'!$E$5:$F$282,,MATCH(H$4,'B. PoF Adj Factor Scoring-CH'!$E$3:$N$3,0)-1),2,TRUE) -> 1 | I18: =VLOOKUP(D:D,OFFSET('B. PoF Adj Factor Scoring-CH'!$E$5:$F$282,,MATCH(I$4,'B. PoF Adj Factor Scoring-CH'!$E$3:$N$3,0)-1),2,TRUE) -> 1 | J18: =VLOOKUP(E:E,OFFSET('B. PoF Adj Factor Scoring-CH'!$E$5:$F$282,,MATCH(J$4,'B. PoF Adj Factor Scoring-CH'!$E$3:$N$3,0)-1),2,TRUE) -> 1 | K18: =VLOOKUP(F:F,OFFSET('B. PoF Adj Factor Scoring-CH'!$E$5:$F$282,,MATCH(K$4,'B. PoF Adj Factor Scoring-CH'!$E$3:$N$3,0)-1),2,TRUE) -> 1
A19: ='A. Population Info-CH'!A19 -> 1000003141 | B19: ='A. Population Info-CH'!G19 -> N/A | C19: ='A. Population Info-CH'!H19 -> 0 | D19: ='A. Population Info-CH'!I19 -> 0 | E19: ='A. Population Info-CH'!J19 -> 0 | F19: ='A. Population Info-CH'!K19 -> 0 | G19: =VLOOKUP(B:B,OFFSET('B. PoF Adj Factor Scoring-CH'!$E$5:$F$282,,MATCH(G$4,'B. PoF Adj Factor Scoring-CH'!$E$3:$N$3,0)-1),2,TRUE) -> 1 | H19: =VLOOKUP(C:C,OFFSET('B. PoF Adj Factor Scoring-CH'!$E$5:$F$282,,MATCH(H$4,'B. PoF Adj Factor Scoring-CH'!$E$3:$N$3,0)-1),2,TRUE) -> 1 | I19: =VLOOKUP(D:D,OFFSET('B. PoF Adj Factor Scoring-CH'!$E$5:$F$282,,MATCH(I$4,'B. PoF Adj Factor Scoring-CH'!$E$3:$N$3,0)-1),2,TRUE) -> 1 | J19: =VLOOKUP(E:E,OFFSET('B. PoF Adj Factor Scoring-CH'!$E$5:$F$282,,MATCH(J$4,'B. PoF Adj Factor Scoring-CH'!$E$3:$N$3,0)-1),2,TRUE) -> 1 | K19: =VLOOKUP(F:F,OFFSET('B. PoF Adj Factor Scoring-CH'!$E$5:$F$282,,MATCH(K$4,'B. PoF Adj Factor Scoring-CH'!$E$3:$N$3,0)-1),2,TRUE) -> 1
A20: ='A. Population Info-CH'!A20 -> 1000003239 | B20: ='A. Population Info-CH'!G20 -> N/A | C20: ='A. Population Info-CH'!H20 -> 0 | D20: ='A. Population Info-CH'!I20 -> 0 | E20: ='A. Population Info-CH'!J20 -> 0 | F20: ='A. Population Info-CH'!K20 -> 0 | G20: =VLOOKUP(B:B,OFFSET('B. PoF Adj Factor Scoring-CH'!$E$5:$F$282,,MATCH(G$4,'B. PoF Adj Factor Scoring-CH'!$E$3:$N$3,0)-1),2,TRUE) -> 1 | H20: =VLOOKUP(C:C,OFFSET('B. PoF Adj Factor Scoring-CH'!$E$5:$F$282,,MATCH(H$4,'B. PoF Adj Factor Scoring-CH'!$E$3:$N$3,0)-1),2,TRUE) -> 1 | I20: =VLOOKUP(D:D,OFFSET('B. PoF Adj Factor Scoring-CH'!$E$5:$F$282,,MATCH(I$4,'B. PoF Adj Factor Scoring-CH'!$E$3:$N$3,0)-1),2,TRUE) -> 1 | J20: =VLOOKUP(E:E,OFFSET('B. PoF Adj Factor Scoring-CH'!$E$5:$F$282,,MATCH(J$4,'B. PoF Adj Factor Scoring-CH'!$E$3:$N$3,0)-1),2,TRUE) -> 1 | K20: =VLOOKUP(F:F,OFFSET('B. PoF Adj Factor Scoring-CH'!$E$5:$F$282,,MATCH(K$4,'B. PoF Adj Factor Scoring-CH'!$E$3:$N$3,0)-1),2,TRUE) -> 1
A21: ='A. Population Info-CH'!A21 -> 1000003248 | B21: ='A. Population Info-CH'!G21 -> N/A | C21: ='A. Population Info-CH'!H21 -> 0 | D21: ='A. Population Info-CH'!I21 -> 0 | E21: ='A. Population Info-CH'!J21 -> 0 | F21: ='A. Population Info-CH'!K21 -> 0 | G21: =VLOOKUP(B:B,OFFSET('B. PoF Adj Factor Scoring-CH'!$E$5:$F$282,,MATCH(G$4,'B. PoF Adj Factor Scoring-CH'!$E$3:$N$3,0)-1),2,TRUE) -> 1 | H21: =VLOOKUP(C:C,OFFSET('B. PoF Adj Factor Scoring-CH'!$E$5:$F$282,,MATCH(H$4,'B. PoF Adj Factor Scoring-CH'!$E$3:$N$3,0)-1),2,TRUE) -> 1 | I21: =VLOOKUP(D:D,OFFSET('B. PoF Adj Factor Scoring-CH'!$E$5:$F$282,,MATCH(I$4,'B. PoF Adj Factor Scoring-CH'!$E$3:$N$3,0)-1),2,TRUE) -> 1 | J21: =VLOOKUP(E:E,OFFSET('B. PoF Adj Factor Scoring-CH'!$E$5:$F$282,,MATCH(J$4,'B. PoF Adj Factor Scoring-CH'!$E$3:$N$3,0)-1),2,TRUE) -> 1 | K21: =VLOOKUP(F:F,OFFSET('B. PoF Adj Factor Scoring-CH'!$E$5:$F$282,,MATCH(K$4,'B. PoF Adj Factor Scoring-CH'!$E$3:$N$3,0)-1),2,TRUE) -> 1
A22: ='A. Population Info-CH'!A22 -> 1000003257 | B22: ='A. Population Info-CH'!G22 -> N/A | C22: ='A. Population Info-CH'!H22 -> 0 | D22: ='A. Population Info-CH'!I22 -> 0 | E22: ='A. Population Info-CH'!J22 -> 0 | F22: ='A. Population Info-CH'!K22 -> 0 | G22: =VLOOKUP(B:B,OFFSET('B. PoF Adj Factor Scoring-CH'!$E$5:$F$282,,MATCH(G$4,'B. PoF Adj Factor Scoring-CH'!$E$3:$N$3,0)-1),2,TRUE) -> 1 | H22: =VLOOKUP(C:C,OFFSET('B. PoF Adj Factor Scoring-CH'!$E$5:$F$282,,MATCH(H$4,'B. PoF Adj Factor Scoring-CH'!$E$3:$N$3,0)-1),2,TRUE) -> 1 | I22: =VLOOKUP(D:D,OFFSET('B. PoF Adj Factor Scoring-CH'!$E$5:$F$282,,MATCH(I$4,'B. PoF Adj Factor Scoring-CH'!$E$3:$N$3,0)-1),2,TRUE) -> 1 | J22: =VLOOKUP(E:E,OFFSET('B. PoF Adj Factor Scoring-CH'!$E$5:$F$282,,MATCH(J$4,'B. PoF Adj Factor Scoring-CH'!$E$3:$N$3,0)-1),2,TRUE) -> 1 | K22: =VLOOKUP(F:F,OFFSET('B. PoF Adj Factor Scoring-CH'!$E$5:$F$282,,MATCH(K$4,'B. PoF Adj Factor Scoring-CH'!$E$3:$N$3,0)-1),2,TRUE) -> 1
A23: ='A. Population Info-CH'!A23 -> 1000003266 | B23: ='A. Population Info-CH'!G23 -> N/A | C23: ='A. Population Info-CH'!H23 -> 0 | D23: ='A. Population Info-CH'!I23 -> 0 | E23: ='A. Population Info-CH'!J23 -> 0 | F23: ='A. Population Info-CH'!K23 -> 0 | G23: =VLOOKUP(B:B,OFFSET('B. PoF Adj Factor Scoring-CH'!$E$5:$F$282,,MATCH(G$4,'B. PoF Adj Factor Scoring-CH'!$E$3:$N$3,0)-1),2,TRUE) -> 1 | H23: =VLOOKUP(C:C,OFFSET('B. PoF Adj Factor Scoring-CH'!$E$5:$F$282,,MATCH(H$4,'B. PoF Adj Factor Scoring-CH'!$E$3:$N$3,0)-1),2,TRUE) -> 1 | I23: =VLOOKUP(D:D,OFFSET('B. PoF Adj Factor Scoring-CH'!$E$5:$F$282,,MATCH(I$4,'B. PoF Adj Factor Scoring-CH'!$E$3:$N$3,0)-1),2,TRUE) -> 1 | J23: =VLOOKUP(E:E,OFFSET('B. PoF Adj Factor Scoring-CH'!$E$5:$F$282,,MATCH(J$4,'B. PoF Adj Factor Scoring-CH'!$E$3:$N$3,0)-1),2,TRUE) -> 1 | K23: =VLOOKUP(F:F,OFFSET('B. PoF Adj Factor Scoring-CH'!$E$5:$F$282,,MATCH(K$4,'B. PoF Adj Factor Scoring-CH'!$E$3:$N$3,0)-1),2,TRUE) -> 1
A24: ='A. Population Info-CH'!A24 -> 1000003275 | B24: ='A. Population Info-CH'!G24 -> N/A | C24: ='A. Population Info-CH'!H24 -> 0 | D24: ='A. Population Info-CH'!I24 -> 0 | E24: ='A. Population Info-CH'!J24 -> 0 | F24: ='A. Population Info-CH'!K24 -> 0 | G24: =VLOOKUP(B:B,OFFSET('B. PoF Adj Factor Scoring-CH'!$E$5:$F$282,,MATCH(G$4,'B. PoF Adj Factor Scoring-CH'!$E$3:$N$3,0)-1),2,TRUE) -> 1 | H24: =VLOOKUP(C:C,OFFSET('B. PoF Adj Factor Scoring-CH'!$E$5:$F$282,,MATCH(H$4,'B. PoF Adj Factor Scoring-CH'!$E$3:$N$3,0)-1),2,TRUE) -> 1 | I24: =VLOOKUP(D:D,OFFSET('B. PoF Adj Factor Scoring-CH'!$E$5:$F$282,,MATCH(I$4,'B. PoF Adj Factor Scoring-CH'!$E$3:$N$3,0)-1),2,TRUE) -> 1 | J24: =VLOOKUP(E:E,OFFSET('B. PoF Adj Factor Scoring-CH'!$E$5:$F$282,,MATCH(J$4,'B. PoF Adj Factor Scoring-CH'!$E$3:$N$3,0)-1),2,TRUE) -> 1 | K24: =VLOOKUP(F:F,OFFSET('B. PoF Adj Factor Scoring-CH'!$E$5:$F$282,,MATCH(K$4,'B. PoF Adj Factor Scoring-CH'!$E$3:$N$3,0)-1),2,TRUE) -> 1
A25: ='A. Population Info-CH'!A25 -> 1000003284 | B25: ='A. Population Info-CH'!G25 -> N/A | C25: ='A. Population Info-CH'!H25 -> 0 | D25: ='A. Population Info-CH'!I25 -> 0 | E25: ='A. Population Info-CH'!J25 -> 0 | F25: ='A. Population Info-CH'!K25 -> 0 | G25: =VLOOKUP(B:B,OFFSET('B. PoF Adj Factor Scoring-CH'!$E$5:$F$282,,MATCH(G$4,'B. PoF Adj Factor Scoring-CH'!$E$3:$N$3,0)-1),2,TRUE) -> 1 | H25: =VLOOKUP(C:C,OFFSET('B. PoF Adj Factor Scoring-CH'!$E$5:$F$282,,MATCH(H$4,'B. PoF Adj Factor Scoring-CH'!$E$3:$N$3,0)-1),2,TRUE) -> 1 | I25: =VLOOKUP(D:D,OFFSET('B. PoF Adj Factor Scoring-CH'!$E$5:$F$282,,MATCH(I$4,'B. PoF Adj Factor Scoring-CH'!$E$3:$N$3,0)-1),2,TRUE) -> 1 | J25: =VLOOKUP(E:E,OFFSET('B. PoF Adj Factor Scoring-CH'!$E$5:$F$282,,MATCH(J$4,'B. PoF Adj Factor Scoring-CH'!$E$3:$N$3,0)-1),2,TRUE) -> 1 | K25: =VLOOKUP(F:F,OFFSET('B. PoF Adj Factor Scoring-CH'!$E$5:$F$282,,MATCH(K$4,'B. PoF Adj Factor Scoring-CH'!$E$3:$N$3,0)-1),2,TRUE) -> 1
A26: ='A. Population Info-CH'!A26 -> 1000003293 | B26: ='A. Population Info-CH'!G26 -> N/A | C26: ='A. Population Info-CH'!H26 -> 0 | D26: ='A. Population Info-CH'!I26 -> 0 | E26: ='A. Population Info-CH'!J26 -> 0 | F26: ='A. Population Info-CH'!K26 -> 0 | G26: =VLOOKUP(B:B,OFFSET('B. PoF Adj Factor Scoring-CH'!$E$5:$F$282,,MATCH(G$4,'B. PoF Adj Factor Scoring-CH'!$E$3:$N$3,0)-1),2,TRUE) -> 1 | H26: =VLOOKUP(C:C,OFFSET('B. PoF Adj Factor Scoring-CH'!$E$5:$F$282,,MATCH(H$4,'B. PoF Adj Factor Scoring-CH'!$E$3:$N$3,0)-1),2,TRUE) -> 1 | I26: =VLOOKUP(D:D,OFFSET('B. PoF Adj Factor Scoring-CH'!$E$5:$F$282,,MATCH(I$4,'B. PoF Adj Factor Scoring-CH'!$E$3:$N$3,0)-1),2,TRUE) -> 1 | J26: =VLOOKUP(E:E,OFFSET('B. PoF Adj Factor Scoring-CH'!$E$5:$F$282,,MATCH(J$4,'B. PoF Adj Factor Scoring-CH'!$E$3:$N$3,0)-1),2,TRUE) -> 1 | K26: =VLOOKUP(F:F,OFFSET('B. PoF Adj Factor Scoring-CH'!$E$5:$F$282,,MATCH(K$4,'B. PoF Adj Factor Scoring-CH'!$E$3:$N$3,0)-1),2,TRUE) -> 1
A27: ='A. Population Info-CH'!A27 -> 1000003304 | B27: ='A. Population Info-CH'!G27 -> N/A | C27: ='A. Population Info-CH'!H27 -> 0 | D27: ='A. Population Info-CH'!I27 -> 0 | E27: ='A. Population Info-CH'!J27 -> 0 | F27: ='A. Population Info-CH'!K27 -> 0 | G27: =VLOOKUP(B:B,OFFSET('B. PoF Adj Factor Scoring-CH'!$E$5:$F$282,,MATCH(G$4,'B. PoF Adj Factor Scoring-CH'!$E$3:$N$3,0)-1),2,TRUE) -> 1 | H27: =VLOOKUP(C:C,OFFSET('B. PoF Adj Factor Scoring-CH'!$E$5:$F$282,,MATCH(H$4,'B. PoF Adj Factor Scoring-CH'!$E$3:$N$3,0)-1),2,TRUE) -> 1 | I27: =VLOOKUP(D:D,OFFSET('B. PoF Adj Factor Scoring-CH'!$E$5:$F$282,,MATCH(I$4,'B. PoF Adj Factor Scoring-CH'!$E$3:$N$3,0)-1),2,TRUE) -> 1 | J27: =VLOOKUP(E:E,OFFSET('B. PoF Adj Factor Scoring-CH'!$E$5:$F$282,,MATCH(J$4,'B. PoF Adj Factor Scoring-CH'!$E$3:$N$3,0)-1),2,TRUE) -> 1 | K27: =VLOOKUP(F:F,OFFSET('B. PoF Adj Factor Scoring-CH'!$E$5:$F$282,,MATCH(K$4,'B. PoF Adj Factor Scoring-CH'!$E$3:$N$3,0)-1),2,TRUE) -> 1
A28: ='A. Population Info-CH'!A28 -> 1000003338 | B28: ='A. Population Info-CH'!G28 -> N/A | C28: ='A. Population Info-CH'!H28 -> 0 | D28: ='A. Population Info-CH'!I28 -> 0 | E28: ='A. Population Info-CH'!J28 -> 0 | F28: ='A. Population Info-CH'!K28 -> 0 | G28: =VLOOKUP(B:B,OFFSET('B. PoF Adj Factor Scoring-CH'!$E$5:$F$282,,MATCH(G$4,'B. PoF Adj Factor Scoring-CH'!$E$3:$N$3,0)-1),2,TRUE) -> 1 | H28: =VLOOKUP(C:C,OFFSET('B. PoF Adj Factor Scoring-CH'!$E$5:$F$282,,MATCH(H$4,'B. PoF Adj Factor Scoring-CH'!$E$3:$N$3,0)-1),2,TRUE) -> 1 | I28: =VLOOKUP(D:D,OFFSET('B. PoF Adj Factor Scoring-CH'!$E$5:$F$282,,MATCH(I$4,'B. PoF Adj Factor Scoring-CH'!$E$3:$N$3,0)-1),2,TRUE) -> 1 | J28: =VLOOKUP(E:E,OFFSET('B. PoF Adj Factor Scoring-CH'!$E$5:$F$282,,MATCH(J$4,'B. PoF Adj Factor Scoring-CH'!$E$3:$N$3,0)-1),2,TRUE) -> 1 | K28: =VLOOKUP(F:F,OFFSET('B. PoF Adj Factor Scoring-CH'!$E$5:$F$282,,MATCH(K$4,'B. PoF Adj Factor Scoring-CH'!$E$3:$N$3,0)-1),2,TRUE) -> 1
A29: ='A. Population Info-CH'!A29 -> 1000003357 | B29: ='A. Population Info-CH'!G29 -> N/A | C29: ='A. Population Info-CH'!H29 -> 0 | D29: ='A. Population Info-CH'!I29 -> 0 | E29: ='A. Population Info-CH'!J29 -> 0 | F29: ='A. Population Info-CH'!K29 -> 0 | G29: =VLOOKUP(B:B,OFFSET('B. PoF Adj Factor Scoring-CH'!$E$5:$F$282,,MATCH(G$4,'B. PoF Adj Factor Scoring-CH'!$E$3:$N$3,0)-1),2,TRUE) -> 1 | H29: =VLOOKUP(C:C,OFFSET('B. PoF Adj Factor Scoring-CH'!$E$5:$F$282,,MATCH(H$4,'B. PoF Adj Factor Scoring-CH'!$E$3:$N$3,0)-1),2,TRUE) -> 1 | I29: =VLOOKUP(D:D,OFFSET('B. PoF Adj Factor Scoring-CH'!$E$5:$F$282,,MATCH(I$4,'B. PoF Adj Factor Scoring-CH'!$E$3:$N$3,0)-1),2,TRUE) -> 1 | J29: =VLOOKUP(E:E,OFFSET('B. PoF Adj Factor Scoring-CH'!$E$5:$F$282,,MATCH(J$4,'B. PoF Adj Factor Scoring-CH'!$E$3:$N$3,0)-1),2,TRUE) -> 1 | K29: =VLOOKUP(F:F,OFFSET('B. PoF Adj Factor Scoring-CH'!$E$5:$F$282,,MATCH(K$4,'B. PoF Adj Factor Scoring-CH'!$E$3:$N$3,0)-1),2,TRUE) -> 1
A30: ='A. Population Info-CH'!A30 -> 1000003375 | B30: ='A. Population Info-CH'!G30 -> N/A | C30: ='A. Population Info-CH'!H30 -> 0 | D30: ='A. Population Info-CH'!I30 -> 0 | E30: ='A. Population Info-CH'!J30 -> 0 | F30: ='A. Population Info-CH'!K30 -> 0 | G30: =VLOOKUP(B:B,OFFSET('B. PoF Adj Factor Scoring-CH'!$E$5:$F$282,,MATCH(G$4,'B. PoF Adj Factor Scoring-CH'!$E$3:$N$3,0)-1),2,TRUE) -> 1 | H30: =VLOOKUP(C:C,OFFSET('B. PoF Adj Factor Scoring-CH'!$E$5:$F$282,,MATCH(H$4,'B. PoF Adj Factor Scoring-CH'!$E$3:$N$3,0)-1),2,TRUE) -> 1 | I30: =VLOOKUP(D:D,OFFSET('B. PoF Adj Factor Scoring-CH'!$E$5:$F$282,,MATCH(I$4,'B. PoF Adj Factor Scoring-CH'!$E$3:$N$3,0)-1),2,TRUE) -> 1 | J30: =VLOOKUP(E:E,OFFSET('B. PoF Adj Factor Scoring-CH'!$E$5:$F$282,,MATCH(J$4,'B. PoF Adj Factor Scoring-CH'!$E$3:$N$3,0)-1),2,TRUE) -> 1 | K30: =VLOOKUP(F:F,OFFSET('B. PoF Adj Factor Scoring-CH'!$E$5:$F$282,,MATCH(K$4,'B. PoF Adj Factor Scoring-CH'!$E$3:$N$3,0)-1),2,TRUE) -> 1
A31: ='A. Population Info-CH'!A31 -> 1000003541 | B31: ='A. Population Info-CH'!G31 -> N/A | C31: ='A. Population Info-CH'!H31 -> 0 | D31: ='A. Population Info-CH'!I31 -> 0 | E31: ='A. Population Info-CH'!J31 -> 0 | F31: ='A. Population Info-CH'!K31 -> 0 | G31: =VLOOKUP(B:B,OFFSET('B. PoF Adj Factor Scoring-CH'!$E$5:$F$282,,MATCH(G$4,'B. PoF Adj Factor Scoring-CH'!$E$3:$N$3,0)-1),2,TRUE) -> 1 | H31: =VLOOKUP(C:C,OFFSET('B. PoF Adj Factor Scoring-CH'!$E$5:$F$282,,MATCH(H$4,'B. PoF Adj Factor Scoring-CH'!$E$3:$N$3,0)-1),2,TRUE) -> 1 | I31: =VLOOKUP(D:D,OFFSET('B. PoF Adj Factor Scoring-CH'!$E$5:$F$282,,MATCH(I$4,'B. PoF Adj Factor Scoring-CH'!$E$3:$N$3,0)-1),2,TRUE) -> 1 | J31: =VLOOKUP(E:E,OFFSET('B. PoF Adj Factor Scoring-CH'!$E$5:$F$282,,MATCH(J$4,'B. PoF Adj Factor Scoring-CH'!$E$3:$N$3,0)-1),2,TRUE) -> 1 | K31: =VLOOKUP(F:F,OFFSET('B. PoF Adj Factor Scoring-CH'!$E$5:$F$282,,MATCH(K$4,'B. PoF Adj Factor Scoring-CH'!$E$3:$N$3,0)-1),2,TRUE) -> 1
A32: ='A. Population Info-CH'!A32 -> 1000003614 | B32: ='A. Population Info-CH'!G32 -> N/A | C32: ='A. Population Info-CH'!H32 -> 0 | D32: ='A. Population Info-CH'!I32 -> 0 | E32: ='A. Population Info-CH'!J32 -> 0 | F32: ='A. Population Info-CH'!K32 -> 0 | G32: =VLOOKUP(B:B,OFFSET('B. PoF Adj Factor Scoring-CH'!$E$5:$F$282,,MATCH(G$4,'B. PoF Adj Factor Scoring-CH'!$E$3:$N$3,0)-1),2,TRUE) -> 1 | H32: =VLOOKUP(C:C,OFFSET('B. PoF Adj Factor Scoring-CH'!$E$5:$F$282,,MATCH(H$4,'B. PoF Adj Factor Scoring-CH'!$E$3:$N$3,0)-1),2,TRUE) -> 1 | I32: =VLOOKUP(D:D,OFFSET('B. PoF Adj Factor Scoring-CH'!$E$5:$F$282,,MATCH(I$4,'B. PoF Adj Factor Scoring-CH'!$E$3:$N$3,0)-1),2,TRUE) -> 1 | J32: =VLOOKUP(E:E,OFFSET('B. PoF Adj Factor Scoring-CH'!$E$5:$F$282,,MATCH(J$4,'B. PoF Adj Factor Scoring-CH'!$E$3:$N$3,0)-1),2,TRUE) -> 1 | K32: =VLOOKUP(F:F,OFFSET('B. PoF Adj Factor Scoring-CH'!$E$5:$F$282,,MATCH(K$4,'B. PoF Adj Factor Scoring-CH'!$E$3:$N$3,0)-1),2,TRUE) -> 1
A33: ='A. Population Info-CH'!A33 -> 1000003615 | B33: ='A. Population Info-CH'!G33 -> N/A | C33: ='A. Population Info-CH'!H33 -> 0 | D33: ='A. Population Info-CH'!I33 -> 0 | E33: ='A. Population Info-CH'!J33 -> 0 | F33: ='A. Population Info-CH'!K33 -> 0 | G33: =VLOOKUP(B:B,OFFSET('B. PoF Adj Factor Scoring-CH'!$E$5:$F$282,,MATCH(G$4,'B. PoF Adj Factor Scoring-CH'!$E$3:$N$3,0)-1),2,TRUE) -> 1 | H33: =VLOOKUP(C:C,OFFSET('B. PoF Adj Factor Scoring-CH'!$E$5:$F$282,,MATCH(H$4,'B. PoF Adj Factor Scoring-CH'!$E$3:$N$3,0)-1),2,TRUE) -> 1 | I33: =VLOOKUP(D:D,OFFSET('B. PoF Adj Factor Scoring-CH'!$E$5:$F$282,,MATCH(I$4,'B. PoF Adj Factor Scoring-CH'!$E$3:$N$3,0)-1),2,TRUE) -> 1 | J33: =VLOOKUP(E:E,OFFSET('B. PoF Adj Factor Scoring-CH'!$E$5:$F$282,,MATCH(J$4,'B. PoF Adj Factor Scoring-CH'!$E$3:$N$3,0)-1),2,TRUE) -> 1 | K33: =VLOOKUP(F:F,OFFSET('B. PoF Adj Factor Scoring-CH'!$E$5:$F$282,,MATCH(K$4,'B. PoF Adj Factor Scoring-CH'!$E$3:$N$3,0)-1),2,TRUE) -> 1
A34: ='A. Population Info-CH'!A34 -> 1000003665 | B34: ='A. Population Info-CH'!G34 -> N/A | C34: ='A. Population Info-CH'!H34 -> 0 | D34: ='A. Population Info-CH'!I34 -> 0 | E34: ='A. Population Info-CH'!J34 -> 0 | F34: ='A. Population Info-CH'!K34 -> 0 | G34: =VLOOKUP(B:B,OFFSET('B. PoF Adj Factor Scoring-CH'!$E$5:$F$282,,MATCH(G$4,'B. PoF Adj Factor Scoring-CH'!$E$3:$N$3,0)-1),2,TRUE) -> 1 | H34: =VLOOKUP(C:C,OFFSET('B. PoF Adj Factor Scoring-CH'!$E$5:$F$282,,MATCH(H$4,'B. PoF Adj Factor Scoring-CH'!$E$3:$N$3,0)-1),2,TRUE) -> 1 | I34: =VLOOKUP(D:D,OFFSET('B. PoF Adj Factor Scoring-CH'!$E$5:$F$282,,MATCH(I$4,'B. PoF Adj Factor Scoring-CH'!$E$3:$N$3,0)-1),2,TRUE) -> 1 | J34: =VLOOKUP(E:E,OFFSET('B. PoF Adj Factor Scoring-CH'!$E$5:$F$282,,MATCH(J$4,'B. PoF Adj Factor Scoring-CH'!$E$3:$N$3,0)-1),2,TRUE) -> 1 | K34: =VLOOKUP(F:F,OFFSET('B. PoF Adj Factor Scoring-CH'!$E$5:$F$282,,MATCH(K$4,'B. PoF Adj Factor Scoring-CH'!$E$3:$N$3,0)-1),2,TRUE) -> 1
A35: ='A. Population Info-CH'!A35 -> 1000003688 | B35: ='A. Population Info-CH'!G35 -> N/A | C35: ='A. Population Info-CH'!H35 -> 0 | D35: ='A. Population Info-CH'!I35 -> 0 | E35: ='A. Population Info-CH'!J35 -> 0 | F35: ='A. Population Info-CH'!K35 -> 0 | G35: =VLOOKUP(B:B,OFFSET('B. PoF Adj Factor Scoring-CH'!$E$5:$F$282,,MATCH(G$4,'B. PoF Adj Factor Scoring-CH'!$E$3:$N$3,0)-1),2,TRUE) -> 1 | H35: =VLOOKUP(C:C,OFFSET('B. PoF Adj Factor Scoring-CH'!$E$5:$F$282,,MATCH(H$4,'B. PoF Adj Factor Scoring-CH'!$E$3:$N$3,0)-1),2,TRUE) -> 1 | I35: =VLOOKUP(D:D,OFFSET('B. PoF Adj Factor Scoring-CH'!$E$5:$F$282,,MATCH(I$4,'B. PoF Adj Factor Scoring-CH'!$E$3:$N$3,0)-1),2,TRUE) -> 1 | J35: =VLOOKUP(E:E,OFFSET('B. PoF Adj Factor Scoring-CH'!$E$5:$F$282,,MATCH(J$4,'B. PoF Adj Factor Scoring-CH'!$E$3:$N$3,0)-1),2,TRUE) -> 1 | K35: =VLOOKUP(F:F,OFFSET('B. PoF Adj Factor Scoring-CH'!$E$5:$F$282,,MATCH(K$4,'B. PoF Adj Factor Scoring-CH'!$E$3:$N$3,0)-1),2,TRUE) -> 1
A36: ='A. Population Info-CH'!A36 -> 1000003776 | B36: ='A. Population Info-CH'!G36 -> N/A | C36: ='A. Population Info-CH'!H36 -> 0 | D36: ='A. Population Info-CH'!I36 -> 0 | E36: ='A. Population Info-CH'!J36 -> 0 | F36: ='A. Population Info-CH'!K36 -> 0 | G36: =VLOOKUP(B:B,OFFSET('B. PoF Adj Factor Scoring-CH'!$E$5:$F$282,,MATCH(G$4,'B. PoF Adj Factor Scoring-CH'!$E$3:$N$3,0)-1),2,TRUE) -> 1 | H36: =VLOOKUP(C:C,OFFSET('B. PoF Adj Factor Scoring-CH'!$E$5:$F$282,,MATCH(H$4,'B. PoF Adj Factor Scoring-CH'!$E$3:$N$3,0)-1),2,TRUE) -> 1 | I36: =VLOOKUP(D:D,OFFSET('B. PoF Adj Factor Scoring-CH'!$E$5:$F$282,,MATCH(I$4,'B. PoF Adj Factor Scoring-CH'!$E$3:$N$3,0)-1),2,TRUE) -> 1 | J36: =VLOOKUP(E:E,OFFSET('B. PoF Adj Factor Scoring-CH'!$E$5:$F$282,,MATCH(J$4,'B. PoF Adj Factor Scoring-CH'!$E$3:$N$3,0)-1),2,TRUE) -> 1 | K36: =VLOOKUP(F:F,OFFSET('B. PoF Adj Factor Scoring-CH'!$E$5:$F$282,,MATCH(K$4,'B. PoF Adj Factor Scoring-CH'!$E$3:$N$3,0)-1),2,TRUE) -> 1
A37: ='A. Population Info-CH'!A37 -> 1000003790 | B37: ='A. Population Info-CH'!G37 -> N/A | C37: ='A. Population Info-CH'!H37 -> 0 | D37: ='A. Population Info-CH'!I37 -> 0 | E37: ='A. Population Info-CH'!J37 -> 0 | F37: ='A. Population Info-CH'!K37 -> 0 | G37: =VLOOKUP(B:B,OFFSET('B. PoF Adj Factor Scoring-CH'!$E$5:$F$282,,MATCH(G$4,'B. PoF Adj Factor Scoring-CH'!$E$3:$N$3,0)-1),2,TRUE) -> 1 | H37: =VLOOKUP(C:C,OFFSET('B. PoF Adj Factor Scoring-CH'!$E$5:$F$282,,MATCH(H$4,'B. PoF Adj Factor Scoring-CH'!$E$3:$N$3,0)-1),2,TRUE) -> 1 | I37: =VLOOKUP(D:D,OFFSET('B. PoF Adj Factor Scoring-CH'!$E$5:$F$282,,MATCH(I$4,'B. PoF Adj Factor Scoring-CH'!$E$3:$N$3,0)-1),2,TRUE) -> 1 | J37: =VLOOKUP(E:E,OFFSET('B. PoF Adj Factor Scoring-CH'!$E$5:$F$282,,MATCH(J$4,'B. PoF Adj Factor Scoring-CH'!$E$3:$N$3,0)-1),2,TRUE) -> 1 | K37: =VLOOKUP(F:F,OFFSET('B. PoF Adj Factor Scoring-CH'!$E$5:$F$282,,MATCH(K$4,'B. PoF Adj Factor Scoring-CH'!$E$3:$N$3,0)-1),2,TRUE) -> 1
A38: ='A. Population Info-CH'!A38 -> 1000003800 | B38: ='A. Population Info-CH'!G38 -> N/A | C38: ='A. Population Info-CH'!H38 -> 0 | D38: ='A. Population Info-CH'!I38 -> 0 | E38: ='A. Population Info-CH'!J38 -> 0 | F38: ='A. Population Info-CH'!K38 -> 0 | G38: =VLOOKUP(B:B,OFFSET('B. PoF Adj Factor Scoring-CH'!$E$5:$F$282,,MATCH(G$4,'B. PoF Adj Factor Scoring-CH'!$E$3:$N$3,0)-1),2,TRUE) -> 1 | H38: =VLOOKUP(C:C,OFFSET('B. PoF Adj Factor Scoring-CH'!$E$5:$F$282,,MATCH(H$4,'B. PoF Adj Factor Scoring-CH'!$E$3:$N$3,0)-1),2,TRUE) -> 1 | I38: =VLOOKUP(D:D,OFFSET('B. PoF Adj Factor Scoring-CH'!$E$5:$F$282,,MATCH(I$4,'B. PoF Adj Factor Scoring-CH'!$E$3:$N$3,0)-1),2,TRUE) -> 1 | J38: =VLOOKUP(E:E,OFFSET('B. PoF Adj Factor Scoring-CH'!$E$5:$F$282,,MATCH(J$4,'B. PoF Adj Factor Scoring-CH'!$E$3:$N$3,0)-1),2,TRUE) -> 1 | K38: =VLOOKUP(F:F,OFFSET('B. PoF Adj Factor Scoring-CH'!$E$5:$F$282,,MATCH(K$4,'B. PoF Adj Factor Scoring-CH'!$E$3:$N$3,0)-1),2,TRUE) -> 1
A39: ='A. Population Info-CH'!A39 -> 1000003829 | B39: ='A. Population Info-CH'!G39 -> N/A | C39: ='A. Population Info-CH'!H39 -> 0 | D39: ='A. Population Info-CH'!I39 -> 0 | E39: ='A. Population Info-CH'!J39 -> 0 | F39: ='A. Population Info-CH'!K39 -> 0 | G39: =VLOOKUP(B:B,OFFSET('B. PoF Adj Factor Scoring-CH'!$E$5:$F$282,,MATCH(G$4,'B. PoF Adj Factor Scoring-CH'!$E$3:$N$3,0)-1),2,TRUE) -> 1 | H39: =VLOOKUP(C:C,OFFSET('B. PoF Adj Factor Scoring-CH'!$E$5:$F$282,,MATCH(H$4,'B. PoF Adj Factor Scoring-CH'!$E$3:$N$3,0)-1),2,TRUE) -> 1 | I39: =VLOOKUP(D:D,OFFSET('B. PoF Adj Factor Scoring-CH'!$E$5:$F$282,,MATCH(I$4,'B. PoF Adj Factor Scoring-CH'!$E$3:$N$3,0)-1),2,TRUE) -> 1 | J39: =VLOOKUP(E:E,OFFSET('B. PoF Adj Factor Scoring-CH'!$E$5:$F$282,,MATCH(J$4,'B. PoF Adj Factor Scoring-CH'!$E$3:$N$3,0)-1),2,TRUE) -> 1 | K39: =VLOOKUP(F:F,OFFSET('B. PoF Adj Factor Scoring-CH'!$E$5:$F$282,,MATCH(K$4,'B. PoF Adj Factor Scoring-CH'!$E$3:$N$3,0)-1),2,TRUE) -> 1
A40: ='A. Population Info-CH'!A40 -> 1000003842 | B40: ='A. Population Info-CH'!G40 -> N/A | C40: ='A. Population Info-CH'!H40 -> 0 | D40: ='A. Population Info-CH'!I40 -> 0 | E40: ='A. Population Info-CH'!J40 -> 0 | F40: ='A. Population Info-CH'!K40 -> 0 | G40: =VLOOKUP(B:B,OFFSET('B. PoF Adj Factor Scoring-CH'!$E$5:$F$282,,MATCH(G$4,'B. PoF Adj Factor Scoring-CH'!$E$3:$N$3,0)-1),2,TRUE) -> 1 | H40: =VLOOKUP(C:C,OFFSET('B. PoF Adj Factor Scoring-CH'!$E$5:$F$282,,MATCH(H$4,'B. PoF Adj Factor Scoring-CH'!$E$3:$N$3,0)-1),2,TRUE) -> 1 | I40: =VLOOKUP(D:D,OFFSET('B. PoF Adj Factor Scoring-CH'!$E$5:$F$282,,MATCH(I$4,'B. PoF Adj Factor Scoring-CH'!$E$3:$N$3,0)-1),2,TRUE) -> 1 | J40: =VLOOKUP(E:E,OFFSET('B. PoF Adj Factor Scoring-CH'!$E$5:$F$282,,MATCH(J$4,'B. PoF Adj Factor Scoring-CH'!$E$3:$N$3,0)-1),2,TRUE) -> 1 | K40: =VLOOKUP(F:F,OFFSET('B. PoF Adj Factor Scoring-CH'!$E$5:$F$282,,MATCH(K$4,'B. PoF Adj Factor Scoring-CH'!$E$3:$N$3,0)-1),2,TRUE) -> 1
A41: ='A. Population Info-CH'!A41 -> 1000003879 | B41: ='A. Population Info-CH'!G41 -> N/A | C41: ='A. Population Info-CH'!H41 -> 0 | D41: ='A. Population Info-CH'!I41 -> 0 | E41: ='A. Population Info-CH'!J41 -> 0 | F41: ='A. Population Info-CH'!K41 -> 0 | G41: =VLOOKUP(B:B,OFFSET('B. PoF Adj Factor Scoring-CH'!$E$5:$F$282,,MATCH(G$4,'B. PoF Adj Factor Scoring-CH'!$E$3:$N$3,0)-1),2,TRUE) -> 1 | H41: =VLOOKUP(C:C,OFFSET('B. PoF Adj Factor Scoring-CH'!$E$5:$F$282,,MATCH(H$4,'B. PoF Adj Factor Scoring-CH'!$E$3:$N$3,0)-1),2,TRUE) -> 1 | I41: =VLOOKUP(D:D,OFFSET('B. PoF Adj Factor Scoring-CH'!$E$5:$F$282,,MATCH(I$4,'B. PoF Adj Factor Scoring-CH'!$E$3:$N$3,0)-1),2,TRUE) -> 1 | J41: =VLOOKUP(E:E,OFFSET('B. PoF Adj Factor Scoring-CH'!$E$5:$F$282,,MATCH(J$4,'B. PoF Adj Factor Scoring-CH'!$E$3:$N$3,0)-1),2,TRUE) -> 1 | K41: =VLOOKUP(F:F,OFFSET('B. PoF Adj Factor Scoring-CH'!$E$5:$F$282,,MATCH(K$4,'B. PoF Adj Factor Scoring-CH'!$E$3:$N$3,0)-1),2,TRUE) -> 1
A42: ='A. Population Info-CH'!A42 -> 1000007066 | B42: ='A. Population Info-CH'!G42 -> N/A | C42: ='A. Population Info-CH'!H42 -> 0 | D42: ='A. Population Info-CH'!I42 -> 0 | E42: ='A. Population Info-CH'!J42 -> 0 | F42: ='A. Population Info-CH'!K42 -> 0 | G42: =VLOOKUP(B:B,OFFSET('B. PoF Adj Factor Scoring-CH'!$E$5:$F$282,,MATCH(G$4,'B. PoF Adj Factor Scoring-CH'!$E$3:$N$3,0)-1),2,TRUE) -> 1 | H42: =VLOOKUP(C:C,OFFSET('B. PoF Adj Factor Scoring-CH'!$E$5:$F$282,,MATCH(H$4,'B. PoF Adj Factor Scoring-CH'!$E$3:$N$3,0)-1),2,TRUE) -> 1 | I42: =VLOOKUP(D:D,OFFSET('B. PoF Adj Factor Scoring-CH'!$E$5:$F$282,,MATCH(I$4,'B. PoF Adj Factor Scoring-CH'!$E$3:$N$3,0)-1),2,TRUE) -> 1 | J42: =VLOOKUP(E:E,OFFSET('B. PoF Adj Factor Scoring-CH'!$E$5:$F$282,,MATCH(J$4,'B. PoF Adj Factor Scoring-CH'!$E$3:$N$3,0)-1),2,TRUE) -> 1 | K42: =VLOOKUP(F:F,OFFSET('B. PoF Adj Factor Scoring-CH'!$E$5:$F$282,,MATCH(K$4,'B. PoF Adj Factor Scoring-CH'!$E$3:$N$3,0)-1),2,TRUE) -> 1
A43: ='A. Population Info-CH'!A43 -> 1000007099 | B43: ='A. Population Info-CH'!G43 -> N/A | C43: ='A. Population Info-CH'!H43 -> 0 | D43: ='A. Population Info-CH'!I43 -> 0 | E43: ='A. Population Info-CH'!J43 -> 0 | F43: ='A. Population Info-CH'!K43 -> 0 | G43: =VLOOKUP(B:B,OFFSET('B. PoF Adj Factor Scoring-CH'!$E$5:$F$282,,MATCH(G$4,'B. PoF Adj Factor Scoring-CH'!$E$3:$N$3,0)-1),2,TRUE) -> 1 | H43: =VLOOKUP(C:C,OFFSET('B. PoF Adj Factor Scoring-CH'!$E$5:$F$282,,MATCH(H$4,'B. PoF Adj Factor Scoring-CH'!$E$3:$N$3,0)-1),2,TRUE) -> 1 | I43: =VLOOKUP(D:D,OFFSET('B. PoF Adj Factor Scoring-CH'!$E$5:$F$282,,MATCH(I$4,'B. PoF Adj Factor Scoring-CH'!$E$3:$N$3,0)-1),2,TRUE) -> 1 | J43: =VLOOKUP(E:E,OFFSET('B. PoF Adj Factor Scoring-CH'!$E$5:$F$282,,MATCH(J$4,'B. PoF Adj Factor Scoring-CH'!$E$3:$N$3,0)-1),2,TRUE) -> 1 | K43: =VLOOKUP(F:F,OFFSET('B. PoF Adj Factor Scoring-CH'!$E$5:$F$282,,MATCH(K$4,'B. PoF Adj Factor Scoring-CH'!$E$3:$N$3,0)-1),2,TRUE) -> 1
A44: ='A. Population Info-CH'!A44 -> 1000007114 | B44: ='A. Population Info-CH'!G44 -> N/A | C44: ='A. Population Info-CH'!H44 -> 0 | D44: ='A. Population Info-CH'!I44 -> 0 | E44: ='A. Population Info-CH'!J44 -> 0 | F44: ='A. Population Info-CH'!K44 -> 0 | G44: =VLOOKUP(B:B,OFFSET('B. PoF Adj Factor Scoring-CH'!$E$5:$F$282,,MATCH(G$4,'B. PoF Adj Factor Scoring-CH'!$E$3:$N$3,0)-1),2,TRUE) -> 1 | H44: =VLOOKUP(C:C,OFFSET('B. PoF Adj Factor Scoring-CH'!$E$5:$F$282,,MATCH(H$4,'B. PoF Adj Factor Scoring-CH'!$E$3:$N$3,0)-1),2,TRUE) -> 1 | I44: =VLOOKUP(D:D,OFFSET('B. PoF Adj Factor Scoring-CH'!$E$5:$F$282,,MATCH(I$4,'B. PoF Adj Factor Scoring-CH'!$E$3:$N$3,0)-1),2,TRUE) -> 1 | J44: =VLOOKUP(E:E,OFFSET('B. PoF Adj Factor Scoring-CH'!$E$5:$F$282,,MATCH(J$4,'B. PoF Adj Factor Scoring-CH'!$E$3:$N$3,0)-1),2,TRUE) -> 1 | K44: =VLOOKUP(F:F,OFFSET('B. PoF Adj Factor Scoring-CH'!$E$5:$F$282,,MATCH(K$4,'B. PoF Adj Factor Scoring-CH'!$E$3:$N$3,0)-1),2,TRUE) -> 1
A45: ='A. Population Info-CH'!A45 -> 1000007120 | B45: ='A. Population Info-CH'!G45 -> N/A | C45: ='A. Population Info-CH'!H45 -> 0 | D45: ='A. Population Info-CH'!I45 -> 0 | E45: ='A. Population Info-CH'!J45 -> 0 | F45: ='A. Population Info-CH'!K45 -> 0 | G45: =VLOOKUP(B:B,OFFSET('B. PoF Adj Factor Scoring-CH'!$E$5:$F$282,,MATCH(G$4,'B. PoF Adj Factor Scoring-CH'!$E$3:$N$3,0)-1),2,TRUE) -> 1 | H45: =VLOOKUP(C:C,OFFSET('B. PoF Adj Factor Scoring-CH'!$E$5:$F$282,,MATCH(H$4,'B. PoF Adj Factor Scoring-CH'!$E$3:$N$3,0)-1),2,TRUE) -> 1 | I45: =VLOOKUP(D:D,OFFSET('B. PoF Adj Factor Scoring-CH'!$E$5:$F$282,,MATCH(I$4,'B. PoF Adj Factor Scoring-CH'!$E$3:$N$3,0)-1),2,TRUE) -> 1 | J45: =VLOOKUP(E:E,OFFSET('B. PoF Adj Factor Scoring-CH'!$E$5:$F$282,,MATCH(J$4,'B. PoF Adj Factor Scoring-CH'!$E$3:$N$3,0)-1),2,TRUE) -> 1 | K45: =VLOOKUP(F:F,OFFSET('B. PoF Adj Factor Scoring-CH'!$E$5:$F$282,,MATCH(K$4,'B. PoF Adj Factor Scoring-CH'!$E$3:$N$3,0)-1),2,TRUE) -> 1
A46: ='A. Population Info-CH'!A46 -> 1000007126 | B46: ='A. Population Info-CH'!G46 -> N/A | C46: ='A. Population Info-CH'!H46 -> 0 | D46: ='A. Population Info-CH'!I46 -> 0 | E46: ='A. Population Info-CH'!J46 -> 0 | F46: ='A. Population Info-CH'!K46 -> 0 | G46: =VLOOKUP(B:B,OFFSET('B. PoF Adj Factor Scoring-CH'!$E$5:$F$282,,MATCH(G$4,'B. PoF Adj Factor Scoring-CH'!$E$3:$N$3,0)-1),2,TRUE) -> 1 | H46: =VLOOKUP(C:C,OFFSET('B. PoF Adj Factor Scoring-CH'!$E$5:$F$282,,MATCH(H$4,'B. PoF Adj Factor Scoring-CH'!$E$3:$N$3,0)-1),2,TRUE) -> 1 | I46: =VLOOKUP(D:D,OFFSET('B. PoF Adj Factor Scoring-CH'!$E$5:$F$282,,MATCH(I$4,'B. PoF Adj Factor Scoring-CH'!$E$3:$N$3,0)-1),2,TRUE) -> 1 | J46: =VLOOKUP(E:E,OFFSET('B. PoF Adj Factor Scoring-CH'!$E$5:$F$282,,MATCH(J$4,'B. PoF Adj Factor Scoring-CH'!$E$3:$N$3,0)-1),2,TRUE) -> 1 | K46: =VLOOKUP(F:F,OFFSET('B. PoF Adj Factor Scoring-CH'!$E$5:$F$282,,MATCH(K$4,'B. PoF Adj Factor Scoring-CH'!$E$3:$N$3,0)-1),2,TRUE) -> 1
A47: ='A. Population Info-CH'!A47 -> 1000007129 | B47: ='A. Population Info-CH'!G47 -> N/A | C47: ='A. Population Info-CH'!H47 -> 0 | D47: ='A. Population Info-CH'!I47 -> 0 | E47: ='A. Population Info-CH'!J47 -> 0 | F47: ='A. Population Info-CH'!K47 -> 0 | G47: =VLOOKUP(B:B,OFFSET('B. PoF Adj Factor Scoring-CH'!$E$5:$F$282,,MATCH(G$4,'B. PoF Adj Factor Scoring-CH'!$E$3:$N$3,0)-1),2,TRUE) -> 1 | H47: =VLOOKUP(C:C,OFFSET('B. PoF Adj Factor Scoring-CH'!$E$5:$F$282,,MATCH(H$4,'B. PoF Adj Factor Scoring-CH'!$E$3:$N$3,0)-1),2,TRUE) -> 1 | I47: =VLOOKUP(D:D,OFFSET('B. PoF Adj Factor Scoring-CH'!$E$5:$F$282,,MATCH(I$4,'B. PoF Adj Factor Scoring-CH'!$E$3:$N$3,0)-1),2,TRUE) -> 1 | J47: =VLOOKUP(E:E,OFFSET('B. PoF Adj Factor Scoring-CH'!$E$5:$F$282,,MATCH(J$4,'B. PoF Adj Factor Scoring-CH'!$E$3:$N$3,0)-1),2,TRUE) -> 1 | K47: =VLOOKUP(F:F,OFFSET('B. PoF Adj Factor Scoring-CH'!$E$5:$F$282,,MATCH(K$4,'B. PoF Adj Factor Scoring-CH'!$E$3:$N$3,0)-1),2,TRUE) -> 1
A48: ='A. Population Info-CH'!A48 -> 1000007138 | B48: ='A. Population Info-CH'!G48 -> N/A | C48: ='A. Population Info-CH'!H48 -> 0 | D48: ='A. Population Info-CH'!I48 -> 0 | E48: ='A. Population Info-CH'!J48 -> 0 | F48: ='A. Population Info-CH'!K48 -> 0 | G48: =VLOOKUP(B:B,OFFSET('B. PoF Adj Factor Scoring-CH'!$E$5:$F$282,,MATCH(G$4,'B. PoF Adj Factor Scoring-CH'!$E$3:$N$3,0)-1),2,TRUE) -> 1 | H48: =VLOOKUP(C:C,OFFSET('B. PoF Adj Factor Scoring-CH'!$E$5:$F$282,,MATCH(H$4,'B. PoF Adj Factor Scoring-CH'!$E$3:$N$3,0)-1),2,TRUE) -> 1 | I48: =VLOOKUP(D:D,OFFSET('B. PoF Adj Factor Scoring-CH'!$E$5:$F$282,,MATCH(I$4,'B. PoF Adj Factor Scoring-CH'!$E$3:$N$3,0)-1),2,TRUE) -> 1 | J48: =VLOOKUP(E:E,OFFSET('B. PoF Adj Factor Scoring-CH'!$E$5:$F$282,,MATCH(J$4,'B. PoF Adj Factor Scoring-CH'!$E$3:$N$3,0)-1),2,TRUE) -> 1 | K48: =VLOOKUP(F:F,OFFSET('B. PoF Adj Factor Scoring-CH'!$E$5:$F$282,,MATCH(K$4,'B. PoF Adj Factor Scoring-CH'!$E$3:$N$3,0)-1),2,TRUE) -> 1
A49: ='A. Population Info-CH'!A49 -> 1000007148 | B49: ='A. Population Info-CH'!G49 -> N/A | C49: ='A. Population Info-CH'!H49 -> 0 | D49: ='A. Population Info-CH'!I49 -> 0 | E49: ='A. Population Info-CH'!J49 -> 0 | F49: ='A. Population Info-CH'!K49 -> 0 | G49: =VLOOKUP(B:B,OFFSET('B. PoF Adj Factor Scoring-CH'!$E$5:$F$282,,MATCH(G$4,'B. PoF Adj Factor Scoring-CH'!$E$3:$N$3,0)-1),2,TRUE) -> 1 | H49: =VLOOKUP(C:C,OFFSET('B. PoF Adj Factor Scoring-CH'!$E$5:$F$282,,MATCH(H$4,'B. PoF Adj Factor Scoring-CH'!$E$3:$N$3,0)-1),2,TRUE) -> 1 | I49: =VLOOKUP(D:D,OFFSET('B. PoF Adj Factor Scoring-CH'!$E$5:$F$282,,MATCH(I$4,'B. PoF Adj Factor Scoring-CH'!$E$3:$N$3,0)-1),2,TRUE) -> 1 | J49: =VLOOKUP(E:E,OFFSET('B. PoF Adj Factor Scoring-CH'!$E$5:$F$282,,MATCH(J$4,'B. PoF Adj Factor Scoring-CH'!$E$3:$N$3,0)-1),2,TRUE) -> 1 | K49: =VLOOKUP(F:F,OFFSET('B. PoF Adj Factor Scoring-CH'!$E$5:$F$282,,MATCH(K$4,'B. PoF Adj Factor Scoring-CH'!$E$3:$N$3,0)-1),2,TRUE) -> 1
A50: ='A. Population Info-CH'!A50 -> 1000007230 | B50: ='A. Population Info-CH'!G50 -> N/A | C50: ='A. Population Info-CH'!H50 -> 0 | D50: ='A. Population Info-CH'!I50 -> 0 | E50: ='A. Population Info-CH'!J50 -> 0 | F50: ='A. Population Info-CH'!K50 -> 0 | G50: =VLOOKUP(B:B,OFFSET('B. PoF Adj Factor Scoring-CH'!$E$5:$F$282,,MATCH(G$4,'B. PoF Adj Factor Scoring-CH'!$E$3:$N$3,0)-1),2,TRUE) -> 1 | H50: =VLOOKUP(C:C,OFFSET('B. PoF Adj Factor Scoring-CH'!$E$5:$F$282,,MATCH(H$4,'B. PoF Adj Factor Scoring-CH'!$E$3:$N$3,0)-1),2,TRUE) -> 1 | I50: =VLOOKUP(D:D,OFFSET('B. PoF Adj Factor Scoring-CH'!$E$5:$F$282,,MATCH(I$4,'B. PoF Adj Factor Scoring-CH'!$E$3:$N$3,0)-1),2,TRUE) -> 1 | J50: =VLOOKUP(E:E,OFFSET('B. PoF Adj Factor Scoring-CH'!$E$5:$F$282,,MATCH(J$4,'B. PoF Adj Factor Scoring-CH'!$E$3:$N$3,0)-1),2,TRUE) -> 1 | K50: =VLOOKUP(F:F,OFFSET('B. PoF Adj Factor Scoring-CH'!$E$5:$F$282,,MATCH(K$4,'B. PoF Adj Factor Scoring-CH'!$E$3:$N$3,0)-1),2,TRUE) -> 1
A51: ='A. Population Info-CH'!A51 -> 1000007285 | B51: ='A. Population Info-CH'!G51 -> N/A | C51: ='A. Population Info-CH'!H51 -> 0 | D51: ='A. Population Info-CH'!I51 -> 0 | E51: ='A. Population Info-CH'!J51 -> 0 | F51: ='A. Population Info-CH'!K51 -> 0 | G51: =VLOOKUP(B:B,OFFSET('B. PoF Adj Factor Scoring-CH'!$E$5:$F$282,,MATCH(G$4,'B. PoF Adj Factor Scoring-CH'!$E$3:$N$3,0)-1),2,TRUE) -> 1 | H51: =VLOOKUP(C:C,OFFSET('B. PoF Adj Factor Scoring-CH'!$E$5:$F$282,,MATCH(H$4,'B. PoF Adj Factor Scoring-CH'!$E$3:$N$3,0)-1),2,TRUE) -> 1 | I51: =VLOOKUP(D:D,OFFSET('B. PoF Adj Factor Scoring-CH'!$E$5:$F$282,,MATCH(I$4,'B. PoF Adj Factor Scoring-CH'!$E$3:$N$3,0)-1),2,TRUE) -> 1 | J51: =VLOOKUP(E:E,OFFSET('B. PoF Adj Factor Scoring-CH'!$E$5:$F$282,,MATCH(J$4,'B. PoF Adj Factor Scoring-CH'!$E$3:$N$3,0)-1),2,TRUE) -> 1 | K51: =VLOOKUP(F:F,OFFSET('B. PoF Adj Factor Scoring-CH'!$E$5:$F$282,,MATCH(K$4,'B. PoF Adj Factor Scoring-CH'!$E$3:$N$3,0)-1),2,TRUE) -> 1
A52: ='A. Population Info-CH'!A52 -> 1000007298 | B52: ='A. Population Info-CH'!G52 -> N/A | C52: ='A. Population Info-CH'!H52 -> 0 | D52: ='A. Population Info-CH'!I52 -> 0 | E52: ='A. Population Info-CH'!J52 -> 0 | F52: ='A. Population Info-CH'!K52 -> 0 | G52: =VLOOKUP(B:B,OFFSET('B. PoF Adj Factor Scoring-CH'!$E$5:$F$282,,MATCH(G$4,'B. PoF Adj Factor Scoring-CH'!$E$3:$N$3,0)-1),2,TRUE) -> 1 | H52: =VLOOKUP(C:C,OFFSET('B. PoF Adj Factor Scoring-CH'!$E$5:$F$282,,MATCH(H$4,'B. PoF Adj Factor Scoring-CH'!$E$3:$N$3,0)-1),2,TRUE) -> 1 | I52: =VLOOKUP(D:D,OFFSET('B. PoF Adj Factor Scoring-CH'!$E$5:$F$282,,MATCH(I$4,'B. PoF Adj Factor Scoring-CH'!$E$3:$N$3,0)-1),2,TRUE) -> 1 | J52: =VLOOKUP(E:E,OFFSET('B. PoF Adj Factor Scoring-CH'!$E$5:$F$282,,MATCH(J$4,'B. PoF Adj Factor Scoring-CH'!$E$3:$N$3,0)-1),2,TRUE) -> 1 | K52: =VLOOKUP(F:F,OFFSET('B. PoF Adj Factor Scoring-CH'!$E$5:$F$282,,MATCH(K$4,'B. PoF Adj Factor Scoring-CH'!$E$3:$N$3,0)-1),2,TRUE) -> 1
A53: ='A. Population Info-CH'!A53 -> 1000007311 | B53: ='A. Population Info-CH'!G53 -> N/A | C53: ='A. Population Info-CH'!H53 -> 0 | D53: ='A. Population Info-CH'!I53 -> 0 | E53: ='A. Population Info-CH'!J53 -> 0 | F53: ='A. Population Info-CH'!K53 -> 0 | G53: =VLOOKUP(B:B,OFFSET('B. PoF Adj Factor Scoring-CH'!$E$5:$F$282,,MATCH(G$4,'B. PoF Adj Factor Scoring-CH'!$E$3:$N$3,0)-1),2,TRUE) -> 1 | H53: =VLOOKUP(C:C,OFFSET('B. PoF Adj Factor Scoring-CH'!$E$5:$F$282,,MATCH(H$4,'B. PoF Adj Factor Scoring-CH'!$E$3:$N$3,0)-1),2,TRUE) -> 1 | I53: =VLOOKUP(D:D,OFFSET('B. PoF Adj Factor Scoring-CH'!$E$5:$F$282,,MATCH(I$4,'B. PoF Adj Factor Scoring-CH'!$E$3:$N$3,0)-1),2,TRUE) -> 1 | J53: =VLOOKUP(E:E,OFFSET('B. PoF Adj Factor Scoring-CH'!$E$5:$F$282,,MATCH(J$4,'B. PoF Adj Factor Scoring-CH'!$E$3:$N$3,0)-1),2,TRUE) -> 1 | K53: =VLOOKUP(F:F,OFFSET('B. PoF Adj Factor Scoring-CH'!$E$5:$F$282,,MATCH(K$4,'B. PoF Adj Factor Scoring-CH'!$E$3:$N$3,0)-1),2,TRUE) -> 1
A54: ='A. Population Info-CH'!A54 -> 1000007322 | B54: ='A. Population Info-CH'!G54 -> N/A | C54: ='A. Population Info-CH'!H54 -> 0 | D54: ='A. Population Info-CH'!I54 -> 0 | E54: ='A. Population Info-CH'!J54 -> 0 | F54: ='A. Population Info-CH'!K54 -> 0 | G54: =VLOOKUP(B:B,OFFSET('B. PoF Adj Factor Scoring-CH'!$E$5:$F$282,,MATCH(G$4,'B. PoF Adj Factor Scoring-CH'!$E$3:$N$3,0)-1),2,TRUE) -> 1 | H54: =VLOOKUP(C:C,OFFSET('B. PoF Adj Factor Scoring-CH'!$E$5:$F$282,,MATCH(H$4,'B. PoF Adj Factor Scoring-CH'!$E$3:$N$3,0)-1),2,TRUE) -> 1 | I54: =VLOOKUP(D:D,OFFSET('B. PoF Adj Factor Scoring-CH'!$E$5:$F$282,,MATCH(I$4,'B. PoF Adj Factor Scoring-CH'!$E$3:$N$3,0)-1),2,TRUE) -> 1 | J54: =VLOOKUP(E:E,OFFSET('B. PoF Adj Factor Scoring-CH'!$E$5:$F$282,,MATCH(J$4,'B. PoF Adj Factor Scoring-CH'!$E$3:$N$3,0)-1),2,TRUE) -> 1 | K54: =VLOOKUP(F:F,OFFSET('B. PoF Adj Factor Scoring-CH'!$E$5:$F$282,,MATCH(K$4,'B. PoF Adj Factor Scoring-CH'!$E$3:$N$3,0)-1),2,TRUE) -> 1
A55: ='A. Population Info-CH'!A55 -> 1000007328 | B55: ='A. Population Info-CH'!G55 -> N/A | C55: ='A. Population Info-CH'!H55 -> 0 | D55: ='A. Population Info-CH'!I55 -> 0 | E55: ='A. Population Info-CH'!J55 -> 0 | F55: ='A. Population Info-CH'!K55 -> 0 | G55: =VLOOKUP(B:B,OFFSET('B. PoF Adj Factor Scoring-CH'!$E$5:$F$282,,MATCH(G$4,'B. PoF Adj Factor Scoring-CH'!$E$3:$N$3,0)-1),2,TRUE) -> 1 | H55: =VLOOKUP(C:C,OFFSET('B. PoF Adj Factor Scoring-CH'!$E$5:$F$282,,MATCH(H$4,'B. PoF Adj Factor Scoring-CH'!$E$3:$N$3,0)-1),2,TRUE) -> 1 | I55: =VLOOKUP(D:D,OFFSET('B. PoF Adj Factor Scoring-CH'!$E$5:$F$282,,MATCH(I$4,'B. PoF Adj Factor Scoring-CH'!$E$3:$N$3,0)-1),2,TRUE) -> 1 | J55: =VLOOKUP(E:E,OFFSET('B. PoF Adj Factor Scoring-CH'!$E$5:$F$282,,MATCH(J$4,'B. PoF Adj Factor Scoring-CH'!$E$3:$N$3,0)-1),2,TRUE) -> 1 | K55: =VLOOKUP(F:F,OFFSET('B. PoF Adj Factor Scoring-CH'!$E$5:$F$282,,MATCH(K$4,'B. PoF Adj Factor Scoring-CH'!$E$3:$N$3,0)-1),2,TRUE) -> 1
A56: ='A. Population Info-CH'!A56 -> 1000007335 | B56: ='A. Population Info-CH'!G56 -> N/A | C56: ='A. Population Info-CH'!H56 -> 0 | D56: ='A. Population Info-CH'!I56 -> 0 | E56: ='A. Population Info-CH'!J56 -> 0 | F56: ='A. Population Info-CH'!K56 -> 0 | G56: =VLOOKUP(B:B,OFFSET('B. PoF Adj Factor Scoring-CH'!$E$5:$F$282,,MATCH(G$4,'B. PoF Adj Factor Scoring-CH'!$E$3:$N$3,0)-1),2,TRUE) -> 1 | H56: =VLOOKUP(C:C,OFFSET('B. PoF Adj Factor Scoring-CH'!$E$5:$F$282,,MATCH(H$4,'B. PoF Adj Factor Scoring-CH'!$E$3:$N$3,0)-1),2,TRUE) -> 1 | I56: =VLOOKUP(D:D,OFFSET('B. PoF Adj Factor Scoring-CH'!$E$5:$F$282,,MATCH(I$4,'B. PoF Adj Factor Scoring-CH'!$E$3:$N$3,0)-1),2,TRUE) -> 1 | J56: =VLOOKUP(E:E,OFFSET('B. PoF Adj Factor Scoring-CH'!$E$5:$F$282,,MATCH(J$4,'B. PoF Adj Factor Scoring-CH'!$E$3:$N$3,0)-1),2,TRUE) -> 1 | K56: =VLOOKUP(F:F,OFFSET('B. PoF Adj Factor Scoring-CH'!$E$5:$F$282,,MATCH(K$4,'B. PoF Adj Factor Scoring-CH'!$E$3:$N$3,0)-1),2,TRUE) -> 1
A57: ='A. Population Info-CH'!A57 -> 1000007348 | B57: ='A. Population Info-CH'!G57 -> N/A | C57: ='A. Population Info-CH'!H57 -> 0 | D57: ='A. Population Info-CH'!I57 -> 0 | E57: ='A. Population Info-CH'!J57 -> 0 | F57: ='A. Population Info-CH'!K57 -> 0 | G57: =VLOOKUP(B:B,OFFSET('B. PoF Adj Factor Scoring-CH'!$E$5:$F$282,,MATCH(G$4,'B. PoF Adj Factor Scoring-CH'!$E$3:$N$3,0)-1),2,TRUE) -> 1 | H57: =VLOOKUP(C:C,OFFSET('B. PoF Adj Factor Scoring-CH'!$E$5:$F$282,,MATCH(H$4,'B. PoF Adj Factor Scoring-CH'!$E$3:$N$3,0)-1),2,TRUE) -> 1 | I57: =VLOOKUP(D:D,OFFSET('B. PoF Adj Factor Scoring-CH'!$E$5:$F$282,,MATCH(I$4,'B. PoF Adj Factor Scoring-CH'!$E$3:$N$3,0)-1),2,TRUE) -> 1 | J57: =VLOOKUP(E:E,OFFSET('B. PoF Adj Factor Scoring-CH'!$E$5:$F$282,,MATCH(J$4,'B. PoF Adj Factor Scoring-CH'!$E$3:$N$3,0)-1),2,TRUE) -> 1 | K57: =VLOOKUP(F:F,OFFSET('B. PoF Adj Factor Scoring-CH'!$E$5:$F$282,,MATCH(K$4,'B. PoF Adj Factor Scoring-CH'!$E$3:$N$3,0)-1),2,TRUE) -> 1
A58: ='A. Population Info-CH'!A58 -> 1000007361 | B58: ='A. Population Info-CH'!G58 -> N/A | C58: ='A. Population Info-CH'!H58 -> 0 | D58: ='A. Population Info-CH'!I58 -> 0 | E58: ='A. Population Info-CH'!J58 -> 0 | F58: ='A. Population Info-CH'!K58 -> 0 | G58: =VLOOKUP(B:B,OFFSET('B. PoF Adj Factor Scoring-CH'!$E$5:$F$282,,MATCH(G$4,'B. PoF Adj Factor Scoring-CH'!$E$3:$N$3,0)-1),2,TRUE) -> 1 | H58: =VLOOKUP(C:C,OFFSET('B. PoF Adj Factor Scoring-CH'!$E$5:$F$282,,MATCH(H$4,'B. PoF Adj Factor Scoring-CH'!$E$3:$N$3,0)-1),2,TRUE) -> 1 | I58: =VLOOKUP(D:D,OFFSET('B. PoF Adj Factor Scoring-CH'!$E$5:$F$282,,MATCH(I$4,'B. PoF Adj Factor Scoring-CH'!$E$3:$N$3,0)-1),2,TRUE) -> 1 | J58: =VLOOKUP(E:E,OFFSET('B. PoF Adj Factor Scoring-CH'!$E$5:$F$282,,MATCH(J$4,'B. PoF Adj Factor Scoring-CH'!$E$3:$N$3,0)-1),2,TRUE) -> 1 | K58: =VLOOKUP(F:F,OFFSET('B. PoF Adj Factor Scoring-CH'!$E$5:$F$282,,MATCH(K$4,'B. PoF Adj Factor Scoring-CH'!$E$3:$N$3,0)-1),2,TRUE) -> 1
A59: ='A. Population Info-CH'!A59 -> 1000007373 | B59: ='A. Population Info-CH'!G59 -> N/A | C59: ='A. Population Info-CH'!H59 -> 0 | D59: ='A. Population Info-CH'!I59 -> 0 | E59: ='A. Population Info-CH'!J59 -> 0 | F59: ='A. Population Info-CH'!K59 -> 0 | G59: =VLOOKUP(B:B,OFFSET('B. PoF Adj Factor Scoring-CH'!$E$5:$F$282,,MATCH(G$4,'B. PoF Adj Factor Scoring-CH'!$E$3:$N$3,0)-1),2,TRUE) -> 1 | H59: =VLOOKUP(C:C,OFFSET('B. PoF Adj Factor Scoring-CH'!$E$5:$F$282,,MATCH(H$4,'B. PoF Adj Factor Scoring-CH'!$E$3:$N$3,0)-1),2,TRUE) -> 1 | I59: =VLOOKUP(D:D,OFFSET('B. PoF Adj Factor Scoring-CH'!$E$5:$F$282,,MATCH(I$4,'B. PoF Adj Factor Scoring-CH'!$E$3:$N$3,0)-1),2,TRUE) -> 1 | J59: =VLOOKUP(E:E,OFFSET('B. PoF Adj Factor Scoring-CH'!$E$5:$F$282,,MATCH(J$4,'B. PoF Adj Factor Scoring-CH'!$E$3:$N$3,0)-1),2,TRUE) -> 1 | K59: =VLOOKUP(F:F,OFFSET('B. PoF Adj Factor Scoring-CH'!$E$5:$F$282,,MATCH(K$4,'B. PoF Adj Factor Scoring-CH'!$E$3:$N$3,0)-1),2,TRUE) -> 1
A60: ='A. Population Info-CH'!A60 -> 1000007385 | B60: ='A. Population Info-CH'!G60 -> N/A | C60: ='A. Population Info-CH'!H60 -> 0 | D60: ='A. Population Info-CH'!I60 -> 0 | E60: ='A. Population Info-CH'!J60 -> 0 | F60: ='A. Population Info-CH'!K60 -> 0 | G60: =VLOOKUP(B:B,OFFSET('B. PoF Adj Factor Scoring-CH'!$E$5:$F$282,,MATCH(G$4,'B. PoF Adj Factor Scoring-CH'!$E$3:$N$3,0)-1),2,TRUE) -> 1 | H60: =VLOOKUP(C:C,OFFSET('B. PoF Adj Factor Scoring-CH'!$E$5:$F$282,,MATCH(H$4,'B. PoF Adj Factor Scoring-CH'!$E$3:$N$3,0)-1),2,TRUE) -> 1 | I60: =VLOOKUP(D:D,OFFSET('B. PoF Adj Factor Scoring-CH'!$E$5:$F$282,,MATCH(I$4,'B. PoF Adj Factor Scoring-CH'!$E$3:$N$3,0)-1),2,TRUE) -> 1 | J60: =VLOOKUP(E:E,OFFSET('B. PoF Adj Factor Scoring-CH'!$E$5:$F$282,,MATCH(J$4,'B. PoF Adj Factor Scoring-CH'!$E$3:$N$3,0)-1),2,TRUE) -> 1 | K60: =VLOOKUP(F:F,OFFSET('B. PoF Adj Factor Scoring-CH'!$E$5:$F$282,,MATCH(K$4,'B. PoF Adj Factor Scoring-CH'!$E$3:$N$3,0)-1),2,TRUE) -> 1
A61: ='A. Population Info-CH'!A61 -> 1000007398 | B61: ='A. Population Info-CH'!G61 -> N/A | C61: ='A. Population Info-CH'!H61 -> 0 | D61: ='A. Population Info-CH'!I61 -> 0 | E61: ='A. Population Info-CH'!J61 -> 0 | F61: ='A. Population Info-CH'!K61 -> 0 | G61: =VLOOKUP(B:B,OFFSET('B. PoF Adj Factor Scoring-CH'!$E$5:$F$282,,MATCH(G$4,'B. PoF Adj Factor Scoring-CH'!$E$3:$N$3,0)-1),2,TRUE) -> 1 | H61: =VLOOKUP(C:C,OFFSET('B. PoF Adj Factor Scoring-CH'!$E$5:$F$282,,MATCH(H$4,'B. PoF Adj Factor Scoring-CH'!$E$3:$N$3,0)-1),2,TRUE) -> 1 | I61: =VLOOKUP(D:D,OFFSET('B. PoF Adj Factor Scoring-CH'!$E$5:$F$282,,MATCH(I$4,'B. PoF Adj Factor Scoring-CH'!$E$3:$N$3,0)-1),2,TRUE) -> 1 | J61: =VLOOKUP(E:E,OFFSET('B. PoF Adj Factor Scoring-CH'!$E$5:$F$282,,MATCH(J$4,'B. PoF Adj Factor Scoring-CH'!$E$3:$N$3,0)-1),2,TRUE) -> 1 | K61: =VLOOKUP(F:F,OFFSET('B. PoF Adj Factor Scoring-CH'!$E$5:$F$282,,MATCH(K$4,'B. PoF Adj Factor Scoring-CH'!$E$3:$N$3,0)-1),2,TRUE) -> 1
A62: ='A. Population Info-CH'!A62 -> 1000007404 | B62: ='A. Population Info-CH'!G62 -> N/A | C62: ='A. Population Info-CH'!H62 -> 0 | D62: ='A. Population Info-CH'!I62 -> 0 | E62: ='A. Population Info-CH'!J62 -> 0 | F62: ='A. Population Info-CH'!K62 -> 0 | G62: =VLOOKUP(B:B,OFFSET('B. PoF Adj Factor Scoring-CH'!$E$5:$F$282,,MATCH(G$4,'B. PoF Adj Factor Scoring-CH'!$E$3:$N$3,0)-1),2,TRUE) -> 1 | H62: =VLOOKUP(C:C,OFFSET('B. PoF Adj Factor Scoring-CH'!$E$5:$F$282,,MATCH(H$4,'B. PoF Adj Factor Scoring-CH'!$E$3:$N$3,0)-1),2,TRUE) -> 1 | I62: =VLOOKUP(D:D,OFFSET('B. PoF Adj Factor Scoring-CH'!$E$5:$F$282,,MATCH(I$4,'B. PoF Adj Factor Scoring-CH'!$E$3:$N$3,0)-1),2,TRUE) -> 1 | J62: =VLOOKUP(E:E,OFFSET('B. PoF Adj Factor Scoring-CH'!$E$5:$F$282,,MATCH(J$4,'B. PoF Adj Factor Scoring-CH'!$E$3:$N$3,0)-1),2,TRUE) -> 1 | K62: =VLOOKUP(F:F,OFFSET('B. PoF Adj Factor Scoring-CH'!$E$5:$F$282,,MATCH(K$4,'B. PoF Adj Factor Scoring-CH'!$E$3:$N$3,0)-1),2,TRUE) -> 1
A63: ='A. Population Info-CH'!A63 -> 1000007411 | B63: ='A. Population Info-CH'!G63 -> N/A | C63: ='A. Population Info-CH'!H63 -> 0 | D63: ='A. Population Info-CH'!I63 -> 0 | E63: ='A. Population Info-CH'!J63 -> 0 | F63: ='A. Population Info-CH'!K63 -> 0 | G63: =VLOOKUP(B:B,OFFSET('B. PoF Adj Factor Scoring-CH'!$E$5:$F$282,,MATCH(G$4,'B. PoF Adj Factor Scoring-CH'!$E$3:$N$3,0)-1),2,TRUE) -> 1 | H63: =VLOOKUP(C:C,OFFSET('B. PoF Adj Factor Scoring-CH'!$E$5:$F$282,,MATCH(H$4,'B. PoF Adj Factor Scoring-CH'!$E$3:$N$3,0)-1),2,TRUE) -> 1 | I63: =VLOOKUP(D:D,OFFSET('B. PoF Adj Factor Scoring-CH'!$E$5:$F$282,,MATCH(I$4,'B. PoF Adj Factor Scoring-CH'!$E$3:$N$3,0)-1),2,TRUE) -> 1 | J63: =VLOOKUP(E:E,OFFSET('B. PoF Adj Factor Scoring-CH'!$E$5:$F$282,,MATCH(J$4,'B. PoF Adj Factor Scoring-CH'!$E$3:$N$3,0)-1),2,TRUE) -> 1 | K63: =VLOOKUP(F:F,OFFSET('B. PoF Adj Factor Scoring-CH'!$E$5:$F$282,,MATCH(K$4,'B. PoF Adj Factor Scoring-CH'!$E$3:$N$3,0)-1),2,TRUE) -> 1
A64: ='A. Population Info-CH'!A64 -> 1000007416 | B64: ='A. Population Info-CH'!G64 -> N/A | C64: ='A. Population Info-CH'!H64 -> 0 | D64: ='A. Population Info-CH'!I64 -> 0 | E64: ='A. Population Info-CH'!J64 -> 0 | F64: ='A. Population Info-CH'!K64 -> 0 | G64: =VLOOKUP(B:B,OFFSET('B. PoF Adj Factor Scoring-CH'!$E$5:$F$282,,MATCH(G$4,'B. PoF Adj Factor Scoring-CH'!$E$3:$N$3,0)-1),2,TRUE) -> 1 | H64: =VLOOKUP(C:C,OFFSET('B. PoF Adj Factor Scoring-CH'!$E$5:$F$282,,MATCH(H$4,'B. PoF Adj Factor Scoring-CH'!$E$3:$N$3,0)-1),2,TRUE) -> 1 | I64: =VLOOKUP(D:D,OFFSET('B. PoF Adj Factor Scoring-CH'!$E$5:$F$282,,MATCH(I$4,'B. PoF Adj Factor Scoring-CH'!$E$3:$N$3,0)-1),2,TRUE) -> 1 | J64: =VLOOKUP(E:E,OFFSET('B. PoF Adj Factor Scoring-CH'!$E$5:$F$282,,MATCH(J$4,'B. PoF Adj Factor Scoring-CH'!$E$3:$N$3,0)-1),2,TRUE) -> 1 | K64: =VLOOKUP(F:F,OFFSET('B. PoF Adj Factor Scoring-CH'!$E$5:$F$282,,MATCH(K$4,'B. PoF Adj Factor Scoring-CH'!$E$3:$N$3,0)-1),2,TRUE) -> 1
A65: ='A. Population Info-CH'!A65 -> 1000007424 | B65: ='A. Population Info-CH'!G65 -> N/A | C65: ='A. Population Info-CH'!H65 -> 0 | D65: ='A. Population Info-CH'!I65 -> 0 | E65: ='A. Population Info-CH'!J65 -> 0 | F65: ='A. Population Info-CH'!K65 -> 0 | G65: =VLOOKUP(B:B,OFFSET('B. PoF Adj Factor Scoring-CH'!$E$5:$F$282,,MATCH(G$4,'B. PoF Adj Factor Scoring-CH'!$E$3:$N$3,0)-1),2,TRUE) -> 1 | H65: =VLOOKUP(C:C,OFFSET('B. PoF Adj Factor Scoring-CH'!$E$5:$F$282,,MATCH(H$4,'B. PoF Adj Factor Scoring-CH'!$E$3:$N$3,0)-1),2,TRUE) -> 1 | I65: =VLOOKUP(D:D,OFFSET('B. PoF Adj Factor Scoring-CH'!$E$5:$F$282,,MATCH(I$4,'B. PoF Adj Factor Scoring-CH'!$E$3:$N$3,0)-1),2,TRUE) -> 1 | J65: =VLOOKUP(E:E,OFFSET('B. PoF Adj Factor Scoring-CH'!$E$5:$F$282,,MATCH(J$4,'B. PoF Adj Factor Scoring-CH'!$E$3:$N$3,0)-1),2,TRUE) -> 1 | K65: =VLOOKUP(F:F,OFFSET('B. PoF Adj Factor Scoring-CH'!$E$5:$F$282,,MATCH(K$4,'B. PoF Adj Factor Scoring-CH'!$E$3:$N$3,0)-1),2,TRUE) -> 1
A66: ='A. Population Info-CH'!A66 -> 1000007425 | B66: ='A. Population Info-CH'!G66 -> N/A | C66: ='A. Population Info-CH'!H66 -> 0 | D66: ='A. Population Info-CH'!I66 -> 0 | E66: ='A. Population Info-CH'!J66 -> 0 | F66: ='A. Population Info-CH'!K66 -> 0 | G66: =VLOOKUP(B:B,OFFSET('B. PoF Adj Factor Scoring-CH'!$E$5:$F$282,,MATCH(G$4,'B. PoF Adj Factor Scoring-CH'!$E$3:$N$3,0)-1),2,TRUE) -> 1 | H66: =VLOOKUP(C:C,OFFSET('B. PoF Adj Factor Scoring-CH'!$E$5:$F$282,,MATCH(H$4,'B. PoF Adj Factor Scoring-CH'!$E$3:$N$3,0)-1),2,TRUE) -> 1 | I66: =VLOOKUP(D:D,OFFSET('B. PoF Adj Factor Scoring-CH'!$E$5:$F$282,,MATCH(I$4,'B. PoF Adj Factor Scoring-CH'!$E$3:$N$3,0)-1),2,TRUE) -> 1 | J66: =VLOOKUP(E:E,OFFSET('B. PoF Adj Factor Scoring-CH'!$E$5:$F$282,,MATCH(J$4,'B. PoF Adj Factor Scoring-CH'!$E$3:$N$3,0)-1),2,TRUE) -> 1 | K66: =VLOOKUP(F:F,OFFSET('B. PoF Adj Factor Scoring-CH'!$E$5:$F$282,,MATCH(K$4,'B. PoF Adj Factor Scoring-CH'!$E$3:$N$3,0)-1),2,TRUE) -> 1
A67: ='A. Population Info-CH'!A67 -> 1000007437 | B67: ='A. Population Info-CH'!G67 -> N/A | C67: ='A. Population Info-CH'!H67 -> 0 | D67: ='A. Population Info-CH'!I67 -> 0 | E67: ='A. Population Info-CH'!J67 -> 0 | F67: ='A. Population Info-CH'!K67 -> 0 | G67: =VLOOKUP(B:B,OFFSET('B. PoF Adj Factor Scoring-CH'!$E$5:$F$282,,MATCH(G$4,'B. PoF Adj Factor Scoring-CH'!$E$3:$N$3,0)-1),2,TRUE) -> 1 | H67: =VLOOKUP(C:C,OFFSET('B. PoF Adj Factor Scoring-CH'!$E$5:$F$282,,MATCH(H$4,'B. PoF Adj Factor Scoring-CH'!$E$3:$N$3,0)-1),2,TRUE) -> 1 | I67: =VLOOKUP(D:D,OFFSET('B. PoF Adj Factor Scoring-CH'!$E$5:$F$282,,MATCH(I$4,'B. PoF Adj Factor Scoring-CH'!$E$3:$N$3,0)-1),2,TRUE) -> 1 | J67: =VLOOKUP(E:E,OFFSET('B. PoF Adj Factor Scoring-CH'!$E$5:$F$282,,MATCH(J$4,'B. PoF Adj Factor Scoring-CH'!$E$3:$N$3,0)-1),2,TRUE) -> 1 | K67: =VLOOKUP(F:F,OFFSET('B. PoF Adj Factor Scoring-CH'!$E$5:$F$282,,MATCH(K$4,'B. PoF Adj Factor Scoring-CH'!$E$3:$N$3,0)-1),2,TRUE) -> 1
A68: ='A. Population Info-CH'!A68 -> 1000007449 | B68: ='A. Population Info-CH'!G68 -> N/A | C68: ='A. Population Info-CH'!H68 -> 0 | D68: ='A. Population Info-CH'!I68 -> 0 | E68: ='A. Population Info-CH'!J68 -> 0 | F68: ='A. Population Info-CH'!K68 -> 0 | G68: =VLOOKUP(B:B,OFFSET('B. PoF Adj Factor Scoring-CH'!$E$5:$F$282,,MATCH(G$4,'B. PoF Adj Factor Scoring-CH'!$E$3:$N$3,0)-1),2,TRUE) -> 1 | H68: =VLOOKUP(C:C,OFFSET('B. PoF Adj Factor Scoring-CH'!$E$5:$F$282,,MATCH(H$4,'B. PoF Adj Factor Scoring-CH'!$E$3:$N$3,0)-1),2,TRUE) -> 1 | I68: =VLOOKUP(D:D,OFFSET('B. PoF Adj Factor Scoring-CH'!$E$5:$F$282,,MATCH(I$4,'B. PoF Adj Factor Scoring-CH'!$E$3:$N$3,0)-1),2,TRUE) -> 1 | J68: =VLOOKUP(E:E,OFFSET('B. PoF Adj Factor Scoring-CH'!$E$5:$F$282,,MATCH(J$4,'B. PoF Adj Factor Scoring-CH'!$E$3:$N$3,0)-1),2,TRUE) -> 1 | K68: =VLOOKUP(F:F,OFFSET('B. PoF Adj Factor Scoring-CH'!$E$5:$F$282,,MATCH(K$4,'B. PoF Adj Factor Scoring-CH'!$E$3:$N$3,0)-1),2,TRUE) -> 1
A69: ='A. Population Info-CH'!A69 -> 1000007463 | B69: ='A. Population Info-CH'!G69 -> N/A | C69: ='A. Population Info-CH'!H69 -> 0 | D69: ='A. Population Info-CH'!I69 -> 0 | E69: ='A. Population Info-CH'!J69 -> 0 | F69: ='A. Population Info-CH'!K69 -> 0 | G69: =VLOOKUP(B:B,OFFSET('B. PoF Adj Factor Scoring-CH'!$E$5:$F$282,,MATCH(G$4,'B. PoF Adj Factor Scoring-CH'!$E$3:$N$3,0)-1),2,TRUE) -> 1 | H69: =VLOOKUP(C:C,OFFSET('B. PoF Adj Factor Scoring-CH'!$E$5:$F$282,,MATCH(H$4,'B. PoF Adj Factor Scoring-CH'!$E$3:$N$3,0)-1),2,TRUE) -> 1 | I69: =VLOOKUP(D:D,OFFSET('B. PoF Adj Factor Scoring-CH'!$E$5:$F$282,,MATCH(I$4,'B. PoF Adj Factor Scoring-CH'!$E$3:$N$3,0)-1),2,TRUE) -> 1 | J69: =VLOOKUP(E:E,OFFSET('B. PoF Adj Factor Scoring-CH'!$E$5:$F$282,,MATCH(J$4,'B. PoF Adj Factor Scoring-CH'!$E$3:$N$3,0)-1),2,TRUE) -> 1 | K69: =VLOOKUP(F:F,OFFSET('B. PoF Adj Factor Scoring-CH'!$E$5:$F$282,,MATCH(K$4,'B. PoF Adj Factor Scoring-CH'!$E$3:$N$3,0)-1),2,TRUE) -> 1
A70: ='A. Population Info-CH'!A70 -> 1000007477 | B70: ='A. Population Info-CH'!G70 -> N/A | C70: ='A. Population Info-CH'!H70 -> 0 | D70: ='A. Population Info-CH'!I70 -> 0 | E70: ='A. Population Info-CH'!J70 -> 0 | F70: ='A. Population Info-CH'!K70 -> 0 | G70: =VLOOKUP(B:B,OFFSET('B. PoF Adj Factor Scoring-CH'!$E$5:$F$282,,MATCH(G$4,'B. PoF Adj Factor Scoring-CH'!$E$3:$N$3,0)-1),2,TRUE) -> 1 | H70: =VLOOKUP(C:C,OFFSET('B. PoF Adj Factor Scoring-CH'!$E$5:$F$282,,MATCH(H$4,'B. PoF Adj Factor Scoring-CH'!$E$3:$N$3,0)-1),2,TRUE) -> 1 | I70: =VLOOKUP(D:D,OFFSET('B. PoF Adj Factor Scoring-CH'!$E$5:$F$282,,MATCH(I$4,'B. PoF Adj Factor Scoring-CH'!$E$3:$N$3,0)-1),2,TRUE) -> 1 | J70: =VLOOKUP(E:E,OFFSET('B. PoF Adj Factor Scoring-CH'!$E$5:$F$282,,MATCH(J$4,'B. PoF Adj Factor Scoring-CH'!$E$3:$N$3,0)-1),2,TRUE) -> 1 | K70: =VLOOKUP(F:F,OFFSET('B. PoF Adj Factor Scoring-CH'!$E$5:$F$282,,MATCH(K$4,'B. PoF Adj Factor Scoring-CH'!$E$3:$N$3,0)-1),2,TRUE) -> 1
A71: ='A. Population Info-CH'!A71 -> 1000007490 | B71: ='A. Population Info-CH'!G71 -> N/A | C71: ='A. Population Info-CH'!H71 -> 0 | D71: ='A. Population Info-CH'!I71 -> 0 | E71: ='A. Population Info-CH'!J71 -> 0 | F71: ='A. Population Info-CH'!K71 -> 0 | G71: =VLOOKUP(B:B,OFFSET('B. PoF Adj Factor Scoring-CH'!$E$5:$F$282,,MATCH(G$4,'B. PoF Adj Factor Scoring-CH'!$E$3:$N$3,0)-1),2,TRUE) -> 1 | H71: =VLOOKUP(C:C,OFFSET('B. PoF Adj Factor Scoring-CH'!$E$5:$F$282,,MATCH(H$4,'B. PoF Adj Factor Scoring-CH'!$E$3:$N$3,0)-1),2,TRUE) -> 1 | I71: =VLOOKUP(D:D,OFFSET('B. PoF Adj Factor Scoring-CH'!$E$5:$F$282,,MATCH(I$4,'B. PoF Adj Factor Scoring-CH'!$E$3:$N$3,0)-1),2,TRUE) -> 1 | J71: =VLOOKUP(E:E,OFFSET('B. PoF Adj Factor Scoring-CH'!$E$5:$F$282,,MATCH(J$4,'B. PoF Adj Factor Scoring-CH'!$E$3:$N$3,0)-1),2,TRUE) -> 1 | K71: =VLOOKUP(F:F,OFFSET('B. PoF Adj Factor Scoring-CH'!$E$5:$F$282,,MATCH(K$4,'B. PoF Adj Factor Scoring-CH'!$E$3:$N$3,0)-1),2,TRUE) -> 1
A72: ='A. Population Info-CH'!A72 -> 1000007504 | B72: ='A. Population Info-CH'!G72 -> N/A | C72: ='A. Population Info-CH'!H72 -> 0 | D72: ='A. Population Info-CH'!I72 -> 0 | E72: ='A. Population Info-CH'!J72 -> 0 | F72: ='A. Population Info-CH'!K72 -> 0 | G72: =VLOOKUP(B:B,OFFSET('B. PoF Adj Factor Scoring-CH'!$E$5:$F$282,,MATCH(G$4,'B. PoF Adj Factor Scoring-CH'!$E$3:$N$3,0)-1),2,TRUE) -> 1 | H72: =VLOOKUP(C:C,OFFSET('B. PoF Adj Factor Scoring-CH'!$E$5:$F$282,,MATCH(H$4,'B. PoF Adj Factor Scoring-CH'!$E$3:$N$3,0)-1),2,TRUE) -> 1 | I72: =VLOOKUP(D:D,OFFSET('B. PoF Adj Factor Scoring-CH'!$E$5:$F$282,,MATCH(I$4,'B. PoF Adj Factor Scoring-CH'!$E$3:$N$3,0)-1),2,TRUE) -> 1 | J72: =VLOOKUP(E:E,OFFSET('B. PoF Adj Factor Scoring-CH'!$E$5:$F$282,,MATCH(J$4,'B. PoF Adj Factor Scoring-CH'!$E$3:$N$3,0)-1),2,TRUE) -> 1 | K72: =VLOOKUP(F:F,OFFSET('B. PoF Adj Factor Scoring-CH'!$E$5:$F$282,,MATCH(K$4,'B. PoF Adj Factor Scoring-CH'!$E$3:$N$3,0)-1),2,TRUE) -> 1
A73: ='A. Population Info-CH'!A73 -> 1000007516 | B73: ='A. Population Info-CH'!G73 -> N/A | C73: ='A. Population Info-CH'!H73 -> 0 | D73: ='A. Population Info-CH'!I73 -> 0 | E73: ='A. Population Info-CH'!J73 -> 0 | F73: ='A. Population Info-CH'!K73 -> 0 | G73: =VLOOKUP(B:B,OFFSET('B. PoF Adj Factor Scoring-CH'!$E$5:$F$282,,MATCH(G$4,'B. PoF Adj Factor Scoring-CH'!$E$3:$N$3,0)-1),2,TRUE) -> 1 | H73: =VLOOKUP(C:C,OFFSET('B. PoF Adj Factor Scoring-CH'!$E$5:$F$282,,MATCH(H$4,'B. PoF Adj Factor Scoring-CH'!$E$3:$N$3,0)-1),2,TRUE) -> 1 | I73: =VLOOKUP(D:D,OFFSET('B. PoF Adj Factor Scoring-CH'!$E$5:$F$282,,MATCH(I$4,'B. PoF Adj Factor Scoring-CH'!$E$3:$N$3,0)-1),2,TRUE) -> 1 | J73: =VLOOKUP(E:E,OFFSET('B. PoF Adj Factor Scoring-CH'!$E$5:$F$282,,MATCH(J$4,'B. PoF Adj Factor Scoring-CH'!$E$3:$N$3,0)-1),2,TRUE) -> 1 | K73: =VLOOKUP(F:F,OFFSET('B. PoF Adj Factor Scoring-CH'!$E$5:$F$282,,MATCH(K$4,'B. PoF Adj Factor Scoring-CH'!$E$3:$N$3,0)-1),2,TRUE) -> 1
A74: ='A. Population Info-CH'!A74 -> 1000007530 | B74: ='A. Population Info-CH'!G74 -> N/A | C74: ='A. Population Info-CH'!H74 -> 0 | D74: ='A. Population Info-CH'!I74 -> 0 | E74: ='A. Population Info-CH'!J74 -> 0 | F74: ='A. Population Info-CH'!K74 -> 0 | G74: =VLOOKUP(B:B,OFFSET('B. PoF Adj Factor Scoring-CH'!$E$5:$F$282,,MATCH(G$4,'B. PoF Adj Factor Scoring-CH'!$E$3:$N$3,0)-1),2,TRUE) -> 1 | H74: =VLOOKUP(C:C,OFFSET('B. PoF Adj Factor Scoring-CH'!$E$5:$F$282,,MATCH(H$4,'B. PoF Adj Factor Scoring-CH'!$E$3:$N$3,0)-1),2,TRUE) -> 1 | I74: =VLOOKUP(D:D,OFFSET('B. PoF Adj Factor Scoring-CH'!$E$5:$F$282,,MATCH(I$4,'B. PoF Adj Factor Scoring-CH'!$E$3:$N$3,0)-1),2,TRUE) -> 1 | J74: =VLOOKUP(E:E,OFFSET('B. PoF Adj Factor Scoring-CH'!$E$5:$F$282,,MATCH(J$4,'B. PoF Adj Factor Scoring-CH'!$E$3:$N$3,0)-1),2,TRUE) -> 1 | K74: =VLOOKUP(F:F,OFFSET('B. PoF Adj Factor Scoring-CH'!$E$5:$F$282,,MATCH(K$4,'B. PoF Adj Factor Scoring-CH'!$E$3:$N$3,0)-1),2,TRUE) -> 1
A75: ='A. Population Info-CH'!A75 -> 1000007545 | B75: ='A. Population Info-CH'!G75 -> N/A | C75: ='A. Population Info-CH'!H75 -> 0 | D75: ='A. Population Info-CH'!I75 -> 0 | E75: ='A. Population Info-CH'!J75 -> 0 | F75: ='A. Population Info-CH'!K75 -> 0 | G75: =VLOOKUP(B:B,OFFSET('B. PoF Adj Factor Scoring-CH'!$E$5:$F$282,,MATCH(G$4,'B. PoF Adj Factor Scoring-CH'!$E$3:$N$3,0)-1),2,TRUE) -> 1 | H75: =VLOOKUP(C:C,OFFSET('B. PoF Adj Factor Scoring-CH'!$E$5:$F$282,,MATCH(H$4,'B. PoF Adj Factor Scoring-CH'!$E$3:$N$3,0)-1),2,TRUE) -> 1 | I75: =VLOOKUP(D:D,OFFSET('B. PoF Adj Factor Scoring-CH'!$E$5:$F$282,,MATCH(I$4,'B. PoF Adj Factor Scoring-CH'!$E$3:$N$3,0)-1),2,TRUE) -> 1 | J75: =VLOOKUP(E:E,OFFSET('B. PoF Adj Factor Scoring-CH'!$E$5:$F$282,,MATCH(J$4,'B. PoF Adj Factor Scoring-CH'!$E$3:$N$3,0)-1),2,TRUE) -> 1 | K75: =VLOOKUP(F:F,OFFSET('B. PoF Adj Factor Scoring-CH'!$E$5:$F$282,,MATCH(K$4,'B. PoF Adj Factor Scoring-CH'!$E$3:$N$3,0)-1),2,TRUE) -> 1
A76: ='A. Population Info-CH'!A76 -> 1000007557 | B76: ='A. Population Info-CH'!G76 -> N/A | C76: ='A. Population Info-CH'!H76 -> 0 | D76: ='A. Population Info-CH'!I76 -> 0 | E76: ='A. Population Info-CH'!J76 -> 0 | F76: ='A. Population Info-CH'!K76 -> 0 | G76: =VLOOKUP(B:B,OFFSET('B. PoF Adj Factor Scoring-CH'!$E$5:$F$282,,MATCH(G$4,'B. PoF Adj Factor Scoring-CH'!$E$3:$N$3,0)-1),2,TRUE) -> 1 | H76: =VLOOKUP(C:C,OFFSET('B. PoF Adj Factor Scoring-CH'!$E$5:$F$282,,MATCH(H$4,'B. PoF Adj Factor Scoring-CH'!$E$3:$N$3,0)-1),2,TRUE) -> 1 | I76: =VLOOKUP(D:D,OFFSET('B. PoF Adj Factor Scoring-CH'!$E$5:$F$282,,MATCH(I$4,'B. PoF Adj Factor Scoring-CH'!$E$3:$N$3,0)-1),2,TRUE) -> 1 | J76: =VLOOKUP(E:E,OFFSET('B. PoF Adj Factor Scoring-CH'!$E$5:$F$282,,MATCH(J$4,'B. PoF Adj Factor Scoring-CH'!$E$3:$N$3,0)-1),2,TRUE) -> 1 | K76: =VLOOKUP(F:F,OFFSET('B. PoF Adj Factor Scoring-CH'!$E$5:$F$282,,MATCH(K$4,'B. PoF Adj Factor Scoring-CH'!$E$3:$N$3,0)-1),2,TRUE) -> 1
A77: ='A. Population Info-CH'!A77 -> 1000007571 | B77: ='A. Population Info-CH'!G77 -> N/A | C77: ='A. Population Info-CH'!H77 -> 0 | D77: ='A. Population Info-CH'!I77 -> 0 | E77: ='A. Population Info-CH'!J77 -> 0 | F77: ='A. Population Info-CH'!K77 -> 0 | G77: =VLOOKUP(B:B,OFFSET('B. PoF Adj Factor Scoring-CH'!$E$5:$F$282,,MATCH(G$4,'B. PoF Adj Factor Scoring-CH'!$E$3:$N$3,0)-1),2,TRUE) -> 1 | H77: =VLOOKUP(C:C,OFFSET('B. PoF Adj Factor Scoring-CH'!$E$5:$F$282,,MATCH(H$4,'B. PoF Adj Factor Scoring-CH'!$E$3:$N$3,0)-1),2,TRUE) -> 1 | I77: =VLOOKUP(D:D,OFFSET('B. PoF Adj Factor Scoring-CH'!$E$5:$F$282,,MATCH(I$4,'B. PoF Adj Factor Scoring-CH'!$E$3:$N$3,0)-1),2,TRUE) -> 1 | J77: =VLOOKUP(E:E,OFFSET('B. PoF Adj Factor Scoring-CH'!$E$5:$F$282,,MATCH(J$4,'B. PoF Adj Factor Scoring-CH'!$E$3:$N$3,0)-1),2,TRUE) -> 1 | K77: =VLOOKUP(F:F,OFFSET('B. PoF Adj Factor Scoring-CH'!$E$5:$F$282,,MATCH(K$4,'B. PoF Adj Factor Scoring-CH'!$E$3:$N$3,0)-1),2,TRUE) -> 1
A78: ='A. Population Info-CH'!A78 -> 1000007585 | B78: ='A. Population Info-CH'!G78 -> N/A | C78: ='A. Population Info-CH'!H78 -> 0 | D78: ='A. Population Info-CH'!I78 -> 0 | E78: ='A. Population Info-CH'!J78 -> 0 | F78: ='A. Population Info-CH'!K78 -> 0 | G78: =VLOOKUP(B:B,OFFSET('B. PoF Adj Factor Scoring-CH'!$E$5:$F$282,,MATCH(G$4,'B. PoF Adj Factor Scoring-CH'!$E$3:$N$3,0)-1),2,TRUE) -> 1 | H78: =VLOOKUP(C:C,OFFSET('B. PoF Adj Factor Scoring-CH'!$E$5:$F$282,,MATCH(H$4,'B. PoF Adj Factor Scoring-CH'!$E$3:$N$3,0)-1),2,TRUE) -> 1 | I78: =VLOOKUP(D:D,OFFSET('B. PoF Adj Factor Scoring-CH'!$E$5:$F$282,,MATCH(I$4,'B. PoF Adj Factor Scoring-CH'!$E$3:$N$3,0)-1),2,TRUE) -> 1 | J78: =VLOOKUP(E:E,OFFSET('B. PoF Adj Factor Scoring-CH'!$E$5:$F$282,,MATCH(J$4,'B. PoF Adj Factor Scoring-CH'!$E$3:$N$3,0)-1),2,TRUE) -> 1 | K78: =VLOOKUP(F:F,OFFSET('B. PoF Adj Factor Scoring-CH'!$E$5:$F$282,,MATCH(K$4,'B. PoF Adj Factor Scoring-CH'!$E$3:$N$3,0)-1),2,TRUE) -> 1
A79: ='A. Population Info-CH'!A79 -> 1000007598 | B79: ='A. Population Info-CH'!G79 -> N/A | C79: ='A. Population Info-CH'!H79 -> 0 | D79: ='A. Population Info-CH'!I79 -> 0 | E79: ='A. Population Info-CH'!J79 -> 0 | F79: ='A. Population Info-CH'!K79 -> 0 | G79: =VLOOKUP(B:B,OFFSET('B. PoF Adj Factor Scoring-CH'!$E$5:$F$282,,MATCH(G$4,'B. PoF Adj Factor Scoring-CH'!$E$3:$N$3,0)-1),2,TRUE) -> 1 | H79: =VLOOKUP(C:C,OFFSET('B. PoF Adj Factor Scoring-CH'!$E$5:$F$282,,MATCH(H$4,'B. PoF Adj Factor Scoring-CH'!$E$3:$N$3,0)-1),2,TRUE) -> 1 | I79: =VLOOKUP(D:D,OFFSET('B. PoF Adj Factor Scoring-CH'!$E$5:$F$282,,MATCH(I$4,'B. PoF Adj Factor Scoring-CH'!$E$3:$N$3,0)-1),2,TRUE) -> 1 | J79: =VLOOKUP(E:E,OFFSET('B. PoF Adj Factor Scoring-CH'!$E$5:$F$282,,MATCH(J$4,'B. PoF Adj Factor Scoring-CH'!$E$3:$N$3,0)-1),2,TRUE) -> 1 | K79: =VLOOKUP(F:F,OFFSET('B. PoF Adj Factor Scoring-CH'!$E$5:$F$282,,MATCH(K$4,'B. PoF Adj Factor Scoring-CH'!$E$3:$N$3,0)-1),2,TRUE) -> 1
A80: ='A. Population Info-CH'!A80 -> 1000007658 | B80: ='A. Population Info-CH'!G80 -> N/A | C80: ='A. Population Info-CH'!H80 -> 0 | D80: ='A. Population Info-CH'!I80 -> 0 | E80: ='A. Population Info-CH'!J80 -> 0 | F80: ='A. Population Info-CH'!K80 -> 0 | G80: =VLOOKUP(B:B,OFFSET('B. PoF Adj Factor Scoring-CH'!$E$5:$F$282,,MATCH(G$4,'B. PoF Adj Factor Scoring-CH'!$E$3:$N$3,0)-1),2,TRUE) -> 1 | H80: =VLOOKUP(C:C,OFFSET('B. PoF Adj Factor Scoring-CH'!$E$5:$F$282,,MATCH(H$4,'B. PoF Adj Factor Scoring-CH'!$E$3:$N$3,0)-1),2,TRUE) -> 1 | I80: =VLOOKUP(D:D,OFFSET('B. PoF Adj Factor Scoring-CH'!$E$5:$F$282,,MATCH(I$4,'B. PoF Adj Factor Scoring-CH'!$E$3:$N$3,0)-1),2,TRUE) -> 1 | J80: =VLOOKUP(E:E,OFFSET('B. PoF Adj Factor Scoring-CH'!$E$5:$F$282,,MATCH(J$4,'B. PoF Adj Factor Scoring-CH'!$E$3:$N$3,0)-1),2,TRUE) -> 1 | K80: =VLOOKUP(F:F,OFFSET('B. PoF Adj Factor Scoring-CH'!$E$5:$F$282,,MATCH(K$4,'B. PoF Adj Factor Scoring-CH'!$E$3:$N$3,0)-1),2,TRUE) -> 1
A81: ='A. Population Info-CH'!A81 -> 1000007825 | B81: ='A. Population Info-CH'!G81 -> N/A | C81: ='A. Population Info-CH'!H81 -> 0 | D81: ='A. Population Info-CH'!I81 -> 0 | E81: ='A. Population Info-CH'!J81 -> 0 | F81: ='A. Population Info-CH'!K81 -> 0 | G81: =VLOOKUP(B:B,OFFSET('B. PoF Adj Factor Scoring-CH'!$E$5:$F$282,,MATCH(G$4,'B. PoF Adj Factor Scoring-CH'!$E$3:$N$3,0)-1),2,TRUE) -> 1 | H81: =VLOOKUP(C:C,OFFSET('B. PoF Adj Factor Scoring-CH'!$E$5:$F$282,,MATCH(H$4,'B. PoF Adj Factor Scoring-CH'!$E$3:$N$3,0)-1),2,TRUE) -> 1 | I81: =VLOOKUP(D:D,OFFSET('B. PoF Adj Factor Scoring-CH'!$E$5:$F$282,,MATCH(I$4,'B. PoF Adj Factor Scoring-CH'!$E$3:$N$3,0)-1),2,TRUE) -> 1 | J81: =VLOOKUP(E:E,OFFSET('B. PoF Adj Factor Scoring-CH'!$E$5:$F$282,,MATCH(J$4,'B. PoF Adj Factor Scoring-CH'!$E$3:$N$3,0)-1),2,TRUE) -> 1 | K81: =VLOOKUP(F:F,OFFSET('B. PoF Adj Factor Scoring-CH'!$E$5:$F$282,,MATCH(K$4,'B. PoF Adj Factor Scoring-CH'!$E$3:$N$3,0)-1),2,TRUE) -> 1
A82: ='A. Population Info-CH'!A82 -> 1000007839 | B82: ='A. Population Info-CH'!G82 -> N/A | C82: ='A. Population Info-CH'!H82 -> 0 | D82: ='A. Population Info-CH'!I82 -> 0 | E82: ='A. Population Info-CH'!J82 -> 0 | F82: ='A. Population Info-CH'!K82 -> 0 | G82: =VLOOKUP(B:B,OFFSET('B. PoF Adj Factor Scoring-CH'!$E$5:$F$282,,MATCH(G$4,'B. PoF Adj Factor Scoring-CH'!$E$3:$N$3,0)-1),2,TRUE) -> 1 | H82: =VLOOKUP(C:C,OFFSET('B. PoF Adj Factor Scoring-CH'!$E$5:$F$282,,MATCH(H$4,'B. PoF Adj Factor Scoring-CH'!$E$3:$N$3,0)-1),2,TRUE) -> 1 | I82: =VLOOKUP(D:D,OFFSET('B. PoF Adj Factor Scoring-CH'!$E$5:$F$282,,MATCH(I$4,'B. PoF Adj Factor Scoring-CH'!$E$3:$N$3,0)-1),2,TRUE) -> 1 | J82: =VLOOKUP(E:E,OFFSET('B. PoF Adj Factor Scoring-CH'!$E$5:$F$282,,MATCH(J$4,'B. PoF Adj Factor Scoring-CH'!$E$3:$N$3,0)-1),2,TRUE) -> 1 | K82: =VLOOKUP(F:F,OFFSET('B. PoF Adj Factor Scoring-CH'!$E$5:$F$282,,MATCH(K$4,'B. PoF Adj Factor Scoring-CH'!$E$3:$N$3,0)-1),2,TRUE) -> 1
A83: ='A. Population Info-CH'!A83 -> 1000007853 | B83: ='A. Population Info-CH'!G83 -> N/A | C83: ='A. Population Info-CH'!H83 -> 0 | D83: ='A. Population Info-CH'!I83 -> 0 | E83: ='A. Population Info-CH'!J83 -> 0 | F83: ='A. Population Info-CH'!K83 -> 0 | G83: =VLOOKUP(B:B,OFFSET('B. PoF Adj Factor Scoring-CH'!$E$5:$F$282,,MATCH(G$4,'B. PoF Adj Factor Scoring-CH'!$E$3:$N$3,0)-1),2,TRUE) -> 1 | H83: =VLOOKUP(C:C,OFFSET('B. PoF Adj Factor Scoring-CH'!$E$5:$F$282,,MATCH(H$4,'B. PoF Adj Factor Scoring-CH'!$E$3:$N$3,0)-1),2,TRUE) -> 1 | I83: =VLOOKUP(D:D,OFFSET('B. PoF Adj Factor Scoring-CH'!$E$5:$F$282,,MATCH(I$4,'B. PoF Adj Factor Scoring-CH'!$E$3:$N$3,0)-1),2,TRUE) -> 1 | J83: =VLOOKUP(E:E,OFFSET('B. PoF Adj Factor Scoring-CH'!$E$5:$F$282,,MATCH(J$4,'B. PoF Adj Factor Scoring-CH'!$E$3:$N$3,0)-1),2,TRUE) -> 1 | K83: =VLOOKUP(F:F,OFFSET('B. PoF Adj Factor Scoring-CH'!$E$5:$F$282,,MATCH(K$4,'B. PoF Adj Factor Scoring-CH'!$E$3:$N$3,0)-1),2,TRUE) -> 1
A84: ='A. Population Info-CH'!A84 -> 1000007866 | B84: ='A. Population Info-CH'!G84 -> N/A | C84: ='A. Population Info-CH'!H84 -> 0 | D84: ='A. Population Info-CH'!I84 -> 0 | E84: ='A. Population Info-CH'!J84 -> 0 | F84: ='A. Population Info-CH'!K84 -> 0 | G84: =VLOOKUP(B:B,OFFSET('B. PoF Adj Factor Scoring-CH'!$E$5:$F$282,,MATCH(G$4,'B. PoF Adj Factor Scoring-CH'!$E$3:$N$3,0)-1),2,TRUE) -> 1 | H84: =VLOOKUP(C:C,OFFSET('B. PoF Adj Factor Scoring-CH'!$E$5:$F$282,,MATCH(H$4,'B. PoF Adj Factor Scoring-CH'!$E$3:$N$3,0)-1),2,TRUE) -> 1 | I84: =VLOOKUP(D:D,OFFSET('B. PoF Adj Factor Scoring-CH'!$E$5:$F$282,,MATCH(I$4,'B. PoF Adj Factor Scoring-CH'!$E$3:$N$3,0)-1),2,TRUE) -> 1 | J84: =VLOOKUP(E:E,OFFSET('B. PoF Adj Factor Scoring-CH'!$E$5:$F$282,,MATCH(J$4,'B. PoF Adj Factor Scoring-CH'!$E$3:$N$3,0)-1),2,TRUE) -> 1 | K84: =VLOOKUP(F:F,OFFSET('B. PoF Adj Factor Scoring-CH'!$E$5:$F$282,,MATCH(K$4,'B. PoF Adj Factor Scoring-CH'!$E$3:$N$3,0)-1),2,TRUE) -> 1
A85: ='A. Population Info-CH'!A85 -> 1000007898 | B85: ='A. Population Info-CH'!G85 -> N/A | C85: ='A. Population Info-CH'!H85 -> 0 | D85: ='A. Population Info-CH'!I85 -> 0 | E85: ='A. Population Info-CH'!J85 -> 0 | F85: ='A. Population Info-CH'!K85 -> 0 | G85: =VLOOKUP(B:B,OFFSET('B. PoF Adj Factor Scoring-CH'!$E$5:$F$282,,MATCH(G$4,'B. PoF Adj Factor Scoring-CH'!$E$3:$N$3,0)-1),2,TRUE) -> 1 | H85: =VLOOKUP(C:C,OFFSET('B. PoF Adj Factor Scoring-CH'!$E$5:$F$282,,MATCH(H$4,'B. PoF Adj Factor Scoring-CH'!$E$3:$N$3,0)-1),2,TRUE) -> 1 | I85: =VLOOKUP(D:D,OFFSET('B. PoF Adj Factor Scoring-CH'!$E$5:$F$282,,MATCH(I$4,'B. PoF Adj Factor Scoring-CH'!$E$3:$N$3,0)-1),2,TRUE) -> 1 | J85: =VLOOKUP(E:E,OFFSET('B. PoF Adj Factor Scoring-CH'!$E$5:$F$282,,MATCH(J$4,'B. PoF Adj Factor Scoring-CH'!$E$3:$N$3,0)-1),2,TRUE) -> 1 | K85: =VLOOKUP(F:F,OFFSET('B. PoF Adj Factor Scoring-CH'!$E$5:$F$282,,MATCH(K$4,'B. PoF Adj Factor Scoring-CH'!$E$3:$N$3,0)-1),2,TRUE) -> 1
A86: ='A. Population Info-CH'!A86 -> 1000007912 | B86: ='A. Population Info-CH'!G86 -> N/A | C86: ='A. Population Info-CH'!H86 -> 0 | D86: ='A. Population Info-CH'!I86 -> 0 | E86: ='A. Population Info-CH'!J86 -> 0 | F86: ='A. Population Info-CH'!K86 -> 0 | G86: =VLOOKUP(B:B,OFFSET('B. PoF Adj Factor Scoring-CH'!$E$5:$F$282,,MATCH(G$4,'B. PoF Adj Factor Scoring-CH'!$E$3:$N$3,0)-1),2,TRUE) -> 1 | H86: =VLOOKUP(C:C,OFFSET('B. PoF Adj Factor Scoring-CH'!$E$5:$F$282,,MATCH(H$4,'B. PoF Adj Factor Scoring-CH'!$E$3:$N$3,0)-1),2,TRUE) -> 1 | I86: =VLOOKUP(D:D,OFFSET('B. PoF Adj Factor Scoring-CH'!$E$5:$F$282,,MATCH(I$4,'B. PoF Adj Factor Scoring-CH'!$E$3:$N$3,0)-1),2,TRUE) -> 1 | J86: =VLOOKUP(E:E,OFFSET('B. PoF Adj Factor Scoring-CH'!$E$5:$F$282,,MATCH(J$4,'B. PoF Adj Factor Scoring-CH'!$E$3:$N$3,0)-1),2,TRUE) -> 1 | K86: =VLOOKUP(F:F,OFFSET('B. PoF Adj Factor Scoring-CH'!$E$5:$F$282,,MATCH(K$4,'B. PoF Adj Factor Scoring-CH'!$E$3:$N$3,0)-1),2,TRUE) -> 1
A87: ='A. Population Info-CH'!A87 -> 1000015042 | B87: ='A. Population Info-CH'!G87 -> N/A | C87: ='A. Population Info-CH'!H87 -> 0 | D87: ='A. Population Info-CH'!I87 -> 0 | E87: ='A. Population Info-CH'!J87 -> 0 | F87: ='A. Population Info-CH'!K87 -> 0 | G87: =VLOOKUP(B:B,OFFSET('B. PoF Adj Factor Scoring-CH'!$E$5:$F$282,,MATCH(G$4,'B. PoF Adj Factor Scoring-CH'!$E$3:$N$3,0)-1),2,TRUE) -> 1 | H87: =VLOOKUP(C:C,OFFSET('B. PoF Adj Factor Scoring-CH'!$E$5:$F$282,,MATCH(H$4,'B. PoF Adj Factor Scoring-CH'!$E$3:$N$3,0)-1),2,TRUE) -> 1 | I87: =VLOOKUP(D:D,OFFSET('B. PoF Adj Factor Scoring-CH'!$E$5:$F$282,,MATCH(I$4,'B. PoF Adj Factor Scoring-CH'!$E$3:$N$3,0)-1),2,TRUE) -> 1 | J87: =VLOOKUP(E:E,OFFSET('B. PoF Adj Factor Scoring-CH'!$E$5:$F$282,,MATCH(J$4,'B. PoF Adj Factor Scoring-CH'!$E$3:$N$3,0)-1),2,TRUE) -> 1 | K87: =VLOOKUP(F:F,OFFSET('B. PoF Adj Factor Scoring-CH'!$E$5:$F$282,,MATCH(K$4,'B. PoF Adj Factor Scoring-CH'!$E$3:$N$3,0)-1),2,TRUE) -> 1
A88: ='A. Population Info-CH'!A88 -> 1000015055 | B88: ='A. Population Info-CH'!G88 -> N/A | C88: ='A. Population Info-CH'!H88 -> 0 | D88: ='A. Population Info-CH'!I88 -> 0 | E88: ='A. Population Info-CH'!J88 -> 0 | F88: ='A. Population Info-CH'!K88 -> 0 | G88: =VLOOKUP(B:B,OFFSET('B. PoF Adj Factor Scoring-CH'!$E$5:$F$282,,MATCH(G$4,'B. PoF Adj Factor Scoring-CH'!$E$3:$N$3,0)-1),2,TRUE) -> 1 | H88: =VLOOKUP(C:C,OFFSET('B. PoF Adj Factor Scoring-CH'!$E$5:$F$282,,MATCH(H$4,'B. PoF Adj Factor Scoring-CH'!$E$3:$N$3,0)-1),2,TRUE) -> 1 | I88: =VLOOKUP(D:D,OFFSET('B. PoF Adj Factor Scoring-CH'!$E$5:$F$282,,MATCH(I$4,'B. PoF Adj Factor Scoring-CH'!$E$3:$N$3,0)-1),2,TRUE) -> 1 | J88: =VLOOKUP(E:E,OFFSET('B. PoF Adj Factor Scoring-CH'!$E$5:$F$282,,MATCH(J$4,'B. PoF Adj Factor Scoring-CH'!$E$3:$N$3,0)-1),2,TRUE) -> 1 | K88: =VLOOKUP(F:F,OFFSET('B. PoF Adj Factor Scoring-CH'!$E$5:$F$282,,MATCH(K$4,'B. PoF Adj Factor Scoring-CH'!$E$3:$N$3,0)-1),2,TRUE) -> 1
A89: ='A. Population Info-CH'!A89 -> 1000015070 | B89: ='A. Population Info-CH'!G89 -> N/A | C89: ='A. Population Info-CH'!H89 -> 0 | D89: ='A. Population Info-CH'!I89 -> 0 | E89: ='A. Population Info-CH'!J89 -> 0 | F89: ='A. Population Info-CH'!K89 -> 0 | G89: =VLOOKUP(B:B,OFFSET('B. PoF Adj Factor Scoring-CH'!$E$5:$F$282,,MATCH(G$4,'B. PoF Adj Factor Scoring-CH'!$E$3:$N$3,0)-1),2,TRUE) -> 1 | H89: =VLOOKUP(C:C,OFFSET('B. PoF Adj Factor Scoring-CH'!$E$5:$F$282,,MATCH(H$4,'B. PoF Adj Factor Scoring-CH'!$E$3:$N$3,0)-1),2,TRUE) -> 1 | I89: =VLOOKUP(D:D,OFFSET('B. PoF Adj Factor Scoring-CH'!$E$5:$F$282,,MATCH(I$4,'B. PoF Adj Factor Scoring-CH'!$E$3:$N$3,0)-1),2,TRUE) -> 1 | J89: =VLOOKUP(E:E,OFFSET('B. PoF Adj Factor Scoring-CH'!$E$5:$F$282,,MATCH(J$4,'B. PoF Adj Factor Scoring-CH'!$E$3:$N$3,0)-1),2,TRUE) -> 1 | K89: =VLOOKUP(F:F,OFFSET('B. PoF Adj Factor Scoring-CH'!$E$5:$F$282,,MATCH(K$4,'B. PoF Adj Factor Scoring-CH'!$E$3:$N$3,0)-1),2,TRUE) -> 1
A90: ='A. Population Info-CH'!A90 -> 1000015107 | B90: ='A. Population Info-CH'!G90 -> N/A | C90: ='A. Population Info-CH'!H90 -> 0 | D90: ='A. Population Info-CH'!I90 -> 0 | E90: ='A. Population Info-CH'!J90 -> 0 | F90: ='A. Population Info-CH'!K90 -> 0 | G90: =VLOOKUP(B:B,OFFSET('B. PoF Adj Factor Scoring-CH'!$E$5:$F$282,,MATCH(G$4,'B. PoF Adj Factor Scoring-CH'!$E$3:$N$3,0)-1),2,TRUE) -> 1 | H90: =VLOOKUP(C:C,OFFSET('B. PoF Adj Factor Scoring-CH'!$E$5:$F$282,,MATCH(H$4,'B. PoF Adj Factor Scoring-CH'!$E$3:$N$3,0)-1),2,TRUE) -> 1 | I90: =VLOOKUP(D:D,OFFSET('B. PoF Adj Factor Scoring-CH'!$E$5:$F$282,,MATCH(I$4,'B. PoF Adj Factor Scoring-CH'!$E$3:$N$3,0)-1),2,TRUE) -> 1 | J90: =VLOOKUP(E:E,OFFSET('B. PoF Adj Factor Scoring-CH'!$E$5:$F$282,,MATCH(J$4,'B. PoF Adj Factor Scoring-CH'!$E$3:$N$3,0)-1),2,TRUE) -> 1 | K90: =VLOOKUP(F:F,OFFSET('B. PoF Adj Factor Scoring-CH'!$E$5:$F$282,,MATCH(K$4,'B. PoF Adj Factor Scoring-CH'!$E$3:$N$3,0)-1),2,TRUE) -> 1
A91: ='A. Population Info-CH'!A91 -> 1000015119 | B91: ='A. Population Info-CH'!G91 -> N/A | C91: ='A. Population Info-CH'!H91 -> 0 | D91: ='A. Population Info-CH'!I91 -> 0 | E91: ='A. Population Info-CH'!J91 -> 0 | F91: ='A. Population Info-CH'!K91 -> 0 | G91: =VLOOKUP(B:B,OFFSET('B. PoF Adj Factor Scoring-CH'!$E$5:$F$282,,MATCH(G$4,'B. PoF Adj Factor Scoring-CH'!$E$3:$N$3,0)-1),2,TRUE) -> 1 | H91: =VLOOKUP(C:C,OFFSET('B. PoF Adj Factor Scoring-CH'!$E$5:$F$282,,MATCH(H$4,'B. PoF Adj Factor Scoring-CH'!$E$3:$N$3,0)-1),2,TRUE) -> 1 | I91: =VLOOKUP(D:D,OFFSET('B. PoF Adj Factor Scoring-CH'!$E$5:$F$282,,MATCH(I$4,'B. PoF Adj Factor Scoring-CH'!$E$3:$N$3,0)-1),2,TRUE) -> 1 | J91: =VLOOKUP(E:E,OFFSET('B. PoF Adj Factor Scoring-CH'!$E$5:$F$282,,MATCH(J$4,'B. PoF Adj Factor Scoring-CH'!$E$3:$N$3,0)-1),2,TRUE) -> 1 | K91: =VLOOKUP(F:F,OFFSET('B. PoF Adj Factor Scoring-CH'!$E$5:$F$282,,MATCH(K$4,'B. PoF Adj Factor Scoring-CH'!$E$3:$N$3,0)-1),2,TRUE) -> 1
A92: ='A. Population Info-CH'!A92 -> 1000015143 | B92: ='A. Population Info-CH'!G92 -> N/A | C92: ='A. Population Info-CH'!H92 -> 0 | D92: ='A. Population Info-CH'!I92 -> 0 | E92: ='A. Population Info-CH'!J92 -> 0 | F92: ='A. Population Info-CH'!K92 -> 0 | G92: =VLOOKUP(B:B,OFFSET('B. PoF Adj Factor Scoring-CH'!$E$5:$F$282,,MATCH(G$4,'B. PoF Adj Factor Scoring-CH'!$E$3:$N$3,0)-1),2,TRUE) -> 1 | H92: =VLOOKUP(C:C,OFFSET('B. PoF Adj Factor Scoring-CH'!$E$5:$F$282,,MATCH(H$4,'B. PoF Adj Factor Scoring-CH'!$E$3:$N$3,0)-1),2,TRUE) -> 1 | I92: =VLOOKUP(D:D,OFFSET('B. PoF Adj Factor Scoring-CH'!$E$5:$F$282,,MATCH(I$4,'B. PoF Adj Factor Scoring-CH'!$E$3:$N$3,0)-1),2,TRUE) -> 1 | J92: =VLOOKUP(E:E,OFFSET('B. PoF Adj Factor Scoring-CH'!$E$5:$F$282,,MATCH(J$4,'B. PoF Adj Factor Scoring-CH'!$E$3:$N$3,0)-1),2,TRUE) -> 1 | K92: =VLOOKUP(F:F,OFFSET('B. PoF Adj Factor Scoring-CH'!$E$5:$F$282,,MATCH(K$4,'B. PoF Adj Factor Scoring-CH'!$E$3:$N$3,0)-1),2,TRUE) -> 1
A93: ='A. Population Info-CH'!A93 -> 1000015242 | B93: ='A. Population Info-CH'!G93 -> N/A | C93: ='A. Population Info-CH'!H93 -> 0 | D93: ='A. Population Info-CH'!I93 -> 0 | E93: ='A. Population Info-CH'!J93 -> 0 | F93: ='A. Population Info-CH'!K93 -> 0 | G93: =VLOOKUP(B:B,OFFSET('B. PoF Adj Factor Scoring-CH'!$E$5:$F$282,,MATCH(G$4,'B. PoF Adj Factor Scoring-CH'!$E$3:$N$3,0)-1),2,TRUE) -> 1 | H93: =VLOOKUP(C:C,OFFSET('B. PoF Adj Factor Scoring-CH'!$E$5:$F$282,,MATCH(H$4,'B. PoF Adj Factor Scoring-CH'!$E$3:$N$3,0)-1),2,TRUE) -> 1 | I93: =VLOOKUP(D:D,OFFSET('B. PoF Adj Factor Scoring-CH'!$E$5:$F$282,,MATCH(I$4,'B. PoF Adj Factor Scoring-CH'!$E$3:$N$3,0)-1),2,TRUE) -> 1 | J93: =VLOOKUP(E:E,OFFSET('B. PoF Adj Factor Scoring-CH'!$E$5:$F$282,,MATCH(J$4,'B. PoF Adj Factor Scoring-CH'!$E$3:$N$3,0)-1),2,TRUE) -> 1 | K93: =VLOOKUP(F:F,OFFSET('B. PoF Adj Factor Scoring-CH'!$E$5:$F$282,,MATCH(K$4,'B. PoF Adj Factor Scoring-CH'!$E$3:$N$3,0)-1),2,TRUE) -> 1
A94: ='A. Population Info-CH'!A94 -> 1000015489 | B94: ='A. Population Info-CH'!G94 -> N/A | C94: ='A. Population Info-CH'!H94 -> 0 | D94: ='A. Population Info-CH'!I94 -> 0 | E94: ='A. Population Info-CH'!J94 -> 0 | F94: ='A. Population Info-CH'!K94 -> 0 | G94: =VLOOKUP(B:B,OFFSET('B. PoF Adj Factor Scoring-CH'!$E$5:$F$282,,MATCH(G$4,'B. PoF Adj Factor Scoring-CH'!$E$3:$N$3,0)-1),2,TRUE) -> 1 | H94: =VLOOKUP(C:C,OFFSET('B. PoF Adj Factor Scoring-CH'!$E$5:$F$282,,MATCH(H$4,'B. PoF Adj Factor Scoring-CH'!$E$3:$N$3,0)-1),2,TRUE) -> 1 | I94: =VLOOKUP(D:D,OFFSET('B. PoF Adj Factor Scoring-CH'!$E$5:$F$282,,MATCH(I$4,'B. PoF Adj Factor Scoring-CH'!$E$3:$N$3,0)-1),2,TRUE) -> 1 | J94: =VLOOKUP(E:E,OFFSET('B. PoF Adj Factor Scoring-CH'!$E$5:$F$282,,MATCH(J$4,'B. PoF Adj Factor Scoring-CH'!$E$3:$N$3,0)-1),2,TRUE) -> 1 | K94: =VLOOKUP(F:F,OFFSET('B. PoF Adj Factor Scoring-CH'!$E$5:$F$282,,MATCH(K$4,'B. PoF Adj Factor Scoring-CH'!$E$3:$N$3,0)-1),2,TRUE) -> 1
A95: ='A. Population Info-CH'!A95 -> 1000015529 | B95: ='A. Population Info-CH'!G95 -> N/A | C95: ='A. Population Info-CH'!H95 -> 0 | D95: ='A. Population Info-CH'!I95 -> 0 | E95: ='A. Population Info-CH'!J95 -> 0 | F95: ='A. Population Info-CH'!K95 -> 0 | G95: =VLOOKUP(B:B,OFFSET('B. PoF Adj Factor Scoring-CH'!$E$5:$F$282,,MATCH(G$4,'B. PoF Adj Factor Scoring-CH'!$E$3:$N$3,0)-1),2,TRUE) -> 1 | H95: =VLOOKUP(C:C,OFFSET('B. PoF Adj Factor Scoring-CH'!$E$5:$F$282,,MATCH(H$4,'B. PoF Adj Factor Scoring-CH'!$E$3:$N$3,0)-1),2,TRUE) -> 1 | I95: =VLOOKUP(D:D,OFFSET('B. PoF Adj Factor Scoring-CH'!$E$5:$F$282,,MATCH(I$4,'B. PoF Adj Factor Scoring-CH'!$E$3:$N$3,0)-1),2,TRUE) -> 1 | J95: =VLOOKUP(E:E,OFFSET('B. PoF Adj Factor Scoring-CH'!$E$5:$F$282,,MATCH(J$4,'B. PoF Adj Factor Scoring-CH'!$E$3:$N$3,0)-1),2,TRUE) -> 1 | K95: =VLOOKUP(F:F,OFFSET('B. PoF Adj Factor Scoring-CH'!$E$5:$F$282,,MATCH(K$4,'B. PoF Adj Factor Scoring-CH'!$E$3:$N$3,0)-1),2,TRUE) -> 1
A96: ='A. Population Info-CH'!A96 -> 1000015532 | B96: ='A. Population Info-CH'!G96 -> N/A | C96: ='A. Population Info-CH'!H96 -> 0 | D96: ='A. Population Info-CH'!I96 -> 0 | E96: ='A. Population Info-CH'!J96 -> 0 | F96: ='A. Population Info-CH'!K96 -> 0 | G96: =VLOOKUP(B:B,OFFSET('B. PoF Adj Factor Scoring-CH'!$E$5:$F$282,,MATCH(G$4,'B. PoF Adj Factor Scoring-CH'!$E$3:$N$3,0)-1),2,TRUE) -> 1 | H96: =VLOOKUP(C:C,OFFSET('B. PoF Adj Factor Scoring-CH'!$E$5:$F$282,,MATCH(H$4,'B. PoF Adj Factor Scoring-CH'!$E$3:$N$3,0)-1),2,TRUE) -> 1 | I96: =VLOOKUP(D:D,OFFSET('B. PoF Adj Factor Scoring-CH'!$E$5:$F$282,,MATCH(I$4,'B. PoF Adj Factor Scoring-CH'!$E$3:$N$3,0)-1),2,TRUE) -> 1 | J96: =VLOOKUP(E:E,OFFSET('B. PoF Adj Factor Scoring-CH'!$E$5:$F$282,,MATCH(J$4,'B. PoF Adj Factor Scoring-CH'!$E$3:$N$3,0)-1),2,TRUE) -> 1 | K96: =VLOOKUP(F:F,OFFSET('B. PoF Adj Factor Scoring-CH'!$E$5:$F$282,,MATCH(K$4,'B. PoF Adj Factor Scoring-CH'!$E$3:$N$3,0)-1),2,TRUE) -> 1
A97: ='A. Population Info-CH'!A97 -> 1000015542 | B97: ='A. Population Info-CH'!G97 -> N/A | C97: ='A. Population Info-CH'!H97 -> 0 | D97: ='A. Population Info-CH'!I97 -> 0 | E97: ='A. Population Info-CH'!J97 -> 0 | F97: ='A. Population Info-CH'!K97 -> 0 | G97: =VLOOKUP(B:B,OFFSET('B. PoF Adj Factor Scoring-CH'!$E$5:$F$282,,MATCH(G$4,'B. PoF Adj Factor Scoring-CH'!$E$3:$N$3,0)-1),2,TRUE) -> 1 | H97: =VLOOKUP(C:C,OFFSET('B. PoF Adj Factor Scoring-CH'!$E$5:$F$282,,MATCH(H$4,'B. PoF Adj Factor Scoring-CH'!$E$3:$N$3,0)-1),2,TRUE) -> 1 | I97: =VLOOKUP(D:D,OFFSET('B. PoF Adj Factor Scoring-CH'!$E$5:$F$282,,MATCH(I$4,'B. PoF Adj Factor Scoring-CH'!$E$3:$N$3,0)-1),2,TRUE) -> 1 | J97: =VLOOKUP(E:E,OFFSET('B. PoF Adj Factor Scoring-CH'!$E$5:$F$282,,MATCH(J$4,'B. PoF Adj Factor Scoring-CH'!$E$3:$N$3,0)-1),2,TRUE) -> 1 | K97: =VLOOKUP(F:F,OFFSET('B. PoF Adj Factor Scoring-CH'!$E$5:$F$282,,MATCH(K$4,'B. PoF Adj Factor Scoring-CH'!$E$3:$N$3,0)-1),2,TRUE) -> 1
A98: ='A. Population Info-CH'!A98 -> 1000015545 | B98: ='A. Population Info-CH'!G98 -> N/A | C98: ='A. Population Info-CH'!H98 -> 0 | D98: ='A. Population Info-CH'!I98 -> 0 | E98: ='A. Population Info-CH'!J98 -> 0 | F98: ='A. Population Info-CH'!K98 -> 0 | G98: =VLOOKUP(B:B,OFFSET('B. PoF Adj Factor Scoring-CH'!$E$5:$F$282,,MATCH(G$4,'B. PoF Adj Factor Scoring-CH'!$E$3:$N$3,0)-1),2,TRUE) -> 1 | H98: =VLOOKUP(C:C,OFFSET('B. PoF Adj Factor Scoring-CH'!$E$5:$F$282,,MATCH(H$4,'B. PoF Adj Factor Scoring-CH'!$E$3:$N$3,0)-1),2,TRUE) -> 1 | I98: =VLOOKUP(D:D,OFFSET('B. PoF Adj Factor Scoring-CH'!$E$5:$F$282,,MATCH(I$4,'B. PoF Adj Factor Scoring-CH'!$E$3:$N$3,0)-1),2,TRUE) -> 1 | J98: =VLOOKUP(E:E,OFFSET('B. PoF Adj Factor Scoring-CH'!$E$5:$F$282,,MATCH(J$4,'B. PoF Adj Factor Scoring-CH'!$E$3:$N$3,0)-1),2,TRUE) -> 1 | K98: =VLOOKUP(F:F,OFFSET('B. PoF Adj Factor Scoring-CH'!$E$5:$F$282,,MATCH(K$4,'B. PoF Adj Factor Scoring-CH'!$E$3:$N$3,0)-1),2,TRUE) -> 1
A99: ='A. Population Info-CH'!A99 -> 1000015548 | B99: ='A. Population Info-CH'!G99 -> N/A | C99: ='A. Population Info-CH'!H99 -> 0 | D99: ='A. Population Info-CH'!I99 -> 0 | E99: ='A. Population Info-CH'!J99 -> 0 | F99: ='A. Population Info-CH'!K99 -> 0 | G99: =VLOOKUP(B:B,OFFSET('B. PoF Adj Factor Scoring-CH'!$E$5:$F$282,,MATCH(G$4,'B. PoF Adj Factor Scoring-CH'!$E$3:$N$3,0)-1),2,TRUE) -> 1 | H99: =VLOOKUP(C:C,OFFSET('B. PoF Adj Factor Scoring-CH'!$E$5:$F$282,,MATCH(H$4,'B. PoF Adj Factor Scoring-CH'!$E$3:$N$3,0)-1),2,TRUE) -> 1 | I99: =VLOOKUP(D:D,OFFSET('B. PoF Adj Factor Scoring-CH'!$E$5:$F$282,,MATCH(I$4,'B. PoF Adj Factor Scoring-CH'!$E$3:$N$3,0)-1),2,TRUE) -> 1 | J99: =VLOOKUP(E:E,OFFSET('B. PoF Adj Factor Scoring-CH'!$E$5:$F$282,,MATCH(J$4,'B. PoF Adj Factor Scoring-CH'!$E$3:$N$3,0)-1),2,TRUE) -> 1 | K99: =VLOOKUP(F:F,OFFSET('B. PoF Adj Factor Scoring-CH'!$E$5:$F$282,,MATCH(K$4,'B. PoF Adj Factor Scoring-CH'!$E$3:$N$3,0)-1),2,TRUE) -> 1
A100: ='A. Population Info-CH'!A100 -> 1000015558 | B100: ='A. Population Info-CH'!G100 -> N/A | C100: ='A. Population Info-CH'!H100 -> 0 | D100: ='A. Population Info-CH'!I100 -> 0 | E100: ='A. Population Info-CH'!J100 -> 0 | F100: ='A. Population Info-CH'!K100 -> 0 | G100: =VLOOKUP(B:B,OFFSET('B. PoF Adj Factor Scoring-CH'!$E$5:$F$282,,MATCH(G$4,'B. PoF Adj Factor Scoring-CH'!$E$3:$N$3,0)-1),2,TRUE) -> 1 | H100: =VLOOKUP(C:C,OFFSET('B. PoF Adj Factor Scoring-CH'!$E$5:$F$282,,MATCH(H$4,'B. PoF Adj Factor Scoring-CH'!$E$3:$N$3,0)-1),2,TRUE) -> 1 | I100: =VLOOKUP(D:D,OFFSET('B. PoF Adj Factor Scoring-CH'!$E$5:$F$282,,MATCH(I$4,'B. PoF Adj Factor Scoring-CH'!$E$3:$N$3,0)-1),2,TRUE) -> 1 | J100: =VLOOKUP(E:E,OFFSET('B. PoF Adj Factor Scoring-CH'!$E$5:$F$282,,MATCH(J$4,'B. PoF Adj Factor Scoring-CH'!$E$3:$N$3,0)-1),2,TRUE) -> 1 | K100: =VLOOKUP(F:F,OFFSET('B. PoF Adj Factor Scoring-CH'!$E$5:$F$282,,MATCH(K$4,'B. PoF Adj Factor Scoring-CH'!$E$3:$N$3,0)-1),2,TRUE) -> 1
A101: ='A. Population Info-CH'!A101 -> 1000015575 | B101: ='A. Population Info-CH'!G101 -> N/A | C101: ='A. Population Info-CH'!H101 -> 0 | D101: ='A. Population Info-CH'!I101 -> 0 | E101: ='A. Population Info-CH'!J101 -> 0 | F101: ='A. Population Info-CH'!K101 -> 0 | G101: =VLOOKUP(B:B,OFFSET('B. PoF Adj Factor Scoring-CH'!$E$5:$F$282,,MATCH(G$4,'B. PoF Adj Factor Scoring-CH'!$E$3:$N$3,0)-1),2,TRUE) -> 1 | H101: =VLOOKUP(C:C,OFFSET('B. PoF Adj Factor Scoring-CH'!$E$5:$F$282,,MATCH(H$4,'B. PoF Adj Factor Scoring-CH'!$E$3:$N$3,0)-1),2,TRUE) -> 1 | I101: =VLOOKUP(D:D,OFFSET('B. PoF Adj Factor Scoring-CH'!$E$5:$F$282,,MATCH(I$4,'B. PoF Adj Factor Scoring-CH'!$E$3:$N$3,0)-1),2,TRUE) -> 1 | J101: =VLOOKUP(E:E,OFFSET('B. PoF Adj Factor Scoring-CH'!$E$5:$F$282,,MATCH(J$4,'B. PoF Adj Factor Scoring-CH'!$E$3:$N$3,0)-1),2,TRUE) -> 1 | K101: =VLOOKUP(F:F,OFFSET('B. PoF Adj Factor Scoring-CH'!$E$5:$F$282,,MATCH(K$4,'B. PoF Adj Factor Scoring-CH'!$E$3:$N$3,0)-1),2,TRUE) -> 1
A102: ='A. Population Info-CH'!A102 -> 1000015582 | B102: ='A. Population Info-CH'!G102 -> N/A | C102: ='A. Population Info-CH'!H102 -> 0 | D102: ='A. Population Info-CH'!I102 -> 0 | E102: ='A. Population Info-CH'!J102 -> 0 | F102: ='A. Population Info-CH'!K102 -> 0 | G102: =VLOOKUP(B:B,OFFSET('B. PoF Adj Factor Scoring-CH'!$E$5:$F$282,,MATCH(G$4,'B. PoF Adj Factor Scoring-CH'!$E$3:$N$3,0)-1),2,TRUE) -> 1 | H102: =VLOOKUP(C:C,OFFSET('B. PoF Adj Factor Scoring-CH'!$E$5:$F$282,,MATCH(H$4,'B. PoF Adj Factor Scoring-CH'!$E$3:$N$3,0)-1),2,TRUE) -> 1 | I102: =VLOOKUP(D:D,OFFSET('B. PoF Adj Factor Scoring-CH'!$E$5:$F$282,,MATCH(I$4,'B. PoF Adj Factor Scoring-CH'!$E$3:$N$3,0)-1),2,TRUE) -> 1 | J102: =VLOOKUP(E:E,OFFSET('B. PoF Adj Factor Scoring-CH'!$E$5:$F$282,,MATCH(J$4,'B. PoF Adj Factor Scoring-CH'!$E$3:$N$3,0)-1),2,TRUE) -> 1 | K102: =VLOOKUP(F:F,OFFSET('B. PoF Adj Factor Scoring-CH'!$E$5:$F$282,,MATCH(K$4,'B. PoF Adj Factor Scoring-CH'!$E$3:$N$3,0)-1),2,TRUE) -> 1
A103: ='A. Population Info-CH'!A103 -> 1000015636 | B103: ='A. Population Info-CH'!G103 -> N/A | C103: ='A. Population Info-CH'!H103 -> 0 | D103: ='A. Population Info-CH'!I103 -> 0 | E103: ='A. Population Info-CH'!J103 -> 0 | F103: ='A. Population Info-CH'!K103 -> 0 | G103: =VLOOKUP(B:B,OFFSET('B. PoF Adj Factor Scoring-CH'!$E$5:$F$282,,MATCH(G$4,'B. PoF Adj Factor Scoring-CH'!$E$3:$N$3,0)-1),2,TRUE) -> 1 | H103: =VLOOKUP(C:C,OFFSET('B. PoF Adj Factor Scoring-CH'!$E$5:$F$282,,MATCH(H$4,'B. PoF Adj Factor Scoring-CH'!$E$3:$N$3,0)-1),2,TRUE) -> 1 | I103: =VLOOKUP(D:D,OFFSET('B. PoF Adj Factor Scoring-CH'!$E$5:$F$282,,MATCH(I$4,'B. PoF Adj Factor Scoring-CH'!$E$3:$N$3,0)-1),2,TRUE) -> 1 | J103: =VLOOKUP(E:E,OFFSET('B. PoF Adj Factor Scoring-CH'!$E$5:$F$282,,MATCH(J$4,'B. PoF Adj Factor Scoring-CH'!$E$3:$N$3,0)-1),2,TRUE) -> 1 | K103: =VLOOKUP(F:F,OFFSET('B. PoF Adj Factor Scoring-CH'!$E$5:$F$282,,MATCH(K$4,'B. PoF Adj Factor Scoring-CH'!$E$3:$N$3,0)-1),2,TRUE) -> 1
A104: ='A. Population Info-CH'!A104 -> 1000015665 | B104: ='A. Population Info-CH'!G104 -> N/A | C104: ='A. Population Info-CH'!H104 -> 0 | D104: ='A. Population Info-CH'!I104 -> 0 | E104: ='A. Population Info-CH'!J104 -> 0 | F104: ='A. Population Info-CH'!K104 -> 0 | G104: =VLOOKUP(B:B,OFFSET('B. PoF Adj Factor Scoring-CH'!$E$5:$F$282,,MATCH(G$4,'B. PoF Adj Factor Scoring-CH'!$E$3:$N$3,0)-1),2,TRUE) -> 1 | H104: =VLOOKUP(C:C,OFFSET('B. PoF Adj Factor Scoring-CH'!$E$5:$F$282,,MATCH(H$4,'B. PoF Adj Factor Scoring-CH'!$E$3:$N$3,0)-1),2,TRUE) -> 1 | I104: =VLOOKUP(D:D,OFFSET('B. PoF Adj Factor Scoring-CH'!$E$5:$F$282,,MATCH(I$4,'B. PoF Adj Factor Scoring-CH'!$E$3:$N$3,0)-1),2,TRUE) -> 1 | J104: =VLOOKUP(E:E,OFFSET('B. PoF Adj Factor Scoring-CH'!$E$5:$F$282,,MATCH(J$4,'B. PoF Adj Factor Scoring-CH'!$E$3:$N$3,0)-1),2,TRUE) -> 1 | K104: =VLOOKUP(F:F,OFFSET('B. PoF Adj Factor Scoring-CH'!$E$5:$F$282,,MATCH(K$4,'B. PoF Adj Factor Scoring-CH'!$E$3:$N$3,0)-1),2,TRUE) -> 1
A105: ='A. Population Info-CH'!A105 -> 1000015735 | B105: ='A. Population Info-CH'!G105 -> N/A | C105: ='A. Population Info-CH'!H105 -> 0 | D105: ='A. Population Info-CH'!I105 -> 0 | E105: ='A. Population Info-CH'!J105 -> 0 | F105: ='A. Population Info-CH'!K105 -> 0 | G105: =VLOOKUP(B:B,OFFSET('B. PoF Adj Factor Scoring-CH'!$E$5:$F$282,,MATCH(G$4,'B. PoF Adj Factor Scoring-CH'!$E$3:$N$3,0)-1),2,TRUE) -> 1 | H105: =VLOOKUP(C:C,OFFSET('B. PoF Adj Factor Scoring-CH'!$E$5:$F$282,,MATCH(H$4,'B. PoF Adj Factor Scoring-CH'!$E$3:$N$3,0)-1),2,TRUE) -> 1 | I105: =VLOOKUP(D:D,OFFSET('B. PoF Adj Factor Scoring-CH'!$E$5:$F$282,,MATCH(I$4,'B. PoF Adj Factor Scoring-CH'!$E$3:$N$3,0)-1),2,TRUE) -> 1 | J105: =VLOOKUP(E:E,OFFSET('B. PoF Adj Factor Scoring-CH'!$E$5:$F$282,,MATCH(J$4,'B. PoF Adj Factor Scoring-CH'!$E$3:$N$3,0)-1),2,TRUE) -> 1 | K105: =VLOOKUP(F:F,OFFSET('B. PoF Adj Factor Scoring-CH'!$E$5:$F$282,,MATCH(K$4,'B. PoF Adj Factor Scoring-CH'!$E$3:$N$3,0)-1),2,TRUE) -> 1
A106: ='A. Population Info-CH'!A106 -> 1000015790 | B106: ='A. Population Info-CH'!G106 -> N/A | C106: ='A. Population Info-CH'!H106 -> 0 | D106: ='A. Population Info-CH'!I106 -> 0 | E106: ='A. Population Info-CH'!J106 -> 0 | F106: ='A. Population Info-CH'!K106 -> 0 | G106: =VLOOKUP(B:B,OFFSET('B. PoF Adj Factor Scoring-CH'!$E$5:$F$282,,MATCH(G$4,'B. PoF Adj Factor Scoring-CH'!$E$3:$N$3,0)-1),2,TRUE) -> 1 | H106: =VLOOKUP(C:C,OFFSET('B. PoF Adj Factor Scoring-CH'!$E$5:$F$282,,MATCH(H$4,'B. PoF Adj Factor Scoring-CH'!$E$3:$N$3,0)-1),2,TRUE) -> 1 | I106: =VLOOKUP(D:D,OFFSET('B. PoF Adj Factor Scoring-CH'!$E$5:$F$282,,MATCH(I$4,'B. PoF Adj Factor Scoring-CH'!$E$3:$N$3,0)-1),2,TRUE) -> 1 | J106: =VLOOKUP(E:E,OFFSET('B. PoF Adj Factor Scoring-CH'!$E$5:$F$282,,MATCH(J$4,'B. PoF Adj Factor Scoring-CH'!$E$3:$N$3,0)-1),2,TRUE) -> 1 | K106: =VLOOKUP(F:F,OFFSET('B. PoF Adj Factor Scoring-CH'!$E$5:$F$282,,MATCH(K$4,'B. PoF Adj Factor Scoring-CH'!$E$3:$N$3,0)-1),2,TRUE) -> 1
A107: ='A. Population Info-CH'!A107 -> 1000015800 | B107: ='A. Population Info-CH'!G107 -> N/A | C107: ='A. Population Info-CH'!H107 -> 0 | D107: ='A. Population Info-CH'!I107 -> 0 | E107: ='A. Population Info-CH'!J107 -> 0 | F107: ='A. Population Info-CH'!K107 -> 0 | G107: =VLOOKUP(B:B,OFFSET('B. PoF Adj Factor Scoring-CH'!$E$5:$F$282,,MATCH(G$4,'B. PoF Adj Factor Scoring-CH'!$E$3:$N$3,0)-1),2,TRUE) -> 1 | H107: =VLOOKUP(C:C,OFFSET('B. PoF Adj Factor Scoring-CH'!$E$5:$F$282,,MATCH(H$4,'B. PoF Adj Factor Scoring-CH'!$E$3:$N$3,0)-1),2,TRUE) -> 1 | I107: =VLOOKUP(D:D,OFFSET('B. PoF Adj Factor Scoring-CH'!$E$5:$F$282,,MATCH(I$4,'B. PoF Adj Factor Scoring-CH'!$E$3:$N$3,0)-1),2,TRUE) -> 1 | J107: =VLOOKUP(E:E,OFFSET('B. PoF Adj Factor Scoring-CH'!$E$5:$F$282,,MATCH(J$4,'B. PoF Adj Factor Scoring-CH'!$E$3:$N$3,0)-1),2,TRUE) -> 1 | K107: =VLOOKUP(F:F,OFFSET('B. PoF Adj Factor Scoring-CH'!$E$5:$F$282,,MATCH(K$4,'B. PoF Adj Factor Scoring-CH'!$E$3:$N$3,0)-1),2,TRUE) -> 1
A108: ='A. Population Info-CH'!A108 -> 1000015804 | B108: ='A. Population Info-CH'!G108 -> N/A | C108: ='A. Population Info-CH'!H108 -> 0 | D108: ='A. Population Info-CH'!I108 -> 0 | E108: ='A. Population Info-CH'!J108 -> 0 | F108: ='A. Population Info-CH'!K108 -> 0 | G108: =VLOOKUP(B:B,OFFSET('B. PoF Adj Factor Scoring-CH'!$E$5:$F$282,,MATCH(G$4,'B. PoF Adj Factor Scoring-CH'!$E$3:$N$3,0)-1),2,TRUE) -> 1 | H108: =VLOOKUP(C:C,OFFSET('B. PoF Adj Factor Scoring-CH'!$E$5:$F$282,,MATCH(H$4,'B. PoF Adj Factor Scoring-CH'!$E$3:$N$3,0)-1),2,TRUE) -> 1 | I108: =VLOOKUP(D:D,OFFSET('B. PoF Adj Factor Scoring-CH'!$E$5:$F$282,,MATCH(I$4,'B. PoF Adj Factor Scoring-CH'!$E$3:$N$3,0)-1),2,TRUE) -> 1 | J108: =VLOOKUP(E:E,OFFSET('B. PoF Adj Factor Scoring-CH'!$E$5:$F$282,,MATCH(J$4,'B. PoF Adj Factor Scoring-CH'!$E$3:$N$3,0)-1),2,TRUE) -> 1 | K108: =VLOOKUP(F:F,OFFSET('B. PoF Adj Factor Scoring-CH'!$E$5:$F$282,,MATCH(K$4,'B. PoF Adj Factor Scoring-CH'!$E$3:$N$3,0)-1),2,TRUE) -> 1
A109: ='A. Population Info-CH'!A109 -> 1000015814 | B109: ='A. Population Info-CH'!G109 -> N/A | C109: ='A. Population Info-CH'!H109 -> 0 | D109: ='A. Population Info-CH'!I109 -> 0 | E109: ='A. Population Info-CH'!J109 -> 0 | F109: ='A. Population Info-CH'!K109 -> 0 | G109: =VLOOKUP(B:B,OFFSET('B. PoF Adj Factor Scoring-CH'!$E$5:$F$282,,MATCH(G$4,'B. PoF Adj Factor Scoring-CH'!$E$3:$N$3,0)-1),2,TRUE) -> 1 | H109: =VLOOKUP(C:C,OFFSET('B. PoF Adj Factor Scoring-CH'!$E$5:$F$282,,MATCH(H$4,'B. PoF Adj Factor Scoring-CH'!$E$3:$N$3,0)-1),2,TRUE) -> 1 | I109: =VLOOKUP(D:D,OFFSET('B. PoF Adj Factor Scoring-CH'!$E$5:$F$282,,MATCH(I$4,'B. PoF Adj Factor Scoring-CH'!$E$3:$N$3,0)-1),2,TRUE) -> 1 | J109: =VLOOKUP(E:E,OFFSET('B. PoF Adj Factor Scoring-CH'!$E$5:$F$282,,MATCH(J$4,'B. PoF Adj Factor Scoring-CH'!$E$3:$N$3,0)-1),2,TRUE) -> 1 | K109: =VLOOKUP(F:F,OFFSET('B. PoF Adj Factor Scoring-CH'!$E$5:$F$282,,MATCH(K$4,'B. PoF Adj Factor Scoring-CH'!$E$3:$N$3,0)-1),2,TRUE) -> 1
A110: ='A. Population Info-CH'!A110 -> 1000015816 | B110: ='A. Population Info-CH'!G110 -> N/A | C110: ='A. Population Info-CH'!H110 -> 0 | D110: ='A. Population Info-CH'!I110 -> 0 | E110: ='A. Population Info-CH'!J110 -> 0 | F110: ='A. Population Info-CH'!K110 -> 0 | G110: =VLOOKUP(B:B,OFFSET('B. PoF Adj Factor Scoring-CH'!$E$5:$F$282,,MATCH(G$4,'B. PoF Adj Factor Scoring-CH'!$E$3:$N$3,0)-1),2,TRUE) -> 1 | H110: =VLOOKUP(C:C,OFFSET('B. PoF Adj Factor Scoring-CH'!$E$5:$F$282,,MATCH(H$4,'B. PoF Adj Factor Scoring-CH'!$E$3:$N$3,0)-1),2,TRUE) -> 1 | I110: =VLOOKUP(D:D,OFFSET('B. PoF Adj Factor Scoring-CH'!$E$5:$F$282,,MATCH(I$4,'B. PoF Adj Factor Scoring-CH'!$E$3:$N$3,0)-1),2,TRUE) -> 1 | J110: =VLOOKUP(E:E,OFFSET('B. PoF Adj Factor Scoring-CH'!$E$5:$F$282,,MATCH(J$4,'B. PoF Adj Factor Scoring-CH'!$E$3:$N$3,0)-1),2,TRUE) -> 1 | K110: =VLOOKUP(F:F,OFFSET('B. PoF Adj Factor Scoring-CH'!$E$5:$F$282,,MATCH(K$4,'B. PoF Adj Factor Scoring-CH'!$E$3:$N$3,0)-1),2,TRUE) -> 1
A111: ='A. Population Info-CH'!A111 -> 1000015826 | B111: ='A. Population Info-CH'!G111 -> N/A | C111: ='A. Population Info-CH'!H111 -> 0 | D111: ='A. Population Info-CH'!I111 -> 0 | E111: ='A. Population Info-CH'!J111 -> 0 | F111: ='A. Population Info-CH'!K111 -> 0 | G111: =VLOOKUP(B:B,OFFSET('B. PoF Adj Factor Scoring-CH'!$E$5:$F$282,,MATCH(G$4,'B. PoF Adj Factor Scoring-CH'!$E$3:$N$3,0)-1),2,TRUE) -> 1 | H111: =VLOOKUP(C:C,OFFSET('B. PoF Adj Factor Scoring-CH'!$E$5:$F$282,,MATCH(H$4,'B. PoF Adj Factor Scoring-CH'!$E$3:$N$3,0)-1),2,TRUE) -> 1 | I111: =VLOOKUP(D:D,OFFSET('B. PoF Adj Factor Scoring-CH'!$E$5:$F$282,,MATCH(I$4,'B. PoF Adj Factor Scoring-CH'!$E$3:$N$3,0)-1),2,TRUE) -> 1 | J111: =VLOOKUP(E:E,OFFSET('B. PoF Adj Factor Scoring-CH'!$E$5:$F$282,,MATCH(J$4,'B. PoF Adj Factor Scoring-CH'!$E$3:$N$3,0)-1),2,TRUE) -> 1 | K111: =VLOOKUP(F:F,OFFSET('B. PoF Adj Factor Scoring-CH'!$E$5:$F$282,,MATCH(K$4,'B. PoF Adj Factor Scoring-CH'!$E$3:$N$3,0)-1),2,TRUE) -> 1
A112: ='A. Population Info-CH'!A112 -> 1000015829 | B112: ='A. Population Info-CH'!G112 -> N/A | C112: ='A. Population Info-CH'!H112 -> 0 | D112: ='A. Population Info-CH'!I112 -> 0 | E112: ='A. Population Info-CH'!J112 -> 0 | F112: ='A. Population Info-CH'!K112 -> 0 | G112: =VLOOKUP(B:B,OFFSET('B. PoF Adj Factor Scoring-CH'!$E$5:$F$282,,MATCH(G$4,'B. PoF Adj Factor Scoring-CH'!$E$3:$N$3,0)-1),2,TRUE) -> 1 | H112: =VLOOKUP(C:C,OFFSET('B. PoF Adj Factor Scoring-CH'!$E$5:$F$282,,MATCH(H$4,'B. PoF Adj Factor Scoring-CH'!$E$3:$N$3,0)-1),2,TRUE) -> 1 | I112: =VLOOKUP(D:D,OFFSET('B. PoF Adj Factor Scoring-CH'!$E$5:$F$282,,MATCH(I$4,'B. PoF Adj Factor Scoring-CH'!$E$3:$N$3,0)-1),2,TRUE) -> 1 | J112: =VLOOKUP(E:E,OFFSET('B. PoF Adj Factor Scoring-CH'!$E$5:$F$282,,MATCH(J$4,'B. PoF Adj Factor Scoring-CH'!$E$3:$N$3,0)-1),2,TRUE) -> 1 | K112: =VLOOKUP(F:F,OFFSET('B. PoF Adj Factor Scoring-CH'!$E$5:$F$282,,MATCH(K$4,'B. PoF Adj Factor Scoring-CH'!$E$3:$N$3,0)-1),2,TRUE) -> 1
